{"text_format":"1","workbook":"xlsx","n_sheets":10,"sheets":["BaseGenerale","Mod_ProgEPS","Mod_ParcoursEleve","FondDossEps","Etablissement","ListeClasses","ListeColleges","ListeLycees","ModServices","ModPlanning"],"not_rendered":{"charts":0,"images":16,"macros":1,"external_links":0,"defined_names":504,"comments":3,"pivot_tables":0},"unopened":[],"bounds":{"document_bytes":16777216,"sheet_cells":100000,"rows_first":2000,"rows_last":500,"rows_between":2000,"halvings":0,"cell_chars":16384,"cell_head_chars":4096},"cells_cut":0,"cells_raw":0,"read":"whole","date_system":"1900"}

{"sheet":"BaseGenerale","index":0,"n_rows":303,"n_cols":296,"rows_kept":303,"cut":false,"hidden":false,"merged":[[240,11,240,12],[240,14,240,18],[240,29,240,45],[241,14,241,18],[242,14,242,18],[243,14,243,18],[199,11,199,12],[200,14,200,18],[201,14,201,18],[202,14,202,18],[199,14,199,18],[30,9,30,10],[39,9,39,10],[135,12,135,13],[133,12,133,13],[63,12,63,14],[64,12,64,13],[65,12,65,13],[134,12,134,13],[60,12,60,14],[130,12,130,13],[131,12,131,13],[66,12,66,13],[69,12,69,13],[51,12,51,14],[132,12,132,13],[0,5,1,7],[3,9,3,10],[17,9,17,10],[18,20,18,25],[2,161,2,164],[2,138,2,141],[2,29,2,45],[2,20,2,27],[17,20,17,25],[2,61,2,85],[2,47,2,53],[2,92,2,116],[58,61,58,78],[167,92,167,116],[224,251,224,254],[239,251,239,255],[224,235,224,239],[224,243,224,247],[201,229,201,230],[201,231,201,232],[224,227,224,231],[239,230,239,233],[239,237,239,241],[239,244,239,248],[201,247,201,248],[201,252,201,253],[239,224,239,228],[201,237,201,238],[201,239,201,240],[201,243,201,244],[201,245,201,246],[99,161,99,183],[58,92,58,116],[80,138,80,152],[199,161,199,183],[239,212,239,215],[239,218,239,222],[227,14,227,27],[228,14,228,27],[231,14,231,27],[232,14,232,27],[233,14,233,27],[234,14,234,27],[235,14,235,27],[237,14,237,27],[238,14,238,27],[2,227,2,230],[199,249,199,255],[201,227,201,228],[200,252,200,253],[200,254,200,255],[200,227,200,228],[200,229,200,230],[200,231,200,232],[199,234,199,240],[199,242,199,248],[200,243,200,244],[200,245,200,246],[200,247,200,248],[199,226,199,232],[201,254,201,255],[200,235,200,236],[200,237,200,238],[200,239,200,240],[201,235,201,236],[200,250,200,251],[201,250,201,251],[275,14,275,27],[273,14,273,27],[274,14,274,27],[199,29,199,45],[220,14,220,27],[221,14,221,27],[222,14,222,27],[219,14,219,27],[225,14,225,27],[226,14,226,27],[2,292,2,296],[80,256,80,260],[80,262,80,266],[80,268,80,272],[80,274,80,278],[80,280,80,284],[80,286,80,290],[2,256,2,260],[2,262,2,266],[2,268,2,272],[2,274,2,278],[2,280,2,284],[2,286,2,290]]}
[1,null,null,null,null,"6eme cours de 1H :"]
[null,null,null,"Version :","4.3.9",null,null,null,"N",{"$f":"COLUMN()","v":10},{"$f":"COLUMN()","v":11},{"$f":"COLUMN()","v":12},{"$f":"COLUMN()","v":13},{"$f":"COLUMN()","v":14},{"$f":"COLUMN()","v":15},{"$f":"COLUMN()","v":16},{"$f":"COLUMN()","v":17},{"$f":"COLUMN()","v":18},{"$f":"COLUMN()","v":19},{"$f":"COLUMN()","v":20},{"$f":"COLUMN()","v":21},{"$f":"COLUMN()","v":22},{"$f":"COLUMN()","v":23},{"$f":"COLUMN()","v":24},{"$f":"COLUMN()","v":25},{"$f":"COLUMN()","v":26},{"$f":"COLUMN()","v":27},{"$f":"COLUMN()","v":28},{"$f":"COLUMN()","v":29},{"$f":"COLUMN()","v":30},{"$f":"COLUMN()","v":31},{"$f":"COLUMN()","v":32},{"$f":"COLUMN()","v":33},{"$f":"COLUMN()","v":34},{"$f":"COLUMN()","v":35},{"$f":"COLUMN()","v":36},{"$f":"COLUMN()","v":37},{"$f":"COLUMN()","v":38},{"$f":"COLUMN()","v":39},{"$f":"COLUMN()","v":40},{"$f":"COLUMN()","v":41},{"$f":"COLUMN()","v":42},{"$f":"COLUMN()","v":43},{"$f":"COLUMN()","v":44},{"$f":"COLUMN()","v":45},{"$f":"COLUMN()","v":46},{"$f":"COLUMN()","v":47},{"$f":"COLUMN()","v":48},{"$f":"COLUMN()","v":49},{"$f":"COLUMN()","v":50},{"$f":"COLUMN()","v":51},{"$f":"COLUMN()","v":52},{"$f":"COLUMN()","v":53},{"$f":"COLUMN()","v":54},{"$f":"COLUMN()","v":55},{"$f":"COLUMN()","v":56},{"$f":"COLUMN()","v":57},{"$f":"COLUMN()","v":58},{"$f":"COLUMN()","v":59},{"$f":"COLUMN()","v":60},{"$f":"COLUMN()","v":61},{"$f":"COLUMN()","v":62},{"$f":"COLUMN()","v":63},{"$f":"COLUMN()","v":64},{"$f":"COLUMN()","v":65},{"$f":"COLUMN()","v":66},{"$f":"COLUMN()","v":67},{"$f":"COLUMN()","v":68},{"$f":"COLUMN()","v":69},{"$f":"COLUMN()","v":70},{"$f":"COLUMN()","v":71},{"$f":"COLUMN()","v":72},{"$f":"COLUMN()","v":73},{"$f":"COLUMN()","v":74},{"$f":"COLUMN()","v":75},{"$f":"COLUMN()","v":76},{"$f":"COLUMN()","v":77},{"$f":"COLUMN()","v":78},{"$f":"COLUMN()","v":79},{"$f":"COLUMN()","v":80},{"$f":"COLUMN()","v":81},{"$f":"COLUMN()","v":82},{"$f":"COLUMN()","v":83},{"$f":"COLUMN()","v":84},{"$f":"COLUMN()","v":85},{"$f":"COLUMN()","v":86},{"$f":"COLUMN()","v":87},{"$f":"COLUMN()","v":88},{"$f":"COLUMN()","v":89},{"$f":"COLUMN()","v":90},{"$f":"COLUMN()","v":91},{"$f":"COLUMN()","v":92},{"$f":"COLUMN()","v":93},{"$f":"COLUMN()","v":94},{"$f":"COLUMN()","v":95},{"$f":"COLUMN()","v":96},{"$f":"COLUMN()","v":97},{"$f":"COLUMN()","v":98},{"$f":"COLUMN()","v":99},{"$f":"COLUMN()","v":100},{"$f":"COLUMN()","v":101},{"$f":"COLUMN()","v":102},{"$f":"COLUMN()","v":103},{"$f":"COLUMN()","v":104},{"$f":"COLUMN()","v":105},{"$f":"COLUMN()","v":106},{"$f":"COLUMN()","v":107},{"$f":"COLUMN()","v":108},{"$f":"COLUMN()","v":109},{"$f":"COLUMN()","v":110},{"$f":"COLUMN()","v":111},{"$f":"COLUMN()","v":112},{"$f":"COLUMN()","v":113},{"$f":"COLUMN()","v":114},{"$f":"COLUMN()","v":115},{"$f":"COLUMN()","v":116},{"$f":"COLUMN()","v":117},null,{"$f":"COLUMN()","v":119},{"$f":"COLUMN()","v":120},{"$f":"COLUMN()","v":121},{"$f":"COLUMN()","v":122},null,null,{"$f":"COLUMN()","v":125},{"$f":"COLUMN()","v":126},{"$f":"COLUMN()","v":127},{"$f":"COLUMN()","v":128},{"$f":"COLUMN()","v":129},{"$f":"COLUMN()","v":130},{"$f":"COLUMN()","v":131},null,{"$f":"COLUMN()","v":133},{"$f":"COLUMN()","v":134},{"$f":"COLUMN()","v":135},{"$f":"COLUMN()","v":136},{"$f":"COLUMN()","v":137},{"$f":"COLUMN()","v":138},{"$f":"COLUMN()","v":139},null,{"$f":"COLUMN()","v":141},{"$f":"COLUMN()","v":142},{"$f":"COLUMN()","v":143},{"$f":"COLUMN()","v":144},null,{"$f":"COLUMN()","v":146},{"$f":"COLUMN()","v":147},{"$f":"COLUMN()","v":148},{"$f":"COLUMN()","v":149},null,{"$f":"COLUMN()","v":151},{"$f":"COLUMN()","v":152},{"$f":"COLUMN()","v":153},{"$f":"COLUMN()","v":154},null,null,{"$f":"COLUMN()","v":157},{"$f":"COLUMN()","v":158},{"$f":"COLUMN()","v":159},{"$f":"COLUMN()","v":160},{"$f":"COLUMN()","v":161},{"$f":"COLUMN()","v":162},{"$f":"COLUMN()","v":163},{"$f":"COLUMN()","v":164},{"$f":"COLUMN()","v":165},{"$f":"COLUMN()","v":166},{"$f":"COLUMN()","v":167},{"$f":"COLUMN()","v":168},{"$f":"COLUMN()","v":169},{"$f":"COLUMN()","v":170},{"$f":"COLUMN()","v":171},{"$f":"COLUMN()","v":172},{"$f":"COLUMN()","v":173},{"$f":"COLUMN()","v":174},{"$f":"COLUMN()","v":175},{"$f":"COLUMN()","v":176},{"$f":"COLUMN()","v":177},{"$f":"COLUMN()","v":178},{"$f":"COLUMN()","v":179},{"$f":"COLUMN()","v":180},{"$f":"COLUMN()","v":181},{"$f":"COLUMN()","v":182},{"$f":"COLUMN()","v":183},{"$f":"COLUMN()","v":184},{"$f":"COLUMN()","v":185},{"$f":"COLUMN()","v":186},{"$f":"COLUMN()","v":187},{"$f":"COLUMN()","v":188},{"$f":"COLUMN()","v":189},{"$f":"COLUMN()","v":190},{"$f":"COLUMN()","v":191},{"$f":"COLUMN()","v":192},{"$f":"COLUMN()","v":193},{"$f":"COLUMN()","v":194},{"$f":"COLUMN()","v":195},{"$f":"COLUMN()","v":196},{"$f":"COLUMN()","v":197},{"$f":"COLUMN()","v":198},{"$f":"COLUMN()","v":199},{"$f":"COLUMN()","v":200},{"$f":"COLUMN()","v":201},{"$f":"COLUMN()","v":202},{"$f":"COLUMN()","v":203},{"$f":"COLUMN()","v":204},{"$f":"COLUMN()","v":205},{"$f":"COLUMN()","v":206},{"$f":"COLUMN()","v":207},{"$f":"COLUMN()","v":208},{"$f":"COLUMN()","v":209},{"$f":"COLUMN()","v":210},{"$f":"COLUMN()","v":211},{"$f":"COLUMN()","v":212},{"$f":"COLUMN()","v":213},{"$f":"COLUMN()","v":214},{"$f":"COLUMN()","v":215},{"$f":"COLUMN()","v":216},{"$f":"COLUMN()","v":217},{"$f":"COLUMN()","v":218},{"$f":"COLUMN()","v":219},{"$f":"COLUMN()","v":220},{"$f":"COLUMN()","v":221},{"$f":"COLUMN()","v":222},{"$f":"COLUMN()","v":223},{"$f":"COLUMN()","v":224},{"$f":"COLUMN()","v":225},null,{"$f":"COLUMN()","v":227},{"$f":"COLUMN()","v":228},{"$f":"COLUMN()","v":229},{"$f":"COLUMN()","v":230},{"$f":"COLUMN()","v":231},{"$f":"COLUMN()","v":232},{"$f":"COLUMN()","v":233},{"$f":"COLUMN()","v":234},null,{"$f":"COLUMN()","v":236},{"$f":"COLUMN()","v":237},{"$f":"COLUMN()","v":238},{"$f":"COLUMN()","v":239},{"$f":"COLUMN()","v":240},{"$f":"COLUMN()","v":241},{"$f":"COLUMN()","v":242},null,{"$f":"COLUMN()","v":244},{"$f":"COLUMN()","v":245},{"$f":"COLUMN()","v":246},{"$f":"COLUMN()","v":247},{"$f":"COLUMN()","v":248},{"$f":"COLUMN()","v":249},{"$f":"COLUMN()","v":250},null,{"$f":"COLUMN()","v":252},{"$f":"COLUMN()","v":253},{"$f":"COLUMN()","v":254},{"$f":"COLUMN()","v":255},{"$f":"COLUMN()","v":256},{"$f":"COLUMN()","v":257},{"$f":"COLUMN()","v":258},{"$f":"COLUMN()","v":259},{"$f":"COLUMN()","v":260},{"$f":"COLUMN()","v":261},{"$f":"COLUMN()","v":262},{"$f":"COLUMN()","v":263},{"$f":"COLUMN()","v":264},{"$f":"COLUMN()","v":265},null,null,null,{"$f":"COLUMN()","v":269},{"$f":"COLUMN()","v":270},{"$f":"COLUMN()","v":271},{"$f":"COLUMN()","v":272},{"$f":"COLUMN()","v":273},{"$f":"COLUMN()","v":274},{"$f":"COLUMN()","v":275},{"$f":"COLUMN()","v":276},{"$f":"COLUMN()","v":277},{"$f":"COLUMN()","v":278},{"$f":"COLUMN()","v":279},{"$f":"COLUMN()","v":280},{"$f":"COLUMN()","v":281},{"$f":"COLUMN()","v":282},{"$f":"COLUMN()","v":283},{"$f":"COLUMN()","v":284},{"$f":"COLUMN()","v":285},{"$f":"COLUMN()","v":286},{"$f":"COLUMN()","v":287},{"$f":"COLUMN()","v":288},{"$f":"COLUMN()","v":289},{"$f":"COLUMN()","v":290},{"$f":"COLUMN()","v":291},{"$f":"COLUMN()","v":292}]
[null,null,null,"Nombre classes :","Aucune classe !",null,"Date :",null,null,"Année scolaire : ",null,"Version de l'application : ",4309,"©","2016-2023",null,null,null,null,null,"Horaires de cours",null,null,null,null,null,null,null,null,"Enseignants",null,null,null,null,null,null,null,null,null,null,null,null,null,null,null,null,null,"Echelons",null,null,null,null,null,null,null,null,null,null,null,null,null,"Cycle 4",null,null,null,null,null,null,null,null,null,null,null,null,null,null,null,null,null,null,null,null,null,null,null,null,null,null,null,null,null,null,"Lycée général et technologique",null,null,null,null,null,null,null,null,null,null,null,null,null,null,null,null,null,null,null,null,null,null,null,null,null,null,null,null,null,null,null,null,null,null,null,null,null,null,null,null,null,null,null,null,null,"Nb total d'APSA en cumul collège :",null,null,null,75,null,null,null,null,null,null,null,null,null,null,null,null,null,null,null,null,null,null,"Nb total d'APSA en cumul lycée :",null,null,null,{"$f":"IF(EM3=\"\",75,EM3)","v":75},null,null,null,null,null,null,null,null,null,null,null,null,null,null,null,null,null,null,null,null,null,null,null,null,null,null,null,null,null,null,null,null,null,null,null,null,null,null,null,null,null,null,null,null,null,null,null,null,null,null,null,null,null,null,null,null,null,null,null,null,null,"Conformité des programmations selon préconisations de l'inspection",null,null,null,null,null,null,null,null,null,null,null,null,null,null,null,null,null,null,null,null,null,null,null,null,null,null,null,null,"Cycle 3",null,null,null,null,null,"Cycle 4",null,null,null,null,null,"Cycle 5 Lycée GT",null,null,null,null,null,"Cycle 6 Bac Pro",null,null,null,null,null,"Cycle 7 CAP",null,null,null,null,null,"Cycle 8 Ens. Otpionnel",null,null,null,null,null,"Cycle 9 ensseignement de spécialité"]
[null,null,null,"Divisions ou\nGroupes","Niveaux",null,null,null,null,"Identité de l'établissement :",null,"Cités scolaires\n(2 ou 3 établissements)","Type\nétablissement :",null,"Statut\nétablissement :",null,"Dep :",null,"Jours\nde la\nsemaine",null,"Créneaux","Tous les\njours","Lundi","Mardi","Mercredi","Jeudi","Vendredi","Samedi",0,"Nom","Prénom","NOM, Prénom","Grade","Echelon","Date\naffectation\nétab","Date RDV de carrière ou Visite","Forfait\nUNSS","Coordi-\nnation","District\nUNSS","Type d'affectation dans l'établissement : ","Heures\nenseignement\nEPS","Réduction\nde service","Jury d'examens\népreuves ponctuelles","APSA en tant que jury aux\népreuves ponctuelles","Remplacé par :","Dates du début et de la fin du remplacement","Grade","Prof EPS CLN","Prof EPS HCL","BIAD EPS","AGREGE CLN","AGREGE HCL","CE EPS EXC","PEGC CL.EX","Type d'affectation dans l'établissement : ",null,"Personnes\nRessources\nListe des APSA",null,"Champ\nou\nCP","Libellé du CA",null,"C 1","Type","Groupe","Num","ID","C 2","Type","Groupe","Num","ID","C 3","Type","Groupe","Num","ID","C 4","Type","Groupe","Num","ID","Autre","Type","Groupe","Num","ID","Libellé D1","Libellé D2","Libellé D3","Libellé D4","Libellé D5",null,"CA 1","Type","Groupe","Num","ID","CA 2","Type","Groupe","Num","ID","CA 3","Type","Groupe","Num","ID","CA 4","Type","Groupe","Num","ID","CA 5","Type","Groupe","Num","ID",null,null,null,"Compétences du socle","5 Compétences générales de l'EPS",null,null,"APSA sélectionnées\nTEMP",null,"Groupe","Num","ID",null,"Niveau 6eme\nCYCLE 3","TYPE","Groupe","Num","ID","Niveau","Nbre","Champ","Niveau 5eme","TYPE","Groupe","Num","ID","Niveau 4eme","TYPE","Groupe","Num","ID","Niveau 3eme","TYPE","Groupe","Num","ID","CYCLE 4","TYPE","Groupe","Num","ID","Niveau","Nbre","Champ","Niveau 2nde","Type","Groupe","Num","ID","Niveau Première","Type","Groupe","Num","ID","Niveau Terminal (5)","Type","Groupe","Num","ID","Cycle Terminal (5)","Type","Groupe","Num","ID","Niveau","Nbre","CA","Niveau 2nde\nVOIE PRO","Type","Groupe","Num","ID","Niveau Première\nVOIE PRO","Type","Groupe","Num","ID","Niveau Terminal\nVOIE PRO",null,"Groupe","Num","ID","Cycle Terminal (6)\nVOIE PRO","Type","Groupe","Num","ID","Niveau","Nbre","CA","1ère ANNÉE de CAP","Type","Groupe","Num","ID","2ère ANNÉE de CAP","Type","Groupe","Num","ID","Cycle Terminal (7)\nCAP","Type","Groupe","Num","ID","Niveau","Nbre","CA",null,null,"INDICATEURS","Cycle 5\n(2°, 1°, T.)","Cycle 4\n(5°, 4°, 3°)","Cycle 3\n(6ème)","Cycle 6\nVOIE PRO\n(2°, 1°, T.)",null,null,null,null,null,null,null,null,null,null,null,null,null,null,null,null,null,null,null,null,null,null,null,null,"APSA\nprogrammées","ID",null,"APSA non\nprogrammées dans\nla sélection",null,null,"APSA\nprogrammées","ID",null,"APSA non\nprogrammées dans\nla sélection",null,null,"APSA\nprogrammées","ID",null,"APSA non\nprogrammées dans\nla sélection",null,null,"APSA\nprogrammées","ID",null,"APSA non\nprogrammées dans\nla sélection",null,null,"APSA\nprogrammées","ID",null,"APSA non\nprogrammées dans\nla sélection",null,null,"APSA\nprogrammées","ID",null,"APSA non\nprogrammées dans\nla sélection",null,null,"APSA\nprogrammées","ID",null,"APSA non\nprogrammées dans\nla sélection"]
[null,null,"enregistrement\nauto",null,null,null,null,null,null,"Type établissement :",null,null,"Collège",null,"Public",null,"Meurthe et Moselle",null,"Lundi",null,null,null,null,null,null,null,null,null,null,null,null,null,null,null,null,null,null,null,null,null,null,null,null,null,null,null,"Prof EPS CLN",1,1,"Voir P EPS CLN et HCL",1,1,1,1,"Titulaire d'un poste dans l'établissement",null,"Demi-fond",null,"CA 1","Produire une performance optimale à une échaénace donnée",1,"Combiné athlétique",0,1,1,410101,"Aviron",0,3,1,420301,"Acrosport",0,4,1,430401,"Baseball-Softball",0,6,1,440601,"Musculation sans charge",0,9,1,450901,null,null,null,null,null,null,"Course de demi-fond",0,1,2,510102,"Escalade",0,3,1,520301,"Danse de composition",0,4,2,530402,"Basket-ball",0,6,1,540601,"Course en durée",0,9,1,550901,null,"D 1",null,"Les langages pour penser et communiquer","Développer sa motricité et apprendre à s'exprimer avec son corps",null,null,null,null,null,null,null,null,null,null,null,null,null,null,null,null,null,null,null,null,null,null,null,null,null,null,null,null,null,null,null,null,null,null,null,null,null,null,null,null,null,null,null,null,null,null,null,null,null,null,null,null,null,null,null,null,null,null,null,null,null,null,null,null,null,null,null,null,null,null,null,null,null,null,null,null,null,null,null,null,null,null,null,null,null,null,null,null,null,null,null,null,null,null,null,null,null,null,null,null,null,null,null,null,0,"Taux  de CA ou CP différents (0 à 1) : "]
[null,null,"NON",null,null,null,null,null,null,"Statut :",null,null,"Lycée Gén. Et Tech.",null,"Privé",null,"Meuse",null,"Mardi",null,"M1",null,null,null,null,null,null,null,null,null,null,null,null,null,null,null,null,null,null,null,null,null,null,null,null,null,"Prof EPS HCL",2,2,null,2,2,2,2,"Titulaire en service partagé",null,"Danse",null,"CA 2","Adapter ses déplacements à des environnements variés",2,"Course de haies",0,1,2,410102,"Kayak",0,3,3,420303,"Aerobic",0,4,2,430402,"Basket-ball",0,6,2,440602,"Préparation physique (PPG)",0,9,2,450902,null,null,null,null,null,null,"Course de haies",0,1,3,510103,"Course d'orientation",0,3,2,520302,"Acrosport",0,4,3,530403,"Football",0,6,2,540602,"Natation en durée",0,9,2,550902,null,null,1,"Comprendre, s'exprimer en utilisant la langue française à l'oral et à l'écrit",null,null,null,null,null,null,null,null,null,null,null,null,null,null,null,null,null,null,null,null,null,null,null,null,null,null,null,null,null,null,null,null,null,null,null,null,null,null,null,null,null,null,null,null,null,null,null,null,null,null,null,null,null,null,null,null,null,null,null,null,null,null,null,null,null,null,null,null,null,null,null,null,null,null,null,null,null,null,null,null,null,null,null,null,null,null,null,null,null,null,null,null,null,null,null,null,null,null,null,null,null,null,null,null,null,1,"Nbre de cycles d'APSA en CA 1 / CP 1"]
[null,null,"rappel enregistrement",null,null,null,null,null,null,"Département :",null,null,"Cité scolaire (Lyc GT + col)",null,null,null,"Moselle",null,"Mercredi",null,"M2",null,null,null,null,null,null,null,null,null,null,null,null,null,null,null,null,null,null,null,null,null,null,null,null,null,"Prof EPS CL. EX",3,3,null,3,3,3,3,"TZR Rattachement administratif à l'établissement",null,"Tennis de table",null,"CA 3","S'exprimer devant les autres par une prestation artistique et/ou acrobatique",3,"Course de relais - vitesse",0,1,3,410103,"Sauvetage",0,3,4,420304,"Gymnastique rythmique",0,4,3,430403,"Football",0,6,3,440603,"Préparation physique athlétique",0,9,3,450903,null,null,null,null,null,null,"Course de relais-vitesse",0,1,4,510104,"Sauvetage aquatique",0,3,3,520303,"Gymnastique",0,4,4,530404,"Handball",0,6,3,540603,"Musculation",0,9,3,550903,null,null,2,"Comprendre, s'exprimer en utilisant une langue étrangère et, le cas échéant, une langue régionale",null,null,null,null,null,null,null,null,null,null,null,null,null,null,null,null,null,null,null,null,null,null,null,null,null,null,null,null,null,null,null,null,null,null,null,null,null,null,null,null,null,null,null,null,null,null,null,null,null,null,null,null,null,null,null,null,null,null,null,null,null,null,null,null,null,null,null,null,null,null,null,null,null,null,null,null,null,null,null,null,null,null,null,null,null,null,null,null,null,null,null,null,null,null,null,null,null,null,null,null,null,null,null,null,null,2,"Activités athlétiques"]
[null,null,"N",null,null,null,null,null,null,"Nom établissement :",null,null,"LP",null,null,null,"Vosges",null,"Jeudi",null,"M3",null,null,null,null,null,null,null,null,null,null,null,null,null,null,null,null,null,null,null,null,null,null,null,null,null,"BIAD EPS CLN",4,4,null,4,4,4,4,"TZR AFA (affectation fonctionnelle annuelle sur l'établissement)",null,null,null,"CA 4","Conduire et maitriser un affrontement collectif ou interindividuel",4,"Demi-fond",0,1,4,410104,"Escalade",0,3,5,420305,"Gymnastique sportive",0,4,4,430404,"Foot gaélique",0,6,4,440604,"Circuit training",0,9,4,450904,null,null,null,null,null,null,"Pentabond",0,1,5,510105,"VTT",0,3,4,520304,"Danse de création",0,5,1,530501,"Rugby",0,6,4,540604,"Step",0,9,4,550904,null,null,3,"Comprendre, s'exprimer en utilisant les langages mathématiques, scientifiques et informatiques",null,null,null,null,null,null,null,null,null,null,null,null,null,null,null,null,null,null,null,null,null,null,null,null,null,null,null,null,null,null,null,null,null,null,null,null,null,null,null,null,null,null,null,null,null,null,null,null,null,null,null,null,null,null,null,null,null,null,null,null,null,null,null,null,null,null,null,null,null,null,null,null,null,null,null,null,null,null,null,null,null,null,null,null,null,null,null,null,null,null,null,null,null,null,null,null,null,null,null,null,null,null,null,null,null,3,"Activités de natation sportive"]
[null,null,"Choix type planning annuel",null,null,null,null,null,null,"RNE :",null,null,"Lyc polyvalent (Voie Gén, Tech et Pro)",null,null,null,null,null,"Vendredi",null,"M4",null,null,null,null,null,null,null,null,null,null,null,null,null,null,null,null,null,null,null,null,null,null,null,null,null,"BIAD EPS HCL",5,5,null,5,null,5,5,"TZR en service partagé",null,null,null,"Autre",null,5,"Javelot",0,1,5,410105,"Randonnée pédestre",0,3,6,420306,"Gymnastique au sol",0,4,5,430405,"Handball",0,6,5,440605,"Renforcement musculaire",0,9,5,450905,null,null,null,null,null,null,"Saut en longueur",0,1,6,510106,"Golf",2,3,5,520305,"Arts du cirque",0,5,5,530505,"Volley ball",0,6,5,540605,"Yoga",0,9,5,550905,null,null,4,"Comprendre, s'exprimer en utilisant les langages des arts et du corps",null,null,null,null,null,null,null,null,null,null,null,null,null,null,null,null,null,null,null,null,null,null,null,null,null,null,null,null,null,null,null,null,null,null,null,null,null,null,null,null,null,null,null,null,null,null,null,null,null,null,null,null,null,null,null,null,null,null,null,null,null,null,null,null,null,null,null,null,null,null,null,null,null,null,null,null,null,null,null,null,null,null,null,null,null,null,null,null,null,null,null,null,null,null,null,null,null,null,null,null,null,null,null,null,null,4,"Autre"]
[null,null,0,null,null,null,null,null,null,"Commune :",null,null,"Cité scolaire (Lyc Gén, Tech et Pro, Col)",null,null,null,null,null,"Samedi",null,"M5",null,null,null,null,null,null,null,null,null,null,null,null,null,null,null,null,null,null,null,null,null,null,null,null,null,"AGREGE CLN",6,6,null,6,null,null,null,"TZR en affectation temporaire",null,null,null,"CA 1",null,6,"Lancer de disque",0,1,6,410106,"Course d'orientation",0,3,7,420307,"Gymnastique aux agrès",0,4,6,430406,"Rugby",0,6,6,440606,"Yoga-relaxation",0,9,6,450906,null,null,null,null,null,null,"Saut en hauteur",0,1,7,510107,null,null,null,null,null,null,null,null,null,null,"Softball",2,6,6,542606,null,null,null,null,null,null,"D 2",null,"Les méthodes et outils pour apprendre","S'approprier seul ou à plusieurs par la pratique, les méthodes et outils pour apprendre",null,null,null,null,null,null,null,null,null,null,null,null,null,null,null,null,null,null,null,null,null,null,null,null,null,null,null,null,null,null,null,null,null,null,null,null,null,null,null,null,null,null,null,null,null,null,null,null,null,null,null,null,null,null,null,null,null,null,null,null,null,null,null,null,null,null,null,null,null,null,null,null,null,null,null,null,null,null,null,null,null,null,null,null,null,null,null,null,null,null,null,null,null,null,null,null,null,null,null,null,null,null,null,null,5,"Nbre de cycles d'APSA en CA 2 / CP2"]
[null,null,null,null,null,null,null,null,null,"Adresse  :",null,null,"EREA",null,null,null,null,null,null,null,"S1",null,null,null,null,null,null,null,null,null,null,null,null,null,null,null,null,null,null,null,null,null,null,null,null,null,"AGREGE HCL",7,7,null,7,null,null,null,"Stagiaire temps plein",null,null,null,"CA 2",null,7,"Lancer de poids",0,1,7,410107,"Run and Bike",0,3,8,420308,"Step",0,4,7,430407,"Ultimate",0,6,7,440607,null,null,null,null,null,null,null,null,null,null,null,"Triple saut",0,1,8,510108,null,null,null,null,null,null,null,null,null,null,"Ultimate",2,6,11,542611,null,null,null,null,null,null,"D 3",null,"La formation de la personne et du citoyen","Partager des règles, assumer des rôles et des responsabilités",null,null,null,null,null,null,null,null,null,null,null,null,null,null,null,null,null,null,null,null,null,null,null,null,null,null,null,null,null,null,null,null,null,null,null,null,null,null,null,null,null,null,null,null,null,null,null,null,null,null,null,null,null,null,null,null,null,null,null,null,null,null,null,null,null,null,null,null,null,null,null,null,null,null,null,null,null,null,null,null,null,null,null,null,null,null,null,null,null,null,null,null,null,null,null,null,null,null,null,null,null,null,null,null,6,"Activités de pleine nature"]
[null,null,null,null,null,null,null,null,null,"Bassin :",null,null,null,null,null,null,null,null,null,null,"S2",null,null,null,null,null,null,null,null,null,null,null,null,null,null,null,null,null,null,null,null,null,null,null,null,null,"AGREGE CL. EX",8,null,null,8,null,null,null,"Stagiaire mi-temps",null,null,null,"CA 3",null,8,"Lancer de Vortex",0,1,8,410108,"VTT",0,3,9,420309,"Hip Hop",0,4,11,430411,"Volley-ball",0,6,8,440608,null,null,null,null,null,null,null,null,null,null,null,"Saut à la peche",0,1,9,510109,null,null,null,null,null,null,null,null,null,null,"Badminton",0,7,7,540707,null,null,null,null,null,null,"D 4",null,"Les systèmes naturels et les systèmes techniques","Apprendre à entretenir sa santé par une activité physique régulière, raisonnée et raisonnable",null,null,null,null,null,null,null,null,null,null,null,null,null,null,null,null,null,null,null,null,null,null,null,null,null,null,null,null,null,null,null,null,null,null,null,null,null,null,null,null,null,null,null,null,null,null,null,null,null,null,null,null,null,null,null,null,null,null,null,null,null,null,null,null,null,null,null,null,null,null,null,null,null,null,null,null,null,null,null,null,null,null,null,null,null,null,null,null,null,null,null,null,null,null,null,null,null,null,null,null,null,null,null,null,7,"Autre"]
[null,null,null,null,null,null,null,null,null,"Code postal :",null,null,null,null,null,null,null,null,null,null,"S3",null,null,null,null,null,null,null,null,null,null,null,null,null,null,null,null,null,null,null,null,null,null,null,null,null,"CE EPS EXC",9,null,null,9,null,null,null,"Étudiant en Pratique en Responsabilité (EPR) de Master 2",null,null,null,"CA 4",null,9,"Multibond",0,1,9,410109,"Tir à l'arc",0,3,10,420310,"Fitness",0,4,12,430412,"Boccia",0,6,15,440615,null,null,null,null,null,null,null,null,null,null,null,"Lancer de javelot",0,1,10,510110,null,null,null,null,null,null,null,null,null,null,"Tennis de table",0,7,8,540708,null,null,null,null,null,null,"D 5",null,"Les représentations du monde et l'activité humaine","S'approprier une culture physique sportive et artistique pour construire progressivement un regard lucide sur le monde contemporain",null,null,null,null,null,null,null,null,null,null,null,null,null,null,null,null,null,null,null,null,null,null,null,null,null,null,null,null,null,null,null,null,null,null,null,null,null,null,null,null,null,null,null,null,null,null,null,null,null,null,null,null,null,null,null,null,null,null,null,null,null,null,null,null,null,null,null,null,null,null,null,null,null,null,null,null,null,null,null,null,null,null,null,null,null,null,null,null,null,null,null,null,null,null,null,null,null,null,null,null,null,null,null,null,8,"Nbre de cycles d'APSA en CA 3 / CP 3"]
[null,null,null,null,null,null,null,null,null,"Numéro de téléphone :",null,null,null,null,null,null,null,null,null,null,"S4",null,null,null,null,null,null,null,null,null,null,null,null,null,null,null,null,null,null,null,null,null,null,null,null,null,"Prof EPS stagiaire",10,null,null,10,null,null,null,null,null,null,null,"CA 5",null,10,"Saut en hauteur",0,1,10,410110,"Golf",0,3,11,420311,"Danse de reproduction de formes codifiées",0,4,14,430414,"Hockey en salle",0,6,16,440616,null,null,null,null,null,null,null,null,null,null,null,"Lancer de poids",0,1,11,510111,null,null,null,null,null,null,null,null,null,null,"Judo",0,8,9,540809,null,null,null,null,null,null,null,null,null,null,null,null,null,null,null,null,null,null,null,null,null,null,null,null,null,null,null,null,null,null,null,null,null,null,null,null,null,null,null,null,null,null,null,null,null,null,null,null,null,null,null,null,null,null,null,null,null,null,null,null,null,null,null,null,null,null,null,null,null,null,null,null,null,null,null,null,null,null,null,null,null,null,null,null,null,null,null,null,null,null,null,null,null,null,null,null,null,null,null,null,null,null,null,null,null,null,null,null,null,null,null,null,null,null,9,"Activités gymniques"]
[null,null,null,null,null,null,null,null,null,"Numéro de Fax :",null,null,null,null,null,null,null,null,null,null,"S5",null,null,null,null,null,null,null,null,null,null,null,null,null,null,null,null,null,null,null,null,null,null,null,null,null,"Agrégé stagiaire",11,null,null,11,null,null,null,null,null,null,null,null,null,11,"Saut en longueur",0,1,11,410111,"Escalade en bloc",0,3,12,420312,"Double dutch",0,4,15,430415,"Tchoukball",0,6,17,440617,null,null,null,null,null,null,null,null,null,null,null,"Lancer de disque",0,1,12,510112,null,null,null,null,null,null,null,null,null,null,"Boxe française",0,8,10,540810,null,null,null,null,null,null,null,null,null,null,null,null,null,null,null,null,null,null,null,null,null,null,null,null,null,null,null,null,null,null,null,null,null,null,null,null,null,null,null,null,null,null,null,null,null,null,null,null,null,null,null,null,null,null,null,null,null,null,null,null,null,null,null,null,null,null,null,null,null,null,null,null,null,null,null,null,null,null,null,null,null,null,null,null,null,null,null,null,null,null,null,null,null,null,null,null,null,null,null,null,null,null,null,null,null,null,null,null,null,null,null,null,null,null,10,"Activités artistiques"]
[null,null,null,null,null,null,null,null,null,"Mail",null,null,null,null,null,null,null,null,null,null,"S6",null,null,null,null,null,null,null,null,null,null,null,null,null,null,null,null,null,null,null,null,null,null,null,null,null,"Contractuel",null,null,null,null,null,null,null,null,null,null,null,null,null,12,"Triple-saut ",0,1,12,410112,"Canoë",0,3,2,430302,"Patinage artistique",0,4,13,430513,"Netball",0,6,18,440618,null,null,null,null,null,null,null,null,null,null,null,"Lancer de marteau",0,1,13,510113,null,null,null,null,null,null,null,null,null,null,null,null,null,null,null,null,null,null,null,null,null,null,null,null,null,null,null,null,null,null,null,null,null,null,null,null,null,null,null,null,null,null,null,null,null,null,null,null,null,null,null,null,null,null,null,null,null,null,null,null,null,null,null,null,null,null,null,null,null,null,null,null,null,null,null,null,null,null,null,null,null,null,null,null,null,null,null,null,null,null,null,null,null,null,null,null,null,null,null,null,null,null,null,null,null,null,null,null,null,null,null,null,null,null,null,null,null,null,null,null,null,null,null,null,null,null,null,null,null,11,"Autre"]
[null,null,null,null,null,null,null,null,null,"Nom court",null,null,null,null,null,null,null,null,null,null,"S7",null,null,null,null,null,null,null,null,null,null,null,null,null,null,null,null,null,null,null,null,null,null,null,null,null,"Maitre délégué (privé)",null,null,null,null,null,null,null,null,null,null,null,"CA 1",null,13,"Saut à la perche",0,1,13,410113,null,null,null,null,null,"Arts du cirque",0,5,8,430508,"Thèque",0,6,19,440619,null,null,null,null,null,null,null,null,null,null,null,"Combiné athlétique",2,1,1,512101,null,null,null,null,null,null,null,null,null,null,null,null,null,null,null,null,null,null,null,null,null,null,null,null,null,null,null,null,null,null,null,null,null,null,null,null,null,null,null,null,null,null,null,null,null,null,null,null,null,null,null,null,null,null,null,null,null,null,null,null,null,null,null,null,null,null,null,null,null,null,null,null,null,null,null,null,null,null,null,null,null,null,null,null,null,null,null,null,null,null,null,null,null,null,null,null,null,null,null,null,null,null,null,null,null,null,null,null,null,null,null,null,null,null,null,null,null,null,null,null,null,null,null,null,null,null,null,null,null,12,"Nbre de cycles d'APSA en CA 4 / CP 4"]
[null,null,null,null,null,null,null,null,null,"Direction :",null,null,"Niveaux de classe :","Niveau","Année Scolaire",null,null,null,null,null,"Cours le mercredi après-midi :",null,null,null,null,null,"NON",null,null,null,null,null,null,null,null,null,null,null,null,null,null,null,null,null,null,null,"Etudiant EPR",null,null,null,null,null,null,null,null,null,null,null,"CA 2",null,14,"Aviron sur ergomètre",0,1,14,410114,null,null,null,null,null,"Danse de création",0,5,9,430509,"Flag rugby",0,6,22,440622,null,null,null,null,null,null,null,null,null,null,null,"Cross Training",2,1,15,512115,null,null,null,null,null,null,null,null,null,null,null,null,null,null,null,null,null,null,null,null,null,null,null,null,null,null,null,null,null,null,null,null,null,null,null,null,null,null,null,null,null,null,null,null,null,null,null,null,null,null,null,null,null,null,null,null,null,null,null,null,null,null,null,null,null,null,null,null,null,null,null,null,null,null,null,null,null,null,null,null,null,null,null,null,null,null,null,null,null,null,null,null,null,null,null,null,null,null,null,null,null,null,null,null,null,null,null,null,null,null,null,null,null,null,null,null,null,null,null,null,null,null,null,null,null,null,null,null,null,13,"Activités de coopération et d'opposition - sports collectifs"]
[null,null,null,null,null,null,null,null,null,"NOM :",null,null,"CM 1",8,"2020-21",null,null,null,null,null,"Cours le samedi matin :",null,null,null,null,null,"NON",null,null,null,null,null,null,null,null,null,null,null,null,null,null,null,null,null,null,null,null,null,"Prof EPS CL. EX",null,null,"AGREGE CL. EX",null,null,null,null,null,null,"CA 3",null,15,"Ergomètre",0,1,15,410115,null,null,null,null,null,"Danse contemporaine",0,5,10,430510,"Futsal",0,6,23,440623,null,null,null,null,null,null,null,null,null,null,null,"Natation de vitesse",0,2,14,510214,null,null,null,null,null,null,null,null,null,null,null,null,null,null,null,null,null,null,null,null,null,null,null,null,null,null,null,null,null,null,null,null,null,null,null,null,null,null,null,null,null,null,null,null,null,null,null,null,null,null,null,null,null,null,null,null,null,null,null,null,null,null,null,null,null,null,null,null,null,null,null,null,null,null,null,null,null,null,null,null,null,null,null,null,null,null,null,null,null,null,null,null,null,null,null,null,null,null,null,null,null,null,null,null,null,null,null,null,null,null,null,null,null,null,null,null,null,null,null,null,null,null,null,null,null,null,null,null,null,14,"Activités d'opposition duelle"]
[null,null,null,null,null,null,null,null,null,"Prénom :",null,null,"CM 2",7,"2021-22",null,null,null,null,null,null,null,null,null,null,null,null,null,null,null,null,null,null,null,null,null,null,null,null,null,null,null,null,null,null,null,null,null,1,null,null,1,null,null,null,null,null,null,"CA 4",null,16,"Parcours athlétique",0,1,18,410118,null,null,null,null,null,null,null,null,null,null,"Basket-ball ou handball",0,6,24,440624,null,null,null,null,null,null,null,null,null,null,null,null,null,null,null,null,null,null,null,null,null,null,null,null,null,null,null,null,null,null,null,null,null,null,null,null,null,null,null,null,null,null,null,null,null,null,null,null,null,null,null,null,null,null,null,null,null,null,null,null,null,null,null,null,null,null,null,null,null,null,null,null,null,null,null,null,null,null,null,null,null,null,null,null,null,null,null,null,null,null,null,null,null,null,null,null,null,null,null,null,null,null,null,null,null,null,null,null,null,null,null,null,null,null,null,null,null,null,null,null,null,null,null,null,null,null,null,null,null,null,null,null,null,null,null,null,null,null,null,null,null,null,null,null,null,15,"Activités de combat"]
[null,null,null,null,null,null,null,null,null,"Chef d'établissement :",null,null,6,6,"2022-23",null,null,null,null,null,null,null,null,null,null,null,null,null,null,null,null,null,null,null,null,null,null,null,null,null,null,null,null,null,null,null,null,null,2,null,null,2,null,null,null,null,null,null,"CA 5",null,17,"Cross training",0,1,19,410119,null,null,null,null,null,null,null,null,null,null,"Spikeball",0,6,25,440625,null,null,null,null,null,null,null,null,null,null,null,null,null,null,null,null,null,null,null,null,null,null,null,null,null,null,null,null,null,null,null,null,null,null,null,null,null,null,null,null,null,null,null,null,null,null,null,null,null,null,null,null,null,null,null,null,null,null,null,null,null,null,null,null,null,null,null,null,null,null,null,null,null,null,null,null,null,null,null,null,null,null,null,null,null,null,null,null,null,null,null,null,null,null,null,null,null,null,null,null,null,null,null,null,null,null,null,null,null,null,null,null,null,null,null,null,null,null,null,null,null,null,null,null,null,null,null,null,null,null,null,null,null,null,null,null,null,null,null,null,null,null,null,null,null,16,"Autre"]
[null,null,null,null,null,null,null,null,null,"NOM :",null,null,5,5,"2023-24",null,null,null,null,null,null,null,null,null,null,null,null,null,null,null,null,null,null,null,null,null,null,null,null,null,null,null,null,null,null,null,null,null,3,null,null,3,null,null,null,null,null,null,null,null,18,"Biathlon athlétique",0,1,20,410120,null,null,null,null,null,null,null,null,null,null,"Badminton",0,7,9,440709,null,null,null,null,null,null,null,null,null,null,null,null,null,null,null,null,null,null,null,null,null,null,null,null,null,null,null,null,null,null,null,null,null,null,null,null,null,null,null,null,null,null,null,null,null,null,null,null,null,null,null,null,null,null,null,null,null,null,null,null,null,null,null,null,null,null,null,null,null,null,null,null,null,null,null,null,null,null,null,null,null,null,null,null,null,null,null,null,null,null,null,null,null,null,null,null,null,null,null,null,null,null,null,null,null,null,null,null,null,null,null,null,null,null,null,null,null,null,null,null,null,null,null,null,null,null,null,null,null,null,null,null,null,null,null,null,null,null,null,null,null,null,null,null,null,17,"Nbre de cycles d'APSA en CP 5 ou Autre"]
[null,null,null,null,null,null,null,null,null,"Prénom :",null,null,4,4,"2024-25",null,null,null,null,null,null,null,null,null,null,null,null,null,null,null,null,null,null,null,null,null,null,null,null,null,null,null,null,null,null,null,null,null,4,null,null,null,null,null,null,null,null,null,null,null,19,"Cross",0,1,21,410121,null,null,null,null,null,null,null,null,null,null,"Tennis",0,7,10,440710,null,null,null,null,null,null,null,null,null,null,null,null,null,null,null,null,null,null,null,null,null,null,null,null,null,null,null,null,null,null,null,null,null,null,null,null,null,null,null,null,null,null,null,null,null,null,null,null,null,null,null,null,null,null,null,null,null,null,null,null,null,null,null,null,null,null,null,null,null,null,null,null,null,null,null,null,null,null,null,null,null,null,null,null,null,null,null,null,null,null,null,null,null,null,null,null,null,null,null,null,null,null,null,null,null,null,null,null,null,null,null,null,null,null,null,null,null,null,null,null,null,null,null,null,null,null,null,null,null,null,null,null,null,null,null,null,null,null,null,null,null,null,null,null,null,18,"Nbre APSA Listée"]
[null,null,null,null,null,null,null,null,null,"Adjoint 1 :",null,null,3,3,"2025-26",null,null,null,null,null,null,null,null,null,null,null,null,null,null,null,null,null,null,null,null,null,null,null,null,null,null,null,null,null,null,null,null,null,"Ec Spé",null,null,null,null,null,null,null,null,null,null,null,20,"Natation de vitesse",0,2,16,410216,null,null,null,null,null,null,null,null,null,null,"Tennis de table",0,7,11,440711,null,null,null,null,null,null,null,null,null,null,null,null,null,null,null,null,null,null,null,null,null,null,null,null,null,null,null,null,null,null,null,null,null,null,null,null,null,null,null,null,null,null,null,null,null,null,null,null,null,null,null,null,null,null,null,null,null,null,null,null,null,null,null,null,null,null,null,null,null,null,null,null,null,null,null,null,null,null,null,null,null,null,null,null,null,null,null,null,null,null,null,null,null,null,null,null,null,null,null,null,null,null,null,null,null,null,null,null,null,null,null,null,null,null,null,null,null,null,null,null,null,null,null,null,null,null,null,null,null,null,null,null,null,null,null,null,null,null,null,null,null,null,null,null,null,19,"Nbre APSA ajout"]
[null,null,null,null,null,null,null,null,null,"NOM :",null,null,"UNSS COL",60,"2026-27",null,null,null,null,null,null,null,null,null,null,null,null,null,null,null,null,null,null,null,null,null,null,null,null,null,null,null,null,null,null,null,null,null,null,null,null,null,null,null,null,null,null,null,null,null,21,"Natation longue",0,2,17,410217,null,null,null,null,null,null,null,null,null,null,"Mini Tennis",0,7,20,440720,null,null,null,null,null,null,null,null,null,null,null,null,null,null,null,null,null,null,null,null,null,null,null,null,null,null,null,null,null,null,null,null,null,null,null,null,null,null,null,null,null,null,null,null,null,null,null,null,null,null,null,null,null,null,null,null,null,null,null,null,null,null,null,null,null,null,null,null,null,null,null,null,null,null,null,null,null,null,null,null,null,null,null,null,null,null,null,null,null,null,null,null,null,null,null,null,null,null,null,null,null,null,null,null,null,null,null,null,null,null,null,null,null,null,null,null,null,null,null,null,null,null,null,null,null,null,null,null,null,null,null,null,null,null,null,null,null,null,null,null,null,null,null,null,null,20,"Tx de CA ou CP avec au moins 1 APSA programmée 2  fois ou + : "]
[null,null,null,null,null,null,null,null,null,"Prénom :",null,null,"Sect. Sp. COL",10,"2027-28",null,null,null,null,null,null,null,null,null,null,null,null,null,null,null,null,null,null,null,null,null,null,null,null,null,null,null,null,null,null,null,null,null,null,null,null,null,null,null,null,null,null,null,null,null,22,null,null,null,null,null,null,null,null,null,null,null,null,null,null,null,"Boxe française",0,8,12,440812,null,null,null,null,null,null,null,null,null,null,null,null,null,null,null,null,null,null,null,null,null,null,null,null,null,null,null,null,null,null,null,null,null,null,null,null,null,null,null,null,null,null,null,null,null,null,null,null,null,null,null,null,null,null,null,null,null,null,null,null,null,null,null,null,null,null,null,null,null,null,null,null,null,null,null,null,null,null,null,null,null,null,null,null,null,null,null,null,null,null,null,null,null,null,null,null,null,null,null,null,null,null,null,null,null,null,null,null,null,null,null,null,null,null,null,null,null,null,null,null,null,null,null,null,null,null,null,null,null,null,null,null,null,null,null,null,null,null,null,null,null,null,null,null,null,21,"Dont 1 fois programmée en dernière année du cycle : "]
[null,null,null,null,null,null,null,null,null,"Adjoint 2 :",null,null,"Exc. Sp. COL",11,"2028-29",null,null,null,null,null,null,null,null,null,null,null,null,null,null,null,null,null,null,null,null,null,null,null,null,null,null,null,null,null,null,null,null,null,null,null,null,null,null,null,null,null,null,null,null,null,23,null,null,null,null,null,null,null,null,null,null,null,null,null,null,null,"Judo",0,8,13,440813,null,null,null,null,null,null,null,null,null,null,null,null,null,null,null,null,null,null,null,null,null,null,null,null,null,null,null,null,null,null,null,null,null,null,null,null,null,null,null,null,null,null,null,null,null,null,null,null,null,null,null,null,null,null,null,null,null,null,null,null,null,null,null,null,null,null,null,null,null,null,null,null,null,null,null,null,null,null,null,null,null,null,null,null,null,null,null,null,null,null,null,null,null,null,null,null,null,null,null,null,null,null,null,null,null,null,null,null,null,null,null,null,null,null,null,null,null,null,null,null,null,null,null,null,null,null,null,null,null,null,null,null,null,null,null,null,null,null,null,null,null,null,null,null,null,22,"Indicateur de conformité de cycle sur 10 : "]
[null,null,null,null,null,null,null,null,null,"NOM :",null,null,"Elèves C3 et C4",50,"2029-30",null,null,null,null,null,null,null,null,null,null,null,null,null,null,null,null,null,null,null,null,null,null,null,null,null,null,null,null,null,null,null,null,null,null,null,null,null,null,null,null,null,null,null,null,null,24,null,null,null,null,null,null,null,null,null,null,null,null,null,null,null,"Lutte",0,8,14,440814,null,null,null,null,null,null,null,null,null,null,null,null,null,null,null,null,null,null,null,null,null,null,null,null,null,null,null,null,null,null,null,null,null,null,null,null,null,null,null,null,null,null,null,null,null,null,null,null,null,null,null,null,null,null,null,null,null,null,null,null,null,null,null,null,null,null,null,null,null,null,null,null,null,null,null,null,null,null,null,null,null,null,null,null,null,null,null,null,null,null,null,null,null,null,null,null,null,null,null,null,null,null,null,null,null,null,null,null,null,null,null,null,null,null,null,null,null,null,null,null,null,null,null,null,null,null,null,null,null,null,null,null,null,null,null,null,null,null,null,null,null,null,null,null,null,null,"Liste des APSA programmées au cycle 5","ID","CA","Nbre\nde fois","Nbre de\nfois Niv. T","Liste des APSA programmées au cycle 4","ID","CA","Nbre\nde fois","Nbre de\nfois Niv. 3","Liste des APSA programmées au cycle lycée VOIE PRO","ID","CA","Nbre\nde fois","Nbre de\nfois Niv. T"]
[null,null,null,null,null,null,null,null,null,"Prénom :",null,null,2,2,null,null,null,null,null,null,null,null,null,null,null,null,null,null,null,null,null,null,null,null,null,null,null,null,null,null,null,null,null,null,null,null,null,null,null,null,null,null,null,null,null,null,null,null,null,null,25,null,null,null,null,null,null,null,null,null,null,null,null,null,null,null,"Escrime",0,8,21,440821,null,null,null,null,null,null,null,null,null,null,null,null,null,null,null,null,null,null,null,null,null,null,null,null,null,null,null,null,null,null,null,null,null,null,null,null,null,null,null,null,null,null,null,null,null,null,null,null,null,null,null,null,null,null,null,null,null,null,null,null,null,null,null,null,null,null,null,null,null,null,null,null,null,null,null,null,null,null,null,null,null,null,null,null,null,null,null,null,null,null,null,null,null,null,null,null,null,null,null,null,null,null,null,null,null,null,null,null,null,null,null,null,null,null,null,null,null,null,null,null,null,null,null,null,null,null,null,null,null,null,null,null,null,null,null,null,null,null,null,null,null,null,null,null,null,1]
[null,null,null,null,null,null,null,null,null,"Adjoint 3 :",null,null,1,1,null,null,null,null,null,null,null,null,null,null,null,null,null,null,null,null,null,null,null,null,null,null,null,null,null,null,null,null,null,null,null,null,null,null,null,null,null,null,null,null,"Réduction de service :",null,null,null,null,null,26,null,null,null,null,null,null,null,null,null,null,null,null,null,null,null,null,null,null,null,null,null,null,null,null,null,null,null,null,null,null,null,null,null,null,null,null,null,null,null,null,null,null,null,null,null,null,null,null,null,null,null,null,null,null,null,null,null,null,null,null,null,null,null,null,null,null,null,null,null,null,null,null,null,null,null,null,null,null,null,null,null,null,null,null,null,null,null,null,null,null,null,null,null,null,null,null,null,null,null,null,null,null,null,null,null,null,null,null,null,null,null,null,null,null,null,null,null,null,null,null,null,null,null,null,null,null,null,null,null,null,null,null,null,null,null,null,null,null,null,null,null,null,null,null,null,null,null,null,null,null,null,null,null,null,null,null,null,null,null,null,null,null,null,null,null,{"$f":"1+HS29","v":2}]
[null,null,null,null,null,null,null,null,null,"Oraganisation EPS",null,"Données complémentaires COLLEGE","T",0,null,null,null,null,null,null,null,null,null,null,null,null,null,null,null,null,null,null,null,null,null,null,null,null,null,null,null,null,null,null,null,null,null,null,null,null,null,null,null,null,"Décharge",null,null,null,null,null,27,null,null,null,null,null,null,null,null,null,null,null,null,null,null,null,null,null,null,null,null,null,null,null,null,null,null,null,null,null,null,null,null,null,null,null,null,null,null,null,null,null,null,null,null,null,null,null,null,null,null,null,null,null,null,null,null,null,null,null,null,null,null,null,null,null,null,null,null,null,null,null,null,null,null,null,null,null,null,null,null,null,null,null,null,null,null,null,null,null,null,null,null,null,null,null,null,null,null,null,null,null,null,null,null,null,null,null,null,null,null,null,null,null,null,null,null,null,null,null,null,null,null,null,null,null,null,null,null,null,null,null,null,null,null,null,null,null,null,null,null,null,null,null,null,null,null,null,null,null,null,null,null,null,null,null,null,null,null,null,null,null,null,null,null,null,{"$f":"1+HS30","v":3}]
[null,null,null,null,null,null,null,null,null,"Coordonnateur EPS 1",null,null,"EO 2nde",21,null,null,null,null,null,null,null,null,null,null,null,null,null,null,null,null,null,null,null,null,null,null,null,null,null,null,null,null,null,null,null,null,null,null,null,null,null,null,null,null,"Temps partiel",null,null,null,null,null,28,null,null,null,null,null,null,null,null,null,null,null,null,null,null,null,null,null,null,null,null,null,null,null,null,null,null,null,null,null,null,null,null,null,null,null,null,null,null,null,null,null,null,null,null,null,null,null,null,null,null,null,null,null,null,null,null,null,null,null,null,null,null,null,null,null,null,null,null,null,null,null,null,null,null,null,null,null,null,null,null,null,null,null,null,null,null,null,null,null,null,null,null,null,null,null,null,null,null,null,null,null,null,null,null,null,null,null,null,null,null,null,null,null,null,null,null,null,null,null,null,null,null,null,null,null,null,null,null,null,null,null,null,null,null,null,null,null,null,null,null,null,null,null,null,null,null,null,null,null,null,null,null,null,null,null,null,null,null,null,null,null,null,null,null,null,4]
[null,null,null,null,null,null,null,null,null,"Coordonnateur EPS 2",null,null,"EO 1ère",22,null,null,null,null,null,null,null,null,null,null,null,null,null,null,null,null,null,null,null,null,null,null,null,null,null,null,null,null,null,null,null,null,null,null,null,null,null,null,null,null,"Allègement de service",null,null,null,null,null,29,null,null,null,null,null,null,null,null,null,null,null,null,null,null,null,null,null,null,null,null,null,null,null,null,null,null,null,null,null,null,null,null,null,null,null,null,null,null,null,null,null,null,null,null,null,null,null,null,null,null,null,null,null,null,null,null,null,null,null,null,null,null,null,null,null,null,null,null,null,null,null,null,null,null,null,null,null,null,null,null,null,null,null,null,null,null,null,null,null,null,null,null,null,null,null,null,null,null,null,null,null,null,null,null,null,null,null,null,null,null,null,null,null,null,null,null,null,null,null,null,null,null,null,null,null,null,null,null,null,null,null,null,null,null,null,null,null,null,null,null,null,null,null,null,null,null,null,null,null,null,null,null,null,null,null,null,null,null,null,null,null,null,null,null,null,5]
[null,null,null,null,null,null,null,null,null,"Secrétaire AS 1 :",null,null,"EO Term",23,null,null,null,null,null,null,null,null,null,null,null,null,null,null,null,null,null,null,null,null,null,null,null,null,null,null,null,null,null,null,null,null,null,null,null,null,null,null,null,null,null,null,null,null,null,null,30,null,null,null,null,null,null,null,null,null,null,null,null,null,null,null,null,null,null,null,null,null,null,null,null,null,null,null,null,null,null,null,null,null,null,null,null,null,null,null,null,null,null,null,null,null,null,null,null,null,null,null,null,null,null,null,null,null,null,null,null,null,null,null,null,null,null,null,null,null,null,null,null,null,null,null,null,null,null,null,null,null,null,null,null,null,null,null,null,null,null,null,null,null,null,null,null,null,null,null,null,null,null,null,null,null,null,null,null,null,null,null,null,null,null,null,null,null,null,null,null,null,null,null,null,null,null,null,null,null,null,null,null,null,null,null,null,null,null,null,null,null,null,null,null,null,null,null,null,null,null,null,null,null,null,null,null,null,null,null,null,null,null,null,null,null,6]
[null,null,null,null,null,null,null,null,null,"Trésorier AS 1 :",null,null,"EO 1ère (et 2nde)",24,null,null,null,null,null,null,null,null,null,null,null,null,null,null,null,null,null,null,null,null,null,null,null,null,null,null,null,null,null,null,null,null,null,null,null,null,null,null,null,null,null,null,null,null,null,null,31,null,null,null,null,null,null,null,null,null,null,null,null,null,null,null,null,null,null,null,null,null,null,null,null,null,null,null,null,null,null,null,null,null,null,null,null,null,null,null,null,null,null,null,null,null,null,null,null,null,null,null,null,null,null,null,null,null,null,null,null,null,null,null,null,null,null,null,null,null,null,null,null,null,null,null,null,null,null,null,null,null,null,null,null,null,null,null,null,null,null,null,null,null,null,null,null,null,null,null,null,null,null,null,null,null,null,null,null,null,null,null,null,null,null,null,null,null,null,null,null,null,null,null,null,null,null,null,null,null,null,null,null,null,null,null,null,null,null,null,null,null,null,null,null,null,null,null,null,null,null,null,null,null,null,null,null,null,null,null,null,null,null,null,null,null,7]
[null,null,null,null,null,null,null,null,null,"Correspondant FPC",null,null,"EO Term (et 1ère)",25,"Semaine",null,null,null,"Heures\nde cours",null,null,null,null,null,null,null,null,null,null,null,null,null,null,null,null,null,null,null,null,null,null,null,null,null,null,null,null,null,null,null,null,null,null,null,null,null,null,null,null,null,32,null,null,null,null,null,null,null,null,null,null,null,null,null,null,null,null,null,null,null,null,null,null,null,null,null,null,null,null,null,null,null,null,null,null,null,null,null,null,null,null,null,null,null,null,null,null,null,null,null,null,null,null,null,null,null,null,null,null,null,null,null,null,null,null,null,null,null,null,null,null,null,null,null,null,null,null,null,null,null,null,null,null,null,null,null,null,null,null,null,null,null,null,null,null,null,null,null,null,null,null,null,null,null,null,null,null,null,null,null,null,null,null,null,null,null,null,null,null,null,null,null,null,null,null,null,null,null,null,null,null,null,null,null,null,null,null,null,null,null,null,null,null,null,null,null,null,null,null,null,null,null,null,null,null,null,null,null,null,null,null,null,null,null,null,null,8]
[null,null,null,null,null,null,null,null,null,"Responsable certification",null,null,"EO Term (et 1ère et 2nde)",26,"Aucune alternance",null,null,null,8,null,null,null,null,null,null,null,null,null,null,null,null,null,null,null,null,null,null,null,null,null,null,null,null,null,null,null,null,null,null,null,null,null,null,null,null,null,null,null,null,null,33,null,null,null,null,null,null,null,null,null,null,null,null,null,null,null,null,null,null,null,null,null,null,null,null,null,null,null,null,null,null,null,null,null,null,null,null,null,null,null,null,null,null,null,null,null,null,null,null,null,null,null,null,null,null,null,null,null,null,null,null,null,null,null,null,null,null,null,null,null,null,null,null,null,null,null,null,null,null,null,null,null,null,null,null,null,null,null,null,null,null,null,null,null,null,null,null,null,null,null,null,null,null,null,null,null,null,null,null,null,null,null,null,null,null,null,null,null,null,null,null,null,null,null,null,null,null,null,null,null,null,null,null,null,null,null,null,null,null,null,null,null,null,null,null,null,null,null,null,null,null,null,null,null,null,null,null,null,null,null,null,null,null,null,null,null,9]
[null,null,null,null,null,null,null,null,null,"Secrétaire AS 2 :",null,"Email contact enseignant","SPÉC. 1ère",28,"Semaines impaires et paires",null,null,null,9,null,null,null,null,null,null,null,null,null,null,null,null,null,null,null,null,null,null,null,null,null,null,null,null,null,null,null,null,null,null,null,null,null,null,null,null,null,null,null,null,null,34,null,null,null,null,null,null,null,null,null,null,null,null,null,null,null,null,null,null,null,null,null,null,null,null,null,null,null,null,null,null,null,null,null,null,null,null,null,null,null,null,null,null,null,null,null,null,null,null,null,null,null,null,null,null,null,null,null,null,null,null,null,null,null,null,null,null,null,null,null,null,null,null,null,null,null,null,null,null,null,null,null,null,null,null,null,null,null,null,null,null,null,null,null,null,null,null,null,null,null,null,null,null,null,null,null,null,null,null,null,null,null,null,null,null,null,null,null,null,null,null,null,null,null,null,null,null,null,null,null,null,null,null,null,null,null,null,null,null,null,null,null,null,null,null,null,null,null,null,null,null,null,null,null,null,null,null,null,null,null,null,null,null,null,null,null,10]
[null,null,null,null,null,null,null,null,null,"Trésorier AS 2 :",null,null,"SPÉC. Term",29,"Semaines 1 et 2",null,null,null,10,null,null,null,null,null,null,null,null,null,null,null,null,null,null,null,null,null,null,null,null,null,null,null,null,null,null,null,null,null,null,null,null,null,null,null,null,null,null,null,null,null,35,null,null,null,null,null,null,null,null,null,null,null,null,null,null,null,null,null,null,null,null,null,null,null,null,null,null,null,null,null,null,null,null,null,null,null,null,null,null,null,null,null,null,null,null,null,null,null,null,null,null,null,null,null,null,null,null,null,null,null,null,null,null,null,null,null,null,null,null,null,null,null,null,null,null,null,null,null,null,null,null,null,null,null,null,null,null,null,null,null,null,null,null,null,null,null,null,null,null,null,null,null,null,null,null,null,null,null,null,null,null,null,null,null,null,null,null,null,null,null,null,null,null,null,null,null,null,null,null,null,null,null,null,null,null,null,null,null,null,null,null,null,null,null,null,null,null,null,null,null,null,null,null,null,null,null,null,null,null,null,null,null,null,null,null,null,11]
[null,null,null,null,null,null,null,null,"N°","Calendrier année scolaire",null,null,"2 Pro",32,"Semaines A et B",null,null,null,11,null,null,null,null,null,null,null,null,null,null,null,null,null,null,null,null,null,null,null,null,null,null,null,null,null,null,null,null,null,null,null,null,null,null,null,null,null,null,null,null,null,36,null,null,null,null,null,null,null,null,null,null,null,null,null,null,null,null,null,null,null,null,null,null,null,null,null,null,null,null,null,null,null,null,null,null,null,null,null,null,null,null,null,null,null,null,null,null,null,null,null,null,null,null,null,null,null,null,null,null,null,null,null,null,null,null,null,null,null,null,null,null,null,null,null,null,null,null,null,null,null,null,null,null,null,null,null,null,null,null,null,null,null,null,null,null,null,null,null,null,null,null,null,null,null,null,null,null,null,null,null,null,null,null,null,null,null,null,null,null,null,null,null,null,null,null,null,null,null,null,null,null,null,null,null,null,null,null,null,null,null,null,null,null,null,null,null,null,null,null,null,null,null,null,null,null,null,null,null,null,null,null,null,null,null,null,null,12]
[null,null,null,null,null,null,null,null,null,"Année pleine :",null,null,"1 Pro",31,"Sem. Imp. et paires, et cours de 1H30/2H30",null,null,null,12,null,null,null,null,null,null,null,null,null,null,null,null,null,null,null,null,null,null,null,null,null,null,null,null,null,null,null,null,null,null,null,null,null,null,null,null,null,null,null,null,null,37,null,null,null,null,null,null,null,null,null,null,null,null,null,null,null,null,null,null,null,null,null,null,null,null,null,null,null,null,null,null,null,null,null,null,null,null,null,null,null,null,null,null,null,null,null,null,null,null,null,null,null,null,null,null,null,null,null,null,null,null,null,null,null,null,null,null,null,null,null,null,null,null,null,null,null,null,null,null,null,null,null,null,null,null,null,null,null,null,null,null,null,null,null,null,null,null,null,null,null,null,null,null,null,null,null,null,null,null,null,null,null,null,null,null,null,null,null,null,null,null,null,null,null,null,null,null,null,null,null,null,null,null,null,null,null,null,null,null,null,null,null,null,null,null,null,null,null,null,null,null,null,null,null,null,null,null,null,null,null,null,null,null,null,null,null,13]
[null,null,null,null,null,null,null,null,null,"Deux semestres :",null,null,"T Pro",30,"Sem. 1 et 2, et cours de 1H30/2H30",null,null,null,13,null,null,null,null,null,null,null,null,null,null,null,null,null,null,null,null,null,null,null,null,null,null,null,null,null,null,null,null,null,null,null,null,null,null,null,null,null,null,null,null,null,38,null,null,null,null,null,null,null,null,null,null,null,null,null,null,null,null,null,null,null,null,null,null,null,null,null,null,null,null,null,null,null,null,null,null,null,null,null,null,null,null,null,null,null,null,null,null,null,null,null,null,null,null,null,null,null,null,null,null,null,null,null,null,null,null,null,null,null,null,null,null,null,null,null,null,null,null,null,null,null,null,null,null,null,null,null,null,null,null,null,null,null,null,null,null,null,null,null,null,null,null,null,null,null,null,null,null,null,null,null,null,null,null,null,null,null,null,null,null,null,null,null,null,null,null,null,null,null,null,null,null,null,null,null,null,null,null,null,null,null,null,null,null,null,null,null,null,null,null,null,null,null,null,null,null,null,null,null,null,null,null,null,null,null,null,null,14]
[null,null,null,null,null,null,null,null,36,"Date début année :","2023-09-04",null,"1è année CAP",33,"Sem. A et B, et cours de 1H30/2H30",null,null,null,14,null,null,null,null,null,null,null,null,null,null,null,null,null,null,null,null,null,null,null,null,null,null,null,null,null,null,null,null,null,null,null,null,null,null,null,null,null,null,null,null,null,39,null,null,null,null,null,null,null,null,null,null,null,null,null,null,null,null,null,null,null,null,null,null,null,null,null,null,null,null,null,null,null,null,null,null,null,null,null,null,null,null,null,null,null,null,null,null,null,null,null,null,null,null,null,null,null,null,null,null,null,null,null,null,null,null,null,null,null,null,null,null,null,null,null,null,null,null,null,null,null,null,null,null,null,null,null,null,null,null,null,null,null,null,null,null,null,null,null,null,null,null,null,null,null,null,null,null,null,null,null,null,null,null,null,null,null,null,null,null,null,null,null,null,null,null,null,null,null,null,null,null,null,null,null,null,null,null,null,null,null,null,null,null,null,null,null,null,null,null,null,null,null,null,null,null,null,null,null,null,null,null,null,null,null,null,null,15]
[null,null,null,null,null,null,null,null,27,"Date fin année :","2024-07-01",null,"2è année CAP",34,null,null,null,null,15,null,null,null,null,null,null,null,null,null,null,null,null,null,null,null,null,null,null,null,null,null,null,null,null,null,null,null,null,null,null,null,null,null,null,null,null,null,null,null,null,null,40,null,null,null,null,null,null,null,null,null,null,null,null,null,null,null,null,null,null,null,null,null,null,null,null,null,null,null,null,null,null,null,null,null,null,null,null,null,null,null,null,null,null,null,null,null,null,null,null,null,null,null,null,null,null,null,null,null,null,null,null,null,null,null,null,null,null,null,null,null,null,null,null,null,null,null,null,null,null,null,null,null,null,null,null,null,null,null,null,null,null,null,null,null,null,null,null,null,null,null,null,null,null,null,null,null,null,null,null,null,null,null,null,null,null,null,null,null,null,null,null,null,null,null,null,null,null,null,null,null,null,null,null,null,null,null,null,null,null,null,null,null,null,null,null,null,null,null,null,null,null,null,null,null,null,null,null,null,null,null,null,null,null,null,null,null,16]
[null,null,null,null,null,null,null,null,null,"Date début semestre 1 :",null,null,"UNSS LYC",70,null,null,null,null,16,null,null,null,null,null,null,null,null,null,null,null,null,null,null,null,null,null,null,null,null,null,null,null,null,null,null,null,null,null,null,null,null,null,null,null,null,null,null,null,null,null,41,null,null,null,null,null,null,null,null,null,null,null,null,null,null,null,null,null,null,null,null,null,null,null,null,null,null,null,null,null,null,null,null,null,null,null,null,null,null,null,null,null,null,null,null,null,null,null,null,null,null,null,null,null,null,null,null,null,null,null,null,null,null,null,null,null,null,null,null,null,null,null,null,null,null,null,null,null,null,null,null,null,null,null,null,null,null,null,null,null,null,null,null,null,null,null,null,null,null,null,null,null,null,null,null,null,null,null,null,null,null,null,null,null,null,null,null,null,null,null,null,null,null,null,null,null,null,null,null,null,null,null,null,null,null,null,null,null,null,null,null,null,null,null,null,null,null,null,null,null,null,null,null,null,null,null,null,null,null,null,null,null,null,null,null,null,17]
[null,null,null,null,null,null,null,null,null,"Date fin semestre 1 :",null,null,"Sect. Sp. LYC",20,null,null,null,null,17,null,null,null,null,null,null,null,null,null,null,null,null,null,null,null,null,null,null,null,null,null,null,null,null,null,null,null,null,null,null,null,null,null,null,null,null,null,null,null,null,null,42,null,null,null,null,null,null,null,null,null,null,null,null,null,null,null,null,null,null,null,null,null,null,null,null,null,null,null,null,null,null,null,null,null,null,null,null,null,null,null,null,null,null,null,null,null,null,null,null,null,null,null,null,null,null,null,null,null,null,null,null,null,null,null,null,null,null,null,null,null,null,null,null,null,null,null,null,null,null,null,null,null,null,null,null,null,null,null,null,null,null,null,null,null,null,null,null,null,null,null,null,null,null,null,null,null,null,null,null,null,null,null,null,null,null,null,null,null,null,null,null,null,null,null,null,null,null,null,null,null,null,null,null,null,null,null,null,null,null,null,null,null,null,null,null,null,null,null,null,null,null,null,null,null,null,null,null,null,null,null,null,null,null,null,null,null,18]
[null,null,null,null,null,null,null,null,null,"Date début semestre 2 :",null,null,"Exc. Sp. LYC",19,null,null,null,null,18,null,null,null,null,null,null,null,null,null,null,null,null,null,null,null,null,null,null,null,null,null,null,null,null,null,null,null,null,null,null,null,null,null,null,null,null,null,null,null,null,null,43,null,null,null,null,null,null,null,null,null,null,null,null,null,null,null,null,null,null,null,null,null,null,null,null,null,null,null,null,null,null,null,null,null,null,null,null,null,null,null,null,null,null,null,null,null,null,null,null,null,null,null,null,null,null,null,null,null,null,null,null,null,null,null,null,null,null,null,null,null,null,null,null,null,null,null,null,null,null,null,null,null,null,null,null,null,null,null,null,null,null,null,null,null,null,null,null,null,null,null,null,null,null,null,null,null,null,null,null,null,null,null,null,null,null,null,null,null,null,null,null,null,null,null,null,null,null,null,null,null,null,null,null,null,null,null,null,null,null,null,null,null,null,null,null,null,null,null,null,null,null,null,null,null,null,null,null,null,null,null,null,null,null,null,null,null,19]
[null,null,null,null,null,null,null,null,null,"Date fin semestre 2 :",null,null,"Post Bac",100,null,null,null,null,19,null,null,null,null,null,null,null,null,null,null,null,null,null,null,null,null,null,null,null,null,null,null,null,null,null,null,null,null,null,null,null,null,null,null,null,null,null,null,null,null,null,45,null,null,null,null,null,null,null,null,null,null,null,null,null,null,null,null,null,null,null,null,null,null,null,null,null,null,null,null,null,null,null,null,null,null,null,null,null,null,null,null,null,null,null,null,null,null,null,null,null,null,null,null,null,null,null,null,null,null,null,null,null,null,null,null,null,null,null,null,null,null,null,null,null,null,null,null,null,null,null,null,null,null,null,null,null,null,null,null,null,null,null,null,null,null,null,null,null,null,null,null,null,null,null,null,null,null,null,null,null,null,null,null,null,null,null,null,null,null,null,null,null,null,null,null,null,null,null,null,null,null,null,null,null,null,null,null,null,null,null,null,null,null,null,null,null,null,null,null,null,null,null,null,null,null,null,null,null,null,null,null,null,null,null,null,null,20]
[null,null,null,null,null,null,null,null,null,"Semaine :",null,null,"DNL",101,null,null,null,null,20,null,null,null,null,null,null,null,null,null,null,null,null,null,null,null,null,null,null,null,null,null,null,null,null,null,null,null,null,null,null,null,null,null,null,null,null,null,null,null,null,null,46,null,null,null,null,null,null,null,null,null,null,null,null,null,null,null,null,null,null,null,null,null,null,null,null,null,null,null,null,null,null,null,null,null,null,null,null,null,null,null,null,null,null,null,null,null,null,null,null,null,null,null,null,null,null,null,null,null,null,null,null,null,null,null,null,null,null,null,null,null,null,null,null,null,null,null,null,null,null,null,null,null,null,null,null,null,null,null,null,null,null,null,null,null,null,null,null,null,null,null,null,null,null,null,null,null,null,null,null,null,null,null,null,null,null,null,null,null,null,null,null,null,null,null,null,null,null,null,null,null,null,null,null,null,null,null,null,null,null,null,null,null,null,null,null,null,null,null,null,null,null,null,null,null,null,null,null,null,null,null,null,null,null,null,null,null,21]
[null,null,null,null,null,null,null,null,null,"1 année et 2 semestres :",null,null,"Autre",1000,null,null,null,null,null,null,null,null,null,null,null,null,null,null,null,null,null,null,null,null,null,null,null,null,null,null,null,null,null,null,null,null,null,null,null,null,null,null,null,null,null,null,null,null,null,null,47,null,null,null,null,null,null,null,null,null,null,null,null,null,null,null,null,null,null,null,null,null,null,null,null,null,null,null,null,null,null,null,null,null,null,null,null,null,null,null,null,null,null,null,null,null,null,null,null,null,null,null,null,null,null,null,null,null,null,null,null,null,null,null,null,null,null,null,null,null,null,null,null,null,null,null,null,null,null,null,null,null,null,null,null,null,null,null,null,null,null,null,null,null,null,null,null,null,null,null,null,null,null,null,null,null,null,null,null,null,null,null,null,null,null,null,null,null,null,null,null,null,null,null,null,null,null,null,null,null,null,null,null,null,null,null,null,null,null,null,null,null,null,null,null,null,null,null,null,null,null,null,null,null,null,null,null,null,null,null,null,null,null,null,null,null,22]
[null,null,null,null,null,null,null,null,null,null,null,null,null,null,null,null,null,null,"Minutes",null,null,null,null,null,null,null,null,null,null,null,null,null,null,null,null,null,null,null,null,null,null,null,null,null,null,null,null,null,null,null,null,null,null,null,null,null,null,null,null,null,48,null,null,null,null,null,null,null,null,null,null,null,null,null,null,null,null,null,null,null,null,null,null,null,null,null,null,null,null,null,null,null,null,null,null,null,null,null,null,null,null,null,null,null,null,null,null,null,null,null,null,null,null,null,null,null,null,null,null,null,null,null,null,null,null,null,null,null,null,null,null,null,null,null,null,null,null,null,null,null,null,null,null,null,null,null,null,null,null,null,null,null,null,null,null,null,null,null,null,null,null,null,null,null,null,null,null,null,null,null,null,null,null,null,null,null,null,null,null,null,null,null,null,null,null,null,null,null,null,null,null,null,null,null,null,null,null,null,null,null,null,null,null,null,null,null,null,null,null,null,null,null,null,null,null,null,null,null,null,null,null,null,null,null,null,null,23]
[null,null,null,null,null,null,null,null,null,null,"Dénomination des semestres",null,"Zoom des feuilles de calcul",null,null,null,null,null,0,null,null,null,null,null,null,null,null,null,null,null,null,null,null,null,null,null,null,null,null,null,null,null,null,null,null,null,null,null,null,null,null,null,null,null,null,null,null,null,null,null,49,null,null,null,null,null,null,null,null,null,null,null,null,null,null,null,null,null,null,null,null,null,null,null,null,null,null,null,null,null,null,null,null,null,null,null,null,null,null,null,null,null,null,null,null,null,null,null,null,null,null,null,null,null,null,null,null,null,null,null,null,null,null,null,null,null,null,null,null,null,null,null,null,null,null,null,null,null,null,null,null,null,null,null,null,null,null,null,null,null,null,null,null,null,null,null,null,null,null,null,null,null,null,null,null,null,null,null,null,null,null,null,null,null,null,null,null,null,null,null,null,null,null,null,null,null,null,null,null,null,null,null,null,null,null,null,null,null,null,null,null,null,null,null,null,null,null,null,null,null,null,null,null,null,null,null,null,null,null,null,null,null,null,null,null,null,24]
[null,null,null,null,null,null,null,null,null,null,"Services semestre 1",null,100,null,"Affichage normal des documents",null,null,null,5,null,null,null,null,null,null,null,null,null,null,null,null,null,null,null,null,null,null,null,null,null,null,null,null,null,null,null,null,null,null,null,null,null,null,null,null,null,null,null,null,null,50,null,null,null,null,null,null,null,null,null,null,null,null,null,null,null,null,null,null,null,null,null,null,null,null,null,null,null,null,null,null,null,null,null,null,null,null,null,null,null,null,null,null,null,null,null,null,null,null,null,null,null,null,null,null,null,null,null,null,null,null,null,null,null,null,null,null,null,null,null,null,null,null,null,null,null,null,null,null,null,null,null,null,null,null,null,null,null,null,null,null,null,null,null,null,null,null,null,null,null,null,null,null,null,null,null,null,null,null,null,null,null,null,null,null,null,null,null,null,null,null,null,null,null,null,null,null,null,null,null,null,null,null,null,null,null,null,null,null,null,null,null,null,null,null,null,null,null,null,null,null,null,null,null,null,null,null,null,null,null,null,null,null,null,null,null,25]
[null,null,null,null,null,null,null,null,null,null,"Services semestre 2",null,"Affichage normal des documents",null,100,null,null,null,10,null,null,null,null,null,null,null,null,null,null,null,null,null,null,null,null,null,null,null,null,null,null,null,null,null,null,null,null,null,null,null,null,null,null,null,null,null,null,null,null,null,51,null,null,null,null,null,null,null,null,null,null,null,null,null,null,null,null,null,null,null,null,null,null,null,null,null,null,null,null,null,null,null,null,null,null,null,null,null,null,null,null,null,null,null,null,null,null,null,null,null,null,null,null,null,null,null,null,null,null,null,null,null,null,null,null,null,null,null,null,null,null,null,null,null,null,null,null,null,null,null,null,null,null,null,null,null,null,null,null,null,null,null,null,null,null,null,null,null,null,null,null,null,null,null,null,null,null,null,null,null,null,null,null,null,null,null,null,null,null,null,null,null,null,null,null,null,null,null,null,null,null,null,null,null,null,null,null,null,null,null,null,null,null,null,null,null,null,null,null,null,null,null,null,null,null,null,null,null,null,null,null,null,null,null,null,null,26]
[null,null,null,null,null,null,null,null,null,null,null,null,"Affichage plus grand des documents",null,115,null,null,null,15,null,null,null,null,null,null,null,null,null,null,null,null,null,null,null,null,null,null,null,null,null,null,null,null,null,null,null,null,null,null,null,null,null,null,null,null,null,null,null,null,null,52,null,null,null,null,null,null,null,null,null,null,null,null,null,null,null,null,null,null,null,null,null,null,null,null,null,null,null,null,null,null,51,null,null,null,null,null,null,null,null,null,null,null,null,null,null,null,null,null,null,null,null,null,null,null,null,null,null,null,null,null,null,null,null,null,null,null,null,null,51,null,null,null,null,null,null,null,null,null,null,null,null,null,null,null,null,null,null,null,null,null,null,null,null,null,null,null,null,null,null,null,null,null,null,null,null,null,null,null,null,null,null,null,null,null,null,null,null,null,null,null,null,null,null,null,null,null,null,null,null,null,null,null,null,null,null,null,null,null,null,null,null,null,null,null,null,null,null,null,null,null,null,null,null,null,null,null,null,null,null,null,null,null,null,null,null,27]
[null,null,null,null,null,null,null,null,null,null,"Feuilles enregistrées accessibles depuis le menu d'accueil",null,"Affichage plus petit des documents",null,85,null,null,null,20,null,null,null,null,null,null,null,null,null,null,null,null,null,null,null,null,null,null,null,null,null,null,null,null,null,null,null,null,null,null,null,null,null,null,null,null,null,null,null,null,null,53,null,null,null,null,null,null,null,null,null,null,null,null,null,null,null,null,null,null,null,null,null,null,null,null,null,null,null,null,null,null,52,null,null,null,null,null,null,null,null,null,null,null,null,null,null,null,null,null,null,null,null,null,null,null,null,null,null,null,null,null,null,null,null,null,null,null,null,null,52,null,null,null,null,null,null,null,null,null,null,null,null,null,null,null,null,null,null,null,null,null,null,null,null,null,null,null,null,null,null,null,null,null,null,null,null,null,null,null,null,null,null,null,null,null,null,null,null,null,null,null,null,null,null,null,null,null,null,null,null,null,null,null,null,null,null,null,null,null,null,null,null,null,null,null,null,null,null,null,null,null,null,null,null,null,null,null,null,null,null,null,null,null,null,null,null,28]
[null,null,null,null,null,null,null,null,null,null,null,null,null,null,null,null,null,null,25,null,null,null,null,null,null,null,null,null,null,null,null,null,null,null,null,null,null,null,null,null,null,null,null,null,null,null,null,null,null,null,null,null,null,null,null,null,null,null,null,null,54,null,null,null,null,null,null,null,null,null,null,null,null,null,null,null,null,null,null,null,null,null,null,null,null,null,null,null,null,null,null,53,null,null,null,null,null,null,null,null,null,null,null,null,null,null,null,null,null,null,null,null,null,null,null,null,null,null,null,null,null,null,null,null,null,null,null,null,null,53,null,null,null,null,null,null,null,null,null,null,null,null,null,null,null,null,null,null,null,null,null,null,null,null,null,null,null,null,null,null,null,null,null,null,null,null,null,null,null,null,null,null,null,null,null,null,null,null,null,null,null,null,null,null,null,null,null,null,null,null,null,null,null,null,null,null,null,null,null,null,null,null,null,null,null,null,null,null,null,null,null,null,null,null,null,null,null,null,null,null,null,null,null,null,null,null,29]
[null,null,null,null,null,null,null,null,null,null,null,null,null,null,null,null,null,null,30,null,null,null,null,null,null,null,null,null,null,null,null,null,null,null,null,null,null,null,null,null,null,null,null,null,null,null,null,null,null,null,null,null,null,null,null,null,null,null,null,null,55,null,null,null,null,null,null,null,null,null,null,null,null,null,null,null,null,null,null,null,null,null,null,null,null,null,null,null,null,null,null,null,null,null,null,null,null,null,null,null,null,null,null,null,null,null,null,null,null,null,null,null,null,null,null,null,null,null,null,null,null,null,null,null,null,null,null,null,null,54,null,null,null,null,null,null,null,null,null,null,null,null,null,null,null,null,null,null,null,null,null,null,null,null,null,null,null,null,null,null,null,null,null,null,null,null,null,null,null,null,null,null,null,null,null,null,null,null,null,null,null,null,null,null,null,null,null,null,null,null,null,null,null,null,null,null,null,null,null,null,null,null,null,null,null,null,null,null,null,null,null,null,null,null,null,null,null,null,null,null,null,null,null,null,null,null,30]
[null,null,null,null,null,null,null,null,null,null,null,null,null,null,null,null,null,null,35,null,null,null,null,null,null,null,null,null,null,null,null,null,null,null,null,null,null,null,null,null,null,null,null,null,null,null,null,null,null,null,null,null,null,null,null,null,null,null,null,null,null,"Cycle 3",null,null,null,null,null,null,null,null,null,null,null,null,null,null,null,null,null,null,null,null,null,null,null,null,null,null,null,null,null,null,"Lycée voie Pro",null,null,null,null,null,null,null,null,null,null,null,null,null,null,null,null,null,null,null,null,null,null,null,null,null,null,null,null,null,null,null,null,null,null,null,null,55,null,null,null,null,null,null,null,null,null,null,null,null,null,null,null,null,null,null,null,null,null,null,null,null,null,null,null,null,null,null,null,null,null,null,null,null,null,null,null,null,null,null,null,null,null,null,null,null,null,null,null,null,null,null,null,null,null,null,null,null,null,null,null,null,null,null,null,null,null,null,null,null,null,null,null,null,null,null,null,null,null,null,null,null,null,null,null,null,null,null,null,null,null,null,null,null,31]
[null,null,null,null,null,null,null,null,null,null,null,null,null,null,null,null,null,null,40,null,null,null,null,null,null,null,null,null,null,null,null,null,null,null,null,null,null,null,null,null,null,null,null,null,null,null,null,null,null,null,null,null,null,null,null,null,null,null,null,null,null,"C 1",null,"Groupe","Num","ID","C 2",null,"Groupe","Num","ID","C 3",null,"Groupe","Num","ID","C 4",null,"Groupe","Num","ID",null,null,null,null,null,null,null,null,null,null,null,"CA 1","Type","Groupe","Num","ID","CA 2","Type","Groupe","Num","ID","CA 3","Type","Groupe","Num","ID","CA 4","Type","Groupe","Num","ID","CA 5","Type","Groupe","Num","ID",null,null,null,null,null,null,null,null,null,null,null,null,56,null,null,null,null,null,null,null,null,null,null,null,null,null,null,null,null,null,null,null,null,null,null,null,null,null,null,null,null,null,null,null,null,null,null,null,null,null,null,null,null,null,null,null,null,null,null,null,null,null,null,null,null,null,null,null,null,null,null,null,null,null,null,null,null,null,null,null,null,null,null,null,null,null,null,null,null,null,null,null,null,null,null,null,null,null,null,null,null,null,null,null,null,null,null,null,null,32]
[null,null,null,null,null,null,null,null,null,null,null,null,"Zoom des userform",null,null,null,null,null,45,null,null,null,null,null,null,null,null,null,null,null,null,null,null,null,null,null,null,null,null,null,null,null,null,null,null,null,null,null,null,null,null,null,null,null,null,null,null,null,null,null,1,"Courir vite",0,1,1,310101,"Activité de glisse",0,3,1,320301,"Activités gymniques",0,4,1,330401,"Jeux collectifs avec ballon",0,6,1,340601,null,null,null,null,null,null,null,null,null,null,1,"Combiné athlétique",0,1,1,610101,"Escalade",0,3,1,620301,"Acrosport",0,4,1,630401,"Basket-ball",0,6,1,640601,"Course en durée",0,0,1,650001,null,null,null,null,null,null,null,null,null,null,null,null,57,null,null,null,null,null,null,null,null,null,null,null,null,null,null,null,null,null,null,null,null,null,null,null,null,null,null,null,null,null,null,null,null,null,null,null,null,null,null,null,null,null,null,null,null,null,null,null,null,null,null,null,null,null,null,null,null,null,null,null,null,null,null,null,null,null,null,null,null,null,null,null,null,null,null,null,null,null,null,null,null,null,null,null,null,null,null,null,null,null,null,null,null,null,null,null,null,33]
[null,null,null,null,null,null,null,null,null,null,null,null,100,null,null,null,null,null,50,null,null,null,null,null,null,null,null,null,null,null,null,null,null,null,null,null,null,null,null,null,null,null,null,null,null,null,null,null,null,null,null,null,null,null,null,null,null,null,null,null,2,"Courir longtemps",0,1,2,310102,"Activité de roule ",0,3,2,320302,"Parcours gymniques",0,4,5,330405,"Jeux collectifs sans ballon",0,6,2,340602,null,null,null,null,null,null,null,null,null,null,2,"Course de demi-fond",0,1,2,610102,"Course d'orientation",0,3,2,620302,"Aérobic",0,4,2,630402,"Football",0,6,2,640602,"Natation en durée",0,0,2,650002,null,null,null,null,null,null,null,null,null,null,null,null,58,null,null,null,null,null,null,null,null,null,null,null,null,null,null,null,null,null,null,null,null,null,null,null,null,null,null,null,null,null,null,null,null,null,null,null,null,null,null,null,null,null,null,null,null,null,null,null,null,null,null,null,null,null,null,null,null,null,null,null,null,null,null,null,null,null,null,null,null,null,null,null,null,null,null,null,null,null,null,null,null,null,null,null,null,null,null,null,null,null,null,null,null,null,null,null,null,34]
[null,null,null,null,null,null,null,null,null,null,null,null,null,null,null,null,null,null,55,null,null,null,null,null,null,null,null,null,null,null,null,null,null,null,null,null,null,null,null,null,null,null,null,null,null,null,null,null,null,null,null,null,null,null,null,null,null,null,null,null,3,"Sauter loin",0,1,3,310103,"Activité équestre",0,3,3,320303,"Step",0,4,6,330406,"Jeux pré-sportifs collectifs",0,6,3,340603,null,null,null,null,null,null,null,null,null,null,3,"Course de haies",0,1,3,610103,"Natation de sauvetage",0,3,3,620303,"Gymnastique au sol",0,4,3,630403,"Handball",0,6,3,640603,"Musculation",0,0,3,650003,null,null,null,null,null,null,null,null,null,null,null,null,59,null,null,null,null,null,null,null,null,null,null,null,null,null,null,null,null,null,null,null,null,null,null,null,null,null,null,null,null,null,null,null,null,null,null,null,null,null,null,null,null,null,null,null,null,null,null,null,null,null,null,null,null,null,null,null,null,null,null,null,null,null,null,null,null,null,null,null,null,null,null,null,null,null,null,null,null,null,null,null,null,null,null,null,null,null,null,null,null,null,null,null,null,null,null,null,null,35]
[null,null,null,null,null,null,null,null,null,null,null,null,"Infos complémentaires VOIE PRO",null,null,null,null,null,null,null,null,null,null,null,null,null,null,null,null,null,null,null,null,null,null,null,null,null,null,null,null,null,null,null,null,null,null,null,null,null,null,null,null,null,null,null,null,null,null,null,4,"Sauter haut ",0,1,4,310104,"Activité nautique",0,3,4,320304,"Acrosport",0,4,7,330407,"Jeux traditionnels",0,6,4,340604,null,null,null,null,null,null,null,null,null,null,4,"Course de relais-vitesse",0,1,4,610104,"Golf",0,3,4,620304,"Gymnastique aux agrès",0,4,8,630408,"Rugby",0,6,4,640604,"Step",0,0,4,650004,null,null,null,null,null,null,null,null,null,null,null,null,60,null,null,null,null,null,null,null,null,null,null,null,null,null,null,null,null,null,null,null,null,null,null,null,null,null,null,null,null,null,null,null,null,null,null,null,null,null,null,null,null,null,null,null,null,null,null,null,null,null,null,null,null,null,null,null,null,null,null,null,null,null,null,null,null,null,null,null,null,null,null,null,null,null,null,null,null,null,null,null,null,null,null,null,null,null,null,null,null,null,null,null,null,null,null,null,null,36]
[null,null,null,null,null,null,null,null,null,null,null,null,"Présence de classes de 3ème Prepa Pro",null,null,null,null,null,null,null,null,null,null,null,null,null,null,null,null,null,null,null,null,null,null,null,null,null,null,null,null,null,null,null,null,null,null,null,null,null,null,null,null,null,null,null,null,null,null,null,5,"Lancer loin ",0,1,5,310105,"Parcours d'escalade",0,3,5,320305,"Gymnastique au sol",0,4,8,330408,"Jeux de ballon orientés handball",0,6,9,340609,null,null,null,null,null,null,null,null,null,null,5,"Pentabond",0,1,5,610105,"VTT",0,3,5,620305,"Danse de composition",0,4,9,630409,"Volley ball",0,6,5,640605,"Ski de fond",0,0,5,650005,null,null,null,null,null,null,null,null,null,null,null,null,61,null,null,null,null,null,null,null,null,null,null,null,null,null,null,null,null,null,null,null,null,null,null,null,null,null,null,null,null,null,null,null,null,null,null,null,null,null,null,null,null,null,null,null,null,null,null,null,null,null,null,null,null,null,null,null,null,null,null,null,null,null,null,null,null,null,null,null,null,null,null,null,null,null,null,null,null,null,null,null,null,null,null,null,null,null,null,null,null,null,null,null,null,null,null,null,null,37]
[null,null,null,null,null,null,null,null,null,null,null,null,"Présence de classes de CAP-BEP",null,null,null,null,null,null,null,null,null,null,null,null,null,null,null,null,null,null,null,null,null,null,null,null,null,null,null,null,null,null,null,null,null,null,null,null,null,null,null,null,null,null,null,null,null,null,null,6,"Lancer précis ",0,1,6,310106,"Parcours d'orientation",0,3,6,320306,"Gymnastique rythmique",0,4,12,330412,"Jeux de ballon orientés volley-ball",0,6,10,340610,null,null,null,null,null,null,null,null,null,null,6,"Saut en longueur",0,1,6,610106,"Raid nature",0,3,6,620306,"Gymnastique sportive",0,4,10,630410,"Softball",0,6,6,640606,"Yoga",0,0,6,650006,null,null,null,null,null,null,null,null,null,null,null,null,62,null,null,null,null,null,null,null,null,null,null,null,null,null,null,null,null,null,null,null,null,null,null,null,null,null,null,null,null,null,null,null,null,null,null,null,null,null,null,null,null,null,null,null,null,null,null,null,null,null,null,null,null,null,null,null,null,null,null,null,null,null,null,null,null,null,null,null,null,null,null,null,null,null,null,null,null,null,null,null,null,null,null,null,null,null,null,null,null,null,null,null,null,null,null,null,null,38]
[null,null,null,null,null,null,null,null,null,null,null,null,"UF2S (1ère, Terminale)",null,null,null,null,null,null,null,null,null,null,null,null,null,null,null,null,null,null,null,null,null,null,null,null,null,null,null,null,null,null,null,null,null,null,null,null,null,null,null,null,null,null,null,null,null,null,null,7,"Multiactivités",0,1,7,310107,"Savoir Nager ",0,3,7,320307,"Gym-acrosport",0,4,13,330413,"Flag rugby",0,6,12,340612,null,null,null,null,null,null,null,null,null,null,7,"Saut en hauteur",0,1,7,610107,"Randonnée",0,3,7,620307,"Double dutch",0,4,11,630411,"Flag Rugby",0,6,11,640611,"Préparation physique générale",0,0,7,650007,null,null,null,null,null,null,null,null,null,null,null,null,63,null,null,null,null,null,null,null,null,null,null,null,null,null,null,null,null,null,null,null,null,null,null,null,null,null,null,null,null,null,null,null,null,null,null,null,null,null,null,null,null,null,null,null,null,null,null,null,null,null,null,null,null,null,null,null,null,null,null,null,null,null,null,null,null,null,null,null,null,null,null,null,null,null,null,null,null,null,null,null,null,null,null,null,null,null,null,null,null,null,null,null,null,null,null,null,null,39]
[null,null,null,null,null,null,null,null,null,null,null,null,null,null,null,null,null,null,null,null,null,null,null,null,null,null,null,null,null,null,null,null,null,null,null,null,null,null,null,null,null,null,null,null,null,null,null,null,null,null,null,null,null,null,null,null,null,null,null,null,8,"Biathlon athlétique",0,1,10,310110,"Tirer à l'arc",0,3,8,320308,"Danse de reproduction de formes codiffiées",0,5,9,330409,"Baseball - softball",0,6,13,340613,null,null,null,null,null,null,null,null,null,null,8,"Triple saut",0,1,8,610108,"Kayak",0,3,8,620308,"Step",0,4,12,630412,"Futsal",0,6,12,640612,null,null,null,null,null,null,null,null,null,null,null,null,null,null,null,null,null,64,null,null,null,null,null,null,null,null,null,null,null,null,null,null,null,null,null,null,null,null,null,null,null,null,null,null,null,null,null,null,null,null,null,null,null,null,null,null,null,null,null,null,null,null,null,null,null,null,null,null,null,null,null,null,null,null,null,null,null,null,null,null,null,null,null,null,null,null,null,null,null,null,null,null,null,null,null,null,null,null,null,null,null,null,null,null,null,null,null,null,null,null,null,null,null,null,40]
[null,null,null,null,null,null,null,null,null,null,null,null,null,null,null,null,null,null,null,null,null,null,null,null,null,null,null,null,null,null,null,null,null,null,null,null,null,null,null,null,null,null,null,null,null,null,null,null,null,null,null,null,null,null,null,null,null,null,null,null,9,"Combiné athlétique",0,1,11,310111,"Parcours de golf",0,3,9,320309,"Arts du cirque",0,5,2,330502,"Jeux de ballon orientés rugby",0,6,14,340614,null,null,null,null,null,null,null,null,null,null,9,"Marche sportive",0,1,9,610109,null,null,null,null,null,"Arts du cirque",0,5,5,630505,"Ultimate",0,6,14,640614,null,null,null,null,null,null,null,null,null,null,null,null,null,null,null,null,null,65,null,null,null,null,null,null,null,null,null,null,null,null,null,null,null,null,null,null,null,null,null,null,null,null,null,null,null,null,null,null,null,null,null,null,null,null,null,null,null,null,null,null,null,null,null,null,null,null,null,null,null,null,null,null,null,null,null,null,null,null,null,null,null,null,null,null,null,null,null,null,null,null,null,null,null,null,null,null,null,null,null,null,null,null,null,null,null,null,null,null,null,null,null,null,null,null,41]
[null,null,null,null,null,null,null,null,null,null,null,null,"Création Feuilles Programmation EPS par cycles",null,"Validation de la sélection des APSA par cycle d'enseignement",null,"Groupe APSA",null,"Num. Gr",null,null,null,null,null,null,null,null,null,null,null,null,null,null,null,null,null,null,null,null,null,null,null,null,null,null,null,null,null,null,null,null,null,null,null,null,null,null,null,null,null,10,"Ramer longtemps",0,1,12,310112,"Randonnée pédestre",0,3,10,320310,"Danse de création",0,5,3,330503,"Hockey en salle",0,6,15,340615,null,null,null,null,null,null,null,null,null,null,10,"Lancer de javelot",0,1,10,610110,null,null,null,null,null,"Danse Chorégraphique collective",0,5,6,630506,"Badminton",0,7,7,640707,null,null,null,null,null,null,null,null,null,null,null,null,null,null,null,null,null,66,null,null,null,null,null,null,null,null,null,null,null,null,null,null,null,null,null,null,null,null,null,null,null,null,null,null,null,null,null,null,null,null,null,null,null,null,null,null,null,null,null,null,null,null,null,null,null,null,null,null,null,null,null,null,null,null,null,null,null,null,null,null,null,null,null,null,null,null,null,null,null,null,null,null,null,null,null,null,null,null,null,null,null,null,null,null,null,null,null,null,null,null,null,null,null,null,42]
[null,null,null,null,null,null,null,null,null,null,null,null,"Cycle 3","N","N",null,"Activités athlétiques",null,1,null,null,null,null,null,null,null,null,null,null,null,null,null,null,null,null,null,null,null,null,null,null,null,null,null,null,null,null,null,null,null,null,null,null,null,null,null,null,null,null,null,11,"Parcours athlétiques",0,1,13,310113,"VTT",0,3,11,320311,"Danse collective",0,5,4,330504,"Jeux de ballon orientés basket-ball",0,6,17,340617,null,null,null,null,null,null,null,null,null,null,11,"Lancer de poids",0,1,11,610111,null,null,null,null,null,"Danse de création",0,5,7,630507,"Tennis de table",0,7,8,640708,null,null,null,null,null,null,null,null,null,null,null,null,null,null,null,null,null,67,null,null,null,null,null,null,null,null,null,null,null,null,null,null,null,null,null,null,null,null,null,null,null,null,null,null,null,null,null,null,null,null,null,null,null,null,null,null,null,null,null,null,null,null,null,null,null,null,null,null,null,null,null,null,null,null,null,null,null,null,null,null,null,null,null,null,null,null,null,null,null,null,null,null,null,null,null,null,null,null,null,null,null,null,null,null,null,null,null,null,null,null,null,null,null,null,43]
[null,null,null,null,null,null,null,null,null,null,null,null,"Cycle 4","N","N",null,"Activités de natation sportive",null,2,null,null,null,null,null,null,null,null,null,null,null,null,null,null,null,null,null,null,null,null,null,null,null,null,null,null,null,null,null,null,null,null,null,null,null,null,null,null,null,null,null,12,"Cross training",0,1,14,310114,null,null,null,null,null,"Patinage artistique",0,5,10,330510,"Ultimate",0,6,18,340618,null,null,null,null,null,null,null,null,null,null,12,"Lancer de disque",0,1,12,610112,null,null,null,null,null,null,null,null,null,null,"Judo",0,8,9,640809,null,null,null,null,null,null,null,null,null,null,null,null,null,null,null,null,null,68,null,null,null,null,null,null,null,null,null,null,null,null,null,null,null,null,null,null,null,null,null,null,null,null,null,null,null,null,null,null,null,null,null,null,null,null,null,null,null,null,null,null,null,null,null,null,null,null,null,null,null,null,null,null,null,null,null,null,null,null,null,null,null,null,null,null,null,null,null,null,null,null,null,null,null,null,null,null,null,null,null,null,null,null,null,null,null,null,null,null,null,null,null,null,null,null,44]
[null,null,null,null,null,null,null,null,null,null,null,null,"Lycée Cycle 5","N","N",null,"Activités de pleine nature",null,3,null,null,null,null,null,null,null,null,null,null,null,null,null,null,null,null,null,null,null,null,null,null,null,null,null,null,null,null,null,null,null,null,null,null,null,null,null,null,null,null,null,13,"Circuit training",0,1,15,310115,null,null,null,null,null,"Danse contemporaine",0,5,11,330511,"Foot gaélique",0,6,20,340620,null,null,null,null,null,null,null,null,null,null,13,"Biathlon athlétique",0,1,13,610113,null,null,null,null,null,null,null,null,null,null,"Savate Boxe française",0,8,10,640810,null,null,null,null,null,null,null,null,null,null,null,null,null,null,null,null,null,69,null,null,null,null,null,null,null,null,null,null,null,null,null,null,null,null,null,null,null,null,null,null,null,null,null,null,null,null,null,null,null,null,null,null,null,null,null,null,null,null,null,null,null,null,null,null,null,null,null,null,null,null,null,null,null,null,null,null,null,null,null,null,null,null,null,null,null,null,null,null,null,null,null,null,null,null,null,null,null,null,null,null,null,null,null,null,null,null,null,null,null,null,null,null,null,null,45]
[null,null,null,null,null,null,null,null,null,null,null,null,"Lycée VOIE PRO Cycle 6","N","N",null,"Activités codifiées de reproduction de formes",null,4,null,null,null,null,null,null,null,null,null,null,null,null,null,null,null,null,null,null,null,null,null,null,null,null,null,null,null,null,null,null,null,null,null,null,null,null,null,null,null,null,null,14,"Saut en hauteur",0,1,16,310116,null,null,null,null,null,null,null,null,null,null,"Jeux de raquettes ",0,7,5,340705,null,null,null,null,null,null,null,null,null,null,14,"Cross Training",0,1,16,610116,null,null,null,null,null,null,null,null,null,null,null,null,null,null,null,null,null,null,null,null,null,null,null,null,null,null,null,null,null,null,null,null,70,null,null,null,null,null,null,null,null,null,null,null,null,null,null,null,null,null,null,null,null,null,null,null,null,null,null,null,null,null,null,null,null,null,null,null,null,null,null,null,null,null,null,null,null,null,null,null,null,null,null,null,null,null,null,null,null,null,null,null,null,null,null,null,null,null,null,null,null,null,null,null,null,null,null,null,null,null,null,null,null,null,null,null,null,null,null,null,null,null,null,null,null,null,null,null,null,46]
[null,null,null,null,null,null,null,null,null,null,null,null,"CAP Cycle 7","N","N",null,"Activités artistiques de création",null,5,null,null,null,null,null,null,null,null,null,null,null,null,null,null,null,null,null,null,null,null,null,null,null,null,null,null,null,null,null,null,null,null,null,null,null,null,null,null,null,null,null,15,"Aviron indoor",0,1,18,310218,null,null,null,null,null,null,null,null,null,null,"Jeux de raquette orientés badminton",0,7,7,340707,null,null,null,null,null,null,null,null,null,null,15,"Course par équipe",0,1,17,610117,null,null,null,null,null,null,null,null,null,null,null,null,null,null,null,null,null,null,null,null,null,null,null,null,null,null,null,null,null,null,null,null,71,null,null,null,null,null,null,null,null,null,null,null,null,null,null,null,null,null,null,null,null,null,null,null,null,null,null,null,null,null,null,null,null,null,null,null,null,null,null,null,null,null,null,null,null,null,null,null,null,null,null,null,null,null,null,null,null,null,null,null,null,null,null,null,null,null,null,null,null,null,null,null,null,null,null,null,null,null,null,null,null,null,null,null,null,null,null,null,null,null,null,null,null,null,null,null,null,47]
[null,null,null,null,null,null,null,null,null,null,null,null,"Enseignement optionnel lycée GT","N","N",null,"Activités de coopération et d'opposition - sports collectifs",null,6,null,null,null,null,null,null,null,null,null,null,null,null,null,null,null,null,null,null,null,null,null,null,null,null,null,null,null,null,null,null,null,null,null,null,null,null,null,null,null,null,null,16,"Nager vite",0,2,8,310208,null,null,null,null,null,null,null,null,null,null,"Jeux de raquette orientés tennis de table",0,7,8,340708,null,null,null,null,null,null,null,null,null,null,16,"Natation de vitesse",0,2,14,610214,null,null,null,null,null,null,null,null,null,null,null,null,null,null,null,null,null,null,null,null,null,null,null,null,null,null,null,null,null,null,null,null,72,null,null,null,null,null,null,null,null,null,null,null,null,null,null,null,null,null,null,null,null,null,null,null,null,null,null,null,null,null,null,null,null,null,null,null,null,null,null,null,null,null,null,null,null,null,null,null,null,null,null,null,null,null,null,null,null,null,null,null,null,null,null,null,null,null,null,null,null,null,null,null,null,null,null,null,null,null,null,null,null,null,null,null,null,null,null,null,null,null,null,null,null,null,null,null,null,48]
[null,null,null,null,null,null,null,null,null,null,null,null,"Enseignement de spécialité lycée GT","N","N",null,"Activités d'opposition duelle",null,7,null,null,null,null,null,null,null,null,null,null,null,null,null,null,null,null,null,null,null,null,null,null,null,null,null,null,null,null,null,null,null,null,null,null,null,null,null,null,null,null,null,17,"Nager longtemps ",0,2,9,310209,null,null,null,null,null,null,null,null,null,null,"Tennis - Mini-tennis",0,7,19,340719,null,null,null,null,null,null,null,null,null,null,17,"Natation de distance",0,2,15,610215,null,null,null,null,null,null,null,null,null,null,null,null,null,null,null,null,null,null,null,null,null,null,null,null,null,null,null,null,null,null,null,null,73,null,null,null,null,null,null,null,null,null,null,null,null,null,null,null,null,null,null,null,null,null,null,null,null,null,null,null,null,null,null,null,null,null,null,null,null,null,null,null,null,null,null,null,null,null,null,null,null,null,null,null,null,null,null,null,null,null,null,null,null,null,null,null,null,null,null,null,null,null,null,null,null,null,null,null,null,null,null,null,null,null,null,null,null,null,null,null,null,null,null,null,null,null,null,null,null,49]
[null,null,null,null,null,null,null,null,null,null,null,null,null,null,null,null,"Activités de combat",null,8,null,null,null,null,null,null,null,null,null,null,null,null,null,null,null,null,null,null,null,null,null,null,null,null,null,null,null,null,null,null,null,null,null,null,null,null,null,null,null,null,null,18,"Savoir nager / Nager longtemps",0,2,17,310217,null,null,null,null,null,null,null,null,null,null,"Jeux de combats de préhension",0,8,6,340806,null,null,null,null,null,null,null,null,null,null,18,null,null,null,null,null,null,null,null,null,null,null,null,null,null,null,null,null,null,null,null,null,null,null,null,null,null,null,null,null,null,null,null,null,null,null,null,null,74,null,null,null,null,null,null,null,null,null,null,null,null,null,null,null,null,null,null,null,null,null,null,null,null,null,null,null,null,null,null,null,null,null,null,null,null,null,null,null,null,null,null,null,null,null,null,null,null,null,null,null,null,null,null,null,null,null,null,null,null,null,null,null,null,null,null,null,null,null,null,null,null,null,null,null,null,null,null,null,null,null,null,null,null,null,null,null,null,null,null,null,null,null,null,null,null,50]
[null,null,null,null,null,null,null,null,null,null,null,null,null,null,null,null,"Autre",null,9,null,null,null,null,null,null,null,null,null,null,null,null,null,null,null,null,null,null,null,null,null,null,null,null,null,null,null,null,null,null,null,null,null,null,null,null,null,null,null,null,null,19,null,null,null,null,null,null,null,null,null,null,null,null,null,null,null,"Jeux de combat orientés lutte",0,8,11,340811,null,null,null,null,null,null,null,null,null,null,19,null,null,null,null,null,null,null,null,null,null,null,null,null,null,null,null,null,null,null,null,null,null,null,null,null,null,null,null,null,null,null,null,null,null,null,null,null,75,null,null,null,null,null,null,null,null,null,null,null,null,null,null,null,null,null,null,null,null,null,null,null,null,null,null,null,null,null,null,null,null,null,null,null,null,null,null,null,null,null,null,null,null,null,null,null,null,null,null,null,null,null,null,null,null,null,null,null,null,null,null,null,null,null,null,null,null,null,null,null,null,null,null,null,null,null,null,null,null,null,null,null,null,null,null,null,null,null,null,null,null,null,null,null,null,51]
[null,null,null,null,null,null,null,null,null,null,null,null,null,null,null,null,null,null,null,null,null,null,null,null,null,null,null,null,null,null,null,null,null,null,null,null,null,null,null,null,null,null,null,null,null,null,null,null,null,null,null,null,null,null,null,null,null,null,null,null,20,null,null,null,null,null,null,null,null,null,null,null,null,null,null,null,"Educ'Escrime",0,8,16,340816,null,null,null,null,null,null,null,null,null,null,20,null,null,null,null,null,null,null,null,null,null,null,null,null,null,null,null,null,null,null,null,null,null,null,null,null,null,null,null,null,null,null,null,null,null,null,null,null,76,null,null,null,null,null,null,null,null,null,null,null,null,null,null,null,null,null,null,null,null,null,null,null,null,null,null,null,null,null,null,null,null,null,null,null,null,null,null,null,null,null,null,null,null,null,null,null,null,null,null,null,null,null,null,null,null,null,null,null,null,null,null,null,null,null,null,null,null,null,null,null,null,null,null,null,null,null,null,null,null,null,null,null,null,null,null,null,null,null,null,null,null,null,null,null,null,52]
[null,null,null,null,null,null,null,null,null,null,null,null,null,null,null,null,null,null,null,null,null,null,null,null,null,null,null,null,null,null,null,null,null,null,null,null,null,null,null,null,null,null,null,null,null,null,null,null,null,null,null,null,null,null,null,null,null,null,null,null,21,null,null,null,null,null,null,null,null,null,null,null,null,null,null,null,"Jeux de combat orientés savate",0,8,21,340821,null,null,null,null,null,null,null,null,null,null,21,null,null,null,null,null,null,null,null,null,null,null,null,null,null,null,null,null,null,null,null,null,null,null,null,null,null,null,null,null,null,null,null,null,null,null,null,null,null,null,null,null,null,null,null,null,null,null,null,null,null,null,null,null,null,null,null,null,null,null,null,null,"Fin de la liste des activités du cycle 4",null,null,null,null,null,null,null,null,null,null,null,null,null,null,null,null,null,null,null,null,null,null,null,null,null,null,null,null,null,null,null,null,null,null,null,null,null,null,null,null,null,null,null,null,null,null,null,null,null,null,null,null,null,null,null,null,null,null,null,null,null,null,null,null,null,null,null,null,null,null,null,null,53]
[null,null,null,null,null,null,null,null,null,null,null,null,null,null,null,null,null,null,null,null,null,null,null,null,null,null,null,null,null,null,null,null,null,null,null,null,null,null,null,null,null,null,null,null,null,null,null,null,null,null,null,null,null,null,null,null,null,null,null,null,22,null,null,null,null,null,null,null,null,null,null,null,null,null,null,null,"Jeux de pétanque",0,8,22,340822,null,null,null,null,null,null,null,null,null,null,22,null,null,null,null,null,null,null,null,null,null,null,null,null,null,null,null,null,null,null,null,null,null,null,null,null,null,null,null,null,null,null,null,null,null,null,null,null,null,null,null,null,null,null,null,null,null,null,null,null,null,null,null,null,null,null,null,null,null,null,null,null,null,null,null,null,null,null,null,null,null,null,null,null,null,null,null,null,null,null,null,null,null,null,null,null,null,null,null,null,null,null,null,null,null,null,null,null,null,null,null,null,null,null,null,null,null,null,null,null,null,null,null,null,null,null,null,null,null,null,null,null,null,null,null,null,null,null,null,null,null,null,null,null,null,54]
[null,null,null,null,null,null,null,null,null,null,null,null,null,null,null,null,null,null,null,null,null,null,null,null,null,null,null,null,null,null,null,null,null,null,null,null,null,null,null,null,null,null,null,null,null,null,null,null,null,null,null,null,null,null,null,null,null,null,null,null,23,null,null,null,null,null,null,null,null,null,null,null,null,null,null,null,"Jeux de filet orientés badminton - volley-ball",0,8,23,340823,null,null,null,null,null,null,null,null,null,null,23,null,null,null,null,null,null,null,null,null,null,null,null,null,null,null,null,null,null,null,null,null,null,null,null,null,null,null,null,null,null,null,null,null,null,null,null,null,null,null,null,null,null,null,null,null,null,null,null,null,null,null,null,null,null,null,null,null,null,null,null,null,null,null,null,null,null,null,null,null,null,null,null,null,null,null,null,null,null,null,null,null,null,null,null,null,null,null,null,null,null,null,null,null,null,null,null,null,null,null,null,null,null,null,null,null,null,null,null,null,null,null,null,null,null,null,null,null,null,null,null,null,null,null,null,null,null,null,null,null,null,null,null,null,null,55]
[null,null,null,null,null,null,null,null,null,null,null,null,null,null,null,null,null,null,null,null,null,null,null,null,null,null,null,null,null,null,null,null,null,null,null,null,null,null,null,null,null,null,null,null,null,null,null,null,null,null,null,null,null,null,null,null,null,null,null,null,24,null,null,null,null,null,null,null,null,null,null,null,null,null,null,null,null,null,null,null,null,null,null,null,null,null,null,null,null,null,null,24,null,null,null,null,null,null,null,null,null,null,null,null,null,null,null,null,null,null,null,null,null,null,null,null,null,null,null,null,null,null,null,null,null,null,null,null,null,null,null,null,null,null,null,null,null,null,null,null,null,null,null,null,null,null,null,null,null,null,null,null,null,null,null,null,null,null,null,null,null,null,null,null,null,null,null,null,null,null,null,null,null,null,null,null,null,null,null,null,null,null,null,null,null,null,null,null,null,null,null,null,null,null,null,null,null,null,null,null,null,null,null,null,null,null,null,null,null,null,null,null,null,null,null,null,null,null,null,null,null,null,null,null,null,null,56]
[null,null,null,null,null,null,null,null,null,null,null,null,"Cycles - définition des périodes",null,null,null,"Groupe APSA",null,"Num. Gr",null,null,null,null,null,null,null,null,null,null,null,null,null,null,null,null,null,null,null,null,null,null,null,null,null,null,null,null,null,null,null,null,null,null,null,null,null,null,null,null,null,25,null,null,null,null,null,null,null,null,null,null,null,null,null,null,null,null,null,null,null,null,null,null,null,null,null,null,null,null,null,null,25,null,null,null,null,null,null,null,null,null,null,null,null,null,null,null,null,null,null,null,null,null,null,null,null,null,null,null,null,null,null,null,null,null,null,null,null,null,null,null,null,null,null,null,null,null,null,null,null,null,null,null,null,null,null,null,null,null,null,null,null,null,null,null,null,null,null,null,null,null,null,null,null,null,null,null,null,null,null,null,null,null,null,null,null,null,null,null,null,null,null,null,null,null,null,null,null,null,null,null,null,null,null,null,null,null,null,null,null,null,null,null,null,null,null,null,null,null,null,null,null,null,null,null,null,null,null,null,null,null,null,null,null,null,null,57]
[null,null,null,null,null,null,null,null,null,null,null,null,"Cycle 3",null,null,null,"Activités athlétiques",null,1,null,null,null,null,null,null,null,null,null,null,null,null,null,null,null,null,null,null,null,null,null,null,null,null,null,null,null,null,null,null,null,null,null,null,null,null,null,null,null,null,null,26,null,null,null,null,null,null,null,null,null,null,null,null,null,null,null,null,null,null,null,null,null,null,null,null,null,null,null,null,null,null,26,null,null,null,null,null,null,null,null,null,null,null,null,null,null,null,null,null,null,null,null,null,null,null,null,null,null,null,null,null,null,null,null,null,null,null,null,null,null,null,null,null,null,null,null,null,null,null,null,null,null,null,null,null,null,null,null,null,null,null,null,null,null,null,null,null,null,null,null,null,null,null,null,null,null,null,null,null,null,null,null,null,null,null,null,null,null,null,null,null,null,null,null,null,null,null,null,null,null,null,null,null,null,null,null,null,null,null,null,null,null,null,null,null,null,null,null,null,null,null,null,null,null,null,null,null,null,null,null,null,null,null,null,null,null,58]
[null,null,null,null,null,null,null,null,null,null,null,null,"Collège",null,null,null,"Activités de natation sportive",null,2,null,null,null,null,null,null,null,null,null,null,null,null,null,null,null,null,null,null,null,null,null,null,null,null,null,null,null,null,null,null,null,null,null,null,null,null,null,null,null,null,null,27,null,null,null,null,null,null,null,null,null,null,null,null,null,null,null,null,null,null,null,null,null,null,null,null,null,null,null,null,null,null,27,null,null,null,null,null,null,null,null,null,null,null,null,null,null,null,null,null,null,null,null,null,null,null,null,null,null,null,null,null,null,null,null,null,null,null,null,null,null,null,null,null,null,null,null,null,null,null,null,null,null,null,null,null,null,null,null,null,null,null,null,null,null,null,null,null,null,null,null,null,null,null,null,null,null,null,null,null,null,null,null,null,null,null,null,null,null,null,null,null,null,null,null,null,null,null,null,null,null,null,null,null,null,null,null,null,null,null,null,null,null,null,null,null,null,null,null,null,null,null,null,null,null,null,null,null,null,null,null,null,null,null,null,null,null,59]
[null,null,null,null,null,null,null,null,null,null,null,null,"Lycée (voie G et T)",null,null,null,"Autre",null,9,null,null,null,null,null,null,null,null,null,null,null,null,null,null,null,null,null,null,null,null,null,null,null,null,null,null,null,null,null,null,null,null,null,null,null,null,null,null,null,null,null,28,null,null,null,null,null,null,null,null,null,null,null,null,null,null,null,null,null,null,null,null,null,null,null,null,null,null,null,null,null,null,28,null,null,null,null,null,null,null,null,null,null,null,null,null,null,null,null,null,null,null,null,null,null,null,null,null,null,null,null,null,null,null,null,null,null,null,null,null,null,null,null,null,null,null,null,null,null,null,null,null,null,null,null,null,null,null,null,null,null,null,null,null,null,null,null,null,null,null,null,null,null,null,null,null,null,null,null,null,null,null,null,null,null,null,null,null,null,null,null,null,null,null,null,null,null,null,null,null,null,null,null,null,null,null,null,null,null,null,null,null,null,null,null,null,null,null,null,null,null,null,null,null,null,null,null,null,null,null,null,null,null,null,null,null,null,60]
[null,null,null,null,null,null,null,null,null,null,null,null,"Lycée (voie Pro) - CAP",null,null,null,null,null,null,null,null,null,null,null,null,null,null,null,null,null,null,null,null,null,null,null,null,null,null,null,null,null,null,null,null,null,null,null,null,null,null,null,null,null,null,null,null,null,null,null,29,null,null,null,null,null,null,null,null,null,null,null,null,null,null,null,null,null,null,null,null,null,null,null,null,null,null,null,null,null,null,29,null,null,null,null,null,null,null,null,null,null,null,null,null,null,null,null,null,null,null,null,null,null,null,null,null,null,null,null,null,null,null,null,null,null,null,null,null,null,null,null,null,null,null,null,null,null,null,null,null,null,null,null,null,null,null,null,null,null,null,null,null,null,null,null,null,null,null,null,null,null,null,null,null,null,null,null,null,null,null,null,null,null,null,null,null,null,null,null,null,null,null,null,null,null,null,null,null,null,null,null,null,null,null,null,null,null,null,null,null,null,null,null,null,null,null,null,null,null,null,null,null,null,null,null,null,null,null,null,null,null,null,null,null,null,61]
[null,null,null,null,null,null,null,null,null,null,null,null,"Collège (3è Prepa métiers)",null,null,null,null,null,null,null,null,null,null,null,null,null,null,null,null,null,null,null,null,null,null,null,null,null,null,null,null,null,null,null,null,null,null,null,null,null,null,null,null,null,null,null,null,null,null,null,30,null,null,null,null,null,null,null,null,null,null,null,null,null,null,null,null,null,null,null,null,null,null,null,null,null,null,null,null,null,null,30,null,null,null,null,null,null,null,null,null,null,null,null,null,null,null,null,null,null,null,null,null,null,null,null,null,null,null,null,null,null,null,null,null,null,null,null,null,null,null,null,null,null,null,null,null,null,null,null,null,null,null,null,null,null,null,null,null,null,null,null,null,null,null,null,null,null,null,null,null,null,null,null,null,null,null,null,null,null,null,null,null,null,null,null,null,null,null,null,null,null,null,null,null,null,null,null,null,null,null,null,null,null,null,null,null,null,null,null,null,null,null,null,null,null,null,null,null,null,null,null,null,null,null,null,null,null,null,null,null,null,null,null,null,null,62]
[null,null,null,null,null,null,null,null,null,null,null,null,"CAP",null,null,null,"Activités de pleine nature",null,3,null,null,null,null,null,null,null,null,null,null,null,null,null,null,null,null,null,null,null,null,null,null,null,null,null,null,null,null,null,null,null,null,null,null,null,null,null,null,null,null,null,31,null,null,null,null,null,null,null,null,null,null,null,null,null,null,null,null,null,null,null,null,null,null,null,null,null,null,null,null,null,null,31,null,null,null,null,null,null,null,null,null,null,null,null,null,null,null,null,null,null,null,null,null,null,null,null,null,null,null,null,null,null,null,null,null,null,null,null,null,null,null,null,null,null,null,null,null,null,null,null,null,null,null,null,null,null,null,null,null,null,null,null,null,null,null,null,null,null,null,null,null,null,null,null,null,null,null,null,null,null,null,null,null,null,null,null,null,null,null,null,null,null,null,null,null,null,null,null,null,null,null,null,null,null,null,null,null,null,null,null,null,null,null,null,null,null,null,null,null,null,null,null,null,null,null,null,null,null,null,null,null,null,null,null,null,null,63]
[null,null,null,null,null,null,null,null,null,null,null,null,null,null,null,null,"Autre",null,9,null,null,null,null,null,null,null,null,null,null,null,null,null,null,null,null,null,null,null,null,null,null,null,null,null,null,null,null,null,null,null,null,null,null,null,null,null,null,null,null,null,32,null,null,null,null,null,null,null,null,null,null,null,null,null,null,null,null,null,null,null,null,null,null,null,null,null,null,null,null,null,null,32,null,null,null,null,null,null,null,null,null,null,null,null,null,null,null,null,null,null,null,null,null,null,null,null,null,null,null,null,null,null,null,null,null,null,null,null,null,null,null,null,null,null,null,null,null,null,null,null,null,null,null,null,null,null,null,null,null,null,null,null,null,null,null,null,null,null,null,null,null,null,null,null,null,null,null,null,null,null,null,null,null,null,null,null,null,null,null,null,null,null,null,null,null,null,null,null,null,null,null,null,null,null,null,null,null,null,null,null,null,null,null,null,null,null,null,null,null,null,null,null,null,null,null,null,null,null,null,null,null,null,null,null,null,null,64]
[null,null,null,null,null,null,null,null,null,null,null,null,null,null,null,null,null,null,null,null,null,null,null,null,null,null,null,null,null,null,null,null,null,null,null,null,null,null,null,null,null,null,null,null,null,null,null,null,null,null,null,null,null,null,null,null,null,null,null,null,33,null,null,null,null,null,null,null,null,null,null,null,null,null,null,null,null,null,null,null,null,null,null,null,null,null,null,null,null,null,null,33,null,null,null,null,null,null,null,null,null,null,null,null,null,null,null,null,null,null,null,null,null,null,null,null,null,null,null,null,null,null,null,null,null,null,null,null,null,null,null,null,null,null,null,null,null,null,null,null,null,null,null,null,null,null,null,null,null,null,null,null,null,null,null,null,null,null,null,null,null,null,null,null,null,null,null,null,null,null,null,null,null,null,null,null,null,null,null,null,null,null,null,null,null,null,null,null,null,null,null,null,null,null,null,null,null,null,null,null,null,null,null,null,null,null,null,null,null,null,null,null,null,null,null,null,null,null,null,null,null,null,null,null,null,null,65]
[null,null,null,null,null,null,null,null,null,null,null,null,null,null,null,null,null,null,null,null,null,null,null,null,null,null,null,null,null,null,null,null,null,null,null,null,null,null,null,null,null,null,null,null,null,null,null,null,null,null,null,null,null,null,null,null,null,null,null,null,34,null,null,null,null,null,null,null,null,null,null,null,null,null,null,null,null,null,null,null,null,null,null,null,null,null,null,null,null,null,null,34,null,null,null,null,null,null,null,null,null,null,null,null,null,null,null,null,null,null,null,null,null,null,null,null,null,null,null,null,null,null,null,null,null,null,null,null,null,null,null,null,null,null,null,null,null,null,null,null,null,null,null,null,null,null,null,null,null,null,null,null,null,null,null,null,null,null,null,null,null,null,null,null,null,null,null,null,null,null,null,null,null,null,null,null,null,null,null,null,null,null,null,null,null,null,null,null,null,null,null,null,null,null,null,null,null,null,null,null,null,null,null,null,null,null,null,null,null,null,null,null,null,null,null,null,null,null,null,null,null,null,null,null,null,null,66]
[null,null,null,null,null,null,null,null,null,null,null,null,null,null,null,null,null,null,null,null,null,null,null,null,null,null,null,null,null,null,null,null,null,null,null,null,null,null,null,null,null,null,null,null,null,null,null,null,null,null,null,null,null,null,null,null,null,null,null,null,35,null,null,null,null,null,null,null,null,null,null,null,null,null,null,null,null,null,null,null,null,null,null,null,null,null,null,null,null,null,null,35,null,null,null,null,null,null,null,null,null,null,null,null,null,null,null,null,null,null,null,null,null,null,null,null,null,null,null,null,null,null,null,null,null,null,null,null,null,null,null,null,null,null,null,null,null,null,null,null,null,null,null,null,null,null,null,null,null,null,null,null,null,null,null,null,null,null,null,null,null,null,null,null,null,null,null,null,null,null,null,null,null,null,null,null,null,null,null,null,null,null,null,null,null,null,null,null,null,null,null,null,null,null,null,null,null,null,null,null,null,null,null,null,null,null,null,null,null,null,null,null,null,null,null,null,null,null,null,null,null,null,null,null,null,null,{"$f":"1+HS94","v":67}]
[null,null,null,null,null,null,null,null,null,null,null,null,"Création Feuilles des périodes d'enseignement",null,null,null,"Activités codifiées de reproduction de formes",null,4,null,null,null,null,null,null,null,null,null,null,null,null,null,null,null,null,null,null,null,null,null,null,null,null,null,null,null,null,null,null,null,null,null,null,null,null,null,null,null,null,null,36,null,null,null,null,null,null,null,null,null,null,null,null,null,null,null,null,null,null,null,null,null,null,null,null,null,null,null,null,null,null,36,null,null,null,null,null,null,null,null,null,null,null,null,null,null,null,null,null,null,null,null,null,null,null,null,null,null,null,null,null,null,null,null,null,null,null,null,null,null,null,null,null,null,null,null,null,null,null,null,null,null,null,null,null,null,null,null,null,null,null,null,null,null,null,null,null,null,null,null,null,null,null,null,null,null,null,null,null,null,null,null,null,null,null,null,null,null,null,null,null,null,null,null,null,null,null,null,null,null,null,null,null,null,null,null,null,null,null,null,null,null,null,null,null,null,null,null,null,null,null,null,null,null,null,null,null,null,null,null,null,null,null,null,null,null,68]
[null,null,null,null,null,null,null,null,null,null,null,null,"Cycle 3","N",null,null,"Activités artistiques de création",null,5,null,null,null,null,null,null,null,null,null,null,null,null,null,null,null,null,null,null,null,null,null,null,null,null,null,null,null,null,null,null,null,null,null,null,null,null,null,null,null,null,null,37,null,null,null,null,null,null,null,null,null,null,null,null,null,null,null,null,null,null,null,null,null,null,null,null,null,null,null,null,null,null,37,null,null,null,null,null,null,null,null,null,null,null,null,null,null,null,null,null,null,null,null,null,null,null,null,null,null,null,null,null,null,null,null,null,null,null,null,null,null,null,null,null,null,null,null,null,null,null,null,null,null,null,null,null,null,null,null,null,null,null,null,null,null,null,null,null,null,null,null,null,null,null,null,null,null,null,null,null,null,null,null,null,null,null,null,null,null,null,null,null,null,null,null,null,null,null,null,null,null,null,null,null,null,null,null,null,null,null,null,null,null,null,null,null,null,null,null,null,null,null,null,null,null,null,null,null,null,null,null,null,null,null,null,null,null,69]
[null,null,null,null,null,null,null,null,null,null,null,null,"Collège","N",null,null,"Autre",null,9,null,null,null,null,null,null,null,null,null,null,null,null,null,null,null,null,null,null,null,null,null,null,null,null,null,null,null,null,null,null,null,null,null,null,null,null,null,null,null,null,null,38,null,null,null,null,null,null,null,null,null,null,null,null,null,null,null,null,null,null,null,null,null,null,null,null,null,null,null,null,null,null,38,null,null,null,null,null,null,null,null,null,null,null,null,null,null,null,null,null,null,null,null,null,null,null,null,null,null,null,null,null,null,null,null,null,null,null,null,null,null,null,null,null,null,null,null,null,null,null,null,null,null,null,null,null,null,null,null,null,null,null,null,null,null,null,null,null,null,null,null,null,null,null,null,null,null,null,null,null,null,null,null,null,null,null,null,null,null,null,null,null,null,null,null,null,null,null,null,null,null,null,null,null,null,null,null,null,null,null,null,null,null,null,null,null,null,null,null,null,null,null,null,null,null,null,null,null,null,null,null,null,null,null,null,null,null,70]
[null,null,null,null,null,null,null,null,null,null,null,null,"Lycée","N",null,null,null,null,null,null,null,null,null,null,null,null,null,null,null,null,null,null,null,null,null,null,null,null,null,null,null,null,null,null,null,null,null,null,null,null,null,null,null,null,null,null,null,null,null,null,39,null,null,null,null,null,null,null,null,null,null,null,null,null,null,null,null,null,null,null,null,null,null,null,null,null,null,null,null,null,null,39,null,null,null,null,null,null,null,null,null,null,null,null,null,null,null,null,null,null,null,null,null,null,null,null,null,null,null,null,null,null,null,null,null,null,null,null,null,null,null,null,null,null,null,null,null,null,null,null,null,null,null,null,null,null,null,null,null,null,null,null,null,null,null,null,null,null,null,null,null,{"$f":"COLUMN()","v":162},{"$f":"COLUMN()","v":163},{"$f":"COLUMN()","v":164},{"$f":"COLUMN()","v":165},{"$f":"COLUMN()","v":166},{"$f":"COLUMN()","v":167},{"$f":"COLUMN()","v":168},{"$f":"COLUMN()","v":169},{"$f":"COLUMN()","v":170},{"$f":"COLUMN()","v":171},{"$f":"COLUMN()","v":172},{"$f":"COLUMN()","v":173},{"$f":"COLUMN()","v":174},{"$f":"COLUMN()","v":175},{"$f":"COLUMN()","v":176},{"$f":"COLUMN()","v":177},{"$f":"COLUMN()","v":178},{"$f":"COLUMN()","v":179},{"$f":"COLUMN()","v":180},{"$f":"COLUMN()","v":181},{"$f":"COLUMN()","v":182},{"$f":"COLUMN()","v":183},{"$f":"COLUMN()","v":184},null,null,null,null,null,null,null,null,null,null,null,null,null,null,null,null,null,null,null,null,null,null,null,null,null,null,null,null,null,null,null,null,null,null,null,null,null,null,null,null,null,null,71]
[null,null,null,null,null,null,null,null,null,null,null,null,"Lycée (voie Pro) - CAP","N",null,null,null,null,null,null,null,null,null,null,null,null,null,null,null,null,null,null,null,null,null,null,null,null,null,null,null,null,null,null,null,null,null,null,null,null,null,null,null,null,null,null,null,null,null,null,40,null,null,null,null,null,null,null,null,null,null,null,null,null,null,null,null,null,null,null,null,null,null,null,null,null,null,null,null,null,null,40,null,null,null,null,null,null,null,null,null,null,null,null,null,null,null,null,null,null,null,null,null,null,null,null,null,null,null,null,null,null,null,null,null,null,null,null,null,null,null,null,null,null,null,null,null,null,null,null,null,null,null,null,null,null,null,null,null,null,null,null,null,null,null,null,null,null,null,null,null,"ENSEIGNEMENT OPTIONNEL Lycée général et technologique",null,null,null,null,null,null,null,null,null,null,null,null,null,null,null,null,null,null,null,null,null,null,null,null,null,null,null,null,null,null,null,null,null,null,null,null,null,null,null,null,null,null,null,null,null,null,null,null,null,null,null,null,null,null,null,null,null,null,null,null,null,null,null,null,72]
[null,null,null,null,null,null,null,null,null,null,null,null,null,null,null,null,"Activités de coopération et d'opposition - sports collectifs",null,6,null,null,null,null,null,null,null,null,null,null,null,null,null,null,null,null,null,null,null,null,null,null,null,null,null,null,null,null,null,null,null,null,null,null,null,null,null,null,null,null,null,41,null,null,null,null,null,null,null,null,null,null,null,null,null,null,null,null,null,null,null,null,null,null,null,null,null,null,null,null,null,null,41,null,null,null,null,null,null,null,null,null,null,null,null,null,null,null,null,null,null,null,null,null,null,null,null,null,null,null,null,null,null,null,null,null,null,null,null,null,null,null,null,null,null,null,null,null,null,null,null,null,null,null,null,null,null,null,null,null,null,null,null,null,null,null,null,null,null,null,null,null,"Niveau 2nde","Type","Groupe","Num","ID","Niveau Première","Type","Groupe","Num","ID","Niveau Terminal","Type","Groupe","Num","ID","Cycle Terminal (8)","Type","Groupe","Num","ID","Niveau","Nbre","CA",null,null,null,null,null,null,null,null,null,null,null,null,null,null,null,null,null,null,null,null,null,null,null,null,null,null,null,null,null,null,null,null,null,null,null,null,null,null,null,null,null,null,73]
[null,null,null,null,null,null,null,null,null,null,null,null,null,null,null,null,"Activités d'opposition duelle",null,7,null,null,null,null,null,null,null,null,null,null,null,null,null,null,null,null,null,null,null,null,null,null,null,null,null,null,null,null,null,null,null,null,null,null,null,null,null,null,null,null,null,42,null,null,null,null,null,null,null,null,null,null,null,null,null,null,null,null,null,null,null,null,null,null,null,null,null,null,null,null,null,null,42,null,null,null,null,null,null,null,null,null,null,null,null,null,null,null,null,null,null,null,null,null,null,null,null,null,null,null,null,null,null,null,null,null,null,null,null,null,null,null,null,null,null,null,null,null,null,null,null,null,null,null,null,null,null,null,null,null,null,null,null,null,null,null,null,null,null,null,null,1,null,null,null,null,null,null,null,null,null,null,null,null,null,null,null,null,null,null,null,null,null,null,null,null,null,null,null,null,null,null,null,null,null,null,null,null,null,null,null,null,null,null,null,null,null,null,null,null,null,null,null,null,null,null,null,null,null,null,null,null,null,null,null,null,null,74]
[null,null,null,null,null,null,null,null,null,null,null,null,null,null,null,null,"Activités de combat",null,8,null,null,null,null,null,null,null,null,null,null,null,null,null,null,null,null,null,null,null,null,null,null,null,null,null,null,null,null,null,null,null,null,null,null,null,null,null,null,null,null,null,43,null,null,null,null,null,null,null,null,null,null,null,null,null,null,null,null,null,null,null,null,null,null,null,null,null,null,null,null,null,null,43,null,null,null,null,null,null,null,null,null,null,null,null,null,null,null,null,null,null,null,null,null,null,null,null,null,null,null,null,null,null,null,null,null,null,null,null,null,null,null,null,null,null,null,null,null,null,null,null,null,null,null,null,null,null,null,null,null,null,null,null,null,null,null,null,null,null,null,null,2,null,null,null,null,null,null,null,null,null,null,null,null,null,null,null,null,null,null,null,null,null,null,null,null,null,null,null,null,null,null,null,null,null,null,null,null,null,null,null,null,null,null,null,null,null,null,null,null,null,null,null,null,null,null,null,null,null,null,null,null,null,null,null,null,null,75]
[null,null,null,null,null,null,null,null,null,null,null,null,null,null,null,null,"Autre",null,9,null,null,null,null,null,null,null,null,null,null,null,null,null,null,null,null,null,null,null,null,null,null,null,null,null,null,null,null,null,null,null,null,null,null,null,null,null,null,null,null,null,45,null,null,null,null,null,null,null,null,null,null,null,null,null,null,null,null,null,null,null,null,null,null,null,null,null,null,null,null,null,null,44,null,null,null,null,null,null,null,null,null,null,null,null,null,null,null,null,null,null,null,null,null,null,null,null,null,null,null,null,null,null,null,null,null,null,null,null,null,null,null,null,null,null,null,null,null,null,null,null,null,null,null,null,null,null,null,null,null,null,null,null,null,null,null,null,null,null,null,null,3]
[null,null,null,null,null,null,null,null,null,null,null,null,null,null,null,null,null,null,null,null,null,null,null,null,null,null,null,null,null,null,null,null,null,null,null,null,null,null,null,null,null,null,null,null,null,null,null,null,null,null,null,null,null,null,null,null,null,null,null,null,46,null,null,null,null,null,null,null,null,null,null,null,null,null,null,null,null,null,null,null,null,null,null,null,null,null,null,null,null,null,null,45,null,null,null,null,null,null,null,null,null,null,null,null,null,null,null,null,null,null,null,null,null,null,null,null,null,null,null,null,null,null,null,null,null,null,null,null,null,null,null,null,null,null,null,null,null,null,null,null,null,null,null,null,null,null,null,null,null,null,null,null,null,null,null,null,null,null,null,null,4,null,null,null,null,null,null,null,null,null,null,null,null,null,null,null,null,null,null,null,null,null,null,null,null,null,null,null,null,null,null,null,null,null,null,null,null,null,null,null,null,null,null,null,null,null,null,null,null,null,null,null,null,null,null,null,null,null,null,null,null,null,null,null,null,null,null,{"$f":"COLUMN()","v":228},{"$f":"COLUMN()","v":229},{"$f":"COLUMN()","v":230},{"$f":"COLUMN()","v":231},{"$f":"COLUMN()","v":232},{"$f":"COLUMN()","v":233},{"$f":"COLUMN()","v":234},null,{"$f":"COLUMN()","v":236},{"$f":"COLUMN()","v":237},{"$f":"COLUMN()","v":238},{"$f":"COLUMN()","v":239},{"$f":"COLUMN()","v":240},{"$f":"COLUMN()","v":241},{"$f":"COLUMN()","v":242}]
[null,null,null,null,null,null,null,null,null,null,null,null,"Document de synthèse enseignement optionnel",null,null,null,"Développement des ressources et Entrainement",null,0,null,null,null,null,null,null,null,null,null,null,null,null,null,null,null,null,null,null,null,null,null,null,null,null,null,null,null,null,null,null,null,null,null,null,null,null,null,null,null,null,null,47,null,null,null,null,null,null,null,null,null,null,null,null,null,null,null,null,null,null,null,null,null,null,null,null,null,null,null,null,null,null,46,null,null,null,null,null,null,null,null,null,null,null,null,null,null,null,null,null,null,null,null,null,null,null,null,null,null,null,null,null,null,null,null,null,null,null,null,null,null,null,null,null,null,null,null,null,null,null,null,null,null,null,null,null,null,null,null,null,null,null,null,null,null,null,null,null,null,null,null,5,null,null,null,null,null,null,null,null,null,null,null,null,null,null,null,null,null,null,null,null,null,null,null,null,null,null,null,null,null,null,null,null,null,null,null,null,null,null,null,null,null,null,null,null,null,null,null,null,null,null,null,null,null,null,null,null,null,null,null,null,null,null,null,null,null,null,"Liste des APSA programmées 2 x au moins, dont 1 x en Terminale","ID","CA","Nbre\nde fois","Nbre de\nfois Niv. T","Liste des APSA programmées 2 x au moins, dont 1 x en Troisième","ID","CA","Nbre\nde fois","Nbre de\nfois Niv. 3","Liste des APSA programmées 2 x au moins, dont 1 x en Terminale PRO","ID","CA","Nbre\nde fois","Nbre de\nfois Niv. T"]
[null,null,null,null,null,null,null,null,null,null,null,null,"Edition du document de synthèse : ","N",null,null,null,null,null,null,null,null,null,null,null,null,null,null,null,null,null,null,null,null,null,null,null,null,null,null,null,null,null,null,null,null,null,null,null,null,null,null,null,null,null,null,null,null,null,null,48,null,null,null,null,null,null,null,null,null,null,null,null,null,null,null,null,null,null,null,null,null,null,null,null,null,null,null,null,null,null,47,null,null,null,null,null,null,null,null,null,null,null,null,null,null,null,null,null,null,null,null,null,null,null,null,null,null,null,null,null,null,null,null,null,null,null,null,null,null,null,null,null,null,null,null,null,null,null,null,null,null,null,null,null,null,null,null,null,null,null,null,null,null,null,null,null,null,null,null,6,null,null,null,null,null,null,null,null,null,null,null,null,null,null,null,null,null,null,null,null,null,null,null,null,null,null,null,null,null,null,null,null,null,null,null,null,null,null,null,null,null,null,null,null,null,null,null,null,null,null,null,null,null,null,null,null,null,null,null,null,null,null,null,null,null,1]
[null,null,null,null,null,null,null,null,null,null,null,null,null,null,null,null,null,null,null,null,null,null,null,null,null,null,null,null,null,null,null,null,null,null,null,null,null,null,null,null,null,null,null,null,null,null,null,null,null,null,null,null,null,null,null,null,null,null,null,null,49,null,null,null,null,null,null,null,null,null,null,null,null,null,null,null,null,null,null,null,null,null,null,null,null,null,null,null,null,null,null,48,null,null,null,null,null,null,null,null,null,null,null,null,null,null,null,null,null,null,null,null,null,null,null,null,null,null,null,null,null,null,null,null,null,null,null,null,null,null,null,null,null,null,null,null,null,null,null,null,null,null,null,null,null,null,null,null,null,null,null,null,null,null,null,null,null,null,null,null,7,null,null,null,null,null,null,null,null,null,null,null,null,null,null,null,null,null,null,null,null,null,null,null,null,null,null,null,null,null,null,null,null,null,null,null,null,null,null,null,null,null,null,null,null,null,null,null,null,null,null,null,null,null,null,null,null,null,null,null,null,null,null,null,null,null,{"$f":"1+HS107","v":2}]
[null,null,null,null,null,null,null,null,null,null,null,null,null,null,null,null,null,null,null,null,null,null,null,null,null,null,null,null,null,null,null,null,null,null,null,null,null,null,null,null,null,null,null,null,null,null,null,null,null,null,null,null,null,null,null,null,null,null,null,null,50,null,null,null,null,null,null,null,null,null,null,null,null,null,null,null,null,null,null,null,null,null,null,null,null,null,null,null,null,null,null,49,null,null,null,null,null,null,null,null,null,null,null,null,null,null,null,null,null,null,null,null,null,null,null,null,null,null,null,null,null,null,null,null,null,null,null,null,null,null,null,null,null,null,null,null,null,null,null,null,null,null,null,null,null,null,null,null,null,null,null,null,null,null,null,null,null,null,null,null,8,null,null,null,null,null,null,null,null,null,null,null,null,null,null,null,null,null,null,null,null,null,null,null,null,null,null,null,null,null,null,null,null,null,null,null,null,null,null,null,null,null,null,null,null,null,null,null,null,null,null,null,null,null,null,null,null,null,null,null,null,null,null,null,null,null,{"$f":"1+HS108","v":3}]
[null,null,null,null,null,null,null,null,null,null,null,null,"Lycée GT APSA EPLE (1 Max)",0,null,null,null,null,null,null,null,null,null,null,null,null,null,null,null,null,null,null,null,null,null,null,null,null,null,null,null,null,null,null,null,null,null,null,null,null,null,null,null,null,null,null,null,null,null,null,51,null,null,null,null,null,null,null,null,null,null,null,null,null,null,null,null,null,null,null,null,null,null,null,null,null,null,null,null,null,null,50,null,null,null,null,null,null,null,null,null,null,null,null,null,null,null,null,null,null,null,null,null,null,null,null,null,null,null,null,null,null,null,null,null,null,null,null,null,null,null,null,null,null,null,null,null,null,null,null,null,null,null,null,null,null,null,null,null,null,null,null,null,null,null,null,null,null,null,null,9,null,null,null,null,null,null,null,null,null,null,null,null,null,null,null,null,null,null,null,null,null,null,null,null,null,null,null,null,null,null,null,null,null,null,null,null,null,null,null,null,null,null,null,null,null,null,null,null,null,null,null,null,null,null,null,null,null,null,null,null,null,null,null,null,null,4]
[null,null,null,null,null,null,null,null,null,null,null,null,null,null,null,null,null,null,null,null,null,null,null,null,null,null,null,null,null,null,null,null,null,null,null,null,null,null,null,null,null,null,null,null,null,null,null,null,null,null,null,null,null,null,null,null,null,null,null,null,52,null,null,null,null,null,null,null,null,null,null,null,null,null,null,null,null,null,null,null,null,null,null,null,null,null,null,null,null,null,null,51,null,null,null,null,null,null,null,null,null,null,null,null,null,null,null,null,null,null,null,null,null,null,null,null,null,null,null,null,null,null,null,null,null,null,null,null,null,null,null,null,null,null,null,null,null,null,null,null,null,null,null,null,null,null,null,null,null,null,null,null,null,null,null,null,null,null,null,null,10,null,null,null,null,null,null,null,null,null,null,null,null,null,null,null,null,null,null,null,null,null,null,null,null,null,null,null,null,null,null,null,null,null,null,null,null,null,null,null,null,null,null,null,null,null,null,null,null,null,null,null,null,null,null,null,null,null,null,null,null,null,null,null,null,null,5]
[null,null,null,null,null,null,null,null,null,null,null,null,"Lycée GT Enseignement de spécialité","NON",null,null,null,null,null,null,null,null,null,null,null,null,null,null,null,null,null,null,null,null,null,null,null,null,null,null,null,null,null,null,null,null,null,null,null,null,null,null,null,null,null,null,null,null,null,null,53,null,null,null,null,null,null,null,null,null,null,null,null,null,null,null,null,null,null,null,null,null,null,null,null,null,null,null,null,null,null,null,null,null,null,null,null,null,null,null,null,null,null,null,null,null,null,null,null,null,null,null,null,null,null,null,null,null,null,null,null,null,null,null,null,null,null,null,null,null,null,null,null,null,null,null,null,null,null,null,null,null,null,null,null,null,null,null,null,null,null,null,null,null,null,null,null,null,null,null,11,null,null,null,null,null,null,null,null,null,null,null,null,null,null,null,null,null,null,null,null,null,null,null,null,null,null,null,null,null,null,null,null,null,null,null,null,null,null,null,null,null,null,null,null,null,null,null,null,null,null,null,null,null,null,null,null,null,null,null,null,null,null,null,null,null,6]
[null,null,null,null,null,null,null,null,null,null,null,null,"Edition du document de synthèse de l'enseignement de spécialité : ","N",null,null,null,null,null,null,null,null,null,null,null,null,null,null,null,null,null,null,null,null,null,null,null,null,null,null,null,null,null,null,null,null,null,null,null,null,null,null,null,null,null,null,null,null,null,null,54,null,null,null,null,null,null,null,null,null,null,null,null,null,null,null,null,null,null,null,null,null,null,null,null,null,null,null,null,null,null,null,null,null,null,null,null,null,null,null,null,null,null,null,null,null,null,null,null,null,null,null,null,null,null,null,null,null,null,null,null,null,null,null,null,null,null,null,null,null,null,null,null,null,null,null,null,null,null,null,null,null,null,null,null,null,null,null,null,null,null,null,null,null,null,null,null,null,null,null,12,null,null,null,null,null,null,null,null,null,null,null,null,null,null,null,null,null,null,null,null,null,null,null,null,null,null,null,null,null,null,null,null,null,null,null,null,null,null,null,null,null,null,null,null,null,null,null,null,null,null,null,null,null,null,null,null,null,null,null,null,null,null,null,null,null,7]
[null,null,null,null,null,null,null,null,null,null,null,null,null,null,null,null,null,null,null,null,null,null,null,null,null,null,null,null,null,null,null,null,null,null,null,null,null,null,null,null,null,null,null,null,null,null,null,null,null,null,null,null,null,null,null,null,null,null,null,null,55,null,null,null,null,null,null,null,null,null,null,null,null,null,null,null,null,null,null,null,null,null,null,null,null,null,null,null,null,null,null,null,null,null,null,null,null,null,null,null,null,null,null,null,null,null,null,null,null,null,null,null,null,null,null,null,null,null,null,null,null,null,null,null,null,null,null,null,null,null,null,null,null,null,null,null,null,null,null,null,null,null,null,null,null,null,null,null,null,null,null,null,null,null,null,null,null,null,null,null,13,null,null,null,null,null,null,null,null,null,null,null,null,null,null,null,null,null,null,null,null,null,null,null,null,null,null,null,null,null,null,null,null,null,null,null,null,null,null,null,null,null,null,null,null,null,null,null,null,null,null,null,null,null,null,null,null,null,null,null,null,null,null,null,null,null,8]
[null,null,null,null,null,null,null,null,null,null,null,null,null,null,null,null,null,null,null,null,null,null,null,null,null,null,null,null,null,null,null,null,null,null,null,null,null,null,null,null,null,null,null,null,null,null,null,null,null,null,null,null,null,null,null,null,null,null,null,null,null,null,null,null,null,null,null,null,null,null,null,null,null,null,null,null,null,null,null,null,null,null,null,null,null,null,null,null,null,null,null,null,null,null,null,null,null,null,null,null,null,null,null,null,null,null,null,null,null,null,null,null,null,null,null,null,null,null,null,null,null,null,null,null,null,null,null,null,null,null,null,null,null,null,null,null,null,null,null,null,null,null,null,null,null,null,null,null,null,null,null,null,null,null,null,null,null,null,null,null,14,null,null,null,null,null,null,null,null,null,null,null,null,null,null,null,null,null,null,null,null,null,null,null,null,null,null,null,null,null,null,null,null,null,null,null,null,null,null,null,null,null,null,null,null,null,null,null,null,null,null,null,null,null,null,null,null,null,null,null,null,null,null,null,null,null,9]
[null,null,null,null,null,null,null,null,null,null,null,null,null,null,null,null,null,null,null,null,null,null,null,null,null,null,null,null,null,null,null,null,null,null,null,null,null,null,null,null,null,null,null,null,null,null,null,null,null,null,null,null,null,null,null,null,null,null,null,null,null,null,null,null,null,null,null,null,null,null,null,null,null,null,null,null,null,null,null,null,null,null,null,null,null,null,null,null,null,null,null,null,null,null,null,null,null,null,null,null,null,null,null,null,null,null,null,null,null,null,null,null,null,null,null,null,null,null,null,null,null,null,null,null,null,null,null,null,null,null,null,null,null,null,null,null,null,null,null,null,null,null,null,null,null,null,null,null,null,null,null,null,null,null,null,null,null,null,null,null,15,null,null,null,null,null,null,null,null,null,null,null,null,null,null,null,null,null,null,null,null,null,null,null,null,null,null,null,null,null,null,null,null,null,null,null,null,null,null,null,null,null,null,null,null,null,null,null,null,null,null,null,null,null,null,null,null,null,null,null,null,null,null,null,null,null,10]
[null,null,null,null,null,null,null,null,null,null,null,null,null,null,null,null,null,null,null,null,null,null,null,null,null,null,null,null,null,null,null,null,null,null,null,null,null,null,null,null,null,null,null,null,null,null,null,null,null,null,null,null,null,null,null,null,null,null,null,null,null,null,null,null,null,null,null,null,null,null,null,null,null,null,null,null,null,null,null,null,null,null,null,null,null,null,null,null,null,null,null,null,null,null,null,null,null,null,null,null,null,null,null,null,null,null,null,null,null,null,null,null,null,null,null,null,null,null,null,null,null,null,null,null,null,null,null,null,null,null,null,null,null,null,null,null,null,null,null,null,null,null,null,null,null,null,null,null,null,null,null,null,null,null,null,null,null,null,null,null,16,null,null,null,null,null,null,null,null,null,null,null,null,null,null,null,null,null,null,null,null,null,null,null,null,null,null,null,null,null,null,null,null,null,null,null,null,null,null,null,null,null,null,null,null,null,null,null,null,null,null,null,null,null,null,null,null,null,null,null,null,null,null,null,null,null,11]
[null,null,null,null,null,null,null,null,null,null,null,null,null,null,null,null,null,null,null,null,null,null,null,null,null,null,null,null,null,null,null,null,null,null,null,null,null,null,null,null,null,null,null,null,null,null,null,null,null,null,null,null,null,null,null,null,null,null,null,null,null,null,null,null,null,null,null,null,null,null,null,null,null,null,null,null,null,null,null,null,null,null,null,null,null,null,null,null,null,null,null,null,null,null,null,null,null,null,null,null,null,null,null,null,null,null,null,null,null,null,null,null,null,null,null,null,null,null,null,null,null,null,null,null,null,null,null,null,null,null,null,null,null,null,null,null,null,null,null,null,null,null,null,null,null,null,null,null,null,null,null,null,null,null,null,null,null,null,null,null,17,null,null,null,null,null,null,null,null,null,null,null,null,null,null,null,null,null,null,null,null,null,null,null,null,null,null,null,null,null,null,null,null,null,null,null,null,null,null,null,null,null,null,null,null,null,null,null,null,null,null,null,null,null,null,null,null,null,null,null,null,null,null,null,null,null,12]
[null,null,null,null,null,null,null,null,null,null,null,null,null,null,null,null,null,null,null,null,null,null,null,null,null,null,null,null,null,null,null,null,null,null,null,null,null,null,null,null,null,null,null,null,null,null,null,null,null,null,null,null,null,null,null,null,null,null,null,null,null,null,null,null,null,null,null,null,null,null,null,null,null,null,null,null,null,null,null,null,null,null,null,null,null,null,null,null,null,null,null,null,null,null,null,null,null,null,null,null,null,null,null,null,null,null,null,null,null,null,null,null,null,null,null,null,null,null,null,null,null,null,null,null,null,null,null,null,null,null,null,null,null,null,null,null,null,null,null,null,null,null,null,null,null,null,null,null,null,null,null,null,null,null,null,null,null,null,null,null,18,null,null,null,null,null,null,null,null,null,null,null,null,null,null,null,null,null,null,null,null,null,null,null,null,null,null,null,null,null,null,null,null,null,null,null,null,null,null,null,null,null,null,null,null,null,null,null,null,null,null,null,null,null,null,null,null,null,null,null,null,null,null,null,null,null,13]
[null,null,null,null,null,null,null,null,null,null,null,null,null,null,null,null,null,null,null,null,null,null,null,null,null,null,null,null,null,null,null,null,null,null,null,null,null,null,null,null,null,null,null,null,null,null,null,null,null,null,null,null,null,null,null,null,null,null,null,null,null,null,null,null,null,null,null,null,null,null,null,null,null,null,null,null,null,null,null,null,null,null,null,null,null,null,null,null,null,null,null,null,null,null,null,null,null,null,null,null,null,null,null,null,null,null,null,null,null,null,null,null,null,null,null,null,null,null,null,null,null,null,null,null,null,null,null,null,null,null,null,null,null,null,null,null,null,null,null,null,null,null,null,null,null,null,null,null,null,null,null,null,null,null,null,null,null,null,null,null,19,null,null,null,null,null,null,null,null,null,null,null,null,null,null,null,null,null,null,null,null,null,null,null,null,null,null,null,null,null,null,null,null,null,null,null,null,null,null,null,null,null,null,null,null,null,null,null,null,null,null,null,null,null,null,null,null,null,null,null,null,null,null,null,null,null,14]
[null,null,null,null,null,null,null,null,null,null,null,null,null,null,null,null,null,null,null,null,null,null,null,null,null,null,null,null,null,null,null,null,null,null,null,null,null,null,null,null,null,null,null,null,null,null,null,null,null,null,null,null,null,null,null,null,null,null,null,null,null,null,null,null,null,null,null,null,null,null,null,null,null,null,null,null,null,null,null,null,null,null,null,null,null,null,null,null,null,null,null,null,null,null,null,null,null,null,null,null,null,null,null,null,null,null,null,null,null,null,null,null,null,null,null,null,null,null,null,null,null,null,null,null,null,null,null,null,null,null,null,null,null,null,null,null,null,null,null,null,null,null,null,null,null,null,null,null,null,null,null,null,null,null,null,null,null,null,null,null,20,null,null,null,null,null,null,null,null,null,null,null,null,null,null,null,null,null,null,null,null,null,null,null,null,null,null,null,null,null,null,null,null,null,null,null,null,null,null,null,null,null,null,null,null,null,null,null,null,null,null,null,null,null,null,null,null,null,null,null,null,null,null,null,null,null,15]
[null,null,null,null,null,null,null,null,null,null,null,null,null,null,null,null,null,null,null,null,null,null,null,null,null,null,null,null,null,null,null,null,null,null,null,null,null,null,null,null,null,null,null,null,null,null,null,null,null,null,null,null,null,null,null,null,null,null,null,null,null,null,null,null,null,null,null,null,null,null,null,null,null,null,null,null,null,null,null,null,null,null,null,null,null,null,null,null,null,null,null,null,null,null,null,null,null,null,null,null,null,null,null,null,null,null,null,null,null,null,null,null,null,null,null,null,null,null,null,null,null,null,null,null,null,null,null,null,null,null,null,null,null,null,null,null,null,null,null,null,null,null,null,null,null,null,null,null,null,null,null,null,null,null,null,null,null,null,null,null,21,null,null,null,null,null,null,null,null,null,null,null,null,null,null,null,null,null,null,null,null,null,null,null,null,null,null,null,null,null,null,null,null,null,null,null,null,null,null,null,null,null,null,null,null,null,null,null,null,null,null,null,null,null,null,null,null,null,null,null,null,null,null,null,null,null,16]
[null,null,null,null,null,null,null,null,null,null,null,null,null,null,null,null,null,null,null,null,null,null,null,null,null,null,null,null,null,null,null,null,null,null,null,null,null,null,null,null,null,null,null,null,null,null,null,null,null,null,null,null,null,null,null,null,null,null,null,null,null,null,null,null,null,null,null,null,null,null,null,null,null,null,null,null,null,null,null,null,null,null,null,null,null,null,null,null,null,null,null,null,null,null,null,null,null,null,null,null,null,null,null,null,null,null,null,null,null,null,null,null,null,null,null,null,null,null,null,null,null,null,null,null,null,null,null,null,null,null,null,null,null,null,null,null,null,null,null,null,null,null,null,null,null,null,null,null,null,null,null,null,null,null,null,null,null,null,null,null,22,null,null,null,null,null,null,null,null,null,null,null,null,null,null,null,null,null,null,null,null,null,null,null,null,null,null,null,null,null,null,null,null,null,null,null,null,null,null,null,null,null,null,null,null,null,null,null,null,null,null,null,null,null,null,null,null,null,null,null,null,null,null,null,null,null,17]
[null,null,null,null,null,null,null,null,null,null,null,null,null,null,null,null,null,null,null,null,null,null,null,null,null,null,null,null,null,null,null,null,null,null,null,null,null,null,null,null,null,null,null,null,null,null,null,null,null,null,null,null,null,null,null,null,null,null,null,null,null,null,null,null,null,null,null,null,null,null,null,null,null,null,null,null,null,null,null,null,null,null,null,null,null,null,null,null,null,null,null,null,null,null,null,null,null,null,null,null,null,null,null,null,null,null,null,null,null,null,null,null,null,null,null,null,null,null,null,null,null,null,null,null,null,null,null,null,null,null,null,null,null,null,null,null,null,null,null,null,null,null,null,null,null,null,null,null,null,null,null,null,null,null,null,null,null,null,null,null,23,null,null,null,null,null,null,null,null,null,null,null,null,null,null,null,null,null,null,null,null,null,null,null,null,null,null,null,null,null,null,null,null,null,null,null,null,null,null,null,null,null,null,null,null,null,null,null,null,null,null,null,null,null,null,null,null,null,null,null,null,null,null,null,null,null,18]
[null,null,null,null,null,null,null,null,null,null,null,null,null,null,null,null,null,null,null,null,null,null,null,null,null,null,null,null,null,null,null,null,null,null,null,null,null,null,null,null,null,null,null,null,null,null,null,null,null,null,null,null,null,null,null,null,null,null,null,null,null,null,null,null,null,null,null,null,null,null,null,null,null,null,null,null,null,null,null,null,null,null,null,null,null,null,null,null,null,null,null,null,null,null,null,null,null,null,null,null,null,null,null,null,null,null,null,null,null,null,null,null,null,null,null,null,null,null,null,null,null,null,null,null,null,null,null,null,null,null,null,null,null,null,null,null,null,null,null,null,null,null,null,null,null,null,null,null,null,null,null,null,null,null,null,null,null,null,null,null,24,null,null,null,null,null,null,null,null,null,null,null,null,null,null,null,null,null,null,null,null,null,null,null,null,null,null,null,null,null,null,null,null,null,null,null,null,null,null,null,null,null,null,null,null,null,null,null,null,null,null,null,null,null,null,null,null,null,null,null,null,null,null,null,null,null,19]
[null,null,null,null,null,null,null,null,null,null,null,null,null,null,null,null,null,null,null,null,null,null,null,null,null,null,null,null,null,null,null,null,null,null,null,null,null,null,null,null,null,null,null,null,null,null,null,null,null,null,null,null,null,null,null,null,null,null,null,null,null,null,null,null,null,null,null,null,null,null,null,null,null,null,null,null,null,null,null,null,null,null,null,null,null,null,null,null,null,null,null,null,null,null,null,null,null,null,null,null,null,null,null,null,null,null,null,null,null,null,null,null,null,null,null,null,null,null,null,null,null,null,null,null,null,null,null,null,null,null,null,null,null,null,null,null,null,null,null,null,null,null,null,null,null,null,null,null,null,null,null,null,null,null,null,null,null,null,null,null,25,null,null,null,null,null,null,null,null,null,null,null,null,null,null,null,null,null,null,null,null,null,null,null,null,null,null,null,null,null,null,null,null,null,null,null,null,null,null,null,null,null,null,null,null,null,null,null,null,null,null,null,null,null,null,null,null,null,null,null,null,null,null,null,null,null,20]
[null,null,null,null,null,null,null,null,null,null,null,null,null,null,null,null,null,null,null,null,null,null,null,null,null,null,null,null,null,null,null,null,null,null,null,null,null,null,null,null,null,null,null,null,null,null,null,null,null,null,null,null,null,null,null,null,null,null,null,null,null,null,null,null,null,null,null,null,null,null,null,null,null,null,null,null,null,null,null,null,null,null,null,null,null,null,null,null,null,null,null,null,null,null,null,null,null,null,null,null,null,null,null,null,null,null,null,null,null,null,null,null,null,null,null,null,null,null,null,null,null,null,null,null,null,null,null,null,null,null,null,null,null,null,null,null,null,null,null,null,null,null,null,null,null,null,null,null,null,null,null,null,null,null,null,null,null,null,null,null,26,null,null,null,null,null,null,null,null,null,null,null,null,null,null,null,null,null,null,null,null,null,null,null,null,null,null,null,null,null,null,null,null,null,null,null,null,null,null,null,null,null,null,null,null,null,null,null,null,null,null,null,null,null,null,null,null,null,null,null,null,null,null,null,null,null,21]
[null,null,null,null,null,null,null,null,null,null,null,null,null,null,null,null,null,null,null,null,null,null,null,null,null,null,null,null,null,null,null,null,null,null,null,null,null,null,null,null,null,null,null,null,null,null,null,null,null,null,null,null,null,null,null,null,null,null,null,null,null,null,null,null,null,null,null,null,null,null,null,null,null,null,null,null,null,null,null,null,null,null,null,null,null,null,null,null,null,null,null,null,null,null,null,null,null,null,null,null,null,null,null,null,null,null,null,null,null,null,null,null,null,null,null,null,null,null,null,null,null,null,null,null,null,null,null,null,null,null,null,null,null,null,null,null,null,null,null,null,null,null,null,null,null,null,null,null,null,null,null,null,null,null,null,null,null,null,null,null,27,null,null,null,null,null,null,null,null,null,null,null,null,null,null,null,null,null,null,null,null,null,null,null,null,null,null,null,null,null,null,null,null,null,null,null,null,null,null,null,null,null,null,null,null,null,null,null,null,null,null,null,null,null,null,null,null,null,null,null,null,null,null,null,null,null,22]
[null,null,null,null,null,null,null,null,null,null,null,null,null,null,null,null,null,null,null,null,null,null,null,null,null,null,null,null,null,null,null,null,null,null,null,null,null,null,null,null,null,null,null,null,null,null,null,null,null,null,null,null,null,null,null,null,null,null,null,null,null,null,null,null,null,null,null,null,null,null,null,null,null,null,null,null,null,null,null,null,null,null,null,null,null,null,null,null,null,null,null,null,null,null,null,null,null,null,null,null,null,null,null,null,null,null,null,null,null,null,null,null,null,null,null,null,null,null,null,null,null,null,null,null,null,null,null,null,null,null,null,null,null,null,null,null,null,null,null,null,null,null,null,null,null,null,null,null,null,null,null,null,null,null,null,null,null,null,null,null,28,null,null,null,null,null,null,null,null,null,null,null,null,null,null,null,null,null,null,null,null,null,null,null,null,null,null,null,null,null,null,null,null,null,null,null,null,null,null,null,null,null,null,null,null,null,null,null,null,null,null,null,null,null,null,null,null,null,null,null,null,null,null,null,null,null,23]
[null,null,null,null,null,null,null,null,null,null,null,null,"Vacances scolaires",null,"Date début","N°\nSemaine","Nombre de\nsemaines pleines",null,null,null,null,null,null,null,null,null,null,null,null,null,null,null,null,null,null,null,null,null,null,null,null,null,null,null,null,null,null,null,null,null,null,null,null,null,null,null,null,null,null,null,null,null,null,null,null,null,null,null,null,null,null,null,null,null,null,null,null,null,null,null,null,null,null,null,null,null,null,null,null,null,null,null,null,null,null,null,null,null,null,null,null,null,null,null,null,null,null,null,null,null,null,null,null,null,null,null,null,null,null,null,null,null,null,null,null,null,null,null,null,null,null,null,null,null,null,null,null,null,null,null,null,null,null,null,null,null,null,null,null,null,null,null,null,null,null,null,null,null,null,null,29,null,null,null,null,null,null,null,null,null,null,null,null,null,null,null,null,null,null,null,null,null,null,null,null,null,null,null,null,null,null,null,null,null,null,null,null,null,null,null,null,null,null,null,null,null,null,null,null,null,null,null,null,null,null,null,null,null,null,null,null,null,null,null,null,null,24]
[null,null,null,null,null,null,null,null,null,null,null,null,"Toussaint",null,"2023-10-23",43,2,null,null,null,null,null,null,null,null,null,null,null,null,null,null,null,null,null,null,null,null,null,null,null,null,null,null,null,null,null,null,null,null,null,null,null,null,null,null,null,null,null,null,null,null,null,null,null,null,null,null,null,null,null,null,null,null,null,null,null,null,null,null,null,null,null,null,null,null,null,null,null,null,null,null,null,null,null,null,null,null,null,null,null,null,null,null,null,null,null,null,null,null,null,null,null,null,null,null,null,null,null,null,null,null,null,null,null,null,null,null,null,null,null,null,null,null,null,null,null,null,null,null,null,null,null,null,null,null,null,null,null,null,null,null,null,null,null,null,null,null,null,null,null,30,null,null,null,null,null,null,null,null,null,null,null,null,null,null,null,null,null,null,null,null,null,null,null,null,null,null,null,null,null,null,null,null,null,null,null,null,null,null,null,null,null,null,null,null,null,null,null,null,null,null,null,null,null,null,null,null,null,null,null,null,null,null,null,null,null,25]
[null,null,null,null,null,null,null,null,null,null,null,null,"Noel",null,"2023-12-26",52,1,null,null,null,null,null,null,null,null,null,null,null,null,null,null,null,null,null,null,null,null,null,null,null,null,null,null,null,null,null,null,null,null,null,null,null,null,null,null,null,null,null,null,null,null,null,null,null,null,null,null,null,null,null,null,null,null,null,null,null,null,null,null,null,null,null,null,null,null,null,null,null,null,null,null,null,null,null,null,null,null,null,null,null,null,null,null,null,null,null,null,null,null,null,null,null,null,null,null,null,null,null,null,null,null,null,null,null,null,null,null,null,null,null,null,null,null,null,null,null,null,null,null,null,null,null,null,null,null,null,null,null,null,null,null,null,null,null,null,null,null,null,null,null,31,null,null,null,null,null,null,null,null,null,null,null,null,null,null,null,null,null,null,null,null,null,null,null,null,null,null,null,null,null,null,null,null,null,null,null,null,null,null,null,null,null,null,null,null,null,null,null,null,null,null,null,null,null,null,null,null,null,null,null,null,null,null,null,null,null,26]
[null,null,null,null,null,null,null,null,null,null,null,null,"Dernière semaine de l'année civile",null,null,53,null,null,null,null,null,null,null,null,null,null,null,null,null,null,null,null,null,null,null,null,null,null,null,null,null,null,null,null,null,null,null,null,null,null,null,null,null,null,null,null,null,null,null,null,null,null,null,null,null,null,null,null,null,null,null,null,null,null,null,null,null,null,null,null,null,null,null,null,null,null,null,null,null,null,null,null,null,null,null,null,null,null,null,null,null,null,null,null,null,null,null,null,null,null,null,null,null,null,null,null,null,null,null,null,null,null,null,null,null,null,null,null,null,null,null,null,null,null,null,null,null,null,null,null,null,null,null,null,null,null,null,null,null,null,null,null,null,null,null,null,null,null,null,null,32,null,null,null,null,null,null,null,null,null,null,null,null,null,null,null,null,null,null,null,null,null,null,null,null,null,null,null,null,null,null,null,null,null,null,null,null,null,null,null,null,null,null,null,null,null,null,null,null,null,null,null,null,null,null,null,null,null,null,null,null,null,null,null,null,null,27]
[null,null,null,null,null,null,null,null,null,null,null,null,"Prem Semaine reprise en Janvier",null,"2024-01-08",2,null,null,null,null,null,null,null,null,null,null,null,null,null,null,null,null,null,null,null,null,null,null,null,null,null,null,null,null,null,null,null,null,null,null,null,null,null,null,null,null,null,null,null,null,null,null,null,null,null,null,null,null,null,null,null,null,null,null,null,null,null,null,null,null,null,null,null,null,null,null,null,null,null,null,null,null,null,null,null,null,null,null,null,null,null,null,null,null,null,null,null,null,null,null,null,null,null,null,null,null,null,null,null,null,null,null,null,null,null,null,null,null,null,null,null,null,null,null,null,null,null,null,null,null,null,null,null,null,null,null,null,null,null,null,null,null,null,null,null,null,null,null,null,null,33,null,null,null,null,null,null,null,null,null,null,null,null,null,null,null,null,null,null,null,null,null,null,null,null,null,null,null,null,null,null,null,null,null,null,null,null,null,null,null,null,null,null,null,null,null,null,null,null,null,null,null,null,null,null,null,null,null,null,null,null,null,null,null,null,null,28]
[null,null,null,null,null,null,null,null,null,null,null,null,"Hiver",null,"2024-02-26",9,2,null,null,null,null,null,null,null,null,null,null,null,null,null,null,null,null,null,null,null,null,null,null,null,null,null,null,null,null,null,null,null,null,null,null,null,null,null,null,null,null,null,null,null,null,null,null,null,null,null,null,null,null,null,null,null,null,null,null,null,null,null,null,null,null,null,null,null,null,null,null,null,null,null,null,null,null,null,null,null,null,null,null,null,null,null,null,null,null,null,null,null,null,null,null,null,null,null,null,null,null,null,null,null,null,null,null,null,null,null,null,null,null,null,null,null,null,null,null,null,null,null,null,null,null,null,null,null,null,null,null,null,null,null,null,null,null,null,null,null,null,null,null,null,34,null,null,null,null,null,null,null,null,null,null,null,null,null,null,null,null,null,null,null,null,null,null,null,null,null,null,null,null,null,null,null,null,null,null,null,null,null,null,null,null,null,null,null,null,null,null,null,null,null,null,null,null,null,null,null,null,null,null,null,null,null,null,null,null,null,29]
[null,null,null,null,null,null,null,null,null,null,null,null,"Printemps",null,"2024-04-22",17,2,null,null,null,null,null,null,null,null,null,null,null,null,null,null,null,null,null,null,null,null,null,null,null,null,null,null,null,null,null,null,null,null,null,null,null,null,null,null,null,null,null,null,null,null,null,null,null,null,null,null,null,null,null,null,null,null,null,null,null,null,null,null,null,null,null,null,null,null,null,null,null,null,null,null,null,null,null,null,null,null,null,null,null,null,null,null,null,null,null,null,null,null,null,null,null,null,null,null,null,null,null,null,null,null,null,null,null,null,null,null,null,null,null,null,null,null,null,null,null,null,null,null,null,null,null,null,null,null,null,null,null,null,null,null,null,null,null,null,null,null,null,null,null,35,null,null,null,null,null,null,null,null,null,null,null,null,null,null,null,null,null,null,null,null,null,null,null,null,null,null,null,null,null,null,null,null,null,null,null,null,null,null,null,null,null,null,null,null,null,null,null,null,null,null,null,null,null,null,null,null,null,null,null,null,null,null,null,null,null,30]
[null,null,null,null,null,null,null,null,null,null,null,null,null,null,null,null,null,null,null,null,null,null,null,null,null,null,null,null,null,null,null,null,null,null,null,null,null,null,null,null,null,null,null,null,null,null,null,null,null,null,null,null,null,null,null,null,null,null,null,null,null,null,null,null,null,null,null,null,null,null,null,null,null,null,null,null,null,null,null,null,null,null,null,null,null,null,null,null,null,null,null,null,null,null,null,null,null,null,null,null,null,null,null,null,null,null,null,null,null,null,null,null,null,null,null,null,null,null,null,null,null,null,null,null,null,null,null,null,null,null,null,null,null,null,null,null,null,null,null,null,null,null,null,null,null,null,null,null,null,null,null,null,null,null,null,null,null,null,null,null,36,null,null,null,null,null,null,null,null,null,null,null,null,null,null,null,null,null,null,null,null,null,null,null,null,null,null,null,null,null,null,null,null,null,null,null,null,null,null,null,null,null,null,null,null,null,null,null,null,null,null,null,null,null,null,null,null,null,null,null,null,null,null,null,null,null,31]
[null,null,null,null,null,null,null,null,null,null,null,null,null,null,null,null,null,null,null,null,null,null,null,null,null,null,null,null,null,null,null,null,null,null,null,null,null,null,null,null,null,null,null,null,null,null,null,null,null,null,null,null,null,null,null,null,null,null,null,null,null,null,null,null,null,null,null,null,null,null,null,null,null,null,null,null,null,null,null,null,null,null,null,null,null,null,null,null,null,null,null,null,null,null,null,null,null,null,null,null,null,null,null,null,null,null,null,null,null,null,null,null,null,null,null,null,null,null,null,null,null,null,null,null,null,null,null,null,null,null,null,null,null,null,null,null,null,null,null,null,null,null,null,null,null,null,null,null,null,null,null,null,null,null,null,null,null,null,null,null,37,null,null,null,null,null,null,null,null,null,null,null,null,null,null,null,null,null,null,null,null,null,null,null,null,null,null,null,null,null,null,null,null,null,null,null,null,null,null,null,null,null,null,null,null,null,null,null,null,null,null,null,null,null,null,null,null,null,null,null,null,null,null,null,null,null,32]
[null,null,null,null,null,null,null,null,null,null,null,null,"Liste niveaux programmation APSA",null,null,null,null,null,null,null,null,null,null,null,null,null,null,null,null,null,null,null,null,null,null,null,null,null,null,null,null,null,null,null,null,null,null,null,null,null,null,null,null,null,null,null,null,null,null,null,null,null,null,null,null,null,null,null,null,null,null,null,null,null,null,null,null,null,null,null,null,null,null,null,null,null,null,null,null,null,null,null,null,null,null,null,null,null,null,null,null,null,null,null,null,null,null,null,null,null,null,null,null,null,null,null,null,null,null,null,null,null,null,null,null,null,null,null,null,null,null,null,null,null,null,null,null,null,null,null,null,null,null,null,null,null,null,null,null,null,null,null,null,null,null,null,null,null,null,null,38,null,null,null,null,null,null,null,null,null,null,null,null,null,null,null,null,null,null,null,null,null,null,null,null,null,null,null,null,null,null,null,null,null,null,null,null,null,null,null,null,null,null,null,null,null,null,null,null,null,null,null,null,null,null,null,null,null,null,null,null,null,null,null,null,null,33]
[null,null,null,null,null,null,null,null,null,null,null,null,null,null,null,null,null,null,null,null,null,null,null,null,null,null,null,null,null,null,null,null,null,null,null,null,null,null,null,null,null,null,null,null,null,null,null,null,null,null,null,null,null,null,null,null,null,null,null,null,null,null,null,null,null,null,null,null,null,null,null,null,null,null,null,null,null,null,null,null,null,null,null,null,null,null,null,null,null,null,null,null,null,null,null,null,null,null,null,null,null,null,null,null,null,null,null,null,null,null,null,null,null,null,null,null,null,null,null,null,null,null,null,null,null,null,null,null,null,null,null,null,null,null,null,null,null,null,null,null,null,null,null,null,null,null,null,null,null,null,null,null,null,null,null,null,null,null,null,null,39,null,null,null,null,null,null,null,null,null,null,null,null,null,null,null,null,null,null,null,null,null,null,null,null,null,null,null,null,null,null,null,null,null,null,null,null,null,null,null,null,null,null,null,null,null,null,null,null,null,null,null,null,null,null,null,null,null,null,null,null,null,null,null,null,null,34]
[null,null,null,null,null,null,null,null,null,null,null,null,6,null,null,null,null,null,null,null,null,null,null,null,null,null,null,null,null,null,null,null,null,null,null,null,null,null,null,null,null,null,null,null,null,null,null,null,null,null,null,null,null,null,null,null,null,null,null,null,null,null,null,null,null,null,null,null,null,null,null,null,null,null,null,null,null,null,null,null,null,null,null,null,null,null,null,null,null,null,null,null,null,null,null,null,null,null,null,null,null,null,null,null,null,null,null,null,null,null,null,null,null,null,null,null,null,null,null,null,null,null,null,null,null,null,null,null,null,null,null,null,null,null,null,null,null,null,null,null,null,null,null,null,null,null,null,null,null,null,null,null,null,null,null,null,null,null,null,null,40,null,null,null,null,null,null,null,null,null,null,null,null,null,null,null,null,null,null,null,null,null,null,null,null,null,null,null,null,null,null,null,null,null,null,null,null,null,null,null,null,null,null,null,null,null,null,null,null,null,null,null,null,null,null,null,null,null,null,null,null,null,null,null,null,null,35]
[null,null,null,null,null,null,null,null,null,null,null,null,null,null,null,null,null,null,null,null,null,null,null,null,null,null,null,null,null,null,null,null,null,null,null,null,null,null,null,null,null,null,null,null,null,null,null,null,null,null,null,null,null,null,null,null,null,null,null,null,null,null,null,null,null,null,null,null,null,null,null,null,null,null,null,null,null,null,null,null,null,null,null,null,null,null,null,null,null,null,null,null,null,null,null,null,null,null,null,null,null,null,null,null,null,null,null,null,null,null,null,null,null,null,null,null,null,null,null,null,null,null,null,null,null,null,null,null,null,null,null,null,null,null,null,null,null,null,null,null,null,null,null,null,null,null,null,null,null,null,null,null,null,null,null,null,null,null,null,null,41,null,null,null,null,null,null,null,null,null,null,null,null,null,null,null,null,null,null,null,null,null,null,null,null,null,null,null,null,null,null,null,null,null,null,null,null,null,null,null,null,null,null,null,null,null,null,null,null,null,null,null,null,null,null,null,null,null,null,null,null,null,null,null,null,null,36]
[null,null,null,null,null,null,null,null,null,null,null,null,5,null,null,null,null,null,null,null,null,null,null,null,null,null,null,null,null,null,null,null,null,null,null,null,null,null,null,null,null,null,null,null,null,null,null,null,null,null,null,null,null,null,null,null,null,null,null,null,null,null,null,null,null,null,null,null,null,null,null,null,null,null,null,null,null,null,null,null,null,null,null,null,null,null,null,null,null,null,null,null,null,null,null,null,null,null,null,null,null,null,null,null,null,null,null,null,null,null,null,null,null,null,null,null,null,null,null,null,null,null,null,null,null,null,null,null,null,null,null,null,null,null,null,null,null,null,null,null,null,null,null,null,null,null,null,null,null,null,null,null,null,null,null,null,null,null,null,null,42,null,null,null,null,null,null,null,null,null,null,null,null,null,null,null,null,null,null,null,null,null,null,null,null,null,null,null,null,null,null,null,null,null,null,null,null,null,null,null,null,null,null,null,null,null,null,null,null,null,null,null,null,null,null,null,null,null,null,null,null,null,null,null,null,null,37]
[null,null,null,null,null,null,null,null,null,null,null,null,4,null,null,null,null,null,null,null,null,null,null,null,null,null,null,null,null,null,null,null,null,null,null,null,null,null,null,null,null,null,null,null,null,null,null,null,null,null,null,null,null,null,null,null,null,null,null,null,null,null,null,null,null,null,null,null,null,null,null,null,null,null,null,null,null,null,null,null,null,null,null,null,null,null,null,null,null,null,null,null,null,null,null,null,null,null,null,null,null,null,null,null,null,null,null,null,null,null,null,null,null,null,null,null,null,null,null,null,null,null,null,null,null,null,null,null,null,null,null,null,null,null,null,null,null,null,null,null,null,null,null,null,null,null,null,null,null,null,null,null,null,null,null,null,null,null,null,null,43,null,null,null,null,null,null,null,null,null,null,null,null,null,null,null,null,null,null,null,null,null,null,null,null,null,null,null,null,null,null,null,null,null,null,null,null,null,null,null,null,null,null,null,null,null,null,null,null,null,null,null,null,null,null,null,null,null,null,null,null,null,null,null,null,null,38]
[null,null,null,null,null,null,null,null,null,null,null,null,3,null,null,null,null,null,null,null,null,null,null,null,null,null,null,null,null,null,null,null,null,null,null,null,null,null,null,null,null,null,null,null,null,null,null,null,null,null,null,null,null,null,null,null,null,null,null,null,null,null,null,null,null,null,null,null,null,null,null,null,null,null,null,null,null,null,null,null,null,null,null,null,null,null,null,null,null,null,null,null,null,null,null,null,null,null,null,null,null,null,null,null,null,null,null,null,null,null,null,null,null,null,null,null,null,null,null,null,null,null,null,null,null,null,null,null,null,null,null,null,null,null,null,null,null,null,null,null,null,null,null,null,null,null,null,null,null,null,null,null,null,null,null,null,null,null,null,null,44,null,null,null,null,null,null,null,null,null,null,null,null,null,null,null,null,null,null,null,null,null,null,null,null,null,null,null,null,null,null,null,null,null,null,null,null,null,null,null,null,null,null,null,null,null,null,null,null,null,null,null,null,null,null,null,null,null,null,null,null,null,null,null,null,null,39]
[null,null,null,null,null,null,null,null,null,null,null,null,null,null,null,null,null,null,null,null,null,null,null,null,null,null,null,null,null,null,null,null,null,null,null,null,null,null,null,null,null,null,null,null,null,null,null,null,null,null,null,null,null,null,null,null,null,null,null,null,null,null,null,null,null,null,null,null,null,null,null,null,null,null,null,null,null,null,null,null,null,null,null,null,null,null,null,null,null,null,null,null,null,null,null,null,null,null,null,null,null,null,null,null,null,null,null,null,null,null,null,null,null,null,null,null,null,null,null,null,null,null,null,null,null,null,null,null,null,null,null,null,null,null,null,null,null,null,null,null,null,null,null,null,null,null,null,null,null,null,null,null,null,null,null,null,null,null,null,null,45,null,null,null,null,null,null,null,null,null,null,null,null,null,null,null,null,null,null,null,null,null,null,null,null,null,null,null,null,null,null,null,null,null,null,null,null,null,null,null,null,null,null,null,null,null,null,null,null,null,null,null,null,null,null,null,null,null,null,null,null,null,null,null,null,null,40]
[null,null,null,null,null,null,null,null,null,null,null,null,2,null,null,null,null,null,null,null,null,null,null,null,null,null,null,null,null,null,null,null,null,null,null,null,null,null,null,null,null,null,null,null,null,null,null,null,null,null,null,null,null,null,null,null,null,null,null,null,null,null,null,null,null,null,null,null,null,null,null,null,null,null,null,null,null,null,null,null,null,null,null,null,null,null,null,null,null,null,null,null,null,null,null,null,null,null,null,null,null,null,null,null,null,null,null,null,null,null,null,null,null,null,null,null,null,null,null,null,null,null,null,null,null,null,null,null,null,null,null,null,null,null,null,null,null,null,null,null,null,null,null,null,null,null,null,null,null,null,null,null,null,null,null,null,null,null,null,null,46,null,null,null,null,null,null,null,null,null,null,null,null,null,null,null,null,null,null,null,null,null,null,null,null,null,null,null,null,null,null,null,null,null,null,null,null,null,null,null,null,null,null,null,null,null,null,null,null,null,null,null,null,null,null,null,null,null,null,null,null,null,null,null,null,null,41]
[null,null,null,null,null,null,null,null,null,null,null,null,1,null,null,null,null,null,null,null,null,null,null,null,null,null,null,null,null,null,null,null,null,null,null,null,null,null,null,null,null,null,null,null,null,null,null,null,null,null,null,null,null,null,null,null,null,null,null,null,null,null,null,null,null,null,null,null,null,null,null,null,null,null,null,null,null,null,null,null,null,null,null,null,null,null,null,null,null,null,null,null,null,null,null,null,null,null,null,null,null,null,null,null,null,null,null,null,null,null,null,null,null,null,null,null,null,null,null,null,null,null,null,null,null,null,null,null,null,null,null,null,null,null,null,null,null,null,null,null,null,null,null,null,null,null,null,null,null,null,null,null,null,null,null,null,null,null,null,null,47,null,null,null,null,null,null,null,null,null,null,null,null,null,null,null,null,null,null,null,null,null,null,null,null,null,null,null,null,null,null,null,null,null,null,null,null,null,null,null,null,null,null,null,null,null,null,null,null,null,null,null,null,null,null,null,null,null,null,null,null,null,null,null,null,null,42]
[null,null,null,null,null,null,null,null,null,null,null,null,"T",null,null,null,null,null,null,null,null,null,null,null,null,null,null,null,null,null,null,null,null,null,null,null,null,null,null,null,null,null,null,null,null,null,null,null,null,null,null,null,null,null,null,null,null,null,null,null,null,null,null,null,null,null,null,null,null,null,null,null,null,null,null,null,null,null,null,null,null,null,null,null,null,null,null,null,null,null,null,null,null,null,null,null,null,null,null,null,null,null,null,null,null,null,null,null,null,null,null,null,null,null,null,null,null,null,null,null,null,null,null,null,null,null,null,null,null,null,null,null,null,null,null,null,null,null,null,null,null,null,null,null,null,null,null,null,null,null,null,null,null,null,null,null,null,null,null,null,48,null,null,null,null,null,null,null,null,null,null,null,null,null,null,null,null,null,null,null,null,null,null,null,null,null,null,null,null,null,null,null,null,null,null,null,null,null,null,null,null,null,null,null,null,null,null,null,null,null,null,null,null,null,null,null,null,null,null,null,null,null,null,null,null,null,43]
[null,null,null,null,null,null,null,null,null,null,null,null,null,null,null,null,null,null,null,null,null,null,null,null,null,null,null,null,null,null,null,null,null,null,null,null,null,null,null,null,null,null,null,null,null,null,null,null,null,null,null,null,null,null,null,null,null,null,null,null,null,null,null,null,null,null,null,null,null,null,null,null,null,null,null,null,null,null,null,null,null,null,null,null,null,null,null,null,null,null,null,null,null,null,null,null,null,null,null,null,null,null,null,null,null,null,null,null,null,null,null,null,null,null,null,null,null,null,null,null,null,null,null,null,null,null,null,null,null,null,null,null,null,null,null,null,null,null,null,null,null,null,null,null,null,null,null,null,null,null,null,null,null,null,null,null,null,null,null,null,49,null,null,null,null,null,null,null,null,null,null,null,null,null,null,null,null,null,null,null,null,null,null,null,null,null,null,null,null,null,null,null,null,null,null,null,null,null,null,null,null,null,null,null,null,null,null,null,null,null,null,null,null,null,null,null,null,null,null,null,null,null,null,null,null,null,44]
[null,null,null,null,null,null,null,null,null,null,null,null,2,null,null,null,null,null,null,null,null,null,null,null,null,null,null,null,null,null,null,null,null,null,null,null,null,null,null,null,null,null,null,null,null,null,null,null,null,null,null,null,null,null,null,null,null,null,null,null,null,null,null,null,null,null,null,null,null,null,null,null,null,null,null,null,null,null,null,null,null,null,null,null,null,null,null,null,null,null,null,null,null,null,null,null,null,null,null,null,null,null,null,null,null,null,null,null,null,null,null,null,null,null,null,null,null,null,null,null,null,null,null,null,null,null,null,null,null,null,null,null,null,null,null,null,null,null,null,null,null,null,null,null,null,null,null,null,null,null,null,null,null,null,null,null,null,null,null,null,50,null,null,null,null,null,null,null,null,null,null,null,null,null,null,null,null,null,null,null,null,null,null,null,null,null,null,null,null,null,null,null,null,null,null,null,null,null,null,null,null,null,null,null,null,null,null,null,null,null,null,null,null,null,null,null,null,null,null,null,null,null,null,null,null,null,45]
[null,null,null,null,null,null,null,null,null,null,null,null,1,null,null,null,null,null,null,null,null,null,null,null,null,null,null,null,null,null,null,null,null,null,null,null,null,null,null,null,null,null,null,null,null,null,null,null,null,null,null,null,null,null,null,null,null,null,null,null,null,null,null,null,null,null,null,null,null,null,null,null,null,null,null,null,null,null,null,null,null,null,null,null,null,null,null,null,null,null,null,null,null,null,null,null,null,null,null,null,null,null,null,null,null,null,null,null,null,null,null,null,null,null,null,null,null,null,null,null,null,null,null,null,null,null,null,null,null,null,null,null,null,null,null,null,null,null,null,null,null,null,null,null,null,null,null,null,null,null,null,null,null,null,null,null,null,null,null,null,51,null,null,null,null,null,null,null,null,null,null,null,null,null,null,null,null,null,null,null,null,null,null,null,null,null,null,null,null,null,null,null,null,null,null,null,null,null,null,null,null,null,null,null,null,null,null,null,null,null,null,null,null,null,null,null,null,null,null,null,null,null,null,null,null,null,46]
[null,null,null,null,null,null,null,null,null,null,null,null,"T",null,null,null,null,null,null,null,null,null,null,null,null,null,null,null,null,null,null,null,null,null,null,null,null,null,null,null,null,null,null,null,null,null,null,null,null,null,null,null,null,null,null,null,null,null,null,null,null,null,null,null,null,null,null,null,null,null,null,null,null,null,null,null,null,null,null,null,null,null,null,null,null,null,null,null,null,null,null,null,null,null,null,null,null,null,null,null,null,null,null,null,null,null,null,null,null,null,null,null,null,null,null,null,null,null,null,null,null,null,null,null,null,null,null,null,null,null,null,null,null,null,null,null,null,null,null,null,null,null,null,null,null,null,null,null,null,null,null,null,null,null,null,null,null,null,null,null,52,null,null,null,null,null,null,null,null,null,null,null,null,null,null,null,null,null,null,null,null,null,null,null,null,null,null,null,null,null,null,null,null,null,null,null,null,null,null,null,null,null,null,null,null,null,null,null,null,null,null,null,null,null,null,null,null,null,null,null,null,null,null,null,null,null,47]
[null,null,null,null,null,null,null,null,null,null,null,null,"EO 2nde",null,null,null,null,null,null,null,null,null,null,null,null,null,null,null,null,null,null,null,null,null,null,null,null,null,null,null,null,null,null,null,null,null,null,null,null,null,null,null,null,null,null,null,null,null,null,null,null,null,null,null,null,null,null,null,null,null,null,null,null,null,null,null,null,null,null,null,null,null,null,null,null,null,null,null,null,null,null,null,null,null,null,null,null,null,null,null,null,null,null,null,null,null,null,null,null,null,null,null,null,null,null,null,null,null,null,null,null,null,null,null,null,null,null,null,null,null,null,null,null,null,null,null,null,null,null,null,null,null,null,null,null,null,null,null,null,null,null,null,null,null,null,null,null,null,null,null,53,null,null,null,null,null,null,null,null,null,null,null,null,null,null,null,null,null,null,null,null,null,null,null,null,null,null,null,null,null,null,null,null,null,null,null,null,null,null,null,null,null,null,null,null,null,null,null,null,null,null,null,null,null,null,null,null,null,null,null,null,null,null,null,null,null,48]
[null,null,null,null,null,null,null,null,null,null,null,null,"EO 1ère",null,null,null,null,null,null,null,null,null,null,null,null,null,null,null,null,null,null,null,null,null,null,null,null,null,null,null,null,null,null,null,null,null,null,null,null,null,null,null,null,null,null,null,null,null,null,null,null,null,null,null,null,null,null,null,null,null,null,null,null,null,null,null,null,null,null,null,null,null,null,null,null,null,null,null,null,null,null,null,null,null,null,null,null,null,null,null,null,null,null,null,null,null,null,null,null,null,null,null,null,null,null,null,null,null,null,null,null,null,null,null,null,null,null,null,null,null,null,null,null,null,null,null,null,null,null,null,null,null,null,null,null,null,null,null,null,null,null,null,null,null,null,null,null,null,null,null,54,null,null,null,null,null,null,null,null,null,null,null,null,null,null,null,null,null,null,null,null,null,null,null,null,null,null,null,null,null,null,null,null,null,null,null,null,null,null,null,null,null,null,null,null,null,null,null,null,null,null,null,null,null,null,null,null,null,null,null,null,null,null,null,null,null,49]
[null,null,null,null,null,null,null,null,null,null,null,null,"EO Term",null,null,null,null,null,null,null,null,null,null,null,null,null,null,null,null,null,null,null,null,null,null,null,null,null,null,null,null,null,null,null,null,null,null,null,null,null,null,null,null,null,null,null,null,null,null,null,null,null,null,null,null,null,null,null,null,null,null,null,null,null,null,null,null,null,null,null,null,null,null,null,null,null,null,null,null,null,null,null,null,null,null,null,null,null,null,null,null,null,null,null,null,null,null,null,null,null,null,null,null,null,null,null,null,null,null,null,null,null,null,null,null,null,null,null,null,null,null,null,null,null,null,null,null,null,null,null,null,null,null,null,null,null,null,null,null,null,null,null,null,null,null,null,null,null,null,null,55,null,null,null,null,null,null,null,null,null,null,null,null,null,null,null,null,null,null,null,null,null,null,null,null,null,null,null,null,null,null,null,null,null,null,null,null,null,null,null,null,null,null,null,null,null,null,null,null,null,null,null,null,null,null,null,null,null,null,null,null,null,null,null,null,null,50]
[null,null,null,null,null,null,null,null,null,null,null,null,null,null,null,null,null,null,null,null,null,null,null,null,null,null,null,null,null,null,null,null,null,null,null,null,null,null,null,null,null,null,null,null,null,null,null,null,null,null,null,null,null,null,null,null,null,null,null,null,null,null,null,null,null,null,null,null,null,null,null,null,null,null,null,null,null,null,null,null,null,null,null,null,null,null,null,null,null,null,null,null,null,null,null,null,null,null,null,null,null,null,null,null,null,null,null,null,null,null,null,null,null,null,null,null,null,null,null,null,null,null,null,null,null,null,null,null,null,null,null,null,null,null,null,null,null,null,null,null,null,null,null,null,null,null,null,null,null,null,null,null,null,null,null,null,null,null,null,null,56,null,null,null,null,null,null,null,null,null,null,null,null,null,null,null,null,null,null,null,null,null,null,null,null,null,null,null,null,null,null,null,null,null,null,null,null,null,null,null,null,null,null,null,null,null,null,null,null,null,null,null,null,null,null,null,null,null,null,null,null,null,null,null,null,null,51]
[null,null,null,null,null,null,null,null,null,null,null,null,"SPÉC. 1ère",null,null,null,null,null,null,null,null,null,null,null,null,null,null,null,null,null,null,null,null,null,null,null,null,null,null,null,null,null,null,null,null,null,null,null,null,null,null,null,null,null,null,null,null,null,null,null,null,null,null,null,null,null,null,null,null,null,null,null,null,null,null,null,null,null,null,null,null,null,null,null,null,null,null,null,null,null,null,null,null,null,null,null,null,null,null,null,null,null,null,null,null,null,null,null,null,null,null,null,null,null,null,null,null,null,null,null,null,null,null,null,null,null,null,null,null,null,null,null,null,null,null,null,null,null,null,null,null,null,null,null,null,null,null,null,null,null,null,null,null,null,null,null,null,null,null,null,57,null,null,null,null,null,null,null,null,null,null,null,null,null,null,null,null,null,null,null,null,null,null,null,null,null,null,null,null,null,null,null,null,null,null,null,null,null,null,null,null,null,null,null,null,null,null,null,null,null,null,null,null,null,null,null,null,null,null,null,null,null,null,null,null,null,52]
[null,null,null,null,null,null,null,null,null,null,null,null,"SPÉC. Term",null,null,null,null,null,null,null,null,null,null,null,null,null,null,null,null,null,null,null,null,null,null,null,null,null,null,null,null,null,null,null,null,null,null,null,null,null,null,null,null,null,null,null,null,null,null,null,null,null,null,null,null,null,null,null,null,null,null,null,null,null,null,null,null,null,null,null,null,null,null,null,null,null,null,null,null,null,null,null,null,null,null,null,null,null,null,null,null,null,null,null,null,null,null,null,null,null,null,null,null,null,null,null,null,null,null,null,null,null,null,null,null,null,null,null,null,null,null,null,null,null,null,null,null,null,null,null,null,null,null,null,null,null,null,null,null,null,null,null,null,null,null,null,null,null,null,null,58,null,null,null,null,null,null,null,null,null,null,null,null,null,null,null,null,null,null,null,null,null,null,null,null,null,null,null,null,null,null,null,null,null,null,null,null,null,null,null,null,null,null,null,null,null,null,null,null,null,null,null,null,null,null,null,null,null,null,null,null,null,null,null,null,null,53]
[null,null,null,null,null,null,null,null,null,null,null,null,null,null,null,null,null,null,null,null,null,null,null,null,null,null,null,null,null,null,null,null,null,null,null,null,null,null,null,null,null,null,null,null,null,null,null,null,null,null,null,null,null,null,null,null,null,null,null,null,null,null,null,null,null,null,null,null,null,null,null,null,null,null,null,null,null,null,null,null,null,null,null,null,null,null,null,null,null,null,null,null,null,null,null,null,null,null,null,null,null,null,null,null,null,null,null,null,null,null,null,null,null,null,null,null,null,null,null,null,null,null,null,null,null,null,null,null,null,null,null,null,null,null,null,null,null,null,null,null,null,null,null,null,null,null,null,null,null,null,null,null,null,null,null,null,null,null,null,null,59,null,null,null,null,null,null,null,null,null,null,null,null,null,null,null,null,null,null,null,null,null,null,null,null,null,null,null,null,null,null,null,null,null,null,null,null,null,null,null,null,null,null,null,null,null,null,null,null,null,null,null,null,null,null,null,null,null,null,null,null,null,null,null,null,null,54]
[null,null,null,null,null,null,null,null,null,null,null,null,"2 Pro",null,null,null,null,null,null,null,null,null,null,null,null,null,null,null,null,null,null,null,null,null,null,null,null,null,null,null,null,null,null,null,null,null,null,null,null,null,null,null,null,null,null,null,null,null,null,null,null,null,null,null,null,null,null,null,null,null,null,null,null,null,null,null,null,null,null,null,null,null,null,null,null,null,null,null,null,null,null,null,null,null,null,null,null,null,null,null,null,null,null,null,null,null,null,null,null,null,null,null,null,null,null,null,null,null,null,null,null,null,null,null,null,null,null,null,null,null,null,null,null,null,null,null,null,null,null,null,null,null,null,null,null,null,null,null,null,null,null,null,null,null,null,null,null,null,null,null,60,null,null,null,null,null,null,null,null,null,null,null,null,null,null,null,null,null,null,null,null,null,null,null,null,null,null,null,null,null,null,null,null,null,null,null,null,null,null,null,null,null,null,null,null,null,null,null,null,null,null,null,null,null,null,null,null,null,null,null,null,null,null,null,null,null,55]
[null,null,null,null,null,null,null,null,null,null,null,null,"1 Pro",null,null,null,null,null,null,null,null,null,null,null,null,null,null,null,null,null,null,null,null,null,null,null,null,null,null,null,null,null,null,null,null,null,null,null,null,null,null,null,null,null,null,null,null,null,null,null,null,null,null,null,null,null,null,null,null,null,null,null,null,null,null,null,null,null,null,null,null,null,null,null,null,null,null,null,null,null,null,null,null,null,null,null,null,null,null,null,null,null,null,null,null,null,null,null,null,null,null,null,null,null,null,null,null,null,null,null,null,null,null,null,null,null,null,null,null,null,null,null,null,null,null,null,null,null,null,null,null,null,null,null,null,null,null,null,null,null,null,null,null,null,null,null,null,null,null,null,61,null,null,null,null,null,null,null,null,null,null,null,null,null,null,null,null,null,null,null,null,null,null,null,null,null,null,null,null,null,null,null,null,null,null,null,null,null,null,null,null,null,null,null,null,null,null,null,null,null,null,null,null,null,null,null,null,null,null,null,null,null,null,null,null,null,56]
[null,null,null,null,null,null,null,null,null,null,null,null,"T Pro",null,null,null,null,null,null,null,null,null,null,null,null,null,null,null,null,null,null,null,null,null,null,null,null,null,null,null,null,null,null,null,null,null,null,null,null,null,null,null,null,null,null,null,null,null,null,null,null,null,null,null,null,null,null,null,null,null,null,null,null,null,null,null,null,null,null,null,null,null,null,null,null,null,null,null,null,null,null,null,null,null,null,null,null,null,null,null,null,null,null,null,null,null,null,null,null,null,null,null,null,null,null,null,null,null,null,null,null,null,null,null,null,null,null,null,null,null,null,null,null,null,null,null,null,null,null,null,null,null,null,null,null,null,null,null,null,null,null,null,null,null,null,null,null,null,null,null,62,null,null,null,null,null,null,null,null,null,null,null,null,null,null,null,null,null,null,null,null,null,null,null,null,null,null,null,null,null,null,null,null,null,null,null,null,null,null,null,null,null,null,null,null,null,null,null,null,null,null,null,null,null,null,null,null,null,null,null,null,null,null,null,null,null,57]
[null,null,null,null,null,null,null,null,null,null,null,null,"1è année CAP",null,null,null,null,null,null,null,null,null,null,null,null,null,null,null,null,null,null,null,null,null,null,null,null,null,null,null,null,null,null,null,null,null,null,null,null,null,null,null,null,null,null,null,null,null,null,null,null,null,null,null,null,null,null,null,null,null,null,null,null,null,null,null,null,null,null,null,null,null,null,null,null,null,null,null,null,null,null,null,null,null,null,null,null,null,null,null,null,null,null,null,null,null,null,null,null,null,null,null,null,null,null,null,null,null,null,null,null,null,null,null,null,null,null,null,null,null,null,null,null,null,null,null,null,null,null,null,null,null,null,null,null,null,null,null,null,null,null,null,null,null,null,null,null,null,null,null,63,null,null,null,null,null,null,null,null,null,null,null,null,null,null,null,null,null,null,null,null,null,null,null,null,null,null,null,null,null,null,null,null,null,null,null,null,null,null,null,null,null,null,null,null,null,null,null,null,null,null,null,null,null,null,null,null,null,null,null,null,null,null,null,null,null,58]
[null,null,null,null,null,null,null,null,null,null,null,null,"2è année CAP",null,null,null,null,null,null,null,null,null,null,null,null,null,null,null,null,null,null,null,null,null,null,null,null,null,null,null,null,null,null,null,null,null,null,null,null,null,null,null,null,null,null,null,null,null,null,null,null,null,null,null,null,null,null,null,null,null,null,null,null,null,null,null,null,null,null,null,null,null,null,null,null,null,null,null,null,null,null,null,null,null,null,null,null,null,null,null,null,null,null,null,null,null,null,null,null,null,null,null,null,null,null,null,null,null,null,null,null,null,null,null,null,null,null,null,null,null,null,null,null,null,null,null,null,null,null,null,null,null,null,null,null,null,null,null,null,null,null,null,null,null,null,null,null,null,null,null,64,null,null,null,null,null,null,null,null,null,null,null,null,null,null,null,null,null,null,null,null,null,null,null,null,null,null,null,null,null,null,null,null,null,null,null,null,null,null,null,null,null,null,null,null,null,null,null,null,null,null,null,null,null,null,null,null,null,null,null,null,null,null,null,null,null,59]
[null,null,null,null,null,null,null,null,null,null,null,null,null,null,null,null,null,null,null,null,null,null,null,null,null,null,null,null,null,null,null,null,null,null,null,null,null,null,null,null,null,null,null,null,null,null,null,null,null,null,null,null,null,null,null,null,null,null,null,null,null,null,null,null,null,null,null,null,null,null,null,null,null,null,null,null,null,null,null,null,null,null,null,null,null,null,null,null,null,null,null,null,null,null,null,null,null,null,null,null,null,null,null,null,null,null,null,null,null,null,null,null,null,null,null,null,null,null,null,null,null,null,null,null,null,null,null,null,null,null,null,null,null,null,null,null,null,null,null,null,null,null,null,null,null,null,null,null,null,null,null,null,null,null,null,null,null,null,null,null,65,null,null,null,null,null,null,null,null,null,null,null,null,null,null,null,null,null,null,null,null,null,null,null,null,null,null,null,null,null,null,null,null,null,null,null,null,null,null,null,null,null,null,null,null,null,null,null,null,null,null,null,null,null,null,null,null,null,null,null,null,null,null,null,null,null,60]
[null,null,null,null,null,null,null,null,null,null,null,null,"2 Pro",null,null,null,null,null,null,null,null,null,null,null,null,null,null,null,null,null,null,null,null,null,null,null,null,null,null,null,null,null,null,null,null,null,null,null,null,null,null,null,null,null,null,null,null,null,null,null,null,null,null,null,null,null,null,null,null,null,null,null,null,null,null,null,null,null,null,null,null,null,null,null,null,null,null,null,null,null,null,null,null,null,null,null,null,null,null,null,null,null,null,null,null,null,null,null,null,null,null,null,null,null,null,null,null,null,null,null,null,null,null,null,null,null,null,null,null,null,null,null,null,null,null,null,null,null,null,null,null,null,null,null,null,null,null,null,null,null,null,null,null,null,null,null,null,null,null,null,66,null,null,null,null,null,null,null,null,null,null,null,null,null,null,null,null,null,null,null,null,null,null,null,null,null,null,null,null,null,null,null,null,null,null,null,null,null,null,null,null,null,null,null,null,null,null,null,null,null,null,null,null,null,null,null,null,null,null,null,null,null,null,null,null,null,61]
[null,null,null,null,null,null,null,null,null,null,null,null,"1 Pro",null,null,null,null,null,null,null,null,null,null,null,null,null,null,null,null,null,null,null,null,null,null,null,null,null,null,null,null,null,null,null,null,null,null,null,null,null,null,null,null,null,null,null,null,null,null,null,null,null,null,null,null,null,null,null,null,null,null,null,null,null,null,null,null,null,null,null,null,null,null,null,null,null,null,null,null,null,null,null,null,null,null,null,null,null,null,null,null,null,null,null,null,null,null,null,null,null,null,null,null,null,null,null,null,null,null,null,null,null,null,null,null,null,null,null,null,null,null,null,null,null,null,null,null,null,null,null,null,null,null,null,null,null,null,null,null,null,null,null,null,null,null,null,null,null,null,null,67,null,null,null,null,null,null,null,null,null,null,null,null,null,null,null,null,null,null,null,null,null,null,null,null,null,null,null,null,null,null,null,null,null,null,null,null,null,null,null,null,null,null,null,null,null,null,null,null,null,null,null,null,null,null,null,null,null,null,null,null,null,null,null,null,null,62]
[null,null,null,null,null,null,null,null,null,null,null,null,"T Pro",null,null,null,null,null,null,null,null,null,null,null,null,null,null,null,null,null,null,null,null,null,null,null,null,null,null,null,null,null,null,null,null,null,null,null,null,null,null,null,null,null,null,null,null,null,null,null,null,null,null,null,null,null,null,null,null,null,null,null,null,null,null,null,null,null,null,null,null,null,null,null,null,null,null,null,null,null,null,null,null,null,null,null,null,null,null,null,null,null,null,null,null,null,null,null,null,null,null,null,null,null,null,null,null,null,null,null,null,null,null,null,null,null,null,null,null,null,null,null,null,null,null,null,null,null,null,null,null,null,null,null,null,null,null,null,null,null,null,null,null,null,null,null,null,null,null,null,68,null,null,null,null,null,null,null,null,null,null,null,null,null,null,null,null,null,null,null,null,null,null,null,null,null,null,null,null,null,null,null,null,null,null,null,null,null,null,null,null,null,null,null,null,null,null,null,null,null,null,null,null,null,null,null,null,null,null,null,null,null,null,null,null,null,63]
[null,null,null,null,null,null,null,null,null,null,null,null,null,null,null,null,null,null,null,null,null,null,null,null,null,null,null,null,null,null,null,null,null,null,null,null,null,null,null,null,null,null,null,null,null,null,null,null,null,null,null,null,null,null,null,null,null,null,null,null,null,null,null,null,null,null,null,null,null,null,null,null,null,null,null,null,null,null,null,null,null,null,null,null,null,null,null,null,null,null,null,null,null,null,null,null,null,null,null,null,null,null,null,null,null,null,null,null,null,null,null,null,null,null,null,null,null,null,null,null,null,null,null,null,null,null,null,null,null,null,null,null,null,null,null,null,null,null,null,null,null,null,null,null,null,null,null,null,null,null,null,null,null,null,null,null,null,null,null,null,69,null,null,null,null,null,null,null,null,null,null,null,null,null,null,null,null,null,null,null,null,null,null,null,null,null,null,null,null,null,null,null,null,null,null,null,null,null,null,null,null,null,null,null,null,null,null,null,null,null,null,null,null,null,null,null,null,null,null,null,null,null,null,null,null,null,64]
[null,null,null,null,null,null,null,null,null,null,null,null,null,null,null,null,null,null,null,null,null,null,null,null,null,null,null,null,null,null,null,null,null,null,null,null,null,null,null,null,null,null,null,null,null,null,null,null,null,null,null,null,null,null,null,null,null,null,null,null,null,null,null,null,null,null,null,null,null,null,null,null,null,null,null,null,null,null,null,null,null,null,null,null,null,null,null,null,null,null,null,null,null,null,null,null,null,null,null,null,null,null,null,null,null,null,null,null,null,null,null,null,null,null,null,null,null,null,null,null,null,null,null,null,null,null,null,null,null,null,null,null,null,null,null,null,null,null,null,null,null,null,null,null,null,null,null,null,null,null,null,null,null,null,null,null,null,null,null,null,70,null,null,null,null,null,null,null,null,null,null,null,null,null,null,null,null,null,null,null,null,null,null,null,null,null,null,null,null,null,null,null,null,null,null,null,null,null,null,null,null,null,null,null,null,null,null,null,null,null,null,null,null,null,null,null,null,null,null,null,null,null,null,null,null,null,65]
[null,null,null,null,null,null,null,null,null,null,null,null,null,null,null,null,null,null,null,null,null,null,null,null,null,null,null,null,null,null,null,null,null,null,null,null,null,null,null,null,null,null,null,null,null,null,null,null,null,null,null,null,null,null,null,null,null,null,null,null,null,null,null,null,null,null,null,null,null,null,null,null,null,null,null,null,null,null,null,null,null,null,null,null,null,null,null,null,null,null,null,null,null,null,null,null,null,null,null,null,null,null,null,null,null,null,null,null,null,null,null,null,null,null,null,null,null,null,null,null,null,null,null,null,null,null,null,null,null,null,null,null,null,null,null,null,null,null,null,null,null,null,null,null,null,null,null,null,null,null,null,null,null,null,null,null,null,null,null,null,71,null,null,null,null,null,null,null,null,null,null,null,null,null,null,null,null,null,null,null,null,null,null,null,null,null,null,null,null,null,null,null,null,null,null,null,null,null,null,null,null,null,null,null,null,null,null,null,null,null,null,null,null,null,null,null,null,null,null,null,null,null,null,null,null,null,66]
[null,null,null,null,null,null,null,null,null,null,null,null,null,null,null,null,null,null,null,null,null,null,null,null,null,null,null,null,null,null,null,null,null,null,null,null,null,null,null,null,null,null,null,null,null,null,null,null,null,null,null,null,null,null,null,null,null,null,null,null,null,null,null,null,null,null,null,null,null,null,null,null,null,null,null,null,null,null,null,null,null,null,null,null,null,null,null,null,null,null,null,null,null,null,null,null,null,null,null,null,null,null,null,null,null,null,null,null,null,null,null,null,null,null,null,null,null,null,null,null,null,null,null,null,null,null,null,null,null,null,null,null,null,null,null,null,null,null,null,null,null,null,null,null,null,null,null,null,null,null,null,null,null,null,null,null,null,null,null,null,72,null,null,null,null,null,null,null,null,null,null,null,null,null,null,null,null,null,null,null,null,null,null,null,null,null,null,null,null,null,null,null,null,null,null,null,null,null,null,null,null,null,null,null,null,null,null,null,null,null,null,null,null,null,null,null,null,null,null,null,null,null,null,null,null,null,{"$f":"1+HS172","v":67}]
[null,null,null,null,null,null,null,null,null,null,null,null,null,null,null,null,null,null,null,null,null,null,null,null,null,null,null,null,null,null,null,null,null,null,null,null,null,null,null,null,null,null,null,null,null,null,null,null,null,null,null,null,null,null,null,null,null,null,null,null,null,null,null,null,null,null,null,null,null,null,null,null,null,null,null,null,null,null,null,null,null,null,null,null,null,null,null,null,null,null,null,null,null,null,null,null,null,null,null,null,null,null,null,null,null,null,null,null,null,null,null,null,null,null,null,null,null,null,null,null,null,null,null,null,null,null,null,null,null,null,null,null,null,null,null,null,null,null,null,null,null,null,null,null,null,null,null,null,null,null,null,null,null,null,null,null,null,null,null,null,73,null,null,null,null,null,null,null,null,null,null,null,null,null,null,null,null,null,null,null,null,null,null,null,null,null,null,null,null,null,null,null,null,null,null,null,null,null,null,null,null,null,null,null,null,null,null,null,null,null,null,null,null,null,null,null,null,null,null,null,null,null,null,null,null,null,68]
[null,null,null,null,null,null,null,null,null,null,null,null,null,null,null,null,null,null,null,null,null,null,null,null,null,null,null,null,null,null,null,null,null,null,null,null,null,null,null,null,null,null,null,null,null,null,null,null,null,null,null,null,null,null,null,null,null,null,null,null,null,null,null,null,null,null,null,null,null,null,null,null,null,null,null,null,null,null,null,null,null,null,null,null,null,null,null,null,null,null,null,null,null,null,null,null,null,null,null,null,null,null,null,null,null,null,null,null,null,null,null,null,null,null,null,null,null,null,null,null,null,null,null,null,null,null,null,null,null,null,null,null,null,null,null,null,null,null,null,null,null,null,null,null,null,null,null,null,null,null,null,null,null,null,null,null,null,null,null,null,74,null,null,null,null,null,null,null,null,null,null,null,null,null,null,null,null,null,null,null,null,null,null,null,null,null,null,null,null,null,null,null,null,null,null,null,null,null,null,null,null,null,null,null,null,null,null,null,null,null,null,null,null,null,null,null,null,null,null,null,null,null,null,null,null,null,69]
[null,null,null,null,null,null,null,null,null,null,null,null,null,null,null,null,null,null,null,null,null,null,null,null,null,null,null,null,null,null,null,null,null,null,null,null,null,null,null,null,null,null,null,null,null,null,null,null,null,null,null,null,null,null,null,null,null,null,null,null,null,null,null,null,null,null,null,null,null,null,null,null,null,null,null,null,null,null,null,null,null,null,null,null,null,null,null,null,null,null,null,null,null,null,null,null,null,null,null,null,null,null,null,null,null,null,null,null,null,null,null,null,null,null,null,null,null,null,null,null,null,null,null,null,null,null,null,null,null,null,null,null,null,null,null,null,null,null,null,null,null,null,null,null,null,null,null,null,null,null,null,null,null,null,null,null,null,null,null,null,75,null,null,null,null,null,null,null,null,null,null,null,null,null,null,null,null,null,null,null,null,null,null,null,null,null,null,null,null,null,null,null,null,null,null,null,null,null,null,null,null,null,null,null,null,null,null,null,null,null,null,null,null,null,null,null,null,null,null,null,null,null,null,null,null,null,70]
[null,null,null,null,null,null,null,null,null,null,null,null,null,null,null,null,null,null,null,null,null,null,null,null,null,null,null,null,null,null,null,null,null,null,null,null,null,null,null,null,null,null,null,null,null,null,null,null,null,null,null,null,null,null,null,null,null,null,null,null,null,null,null,null,null,null,null,null,null,null,null,null,null,null,null,null,null,null,null,null,null,null,null,null,null,null,null,null,null,null,null,null,null,null,null,null,null,null,null,null,null,null,null,null,null,null,null,null,null,null,null,null,null,null,null,null,null,null,null,null,null,null,null,null,null,null,null,null,null,null,null,null,null,null,null,null,null,null,null,null,null,null,null,null,null,null,null,null,null,null,null,null,null,null,null,null,null,null,null,null,"FIN",null,null,null,null,null,null,null,null,null,null,null,null,null,null,null,null,null,null,null,null,null,null,null,null,null,null,null,null,null,null,null,null,null,null,null,null,null,null,null,null,null,null,null,null,null,null,null,null,null,null,null,null,null,null,null,null,null,null,null,null,null,null,null,null,null,71]
[null,null,null,null,null,null,null,null,null,null,null,null,null,null,null,null,null,null,null,null,null,null,null,null,null,null,null,null,null,null,null,null,null,null,null,null,null,null,null,null,null,null,null,null,null,null,null,null,null,null,null,null,null,null,null,null,null,null,null,null,null,null,null,null,null,null,null,null,null,null,null,null,null,null,null,null,null,null,null,null,null,null,null,null,null,null,null,null,null,null,null,null,null,null,null,null,null,null,null,null,null,null,null,null,null,null,null,null,null,null,null,null,null,null,null,null,null,null,null,null,null,null,null,null,null,null,null,null,null,null,null,null,null,null,null,null,null,null,null,null,null,null,null,null,null,null,null,null,null,null,null,null,null,null,null,null,null,null,null,null,null,null,null,null,null,null,null,null,null,null,null,null,null,null,null,null,null,null,null,null,null,null,null,null,null,null,null,null,null,null,null,null,null,null,null,null,null,null,null,null,null,null,null,null,null,null,null,null,null,null,null,null,null,null,null,null,null,null,null,null,null,null,null,null,null,null,72]
[null,null,null,null,null,null,null,null,null,null,null,null,null,null,null,null,null,null,null,null,null,null,null,null,null,null,null,null,null,null,null,null,null,null,null,null,null,null,null,null,null,null,null,null,null,null,null,null,null,null,null,null,null,null,null,null,null,null,null,null,null,null,null,null,null,null,null,null,null,null,null,null,null,null,null,null,null,null,null,null,null,null,null,null,null,null,null,null,null,null,null,null,null,null,null,null,null,null,null,null,null,null,null,null,null,null,null,null,null,null,null,null,null,null,null,null,null,null,null,null,null,null,null,null,null,null,null,null,null,null,null,null,null,null,null,null,null,null,null,null,null,null,null,null,null,null,null,null,null,null,null,null,null,null,null,null,null,null,null,null,null,null,null,null,null,null,null,null,null,null,null,null,null,null,null,null,null,null,null,null,null,null,null,null,null,null,null,null,null,null,null,null,null,null,null,null,null,null,null,null,null,null,null,null,null,null,null,null,null,null,null,null,null,null,null,null,null,null,null,null,null,null,null,null,null,null,73]
[null,null,null,null,null,null,null,null,null,null,null,null,null,null,null,null,null,null,null,null,null,null,null,null,null,null,null,null,null,null,null,null,null,null,null,null,null,null,null,null,null,null,null,null,null,null,null,null,null,null,null,null,null,null,null,null,null,null,null,null,null,null,null,null,null,null,null,null,null,null,null,null,null,null,null,null,null,null,null,null,null,null,null,null,null,null,null,null,null,null,null,null,null,null,null,null,null,null,null,null,null,null,null,null,null,null,null,null,null,null,null,null,null,null,null,null,null,null,null,null,null,null,null,null,null,null,null,null,null,null,null,null,null,null,null,null,null,null,null,null,null,null,null,null,null,null,null,null,null,null,null,null,null,null,null,null,null,null,null,null,null,null,null,null,null,null,null,null,null,null,null,null,null,null,null,null,null,null,null,null,null,null,null,null,null,null,null,null,null,null,null,null,null,null,null,null,null,null,null,null,null,null,null,null,null,null,null,null,null,null,null,null,null,null,null,null,null,null,null,null,null,null,null,null,null,null,74]
[null,null,null,null,null,null,null,null,null,null,null,null,null,null,null,null,null,null,null,null,null,null,null,null,null,null,null,null,null,null,null,null,null,null,null,null,null,null,null,null,null,null,null,null,null,null,null,null,null,null,null,null,null,null,null,null,null,null,null,null,null,null,null,null,null,null,null,null,null,null,null,null,null,null,null,null,null,null,null,null,null,null,null,null,null,null,null,null,null,null,null,null,null,null,null,null,null,null,null,null,null,null,null,null,null,null,null,null,null,null,null,null,null,null,null,null,null,null,null,null,null,null,null,null,null,null,null,null,null,null,null,null,null,null,null,null,null,null,null,null,null,null,null,null,null,null,null,null,null,null,null,null,null,null,null,null,null,null,null,null,null,null,null,null,null,null,null,null,null,null,null,null,null,null,null,null,null,null,null,null,null,null,null,null,null,null,null,null,null,null,null,null,null,null,null,null,null,null,null,null,null,null,null,null,null,null,null,null,null,null,null,null,null,null,null,null,null,null,null,null,null,null,null,null,null,null,75]
[]
[]
[]
[]
[]
[]
[]
[]
[]
[]
[]
[]
[]
[]
[]
[]
[null,null,null,null,null,null,null,null,null,null,null,null,null,null,null,null,null,null,null,null,null,null,null,null,null,null,null,null,null,null,null,1,2,3,4,5,6,7,8,9,10,0,1,2,3,4]
[null,null,null,null,null,null,null,null,null,null,null,{"$f":"COLUMN()","v":12},null,{"$f":"COLUMN()","v":14},{"$f":"COLUMN()","v":15},null,null,null,null,{"$f":"COLUMN()","v":20},{"$f":"COLUMN()","v":21},{"$f":"COLUMN()","v":22},{"$f":"COLUMN()","v":23},{"$f":"COLUMN()","v":24},{"$f":"COLUMN()","v":25},{"$f":"COLUMN()","v":26},{"$f":"COLUMN()","v":27},{"$f":"COLUMN()","v":28},{"$f":"COLUMN()","v":29},{"$f":"COLUMN()","v":30},{"$f":"COLUMN()","v":31},{"$f":"COLUMN()","v":32},{"$f":"COLUMN()","v":33},{"$f":"COLUMN()","v":34},{"$f":"COLUMN()","v":35},{"$f":"COLUMN()","v":36},{"$f":"COLUMN()","v":37},{"$f":"COLUMN()","v":38},{"$f":"COLUMN()","v":39},{"$f":"COLUMN()","v":40},{"$f":"COLUMN()","v":41},{"$f":"COLUMN()","v":42},{"$f":"COLUMN()","v":43},{"$f":"COLUMN()","v":44},{"$f":"COLUMN()","v":45},{"$f":"COLUMN()","v":46},{"$f":"COLUMN()","v":47},{"$f":"COLUMN()","v":48},null,null,null,null,null,null,null,null,null,null,null,null,null,null,null,null,null,null,null,null,null,null,null,null,null,null,null,null,null,null,null,null,null,null,null,null,null,null,null,null,null,null,null,null,null,null,null,null,null,null,null,null,null,null,null,null,null,null,null,null,null,null,null,null,null,null,null,null,null,null,null,null,null,null,null,null,null,null,null,null,null,null,null,null,null,null,null,null,null,null,null,null,null,null,null,null,null,null,null,null,null,null,null,null,null,null,null,null,null,null,null,null,{"$f":"COLUMN()","v":161},{"$f":"COLUMN()","v":162},{"$f":"COLUMN()","v":163},{"$f":"COLUMN()","v":164},{"$f":"COLUMN()","v":165},{"$f":"COLUMN()","v":166},{"$f":"COLUMN()","v":167},{"$f":"COLUMN()","v":168},{"$f":"COLUMN()","v":169},{"$f":"COLUMN()","v":170},{"$f":"COLUMN()","v":171},{"$f":"COLUMN()","v":172},{"$f":"COLUMN()","v":173},{"$f":"COLUMN()","v":174},{"$f":"COLUMN()","v":175},{"$f":"COLUMN()","v":176},{"$f":"COLUMN()","v":177},{"$f":"COLUMN()","v":178},{"$f":"COLUMN()","v":179},{"$f":"COLUMN()","v":180},{"$f":"COLUMN()","v":181},{"$f":"COLUMN()","v":182},{"$f":"COLUMN()","v":183},{"$f":"COLUMN()","v":184},null,null,null,null,null,null,null,null,null,null,null,null,null,null,null,null,null,null,null,null,null,null,null,null,null,null,null,{"$f":"COLUMN()","v":212},{"$f":"COLUMN()","v":213},{"$f":"COLUMN()","v":214},{"$f":"COLUMN()","v":215},{"$f":"COLUMN()","v":216},{"$f":"COLUMN()","v":217},{"$f":"COLUMN()","v":218},{"$f":"COLUMN()","v":219},{"$f":"COLUMN()","v":220},{"$f":"COLUMN()","v":221},{"$f":"COLUMN()","v":222},{"$f":"COLUMN()","v":223},{"$f":"COLUMN()","v":224},{"$f":"COLUMN()","v":225},{"$f":"COLUMN()","v":226},{"$f":"COLUMN()","v":227},{"$f":"COLUMN()","v":228},{"$f":"COLUMN()","v":229},{"$f":"COLUMN()","v":230},{"$f":"COLUMN()","v":231},{"$f":"COLUMN()","v":232},{"$f":"COLUMN()","v":233},{"$f":"COLUMN()","v":234},{"$f":"COLUMN()","v":235},{"$f":"COLUMN()","v":236},{"$f":"COLUMN()","v":237},{"$f":"COLUMN()","v":238},{"$f":"COLUMN()","v":239},{"$f":"COLUMN()","v":240},{"$f":"COLUMN()","v":241},{"$f":"COLUMN()","v":242},{"$f":"COLUMN()","v":243},{"$f":"COLUMN()","v":244},{"$f":"COLUMN()","v":245},{"$f":"COLUMN()","v":246},{"$f":"COLUMN()","v":247},{"$f":"COLUMN()","v":248},{"$f":"COLUMN()","v":249},{"$f":"COLUMN()","v":250},{"$f":"COLUMN()","v":251},{"$f":"COLUMN()","v":252},{"$f":"COLUMN()","v":253},{"$f":"COLUMN()","v":254},{"$f":"COLUMN()","v":255},{"$f":"COLUMN()","v":256}]
[null,null,null,null,null,null,null,null,null,null,null,"Thèmes de l'enseignement optionnel",null,null,"AFL EO",null,null,null,null,null,null,null,null,null,null,null,null,null,null,"Enseignement optionnel lycée voie générale et technologique - base de données",null,null,null,null,null,null,null,null,null,null,null,null,null,null,null,null,null,null,null,null,null,null,null,null,null,null,null,null,null,null,null,null,null,null,null,null,null,null,null,null,null,null,null,null,null,null,null,null,null,null,null,null,null,null,null,null,null,null,null,null,null,null,null,null,null,null,null,null,null,null,null,null,null,null,null,null,null,null,null,null,null,null,null,null,null,null,null,null,null,null,null,null,null,null,null,null,null,null,null,null,null,null,null,null,null,null,null,null,null,null,null,null,null,null,null,null,null,null,null,null,null,null,null,null,null,null,null,null,null,null,null,"ENSEIGNEMENT DE SPÉCIALITÉ Lycée général et technologique",null,null,null,null,null,null,null,null,null,null,null,null,null,null,null,null,null,null,null,null,null,null,null,null,null,null,null,null,null,null,null,null,null,null,null,null,null,null,null,null,null,null,null,null,null,null,null,null,null,null,null,null,null,null,null,null,null,null,null,null,null,null,null,null,"Nb Cycles et DATES cycle d'enseignement 3",null,null,null,null,null,null,null,"Nb Cycles et DATES cycle d'enseignement 4 ou COLLEGE",null,null,null,null,null,null,null,"Nb Cycles et DATES cycle d'enseignement 5 ou LPO voie G et T",null,null,null,null,null,null,"Nb Cycles et DATES cycle d'enseignement 6 LPO voie Pro"]
[null,null,null,null,null,null,null,null,null,null,null,"Activité physique, sportive, artistique et égalité entre les hommes et les femmes",null,2,"Mettre en relation un thème avec une ou des APSA",null,null,null,null,null,null,null,null,null,null,null,null,null,null,"Traitement","Niveau/Theme/APSA","Niveau de classe","Thème retenu","APSA","ID","CA","Déc/App.","Intervenant 1","Intervenant 2","Intervenant 3","Heures Th.","AFL EO","Déclainaison AFL EO dans l'APSA","AFL EC","Éléments prioritaires","Déclinaison dans l'APSA","Nombre\nFilles","Nombre\nGarçons",null,null,null,null,null,null,null,null,null,null,null,null,null,null,null,null,null,null,null,null,null,null,null,null,null,null,null,null,null,null,null,null,null,null,null,null,null,null,null,null,null,null,null,null,null,null,null,null,null,null,null,null,null,null,null,null,null,null,null,null,null,null,null,null,null,null,null,null,null,null,null,null,null,null,null,null,null,null,null,null,null,null,null,null,null,null,null,null,null,null,null,null,null,null,null,null,null,null,null,null,null,null,null,null,null,null,null,null,null,null,null,null,null,"Niveau 2nde","Type","Groupe","Num","ID","Niveau Première","Type","Groupe","Num","ID","Niveau Terminal","Type","Groupe","Num","ID","Cycle Terminal (9)","Type","Groupe","Num","ID","Niveau","Nbre","CA",null,null,null,null,null,null,null,null,null,null,null,null,null,null,null,null,null,null,null,null,null,null,null,null,null,null,null,null,null,null,null,null,null,null,null,null,null,null,null,null,null,null,null,"Année",null,"Semestre 1",null,"Semestre 2",null,null,null,"Année",null,"Semestre 1",null,"Semestre 2",null,null,null,"Année",null,"Semestre 1",null,"Semestre 2",null,null,"Année",null,"Semestre 1",null,"Semestre 2"]
[null,null,null,null,null,null,null,null,null,null,null,"Activité physique, sportive, artistique et santé",null,1,"Enrichir et mettre en œuvre les liens entre un thème et une ou des APSA",null,null,null,null,null,null,null,null,null,null,null,null,null,1,null,null,null,null,null,null,null,null,null,null,null,null,null,null,null,null,null,null,null,null,null,null,null,null,null,null,null,null,null,null,null,null,null,null,null,null,null,null,null,null,null,null,null,null,null,null,null,null,null,null,null,null,null,null,null,null,null,null,null,null,null,null,null,null,null,null,null,null,null,null,null,null,null,null,null,null,null,null,null,null,null,null,null,null,null,null,null,null,null,null,null,null,null,null,null,null,null,null,null,null,null,null,null,null,null,null,null,null,null,null,null,null,null,null,null,null,null,null,null,null,null,null,null,null,null,null,null,null,null,null,null,1,null,null,null,null,null,null,null,null,null,null,null,null,null,null,null,null,null,null,null,null,null,null,null,null,null,null,null,null,null,null,null,null,null,null,null,null,null,null,null,null,null,null,null,null,null,null,null,null,null,null,null,null,null,null,null,null,null,null,null,null,null,null,null,null,null,"Nbre",null,null,null,null,null,null,null,"Nbre",null,null,null,null,null,null,null,"Nbre",null,null,null,null,null,null,"Nbre"]
[null,null,null,null,null,null,null,null,null,null,null,"Activité physique, sportive, artistique et prévention, protection des risques",null,"T","Présenter à l'oral une problématique issue d'une réflexion étayée sur sa propre pratique, en lien avec une thématique choisie par l'élève",null,null,null,null,null,null,null,null,null,null,null,null,null,2,null,null,null,null,null,null,null,null,null,null,null,null,null,null,null,null,null,null,null,null,null,null,null,null,null,null,null,null,null,null,null,null,null,null,null,null,null,null,null,null,null,null,null,null,null,null,null,null,null,null,null,null,null,null,null,null,null,null,null,null,null,null,null,null,null,null,null,null,null,null,null,null,null,null,null,null,null,null,null,null,null,null,null,null,null,null,null,null,null,null,null,null,null,null,null,null,null,null,null,null,null,null,null,null,null,null,null,null,null,null,null,null,null,null,null,null,null,null,null,null,null,null,null,null,null,null,null,null,null,null,null,2,null,null,null,null,null,null,null,null,null,null,null,null,null,null,null,null,null,null,null,null,null,null,null,null,null,null,null,null,null,null,null,null,null,null,null,null,null,null,null,null,null,null,null,null,null,null,null,null,null,null,null,null,null,null,null,null,null,null,null,null,null,null,null,null,null,null,"Date début","Date fin","Date début","Date fin","Date début","Date fin",null,null,"Date début","Date fin","Date début","Date fin","Date début","Date fin",null,null,"Date début","Date fin","Date début","Date fin","Date début","Date fin",null,"Date début","Date fin","Date début","Date fin","Date début","Date fin"]
[null,null,null,null,null,null,null,null,null,null,null,"Activité physique, sportive, artistique et spectacle",null,null,null,null,null,null,null,null,null,null,null,null,null,null,null,null,3,null,null,null,null,null,null,null,null,null,null,null,null,null,null,null,null,null,null,null,null,null,null,null,null,null,null,null,null,null,null,null,null,null,null,null,null,null,null,null,null,null,null,null,null,null,null,null,null,null,null,null,null,null,null,null,null,null,null,null,null,null,null,null,null,null,null,null,null,null,null,null,null,null,null,null,null,null,null,null,null,null,null,null,null,null,null,null,null,null,null,null,null,null,null,null,null,null,null,null,null,null,null,null,null,null,null,null,null,null,null,null,null,null,null,null,null,null,null,null,null,null,null,null,null,null,null,null,null,null,null,null,3,null,null,null,null,null,null,null,null,null,null,null,null,null,null,null,null,null,null,null,null,null,null,null,null,null,null,null,null,null,null,null,null,null,null,null,null,null,null,null,null,null,null,null,null,null,null,null,null,null,null,null,null,null,null,null,null,null,null,null,null,null,null,null,null,null,1]
[null,null,null,null,null,null,null,null,null,null,null,"Activité physique, sportive, artistique et inclusion",null,null,null,null,null,null,null,null,null,null,null,null,null,null,null,null,4,null,null,null,null,null,null,null,null,null,null,null,null,null,null,null,null,null,null,null,null,null,null,null,null,null,null,null,null,null,null,null,null,null,null,null,null,null,null,null,null,null,null,null,null,null,null,null,null,null,null,null,null,null,null,null,null,null,null,null,null,null,null,null,null,null,null,null,null,null,null,null,null,null,null,null,null,null,null,null,null,null,null,null,null,null,null,null,null,null,null,null,null,null,null,null,null,null,null,null,null,null,null,null,null,null,null,null,null,null,null,null,null,null,null,null,null,null,null,null,null,null,null,null,null,null,null,null,null,null,null,null,4,null,null,null,null,null,null,null,null,null,null,null,null,null,null,null,null,null,null,null,null,null,null,null,null,null,null,null,null,null,null,null,null,null,null,null,null,null,null,null,null,null,null,null,null,null,null,null,null,null,null,null,null,null,null,null,null,null,null,null,null,null,null,null,null,null,2]
[null,null,null,null,null,null,null,null,null,null,null,"Activité physique, sportive, artistique et environnement",null,null,null,null,null,null,null,null,null,null,null,null,null,null,null,null,5,null,null,null,null,null,null,null,null,null,null,null,null,null,null,null,null,null,null,null,null,null,null,null,null,null,null,null,null,null,null,null,null,null,null,null,null,null,null,null,null,null,null,null,null,null,null,null,null,null,null,null,null,null,null,null,null,null,null,null,null,null,null,null,null,null,null,null,null,null,null,null,null,null,null,null,null,null,null,null,null,null,null,null,null,null,null,null,null,null,null,null,null,null,null,null,null,null,null,null,null,null,null,null,null,null,null,null,null,null,null,null,null,null,null,null,null,null,null,null,null,null,null,null,null,null,null,null,null,null,null,null,5,null,null,null,null,null,null,null,null,null,null,null,null,null,null,null,null,null,null,null,null,null,null,null,null,null,null,null,null,null,null,null,null,null,null,null,null,null,null,null,null,null,null,null,null,null,null,null,null,null,null,null,null,null,null,null,null,null,null,null,null,null,null,null,null,null,3]
[null,null,null,null,null,null,null,null,null,null,null,"Activité physique, sportive, artistique et entraînement",null,null,null,null,null,null,null,null,null,null,null,null,null,null,null,null,6,null,null,null,null,null,null,null,null,null,null,null,null,null,null,null,null,null,null,null,null,null,null,null,null,null,null,null,null,null,null,null,null,null,null,null,null,null,null,null,null,null,null,null,null,null,null,null,null,null,null,null,null,null,null,null,null,null,null,null,null,null,null,null,null,null,null,null,null,null,null,null,null,null,null,null,null,null,null,null,null,null,null,null,null,null,null,null,null,null,null,null,null,null,null,null,null,null,null,null,null,null,null,null,null,null,null,null,null,null,null,null,null,null,null,null,null,null,null,null,null,null,null,null,null,null,null,null,null,null,null,null,6,null,null,null,null,null,null,null,null,null,null,null,null,null,null,null,null,null,null,null,null,null,null,null,null,null,null,null,null,null,null,null,null,null,null,null,null,null,null,null,null,null,null,null,null,null,null,null,null,null,null,null,null,null,null,null,null,null,null,null,null,null,null,null,null,null,4]
[null,null,null,null,null,null,null,null,null,null,null,null,null,null,null,null,null,null,null,null,null,null,null,null,null,null,null,null,7,null,null,null,null,null,null,null,null,null,null,null,null,null,null,null,null,null,null,null,null,null,null,null,null,null,null,null,null,null,null,null,null,null,null,null,null,null,null,null,null,null,null,null,null,null,null,null,null,null,null,null,null,null,null,null,null,null,null,null,null,null,null,null,null,null,null,null,null,null,null,null,null,null,null,null,null,null,null,null,null,null,null,null,null,null,null,null,null,null,null,null,null,null,null,null,null,null,null,null,null,null,null,null,null,null,null,null,null,null,null,null,null,null,null,null,null,null,null,null,null,null,null,null,null,null,null,null,null,null,null,null,7,null,null,null,null,null,null,null,null,null,null,null,null,null,null,null,null,null,null,null,null,null,null,null,null,null,null,null,null,null,null,null,null,null,null,null,null,null,null,null,null,null,null,null,null,null,null,null,null,null,null,null,null,null,null,null,null,null,null,null,null,null,null,null,null,null,5]
[null,null,null,null,null,null,null,null,null,null,null,null,null,null,null,null,null,null,null,null,null,null,null,null,null,null,null,null,8,null,null,null,null,null,null,null,null,null,null,null,null,null,null,null,null,null,null,null,null,null,null,null,null,null,null,null,null,null,null,null,null,null,null,null,null,null,null,null,null,null,null,null,null,null,null,null,null,null,null,null,null,null,null,null,null,null,null,null,null,null,null,null,null,null,null,null,null,null,null,null,null,null,null,null,null,null,null,null,null,null,null,null,null,null,null,null,null,null,null,null,null,null,null,null,null,null,null,null,null,null,null,null,null,null,null,null,null,null,null,null,null,null,null,null,null,null,null,null,null,null,null,null,null,null,null,null,null,null,null,null,8,null,null,null,null,null,null,null,null,null,null,null,null,null,null,null,null,null,null,null,null,null,null,null,null,null,null,null,null,null,null,null,null,null,null,null,null,null,null,null,null,null,null,null,null,null,null,null,null,null,null,null,null,null,null,null,null,null,null,null,null,null,null,null,null,null,6]
[null,null,null,null,null,null,null,null,null,null,null,null,null,null,null,null,null,null,null,null,null,null,null,null,null,null,null,null,9,null,null,null,null,null,null,null,null,null,null,null,null,null,null,null,null,null,null,null,null,null,null,null,null,null,null,null,null,null,null,null,null,null,null,null,null,null,null,null,null,null,null,null,null,null,null,null,null,null,null,null,null,null,null,null,null,null,null,null,null,null,null,null,null,null,null,null,null,null,null,null,null,null,null,null,null,null,null,null,null,null,null,null,null,null,null,null,null,null,null,null,null,null,null,null,null,null,null,null,null,null,null,null,null,null,null,null,null,null,null,null,null,null,null,null,null,null,null,null,null,null,null,null,null,null,null,null,null,null,null,null,9,null,null,null,null,null,null,null,null,null,null,null,null,null,null,null,null,null,null,null,null,null,null,null,null,null,null,null,null,null,null,null,null,null,null,null,null,null,null,null,null,null,null,null,null,null,null,null,null,null,null,null,null,null,null,null,null,null,null,null,null,null,null,null,null,null,7]
[null,null,null,null,null,null,null,null,null,null,null,null,null,null,null,null,null,null,null,null,null,null,null,null,null,null,null,null,10,null,null,null,null,null,null,null,null,null,null,null,null,null,null,null,null,null,null,null,null,null,null,null,null,null,null,null,null,null,null,null,null,null,null,null,null,null,null,null,null,null,null,null,null,null,null,null,null,null,null,null,null,null,null,null,null,null,null,null,null,null,null,null,null,null,null,null,null,null,null,null,null,null,null,null,null,null,null,null,null,null,null,null,null,null,null,null,null,null,null,null,null,null,null,null,null,null,null,null,null,null,null,null,null,null,null,null,null,null,null,null,null,null,null,null,null,null,null,null,null,null,null,null,null,null,null,null,null,null,null,null,10,null,null,null,null,null,null,null,null,null,null,null,null,null,null,null,null,null,null,null,null,null,null,null,null,null,null,null,null,null,null,null,null,null,null,null,null,null,null,null,null,null,null,null,null,null,null,null,null,null,null,null,null,null,null,null,null,null,null,null,null,null,null,null,null,null,8]
[null,null,null,null,null,null,null,null,null,null,null,"Niveau de classe EO",null,null,null,null,null,null,null,null,null,null,null,null,null,null,null,null,11,null,null,null,null,null,null,null,null,null,null,null,null,null,null,null,null,null,null,null,null,null,null,null,null,null,null,null,null,null,null,null,null,null,null,null,null,null,null,null,null,null,null,null,null,null,null,null,null,null,null,null,null,null,null,null,null,null,null,null,null,null,null,null,null,null,null,null,null,null,null,null,null,null,null,null,null,null,null,null,null,null,null,null,null,null,null,null,null,null,null,null,null,null,null,null,null,null,null,null,null,null,null,null,null,null,null,null,null,null,null,null,null,null,null,null,null,null,null,null,null,null,null,null,null,null,null,null,null,null,null,null,11,null,null,null,null,null,null,null,null,null,null,null,null,null,null,null,null,null,null,null,null,null,null,null,null,null,null,null,null,null,null,null,null,null,null,null,null,null,null,null,null,null,null,null,null,null,null,null,null,null,null,null,null,null,null,null,null,null,null,null,null,null,null,null,null,null,9]
[null,null,null,null,null,null,null,null,null,null,null,"Seconde",null,null,null,null,null,null,null,null,null,null,null,null,null,null,null,null,12,null,null,null,null,null,null,null,null,null,null,null,null,null,null,null,null,null,null,null,null,null,null,null,null,null,null,null,null,null,null,null,null,null,null,null,null,null,null,null,null,null,null,null,null,null,null,null,null,null,null,null,null,null,null,null,null,null,null,null,null,null,null,null,null,null,null,null,null,null,null,null,null,null,null,null,null,null,null,null,null,null,null,null,null,null,null,null,null,null,null,null,null,null,null,null,null,null,null,null,null,null,null,null,null,null,null,null,null,null,null,null,null,null,null,null,null,null,null,null,null,null,null,null,null,null,null,null,null,null,null,null,12,null,null,null,null,null,null,null,null,null,null,null,null,null,null,null,null,null,null,null,null,null,null,null,null,null,null,null,null,null,null,null,null,null,null,null,null,null,null,null,null,null,null,null,null,null,null,null,null,null,null,null,null,null,null,null,null,null,null,null,null,null,null,null,null,null,10]
[null,null,null,null,null,null,null,null,null,null,null,"Première",null,null,null,null,null,null,null,null,null,null,null,null,null,null,null,null,13,null,null,null,null,null,null,null,null,null,null,null,null,null,null,null,null,null,null,null,null,null,null,null,null,null,null,null,null,null,null,null,null,null,null,null,null,null,null,null,null,null,null,null,null,null,null,null,null,null,null,null,null,null,null,null,null,null,null,null,null,null,null,null,null,null,null,null,null,null,null,null,null,null,null,null,null,null,null,null,null,null,null,null,null,null,null,null,null,null,null,null,null,null,null,null,null,null,null,null,null,null,null,null,null,null,null,null,null,null,null,null,null,null,null,null,null,null,null,null,null,null,null,null,null,null,null,null,null,null,null,null,13,null,null,null,null,null,null,null,null,null,null,null,null,null,null,null,null,null,null,null,null,null,null,null,null,null,null,null,null,null,null,null,null,null,null,null,null,null,null,null,null,null,null,null,null,null,null,null,null,null,null,null,null,null,null,null,null,null,null,null,null,null,null,null,null,null,11]
[null,null,null,null,null,null,null,null,null,null,null,"Terminal",null,null,null,null,null,null,null,null,null,null,null,null,null,null,null,null,14,null,null,null,null,null,null,null,null,null,null,null,null,null,null,null,null,null,null,null,null,null,null,null,null,null,null,null,null,null,null,null,null,null,null,null,null,null,null,null,null,null,null,null,null,null,null,null,null,null,null,null,null,null,null,null,null,null,null,null,null,null,null,null,null,null,null,null,null,null,null,null,null,null,null,null,null,null,null,null,null,null,null,null,null,null,null,null,null,null,null,null,null,null,null,null,null,null,null,null,null,null,null,null,null,null,null,null,null,null,null,null,null,null,null,null,null,null,null,null,null,null,null,null,null,null,null,null,null,null,null,null,14,null,null,null,null,null,null,null,null,null,null,null,null,null,null,null,null,null,null,null,null,null,null,null,null,null,null,null,null,null,null,null,null,null,null,null,null,null,null,null,null,null,null,null,null,null,null,null,null,null,null,null,null,null,null,null,null,null,null,null,null,null,null,null,null,null,12]
[null,null,null,null,null,null,null,null,null,null,null,null,null,null,null,null,null,null,null,null,null,null,null,null,null,null,null,null,15,null,null,null,null,null,null,null,null,null,null,null,null,null,null,null,null,null,null,null,null,null,null,null,null,null,null,null,null,null,null,null,null,null,null,null,null,null,null,null,null,null,null,null,null,null,null,null,null,null,null,null,null,null,null,null,null,null,null,null,null,null,null,null,null,null,null,null,null,null,null,null,null,null,null,null,null,null,null,null,null,null,null,null,null,null,null,null,null,null,null,null,null,null,null,null,null,null,null,null,null,null,null,null,null,null,null,null,null,null,null,null,null,null,null,null,null,null,null,null,null,null,null,null,null,null,null,null,null,null,null,null,15,null,null,null,null,null,null,null,null,null,null,null,null,null,null,null,null,null,null,null,null,null,null,null,null,null,null,null,null,null,null,null,null,null,null,null,null,null,null,null,null,null,null,null,null,null,null,null,null,null,null,null,null,null,null,null,null,null,null,null,null,null,null,null,null,null,13]
[null,null,null,null,null,null,null,null,null,null,null,null,null,null,null,null,null,null,null,null,null,null,null,null,null,null,null,null,16,null,null,null,null,null,null,null,null,null,null,null,null,null,null,null,null,null,null,null,null,null,null,null,null,null,null,null,null,null,null,null,null,null,null,null,null,null,null,null,null,null,null,null,null,null,null,null,null,null,null,null,null,null,null,null,null,null,null,null,null,null,null,null,null,null,null,null,null,null,null,null,null,null,null,null,null,null,null,null,null,null,null,null,null,null,null,null,null,null,null,null,null,null,null,null,null,null,null,null,null,null,null,null,null,null,null,null,null,null,null,null,null,null,null,null,null,null,null,null,null,null,null,null,null,null,null,null,null,null,null,null,16,null,null,null,null,null,null,null,null,null,null,null,null,null,null,null,null,null,null,null,null,null,null,null,null,null,null,null,null,null,null,null,null,null,null,null,null,null,null,null,null,null,null,null,null,null,null,null,null,null,null,null,null,null,null,null,null,null,null,null,null,null,null,null,null,null,14]
[null,null,null,null,null,null,null,null,null,null,null,null,null,null,null,null,null,null,null,null,null,null,null,null,null,null,null,null,17,null,null,null,null,null,null,null,null,null,null,null,null,null,null,null,null,null,null,null,null,null,null,null,null,null,null,null,null,null,null,null,null,null,null,null,null,null,null,null,null,null,null,null,null,null,null,null,null,null,null,null,null,null,null,null,null,null,null,null,null,null,null,null,null,null,null,null,null,null,null,null,null,null,null,null,null,null,null,null,null,null,null,null,null,null,null,null,null,null,null,null,null,null,null,null,null,null,null,null,null,null,null,null,null,null,null,null,null,null,null,null,null,null,null,null,null,null,null,null,null,null,null,null,null,null,null,null,null,null,null,null,17,null,null,null,null,null,null,null,null,null,null,null,null,null,null,null,null,null,null,null,null,null,null,null,null,null,null,null,null,null,null,null,null,null,null,null,null,null,null,null,null,null,null,null,null,null,null,null,null,null,null,null,null,null,null,null,null,null,null,null,null,null,null,null,null,null,15]
[null,null,null,null,null,null,null,null,null,null,null,null,null,null,null,null,null,null,null,null,null,null,null,null,null,null,null,null,18,null,null,null,null,null,null,null,null,null,null,null,null,null,null,null,null,null,null,null,null,null,null,null,null,null,null,null,null,null,null,null,null,null,null,null,null,null,null,null,null,null,null,null,null,null,null,null,null,null,null,null,null,null,null,null,null,null,null,null,null,null,null,null,null,null,null,null,null,null,null,null,null,null,null,null,null,null,null,null,null,null,null,null,null,null,null,null,null,null,null,null,null,null,null,null,null,null,null,null,null,null,null,null,null,null,null,null,null,null,null,null,null,null,null,null,null,null,null,null,null,null,null,null,null,null,null,null,null,null,null,null,18]
[null,null,null,null,null,null,null,null,null,null,null,null,null,null,null,null,null,null,null,null,null,null,null,null,null,null,null,null,19,null,null,null,null,null,null,null,null,null,null,null,null,null,null,null,null,null,null,null,null,null,null,null,null,null,null,null,null,null,null,null,null,null,null,null,null,null,null,null,null,null,null,null,null,null,null,null,null,null,null,null,null,null,null,null,null,null,null,null,null,null,null,null,null,null,null,null,null,null,null,null,null,null,null,null,null,null,null,null,null,null,null,null,null,null,null,null,null,null,null,null,null,null,null,null,null,null,null,null,null,null,null,null,null,null,null,null,null,null,null,null,null,null,null,null,null,null,null,null,null,null,null,null,null,null,null,null,null,null,null,null,19]
[null,null,null,null,null,null,null,null,null,null,null,null,null,null,null,null,null,null,null,null,null,null,null,null,null,null,null,null,20,null,null,null,null,null,null,null,null,null,null,null,null,null,null,null,null,null,null,null,null,null,null,null,null,null,null,null,null,null,null,null,null,null,null,null,null,null,null,null,null,null,null,null,null,null,null,null,null,null,null,null,null,null,null,null,null,null,null,null,null,null,null,null,null,null,null,null,null,null,null,null,null,null,null,null,null,null,null,null,null,null,null,null,null,null,null,null,null,null,null,null,null,null,null,null,null,null,null,null,null,null,null,null,null,null,null,null,null,null,null,null,null,null,null,null,null,null,null,null,null,null,null,null,null,null,null,null,null,null,null,null,20]
[null,null,null,null,null,null,null,null,null,null,null,null,null,null,null,null,null,null,null,null,null,null,null,null,null,null,null,null,21,null,null,null,null,null,null,null,null,null,null,null,null,null,null,null,null,null,null,null,null,null,null,null,null,null,null,null,null,null,null,null,null,null,null,null,null,null,null,null,null,null,null,null,null,null,null,null,null,null,null,null,null,null,null,null,null,null,null,null,null,null,null,null,null,null,null,null,null,null,null,null,null,null,null,null,null,null,null,null,null,null,null,null,null,null,null,null,null,null,null,null,null,null,null,null,null,null,null,null,null,null,null,null,null,null,null,null,null,null,null,null,null,null,null,null,null,null,null,null,null,null,null,null,null,null,null,null,null,null,null,null,21]
[null,null,null,null,null,null,null,null,null,null,null,null,null,null,null,null,null,null,null,null,null,null,null,null,null,null,null,null,22,null,null,null,null,null,null,null,null,null,null,null,null,null,null,null,null,null,null,null,null,null,null,null,null,null,null,null,null,null,null,null,null,null,null,null,null,null,null,null,null,null,null,null,null,null,null,null,null,null,null,null,null,null,null,null,null,null,null,null,null,null,null,null,null,null,null,null,null,null,null,null,null,null,null,null,null,null,null,null,null,null,null,null,null,null,null,null,null,null,null,null,null,null,null,null,null,null,null,null,null,null,null,null,null,null,null,null,null,null,null,null,null,null,null,null,null,null,null,null,null,null,null,null,null,null,null,null,null,null,null,null,22]
[null,null,null,null,null,null,null,null,null,null,null,null,null,null,null,null,null,null,null,null,null,null,null,null,null,null,null,null,23,null,null,null,null,null,null,null,null,null,null,null,null,null,null,null,null,null,null,null,null,null,null,null,null,null,null,null,null,null,null,null,null,null,null,null,null,null,null,null,null,null,null,null,null,null,null,null,null,null,null,null,null,null,null,null,null,null,null,null,null,null,null,null,null,null,null,null,null,null,null,null,null,null,null,null,null,null,null,null,null,null,null,null,null,null,null,null,null,null,null,null,null,null,null,null,null,null,null,null,null,null,null,null,null,null,null,null,null,null,null,null,null,null,null,null,null,null,null,null,null,null,null,null,null,null,null,null,null,null,null,null,23]
[null,null,null,null,null,null,null,null,null,null,null,null,null,null,null,null,null,null,null,null,null,null,null,null,null,null,null,null,24,null,null,null,null,null,null,null,null,null,null,null,null,null,null,null,null,null,null,null,null,null,null,null,null,null,null,null,null,null,null,null,null,null,null,null,null,null,null,null,null,null,null,null,null,null,null,null,null,null,null,null,null,null,null,null,null,null,null,null,null,null,null,null,null,null,null,null,null,null,null,null,null,null,null,null,null,null,null,null,null,null,null,null,null,null,null,null,null,null,null,null,null,null,null,null,null,null,null,null,null,null,null,null,null,null,null,null,null,null,null,null,null,null,null,null,null,null,null,null,null,null,null,null,null,null,null,null,null,null,null,null,24,null,null,null,null,null,null,null,null,null,null,null,null,null,null,null,null,null,null,null,null,null,null,null,null,null,null,null,null,null,null,null,null,null,null,null,null,null,null,null,null,null,null,null,null,null,null,null,null,null,null,null,null,null,null,null,null,null,null,null,null,null,null,null,null,null,null,"Nombre maximal de cyles-périodes autorisés :",null,null,null,null,12,null,null,"Nombre maximal de cyles-périodes autorisés :",null,null,null,null,12,null,null,"Nombre maximal de cyles-périodes autorisés :",null,null,null,null,12,null,null,"Nombre maximal de cyles-périodes autorisés :",null,null,null,12]
[null,null,null,null,null,null,null,null,null,null,null,null,null,null,null,null,null,null,null,null,null,null,null,null,null,null,null,null,25,null,null,null,null,null,null,null,null,null,null,null,null,null,null,null,null,null,null,null,null,null,null,null,null,null,null,null,null,null,null,null,null,null,null,null,null,null,null,null,null,null,null,null,null,null,null,null,null,null,null,null,null,null,null,null,null,null,null,null,null,null,null,null,null,null,null,null,null,null,null,null,null,null,null,null,null,null,null,null,null,null,null,null,null,null,null,null,null,null,null,null,null,null,null,null,null,null,null,null,null,null,null,null,null,null,null,null,null,null,null,null,null,null,null,null,null,null,null,null,null,null,null,null,null,null,null,null,null,null,null,null,25]
[null,null,null,null,null,null,null,null,null,null,null,null,null,null,null,null,null,null,null,null,null,null,null,null,null,null,null,null,26,null,null,null,null,null,null,null,null,null,null,null,null,null,null,null,null,null,null,null,null,null,null,null,null,null,null,null,null,null,null,null,null,null,null,null,null,null,null,null,null,null,null,null,null,null,null,null,null,null,null,null,null,null,null,null,null,null,null,null,null,null,null,null,null,null,null,null,null,null,null,null,null,null,null,null,null,null,null,null,null,null,null,null,null,null,null,null,null,null,null,null,null,null,null,null,null,null,null,null,null,null,null,null,null,null,null,null,null,null,null,null,null,null,null,null,null,null,null,null,null,null,null,null,null,null,null,null,null,null,null,null,26]
[null,null,null,null,null,null,null,null,null,null,null,null,null,null,null,null,null,null,null,null,null,null,null,null,null,null,null,null,27,null,null,null,null,null,null,null,null,null,null,null,null,null,null,null,null,null,null,null,null,null,null,null,null,null,null,null,null,null,null,null,null,null,null,null,null,null,null,null,null,null,null,null,null,null,null,null,null,null,null,null,null,null,null,null,null,null,null,null,null,null,null,null,null,null,null,null,null,null,null,null,null,null,null,null,null,null,null,null,null,null,null,null,null,null,null,null,null,null,null,null,null,null,null,null,null,null,null,null,null,null,null,null,null,null,null,null,null,null,null,null,null,null,null,null,null,null,null,null,null,null,null,null,null,null,null,null,null,null,null,null,27]
[null,null,null,null,null,null,null,null,null,null,null,null,null,null,null,null,null,null,null,null,null,null,null,null,null,null,null,null,28,null,null,null,null,null,null,null,null,null,null,null,null,null,null,null,null,null,null,null,null,null,null,null,null,null,null,null,null,null,null,null,null,null,null,null,null,null,null,null,null,null,null,null,null,null,null,null,null,null,null,null,null,null,null,null,null,null,null,null,null,null,null,null,null,null,null,null,null,null,null,null,null,null,null,null,null,null,null,null,null,null,null,null,null,null,null,null,null,null,null,null,null,null,null,null,null,null,null,null,null,null,null,null,null,null,null,null,null,null,null,null,null,null,null,null,null,null,null,null,null,null,null,null,null,null,null,null,null,null,null,null,28]
[null,null,null,null,null,null,null,null,null,null,null,null,null,null,null,null,null,null,null,null,null,null,null,null,null,null,null,null,29,null,null,null,null,null,null,null,null,null,null,null,null,null,null,null,null,null,null,null,null,null,null,null,null,null,null,null,null,null,null,null,null,null,null,null,null,null,null,null,null,null,null,null,null,null,null,null,null,null,null,null,null,null,null,null,null,null,null,null,null,null,null,null,null,null,null,null,null,null,null,null,null,null,null,null,null,null,null,null,null,null,null,null,null,null,null,null,null,null,null,null,null,null,null,null,null,null,null,null,null,null,null,null,null,null,null,null,null,null,null,null,null,null,null,null,null,null,null,null,null,null,null,null,null,null,null,null,null,null,null,null,29]
[null,null,null,null,null,null,null,null,null,null,null,null,null,null,null,null,null,null,null,null,null,null,null,null,null,null,null,null,30,null,null,null,null,null,null,null,null,null,null,null,null,null,null,null,null,null,null,null,null,null,null,null,null,null,null,null,null,null,null,null,null,null,null,null,null,null,null,null,null,null,null,null,null,null,null,null,null,null,null,null,null,null,null,null,null,null,null,null,null,null,null,null,null,null,null,null,null,null,null,null,null,null,null,null,null,null,null,null,null,null,null,null,null,null,null,null,null,null,null,null,null,null,null,null,null,null,null,null,null,null,null,null,null,null,null,null,null,null,null,null,null,null,null,null,null,null,null,null,null,null,null,null,null,null,null,null,null,null,null,null,30]
[null,null,null,null,null,null,null,null,null,null,null,null,null,null,null,null,null,null,null,null,null,null,null,null,null,null,null,null,31,null,null,null,null,null,null,null,null,null,null,null,null,null,null,null,null,null,null,null,null,null,null,null,null,null,null,null,null,null,null,null,null,null,null,null,null,null,null,null,null,null,null,null,null,null,null,null,null,null,null,null,null,null,null,null,null,null,null,null,null,null,null,null,null,null,null,null,null,null,null,null,null,null,null,null,null,null,null,null,null,null,null,null,null,null,null,null,null,null,null,null,null,null,null,null,null,null,null,null,null,null,null,null,null,null,null,null,null,null,null,null,null,null,null,null,null,null,null,null,null,null,null,null,null,null,null,null,null,null,null,null,31]
[null,null,null,null,null,null,null,null,null,null,null,null,null,null,null,null,null,null,null,null,null,null,null,null,null,null,null,null,null,null,null,null,null,null,null,null,null,null,null,null,null,null,null,null,null,null,null,null,null,null,null,null,null,null,null,null,null,null,null,null,null,null,null,null,null,null,null,null,null,null,null,null,null,null,null,null,null,null,null,null,null,null,null,null,null,null,null,null,null,null,null,null,null,null,null,null,null,null,null,null,null,null,null,null,null,null,null,null,null,null,null,null,null,null,null,null,null,null,null,null,null,null,null,null,null,null,null,null,null,null,null,null,null,null,null,null,null,null,null,null,null,null,null,null,null,null,null,null,null,null,null,null,null,null,null,null,null,null,null,null,32]
[null,null,null,null,null,null,null,null,null,null,null,null,null,null,null,null,null,null,null,null,null,null,null,null,null,null,null,null,null,null,null,null,null,null,null,null,null,null,null,null,null,null,null,null,null,null,null,null,null,null,null,null,null,null,null,null,null,null,null,null,null,null,null,null,null,null,null,null,null,null,null,null,null,null,null,null,null,null,null,null,null,null,null,null,null,null,null,null,null,null,null,null,null,null,null,null,null,null,null,null,null,null,null,null,null,null,null,null,null,null,null,null,null,null,null,null,null,null,null,null,null,null,null,null,null,null,null,null,null,null,null,null,null,null,null,null,null,null,null,null,null,null,null,null,null,null,null,null,null,null,null,null,null,null,null,null,null,null,null,null,33]
[null,null,null,null,null,null,null,null,null,null,null,null,null,null,null,null,null,null,null,null,null,null,null,null,null,null,null,null,null,null,null,null,null,null,null,null,null,null,null,null,null,null,null,null,null,null,null,null,null,null,null,null,null,null,null,null,null,null,null,null,null,null,null,null,null,null,null,null,null,null,null,null,null,null,null,null,null,null,null,null,null,null,null,null,null,null,null,null,null,null,null,null,null,null,null,null,null,null,null,null,null,null,null,null,null,null,null,null,null,null,null,null,null,null,null,null,null,null,null,null,null,null,null,null,null,null,null,null,null,null,null,null,null,null,null,null,null,null,null,null,null,null,null,null,null,null,null,null,null,null,null,null,null,null,null,null,null,null,null,null,34]
[null,null,null,null,null,null,null,null,null,null,null,null,null,null,null,null,null,null,null,null,null,null,null,null,null,null,null,null,null,null,null,null,null,null,null,null,null,null,null,null,null,null,null,null,null,null,null,null,null,null,null,null,null,null,null,null,null,null,null,null,null,null,null,null,null,null,null,null,null,null,null,null,null,null,null,null,null,null,null,null,null,null,null,null,null,null,null,null,null,null,null,null,null,null,null,null,null,null,null,null,null,null,null,null,null,null,null,null,null,null,null,null,null,null,null,null,null,null,null,null,null,null,null,null,null,null,null,null,null,null,null,null,null,null,null,null,null,null,null,null,null,null,null,null,null,null,null,null,null,null,null,null,null,null,null,null,null,null,null,null,35]
[null,null,null,null,null,null,null,null,null,null,null,null,null,null,null,null,null,null,null,null,null,null,null,null,null,null,null,null,null,null,null,null,null,null,null,null,null,null,null,null,null,null,null,null,null,null,null,null,null,null,null,null,null,null,null,null,null,null,null,null,null,null,null,null,null,null,null,null,null,null,null,null,null,null,null,null,null,null,null,null,null,null,null,null,null,null,null,null,null,null,null,null,null,null,null,null,null,null,null,null,null,null,null,null,null,null,null,null,null,null,null,null,null,null,null,null,null,null,null,null,null,null,null,null,null,null,null,null,null,null,null,null,null,null,null,null,null,null,null,null,null,null,null,null,null,null,null,null,null,null,null,null,null,null,null,null,null,null,null,null,36]
[null,null,null,null,null,null,null,null,null,null,null,null,null,null,null,null,null,null,null,null,null,null,null,null,null,null,null,null,null,null,null,null,null,null,null,null,null,null,null,null,null,null,null,null,null,null,null,null,null,null,null,null,null,null,null,null,null,null,null,null,null,null,null,null,null,null,null,null,null,null,null,null,null,null,null,null,null,null,null,null,null,null,null,null,null,null,null,null,null,null,null,null,null,null,null,null,null,null,null,null,null,null,null,null,null,null,null,null,null,null,null,null,null,null,null,null,null,null,null,null,null,null,null,null,null,null,null,null,null,null,null,null,null,null,null,null,null,null,null,null,null,null,null,null,null,null,null,null,null,null,null,null,null,null,null,null,null,null,null,null,37]
[null,null,null,null,null,null,null,null,null,null,null,null,null,null,null,null,null,null,null,null,null,null,null,null,null,null,null,null,null,null,null,null,null,null,null,null,null,null,null,null,null,null,null,null,null,null,null,null,null,null,null,null,null,null,null,null,null,null,null,null,null,null,null,null,null,null,null,null,null,null,null,null,null,null,null,null,null,null,null,null,null,null,null,null,null,null,null,null,null,null,null,null,null,null,null,null,null,null,null,null,null,null,null,null,null,null,null,null,null,null,null,null,null,null,null,null,null,null,null,null,null,null,null,null,null,null,null,null,null,null,null,null,null,null,null,null,null,null,null,null,null,null,null,null,null,null,null,null,null,null,null,null,null,null,null,null,null,null,null,null,38,null,null,null,null,null,null,null,null,null,null,null,null,null,null,null,null,null,null,null,null,null,null,null,null,null,null,null,null,null,null,null,null,null,null,null,null,null,null,null,null,null,null,null,null,null,null,null,null,null,null,{"$f":"COLUMN()","v":212},{"$f":"COLUMN()","v":213},{"$f":"COLUMN()","v":214},{"$f":"COLUMN()","v":215},{"$f":"COLUMN()","v":216},{"$f":"COLUMN()","v":217},{"$f":"COLUMN()","v":218},{"$f":"COLUMN()","v":219},{"$f":"COLUMN()","v":220},{"$f":"COLUMN()","v":221},{"$f":"COLUMN()","v":222},{"$f":"COLUMN()","v":223},{"$f":"COLUMN()","v":224},{"$f":"COLUMN()","v":225},{"$f":"COLUMN()","v":226},{"$f":"COLUMN()","v":227},{"$f":"COLUMN()","v":228},{"$f":"COLUMN()","v":229},{"$f":"COLUMN()","v":230},{"$f":"COLUMN()","v":231},{"$f":"COLUMN()","v":232},{"$f":"COLUMN()","v":233},{"$f":"COLUMN()","v":234},{"$f":"COLUMN()","v":235},{"$f":"COLUMN()","v":236},{"$f":"COLUMN()","v":237},{"$f":"COLUMN()","v":238},{"$f":"COLUMN()","v":239},{"$f":"COLUMN()","v":240},{"$f":"COLUMN()","v":241},{"$f":"COLUMN()","v":242},{"$f":"COLUMN()","v":243},{"$f":"COLUMN()","v":244},{"$f":"COLUMN()","v":245},{"$f":"COLUMN()","v":246},{"$f":"COLUMN()","v":247},{"$f":"COLUMN()","v":248},{"$f":"COLUMN()","v":249},{"$f":"COLUMN()","v":250},{"$f":"COLUMN()","v":251},{"$f":"COLUMN()","v":252},{"$f":"COLUMN()","v":253},{"$f":"COLUMN()","v":254},{"$f":"COLUMN()","v":255},{"$f":"COLUMN()","v":256}]
[null,null,null,null,null,null,null,null,null,null,null,{"$f":"COLUMN()","v":12},null,{"$f":"COLUMN()","v":14},{"$f":"COLUMN()","v":15},null,null,null,null,{"$f":"COLUMN()","v":20},{"$f":"COLUMN()","v":21},{"$f":"COLUMN()","v":22},{"$f":"COLUMN()","v":23},{"$f":"COLUMN()","v":24},{"$f":"COLUMN()","v":25},{"$f":"COLUMN()","v":26},{"$f":"COLUMN()","v":27},{"$f":"COLUMN()","v":28},{"$f":"COLUMN()","v":29},{"$f":"COLUMN()","v":30},{"$f":"COLUMN()","v":31},{"$f":"COLUMN()","v":32},{"$f":"COLUMN()","v":33},{"$f":"COLUMN()","v":34},{"$f":"COLUMN()","v":35},{"$f":"COLUMN()","v":36},{"$f":"COLUMN()","v":37},{"$f":"COLUMN()","v":38},{"$f":"COLUMN()","v":39},{"$f":"COLUMN()","v":40},{"$f":"COLUMN()","v":41},{"$f":"COLUMN()","v":42},{"$f":"COLUMN()","v":43},{"$f":"COLUMN()","v":44},{"$f":"COLUMN()","v":45},{"$f":"COLUMN()","v":46},null,null,null,null,null,null,null,null,null,null,null,null,null,null,null,null,null,null,null,null,null,null,null,null,null,null,null,null,null,null,null,null,null,null,null,null,null,null,null,null,null,null,null,null,null,null,null,null,null,null,null,null,null,null,null,null,null,null,null,null,null,null,null,null,null,null,null,null,null,null,null,null,null,null,null,null,null,null,null,null,null,null,null,null,null,null,null,null,null,null,null,null,null,null,null,null,null,null,null,null,null,null,null,null,null,null,null,null,null,null,null,null,null,null,39,null,null,null,null,null,null,null,null,null,null,null,null,null,null,null,null,null,null,null,null,null,null,null,null,null,null,null,null,null,null,null,null,null,null,null,null,null,null,null,null,null,null,null,null,null,null,null,null,null,null,null,"Attendus de fin de cycle 3",null,null,null,null,null,"Attendus de fin de cycle 4",null,null,null,null,null,"Cycle 5",null,null,null,null,null,"CYCLE 3",null,null,null,null,null,null,"CYCLE 4",null,null,null,null,null,null,"CYCLE LYCÉE",null,null,null,null,null,null,"CYCLE LYCÉE VOIE PRO"]
[null,null,null,null,null,null,null,null,null,null,null,"Thèmes de l'enseignement de spécialité",null,null,"AFL Enseignement de spécialité (cycle terminal)",null,null,null,null,null,null,null,null,null,null,null,null,null,null,"Enseignement de spécialité lycée voie générale et technologique - base de données",null,null,null,null,null,null,null,null,null,null,null,null,null,null,null,null,null,null,null,null,null,null,null,null,null,null,null,null,null,null,null,null,null,null,null,null,null,null,null,null,null,null,null,null,null,null,null,null,null,null,null,null,null,null,null,null,null,null,null,null,null,null,null,null,null,null,null,null,null,null,null,null,null,null,null,null,null,null,null,null,null,null,null,null,null,null,null,null,null,null,null,null,null,null,null,null,null,null,null,null,null,null,null,null,null,null,null,null,null,null,null,null,null,null,null,null,null,null,null,null,null,null,null,null,null,null,null,null,null,null,40,null,null,null,null,null,null,null,null,null,null,null,null,null,null,null,null,null,null,null,null,null,null,null,null,null,null,null,null,null,null,null,null,null,null,null,null,null,null,null,null,null,null,null,null,null,null,null,null,null,null,null,"CA 1","CA 2","CA 3","CA 4",null,null,"CA 1","CA 2","CA 3","CA 4","Autre",null,"CA 1","CA 2","CA 3","CA 4","CA 5",null,"NOM","Niveau\nde\nclasse","AFC","CA",null,null,null,"NOM","Niveau\nde\nclasse","AFC","CA","Niveau\n/ APSA",null,null,"NOM","Niveau\nde\nclasse","AFL","CA","Niveau\n/ APSA",null,null,"NOM","Niveau\nde\nclasse","AFL","CA","Niveau\n/ APSA"]
[null,null,null,null,null,null,null,null,null,null,null,"Niveau Première",null,null,"S'engager, individuellement et collectivement, pour atteindre son plus haut niveau de performance dans des APSA",null,null,null,null,null,null,null,null,null,null,null,null,null,null,null,"Couple Theme-APSA","Niveau de classe","Thème retenu","APSA (1 ou plusieurs)",null,null,null,null,null,null,"Heures Th.","AFL enseignement de spécialité",null,null,null,null,null,null,null,null,null,null,null,null,null,null,null,null,null,null,null,null,null,null,null,null,null,null,null,null,null,null,null,null,null,null,null,null,null,null,null,null,null,null,null,null,null,null,null,null,null,null,null,null,null,null,null,null,null,null,null,null,null,null,null,null,null,null,null,null,null,null,null,null,null,null,null,null,null,null,null,null,null,null,null,null,null,null,null,null,null,null,null,null,null,null,null,null,null,null,null,null,null,null,null,null,null,null,null,null,null,null,null,null,null,null,null,null,null,null,41,null,null,null,null,null,null,null,null,null,null,null,null,null,null,null,null,null,null,null,null,null,null,null,null,null,null,null,null,null,null,null,null,null,null,null,null,null,null,null,null,null,null,null,null,null,null,null,null,null,null,null,"Réaliser des efforts et enchainer plusieurs actions motrices dans différentes familles pour aller plus vite, plus longtemps, plus haut, plus loin.","Réaliser, seul ou à plusieurs, un parcours dans plusieurs environnements inhabituels, en milieu naturel aménage ou artificiel.","Réaliser en petits groupes 2 séquences : une a visée acrobatique destinée à être jugée, une autre a visée artistique destinée à être appréciée et à émouvoir.","S’organiser tactiquement pour gagner le duel ou le match en identifiant les situations favorables de marque.",null,null,"Gérer son effort, faire des choix pour réaliser la meilleure performance dans au moins deux familles athlétiques et/ou au moins de deux styles de nages","Réussir un déplacement planifié dans un milieu naturel aménagé ou artificiellement recréé plus ou moins connu.","Mobiliser les capacités expressives du corps pour imaginer composer et interpréter une séquence artistique ou acrobatique","Réaliser des actions décisives en situation favorable afin de faire basculer le rapport de force en sa faveur ou en faveur de son équipe"]
[null,null,null,null,null,null,null,null,null,null,null,"Métiers du sport et corps humain",null,null,"Analyser et interpréter des expériences diverses relatives aux APSA pour préciser et enrichir son parcours de formation",null,null,null,null,null,null,null,null,null,null,null,null,null,1,null,null,null,null,null,null,null,null,null,null,null,null,null,null,null,null,null,null,null,null,null,null,null,null,null,null,null,null,null,null,null,null,null,null,null,null,null,null,null,null,null,null,null,null,null,null,null,null,null,null,null,null,null,null,null,null,null,null,null,null,null,null,null,null,null,null,null,null,null,null,null,null,null,null,null,null,null,null,null,null,null,null,null,null,null,null,null,null,null,null,null,null,null,null,null,null,null,null,null,null,null,null,null,null,null,null,null,null,null,null,null,null,null,null,null,null,null,null,null,null,null,null,null,null,null,null,null,null,null,null,null,42,null,null,null,null,null,null,null,null,null,null,null,null,null,null,null,null,null,null,null,null,null,null,null,null,null,null,null,null,null,null,null,null,null,null,null,null,null,null,null,null,null,null,null,null,null,null,null,null,null,null,null,"Combiner une course un saut un lancer pour faire la meilleure performance cumulée.","Connaitre et respecter les règles de sécurité qui s’appliquent à chaque environnement.","Savoir filmer une prestation pour la revoir et la faire évoluer","Maintenir un engagement moteur efficace sur tout le temps de jeu prévu",null,null,"S’engager dans un programme de préparation individuel ou collectif","Gérer ses ressources pour réaliser en totalité un parcours sécurisé","Participer activement au sein d’un groupe, à l’élaboration et à la formalisation d’un projet artistique","Adapter son engagement moteur en fonction de son état physique et du rapport de force"]
[null,null,null,null,null,null,null,null,null,null,null,"Pratique physique et santé",null,null,"Mobiliser ses connaissances pour construire une argumentation écrite ou orale sur une problématique relative à la culture sportive",null,null,null,null,null,null,null,null,null,null,null,null,null,2,null,null,null,null,null,null,null,null,null,null,null,null,null,null,null,null,null,null,null,null,null,null,null,null,null,null,null,null,null,null,null,null,null,null,null,null,null,null,null,null,null,null,null,null,null,null,null,null,null,null,null,null,null,null,null,null,null,null,null,null,null,null,null,null,null,null,null,null,null,null,null,null,null,null,null,null,null,null,null,null,null,null,null,null,null,null,null,null,null,null,null,null,null,null,null,null,null,null,null,null,null,null,null,null,null,null,null,null,null,null,null,null,null,null,null,null,null,null,null,null,null,null,null,null,null,null,null,null,null,null,null,43,null,null,null,null,null,null,null,null,null,null,null,null,null,null,null,null,null,null,null,null,null,null,null,null,null,null,null,null,null,null,null,null,null,null,null,null,null,null,null,null,null,null,null,null,null,null,null,null,null,null,null,"Mesurer et quantifier les performances, les enregistrer, les comparer, les classer, les traduire en représentations graphiques.","Identifier la personne responsable à alerter ou la procédure en cas de problème.","Respecter les prestations des autres et accepter de se produire devant les autres","Respecter les partenaires, les adversaires et l’arbitre",null,null,"Planifier et réaliser une épreuve combinée","Assurer la sécurité de son camarade","Apprécier des prestations en utilisant différents supports d’observation et d’analyse","Etre solidaire de ses partenaires et respectueux de son (ses) adversaire(s) et de l’arbitre"]
[null,null,null,null,null,null,null,null,null,null,null,"Technologie des APSA",null,null,"Concevoir, mettre en œuvre et évaluer un projet relatif aux activités physiques, sportives et artistiques",null,null,null,null,null,null,null,null,null,null,null,null,null,3,null,null,null,null,null,null,null,null,null,null,null,null,null,null,null,null,null,null,null,null,null,null,null,null,null,null,null,null,null,null,null,null,null,null,null,null,null,null,null,null,null,null,null,null,null,null,null,null,null,null,null,null,null,null,null,null,null,null,null,null,null,null,null,null,null,null,null,null,null,null,null,null,null,null,null,null,null,null,null,null,null,null,null,null,null,null,null,null,null,null,null,null,null,null,null,null,null,null,null,null,null,null,null,null,null,null,null,null,null,null,null,null,null,null,null,null,null,null,null,null,null,null,null,null,null,null,null,null,null,null,null,44,null,null,null,null,null,null,null,null,null,null,null,null,null,null,null,null,null,null,null,null,null,null,null,null,null,null,null,null,null,null,null,null,null,null,null,null,null,null,null,null,null,null,null,null,null,null,null,null,null,null,null,"Assumer les rôles de chronométreur et d’observateur.","Valider l’attestation scolaire du savoir nager (ASSN)",null,"Assurer différents rôles sociaux (joueur, arbitre, observateur) inhérents à l’activité et a l’organisation de la classe",null,null,"S’échauffer avant un effort","Respecter et faire respecter les règles de sécurité",null,"Observer et Co arbitrer"]
[null,null,null,null,null,null,null,null,null,null,null,null,null,null,null,null,null,null,null,null,null,null,null,null,null,null,null,null,4,null,null,null,null,null,null,null,null,null,null,null,null,null,null,null,null,null,null,null,null,null,null,null,null,null,null,null,null,null,null,null,null,null,null,null,null,null,null,null,null,null,null,null,null,null,null,null,null,null,null,null,null,null,null,null,null,null,null,null,null,null,null,null,null,null,null,null,null,null,null,null,null,null,null,null,null,null,null,null,null,null,null,null,null,null,null,null,null,null,null,null,null,null,null,null,null,null,null,null,null,null,null,null,null,null,null,null,null,null,null,null,null,null,null,null,null,null,null,null,null,null,null,null,null,null,null,null,null,null,null,null,45,null,null,null,null,null,null,null,null,null,null,null,null,null,null,null,null,null,null,null,null,null,null,null,null,null,null,null,null,null,null,null,null,null,null,null,null,null,null,null,null,null,null,null,null,null,null,null,null,null,null,null,null,null,null,"Accepter le résultat de la rencontre et être capable de le commenter",null,null,"Aider ses camarades et assumer différents rôles sociaux (juge d’appel et de déroulement, chronométreur, juge de mesure, organisateur, collecteur des résultats, …)",null,null,"Accepter le résultat de la rencontre et savoir l'analyser avec objectivité"]
[null,null,null,null,null,null,null,null,null,null,null,"Niveau Terminal",null,null,null,null,null,null,null,null,null,null,null,null,null,null,null,null,5,null,null,null,null,null,null,null,null,null,null,null,null,null,null,null,null,null,null,null,null,null,null,null,null,null,null,null,null,null,null,null,null,null,null,null,null,null,null,null,null,null,null,null,null,null,null,null,null,null,null,null,null,null,null,null,null,null,null,null,null,null,null,null,null,null,null,null,null,null,null,null,null,null,null,null,null,null,null,null,null,null,null,null,null,null,null,null,null,null,null,null,null,null,null,null,null,null,null,null,null,null,null,null,null,null,null,null,null,null,null,null,null,null,null,null,null,null,null,null,null,null,null,null,null,null,null,null,null,null,null,null,46]
[null,null,null,null,null,null,null,null,null,null,null,"La pratique physique dans le monde contemporain",null,null,null,null,null,null,null,null,null,null,null,null,null,null,null,null,6,null,null,null,null,null,null,null,null,null,null,null,null,null,null,null,null,null,null,null,null,null,null,null,null,null,null,null,null,null,null,null,null,null,null,null,null,null,null,null,null,null,null,null,null,null,null,null,null,null,null,null,null,null,null,null,null,null,null,null,null,null,null,null,null,null,null,null,null,null,null,null,null,null,null,null,null,null,null,null,null,null,null,null,null,null,null,null,null,null,null,null,null,null,null,null,null,null,null,null,null,null,null,null,null,null,null,null,null,null,null,null,null,null,null,null,null,null,null,null,null,null,null,null,null,null,null,null,null,null,null,null,47]
[null,null,null,null,null,null,null,null,null,null,null,"Technologie des APSA",null,null,null,null,null,null,null,null,null,null,null,null,null,null,null,null,7,null,null,null,null,null,null,null,null,null,null,null,null,null,null,null,null,null,null,null,null,null,null,null,null,null,null,null,null,null,null,null,null,null,null,null,null,null,null,null,null,null,null,null,null,null,null,null,null,null,null,null,null,null,null,null,null,null,null,null,null,null,null,null,null,null,null,null,null,null,null,null,null,null,null,null,null,null,null,null,null,null,null,null,null,null,null,null,null,null,null,null,null,null,null,null,null,null,null,null,null,null,null,null,null,null,null,null,null,null,null,null,null,null,null,null,null,null,null,null,null,null,null,null,null,null,null,null,null,null,null,null,48]
[null,null,null,null,null,null,null,null,null,null,null,null,null,null,null,null,null,null,null,null,null,null,null,null,null,null,null,null,8,null,null,null,null,null,null,null,null,null,null,null,null,null,null,null,null,null,null,null,null,null,null,null,null,null,null,null,null,null,null,null,null,null,null,null,null,null,null,null,null,null,null,null,null,null,null,null,null,null,null,null,null,null,null,null,null,null,null,null,null,null,null,null,null,null,null,null,null,null,null,null,null,null,null,null,null,null,null,null,null,null,null,null,null,null,null,null,null,null,null,null,null,null,null,null,null,null,null,null,null,null,null,null,null,null,null,null,null,null,null,null,null,null,null,null,null,null,null,null,null,null,null,null,null,null,null,null,null,null,null,null,49]
[null,null,null,null,null,null,null,null,null,null,null,null,null,null,null,null,null,null,null,null,null,null,null,null,null,null,null,null,9,null,null,null,null,null,null,null,null,null,null,null,null,null,null,null,null,null,null,null,null,null,null,null,null,null,null,null,null,null,null,null,null,null,null,null,null,null,null,null,null,null,null,null,null,null,null,null,null,null,null,null,null,null,null,null,null,null,null,null,null,null,null,null,null,null,null,null,null,null,null,null,null,null,null,null,null,null,null,null,null,null,null,null,null,null,null,null,null,null,null,null,null,null,null,null,null,null,null,null,null,null,null,null,null,null,null,null,null,null,null,null,null,null,null,null,null,null,null,null,null,null,null,null,null,null,null,null,null,null,null,null,50]
[null,null,null,null,null,null,null,null,null,null,null,null,null,null,null,null,null,null,null,null,null,null,null,null,null,null,null,null,10,null,null,null,null,null,null,null,null,null,null,null,null,null,null,null,null,null,null,null,null,null,null,null,null,null,null,null,null,null,null,null,null,null,null,null,null,null,null,null,null,null,null,null,null,null,null,null,null,null,null,null,null,null,null,null,null,null,null,null,null,null,null,null,null,null,null,null,null,null,null,null,null,null,null,null,null,null,null,null,null,null,null,null,null,null,null,null,null,null,null,null,null,null,null,null,null,null,null,null,null,null,null,null,null,null,null,null,null,null,null,null,null,null,null,null,null,null,null,null,null,null,null,null,null,null,null,null,null,null,null,null,51]
[null,null,null,null,null,null,null,null,null,null,null,"Niveau de classe Enseignement de spécialité",null,null,null,null,null,null,null,null,null,null,null,null,null,null,null,null,11,null,null,null,null,null,null,null,null,null,null,null,null,null,null,null,null,null,null,null,null,null,null,null,null,null,null,null,null,null,null,null,null,null,null,null,null,null,null,null,null,null,null,null,null,null,null,null,null,null,null,null,null,null,null,null,null,null,null,null,null,null,null,null,null,null,null,null,null,null,null,null,null,null,null,null,null,null,null,null,null,null,null,null,null,null,null,null,null,null,null,null,null,null,null,null,null,null,null,null,null,null,null,null,null,null,null,null,null,null,null,null,null,null,null,null,null,null,null,null,null,null,null,null,null,null,null,null,null,null,null,null,52]
[null,null,null,null,null,null,null,null,null,null,null,"Première",null,null,null,null,null,null,null,null,null,null,null,null,null,null,null,null,12,null,null,null,null,null,null,null,null,null,null,null,null,null,null,null,null,null,null,null,null,null,null,null,null,null,null,null,null,null,null,null,null,null,null,null,null,null,null,null,null,null,null,null,null,null,null,null,null,null,null,null,null,null,null,null,null,null,null,null,null,null,null,null,null,null,null,null,null,null,null,null,null,null,null,null,null,null,null,null,null,null,null,null,null,null,null,null,null,null,null,null,null,null,null,null,null,null,null,null,null,null,null,null,null,null,null,null,null,null,null,null,null,null,null,null,null,null,null,null,null,null,null,null,null,null,null,null,null,null,null,null,53]
[null,null,null,null,null,null,null,null,null,null,null,"Terminal",null,null,null,null,null,null,null,null,null,null,null,null,null,null,null,null,13,null,null,null,null,null,null,null,null,null,null,null,null,null,null,null,null,null,null,null,null,null,null,null,null,null,null,null,null,null,null,null,null,null,null,null,null,null,null,null,null,null,null,null,null,null,null,null,null,null,null,null,null,null,null,null,null,null,null,null,null,null,null,null,null,null,null,null,null,null,null,null,null,null,null,null,null,null,null,null,null,null,null,null,null,null,null,null,null,null,null,null,null,null,null,null,null,null,null,null,null,null,null,null,null,null,null,null,null,null,null,null,null,null,null,null,null,null,null,null,null,null,null,null,null,null,null,null,null,null,null,null,54]
[null,null,null,null,null,null,null,null,null,null,null,null,null,null,null,null,null,null,null,null,null,null,null,null,null,null,null,null,14,null,null,null,null,null,null,null,null,null,null,null,null,null,null,null,null,null,null,null,null,null,null,null,null,null,null,null,null,null,null,null,null,null,null,null,null,null,null,null,null,null,null,null,null,null,null,null,null,null,null,null,null,null,null,null,null,null,null,null,null,null,null,null,null,null,null,null,null,null,null,null,null,null,null,null,null,null,null,null,null,null,null,null,null,null,null,null,null,null,null,null,null,null,null,null,null,null,null,null,null,null,null,null,null,null,null,null,null,null,null,null,null,null,null,null,null,null,null,null,null,null,null,null,null,null,null,null,null,null,null,null,55]
[null,null,null,null,null,null,null,null,null,null,null,null,null,null,null,null,null,null,null,null,null,null,null,null,null,null,null,null,15,null,null,null,null,null,null,null,null,null,null,null,null,null,null,null,null,null,null,null,null,null,null,null,null,null,null,null,null,null,null,null,null,null,null,null,null,null,null,null,null,null,null,null,null,null,null,null,null,null,null,null,null,null,null,null,null,null,null,null,null,null,null,null,null,null,null,null,null,null,null,null,null,null,null,null,null,null,null,null,null,null,null,null,null,null,null,null,null,null,null,null,null,null,null,null,null,null,null,null,null,null,null,null,null,null,null,null,null,null,null,null,null,null,null,null,null,null,null,null,null,null,null,null,null,null,null,null,null,null,null,null,56]
[null,null,null,null,null,null,null,null,null,null,null,null,null,null,null,null,null,null,null,null,null,null,null,null,null,null,null,null,null,null,null,null,null,null,null,null,null,null,null,null,null,null,null,null,null,null,null,null,null,null,null,null,null,null,null,null,null,null,null,null,null,null,null,null,null,null,null,null,null,null,null,null,null,null,null,null,null,null,null,null,null,null,null,null,null,null,null,null,null,null,null,null,null,null,null,null,null,null,null,null,null,null,null,null,null,null,null,null,null,null,null,null,null,null,null,null,null,null,null,null,null,null,null,null,null,null,null,null,null,null,null,null,null,null,null,null,null,null,null,null,null,null,null,null,null,null,null,null,null,null,null,null,null,null,null,null,null,null,null,null,57]
[null,null,null,null,null,null,null,null,null,null,null,null,null,null,null,null,null,null,null,null,null,null,null,null,null,null,null,null,null,null,null,null,null,null,null,null,null,null,null,null,null,null,null,null,null,null,null,null,null,null,null,null,null,null,null,null,null,null,null,null,null,null,null,null,null,null,null,null,null,null,null,null,null,null,null,null,null,null,null,null,null,null,null,null,null,null,null,null,null,null,null,null,null,null,null,null,null,null,null,null,null,null,null,null,null,null,null,null,null,null,null,null,null,null,null,null,null,null,null,null,null,null,null,null,null,null,null,null,null,null,null,null,null,null,null,null,null,null,null,null,null,null,null,null,null,null,null,null,null,null,null,null,null,null,null,null,null,null,null,null,58]
[null,null,null,null,null,null,null,null,null,null,null,null,null,null,null,null,null,null,null,null,null,null,null,null,null,null,null,null,null,null,null,null,null,null,null,null,null,null,null,null,null,null,null,null,null,null,null,null,null,null,null,null,null,null,null,null,null,null,null,null,null,null,null,null,null,null,null,null,null,null,null,null,null,null,null,null,null,null,null,null,null,null,null,null,null,null,null,null,null,null,null,null,null,null,null,null,null,null,null,null,null,null,null,null,null,null,null,null,null,null,null,null,null,null,null,null,null,null,null,null,null,null,null,null,null,null,null,null,null,null,null,null,null,null,null,null,null,null,null,null,null,null,null,null,null,null,null,null,null,null,null,null,null,null,null,null,null,null,null,null,59]
[null,null,null,null,null,null,null,null,null,null,null,null,null,null,null,null,null,null,null,null,null,null,null,null,null,null,null,null,null,null,null,null,null,null,null,null,null,null,null,null,null,null,null,null,null,null,null,null,null,null,null,null,null,null,null,null,null,null,null,null,null,null,null,null,null,null,null,null,null,null,null,null,null,null,null,null,null,null,null,null,null,null,null,null,null,null,null,null,null,null,null,null,null,null,null,null,null,null,null,null,null,null,null,null,null,null,null,null,null,null,null,null,null,null,null,null,null,null,null,null,null,null,null,null,null,null,null,null,null,null,null,null,null,null,null,null,null,null,null,null,null,null,null,null,null,null,null,null,null,null,null,null,null,null,null,null,null,null,null,null,60]
[null,null,null,null,null,null,null,null,null,null,null,null,null,null,null,null,null,null,null,null,null,null,null,null,null,null,null,null,null,null,null,null,null,null,null,null,null,null,null,null,null,null,null,null,null,null,null,null,null,null,null,null,null,null,null,null,null,null,null,null,null,null,null,null,null,null,null,null,null,null,null,null,null,null,null,null,null,null,null,null,null,null,null,null,null,null,null,null,null,null,null,null,null,null,null,null,null,null,null,null,null,null,null,null,null,null,null,null,null,null,null,null,null,null,null,null,null,null,null,null,null,null,null,null,null,null,null,null,null,null,null,null,null,null,null,null,null,null,null,null,null,null,null,null,null,null,null,null,null,null,null,null,null,null,null,null,null,null,null,null,61]
[null,null,null,null,null,null,null,null,null,null,null,null,null,null,null,null,null,null,null,null,null,null,null,null,null,null,null,null,null,null,null,null,null,null,null,null,null,null,null,null,null,null,null,null,null,null,null,null,null,null,null,null,null,null,null,null,null,null,null,null,null,null,null,null,null,null,null,null,null,null,null,null,null,null,null,null,null,null,null,null,null,null,null,null,null,null,null,null,null,null,null,null,null,null,null,null,null,null,null,null,null,null,null,null,null,null,null,null,null,null,null,null,null,null,null,null,null,null,null,null,null,null,null,null,null,null,null,null,null,null,null,null,null,null,null,null,null,null,null,null,null,null,null,null,null,null,null,null,null,null,null,null,null,null,null,null,null,null,null,null,62]
[null,null,null,null,null,null,null,null,null,null,null,null,null,null,null,null,null,null,null,null,null,null,null,null,null,null,null,null,null,null,null,null,null,null,null,null,null,null,null,null,null,null,null,null,null,null,null,null,null,null,null,null,null,null,null,null,null,null,null,null,null,null,null,null,null,null,null,null,null,null,null,null,null,null,null,null,null,null,null,null,null,null,null,null,null,null,null,null,null,null,null,null,null,null,null,null,null,null,null,null,null,null,null,null,null,null,null,null,null,null,null,null,null,null,null,null,null,null,null,null,null,null,null,null,null,null,null,null,null,null,null,null,null,null,null,null,null,null,null,null,null,null,null,null,null,null,null,null,null,null,null,null,null,null,null,null,null,null,null,null,63]
[null,null,null,null,null,null,null,null,null,null,null,null,null,null,null,null,null,null,null,null,null,null,null,null,null,null,null,null,null,null,null,null,null,null,null,null,null,null,null,null,null,null,null,null,null,null,null,null,null,null,null,null,null,null,null,null,null,null,null,null,null,null,null,null,null,null,null,null,null,null,null,null,null,null,null,null,null,null,null,null,null,null,null,null,null,null,null,null,null,null,null,null,null,null,null,null,null,null,null,null,null,null,null,null,null,null,null,null,null,null,null,null,null,null,null,null,null,null,null,null,null,null,null,null,null,null,null,null,null,null,null,null,null,null,null,null,null,null,null,null,null,null,null,null,null,null,null,null,null,null,null,null,null,null,null,null,null,null,null,null,64]
[null,null,null,null,null,null,null,null,null,null,null,null,null,null,null,null,null,null,null,null,null,null,null,null,null,null,null,null,null,null,null,null,null,null,null,null,null,null,null,null,null,null,null,null,null,null,null,null,null,null,null,null,null,null,null,null,null,null,null,null,null,null,null,null,null,null,null,null,null,null,null,null,null,null,null,null,null,null,null,null,null,null,null,null,null,null,null,null,null,null,null,null,null,null,null,null,null,null,null,null,null,null,null,null,null,null,null,null,null,null,null,null,null,null,null,null,null,null,null,null,null,null,null,null,null,null,null,null,null,null,null,null,null,null,null,null,null,null,null,null,null,null,null,null,null,null,null,null,null,null,null,null,null,null,null,null,null,null,null,null,65]
[null,null,null,null,null,null,null,null,null,null,null,null,null,null,null,null,null,null,null,null,null,null,null,null,null,null,null,null,null,null,null,null,null,null,null,null,null,null,null,null,null,null,null,null,null,null,null,null,null,null,null,null,null,null,null,null,null,null,null,null,null,null,null,null,null,null,null,null,null,null,null,null,null,null,null,null,null,null,null,null,null,null,null,null,null,null,null,null,null,null,null,null,null,null,null,null,null,null,null,null,null,null,null,null,null,null,null,null,null,null,null,null,null,null,null,null,null,null,null,null,null,null,null,null,null,null,null,null,null,null,null,null,null,null,null,null,null,null,null,null,null,null,null,null,null,null,null,null,null,null,null,null,null,null,null,null,null,null,null,null,66]
[null,null,null,null,null,null,null,null,null,null,null,null,null,null,null,null,null,null,null,null,null,null,null,null,null,null,null,null,null,null,null,null,null,null,null,null,null,null,null,null,null,null,null,null,null,null,null,null,null,null,null,null,null,null,null,null,null,null,null,null,null,null,null,null,null,null,null,null,null,null,null,null,null,null,null,null,null,null,null,null,null,null,null,null,null,null,null,null,null,null,null,null,null,null,null,null,null,null,null,null,null,null,null,null,null,null,null,null,null,null,null,null,null,null,null,null,null,null,null,null,null,null,null,null,null,null,null,null,null,null,null,null,null,null,null,null,null,null,null,null,null,null,null,null,null,null,null,null,null,null,null,null,null,null,null,null,null,null,null,null,67]
[null,null,null,null,null,null,null,null,null,null,null,null,null,null,null,null,null,null,null,null,null,null,null,null,null,null,null,null,null,null,null,null,null,null,null,null,null,null,null,null,null,null,null,null,null,null,null,null,null,null,null,null,null,null,null,null,null,null,null,null,null,null,null,null,null,null,null,null,null,null,null,null,null,null,null,null,null,null,null,null,null,null,null,null,null,null,null,null,null,null,null,null,null,null,null,null,null,null,null,null,null,null,null,null,null,null,null,null,null,null,null,null,null,null,null,null,null,null,null,null,null,null,null,null,null,null,null,null,null,null,null,null,null,null,null,null,null,null,null,null,null,null,null,null,null,null,null,null,null,null,null,null,null,null,null,null,null,null,null,null,68]
[null,null,null,null,null,null,null,null,null,null,null,null,null,null,null,null,null,null,null,null,null,null,null,null,null,null,null,null,null,null,null,null,null,null,null,null,null,null,null,null,null,null,null,null,null,null,null,null,null,null,null,null,null,null,null,null,null,null,null,null,null,null,null,null,null,null,null,null,null,null,null,null,null,null,null,null,null,null,null,null,null,null,null,null,null,null,null,null,null,null,null,null,null,null,null,null,null,null,null,null,null,null,null,null,null,null,null,null,null,null,null,null,null,null,null,null,null,null,null,null,null,null,null,null,null,null,null,null,null,null,null,null,null,null,null,null,null,null,null,null,null,null,null,null,null,null,null,null,null,null,null,null,null,null,null,null,null,null,null,null,69]
[null,null,null,null,null,null,null,null,null,null,null,null,null,null,null,null,null,null,null,null,null,null,null,null,null,null,null,null,null,null,null,null,null,null,null,null,null,null,null,null,null,null,null,null,null,null,null,null,null,null,null,null,null,null,null,null,null,null,null,null,null,null,null,null,null,null,null,null,null,null,null,null,null,null,null,null,null,null,null,null,null,null,null,null,null,null,null,null,null,null,null,null,null,null,null,null,null,null,null,null,null,null,null,null,null,null,null,null,null,null,null,null,null,null,null,null,null,null,null,null,null,null,null,null,null,null,null,null,null,null,null,null,null,null,null,null,null,null,null,null,null,null,null,null,null,null,null,null,null,null,null,null,null,null,null,null,null,null,null,null,70]
[null,null,null,null,null,null,null,null,null,null,null,null,null,null,null,null,null,null,null,null,null,null,null,null,null,null,null,null,null,null,null,null,null,null,null,null,null,null,null,null,null,null,null,null,null,null,null,null,null,null,null,null,null,null,null,null,null,null,null,null,null,null,null,null,null,null,null,null,null,null,null,null,null,null,null,null,null,null,null,null,null,null,null,null,null,null,null,null,null,null,null,null,null,null,null,null,null,null,null,null,null,null,null,null,null,null,null,null,null,null,null,null,null,null,null,null,null,null,null,null,null,null,null,null,null,null,null,null,null,null,null,null,null,null,null,null,null,null,null,null,null,null,null,null,null,null,null,null,null,null,null,null,null,null,null,null,null,null,null,null,71]
[null,null,null,null,null,null,null,null,null,null,null,null,null,null,null,null,null,null,null,null,null,null,null,null,null,null,null,null,null,null,null,null,null,null,null,null,null,null,null,null,null,null,null,null,null,null,null,null,null,null,null,null,null,null,null,null,null,null,null,null,null,null,null,null,null,null,null,null,null,null,null,null,null,null,null,null,null,null,null,null,null,null,null,null,null,null,null,null,null,null,null,null,null,null,null,null,null,null,null,null,null,null,null,null,null,null,null,null,null,null,null,null,null,null,null,null,null,null,null,null,null,null,null,null,null,null,null,null,null,null,null,null,null,null,null,null,null,null,null,null,null,null,null,null,null,null,null,null,null,null,null,null,null,null,null,null,null,null,null,null,72]
[null,null,null,null,null,null,null,null,null,null,null,null,null,null,null,null,null,null,null,null,null,null,null,null,null,null,null,null,null,null,null,null,null,null,null,null,null,null,null,null,null,null,null,null,null,null,null,null,null,null,null,null,null,null,null,null,null,null,null,null,null,null,null,null,null,null,null,null,null,null,null,null,null,null,null,null,null,null,null,null,null,null,null,null,null,null,null,null,null,null,null,null,null,null,null,null,null,null,null,null,null,null,null,null,null,null,null,null,null,null,null,null,null,null,null,null,null,null,null,null,null,null,null,null,null,null,null,null,null,null,null,null,null,null,null,null,null,null,null,null,null,null,null,null,null,null,null,null,null,null,null,null,null,null,null,null,null,null,null,null,73]
[null,null,null,null,null,null,null,null,null,null,null,null,null,null,null,null,null,null,null,null,null,null,null,null,null,null,null,null,null,null,null,null,null,null,null,null,null,null,null,null,null,null,null,null,null,null,null,null,null,null,null,null,null,null,null,null,null,null,null,null,null,null,null,null,null,null,null,null,null,null,null,null,null,null,null,null,null,null,null,null,null,null,null,null,null,null,null,null,null,null,null,null,null,null,null,null,null,null,null,null,null,null,null,null,null,null,null,null,null,null,null,null,null,null,null,null,null,null,null,null,null,null,null,null,null,null,null,null,null,null,null,null,null,null,null,null,null,null,null,null,null,null,null,null,null,null,null,null,null,null,null,null,null,null,null,null,null,null,null,null,74]
[null,null,null,null,null,null,null,null,null,null,null,null,null,null,null,null,null,null,null,null,null,null,null,null,null,null,null,null,null,null,null,null,null,null,null,null,null,null,null,null,null,null,null,null,null,null,null,null,null,null,null,null,null,null,null,null,null,null,null,null,null,null,null,null,null,null,null,null,null,null,null,null,null,null,null,null,null,null,null,null,null,null,null,null,null,null,null,null,null,null,null,null,null,null,null,null,null,null,null,null,null,null,null,null,null,null,null,null,null,null,null,null,null,null,null,null,null,null,null,null,null,null,null,null,null,null,null,null,null,null,null,null,null,null,null,null,null,null,null,null,null,null,null,null,null,null,null,null,null,null,null,null,null,null,null,null,null,null,null,null,75]
[null,null,null,null,null,null,null,null,null,null,null,null,null,null,null,null,null,null,null,null,null,null,null,null,null,null,null,null,null,null,null,null,null,null,null,null,null,null,null,null,null,null,null,null,null,null,null,null,null,null,null,null,null,null,null,null,null,null,null,null,null,null,null,null,null,null,null,null,null,null,null,null,null,null,null,null,null,null,null,null,null,null,null,null,null,null,null,null,null,null,null,null,null,null,null,null,null,null,null,null,null,null,null,null,null,null,null,null,null,null,null,null,null,null,null,null,null,null,null,null,null,null,null,null,null,null,null,null,null,null,null,null,null,null,null,null,null,null,null,null,null,null,null,null,null,null,null,null,null,null,null,null,null,null,null,null,null,null,null,null,"FIN"]
[]
[]
[]
[]
[]
[]
[]
[]
[]
[]
[]
[]
[]
[]
[]
[]
[]
[]
[]
[]
[]
[]
[null,null,"adresse ftp : "]
[]
[]
[null,null,null,"/opeps/"]

{"sheet":"Mod_ProgEPS","index":1,"n_rows":17,"n_cols":18,"rows_kept":17,"cut":false,"hidden":true,"merged":[[16,4,16,14],[12,3,12,4],[4,3,4,20],[6,3,6,16],[14,4,14,14],[15,4,15,14]]}
[]
[]
[]
[]
[]
[]
[]
[]
[null,null,null,null,"Niveau","CA 1",null,null,"CA 2",null,null,"CA 3",null,null,"CA 4",null,null,"Autre"]
[]
[]
[null,null,null,null,null,"CA 1",null,null,"CA 2",null,null,"CA 3",null,null,"CA 4",null,null,"Autre"]
[null,null,null,"Répartition par CA : "]
[]
[null,null,null,"Légende : ","Activité(s) programmée(s) au moins 2 fois dont une dans la dernière année du cycle d'enseignement"]
[null,null,null,null,"Couleur du texte désignant une APSA de la liste académique (lycée voie générale et technologique)"]
[null,null,null,null,"Couleur du texte désignant une APSA rajoutée par l'équipe EPS (collège, EREA, lycée pro) ou d'établissement (lycée général et technologique)"]

{"sheet":"Mod_ParcoursEleve","index":2,"n_rows":27,"n_cols":14,"rows_kept":27,"cut":false,"hidden":true,"merged":[[2,4,2,7],[4,3,4,14],[9,3,13,3],[15,3,19,3],[21,3,25,3],[6,3,6,14]]}
[]
[]
[null,null,null,"Légende : ","Activité(s) programmée(s) 2 fois au moins dont une fois dans la dernière année du cycle d'enseignement"]
[]
[]
[]
[]
[]
[null,null,null,null,"Niveaux","CA 1",null,"CA 2",null,"CA 3",null,"CA 4",null,"Autre"]
[null,null,null,"CYCLE 3","CM 1"]
["fin"]
[null,null,null,null,"CM 2"]
["fin"]
[null,null,null,null,"SIXIÈME"]
["fin"]
[null,null,null,"CYCLE 4","CINQUIÈME"]
["fin"]
[null,null,null,null,"QUATRIÈME"]
["fin"]
[null,null,null,null,"TROISIÈME"]
["fin"]
[null,null,null,"CYCLE\nLYCÉE","SECONDE"]
["fin"]
[null,null,null,null,"PREMIÈRE"]
["fin"]
[null,null,null,null,"TERMINALE"]
["fin"]

{"sheet":"FondDossEps","index":3,"n_rows":0,"n_cols":0,"rows_kept":0,"cut":false,"hidden":false,"merged":[]}

{"sheet":"Etablissement","index":4,"n_rows":19,"n_cols":21,"rows_kept":19,"cut":false,"hidden":true,"merged":[[17,4,17,8],[4,4,4,10],[4,12,4,13],[4,15,4,16],[13,12,13,14],[14,12,14,14],[7,12,7,14],[8,12,8,14],[13,15,13,16],[11,4,11,8],[5,12,5,14],[6,12,6,14],[10,12,10,14],[11,12,11,14],[5,10,5,11],[8,10,8,11],[10,10,10,11],[11,10,11,11],[16,10,16,11],[16,12,16,14],[17,10,17,11],[17,12,17,14],[12,12,12,14],[12,10,12,11],[9,4,9,8],[10,4,10,8],[12,4,12,8],[13,4,13,8],[14,4,14,8],[15,4,15,8],[15,12,15,14],[13,10,13,11],[14,10,14,11],[15,10,15,11],[2,3,2,21],[12,15,12,16],[10,15,10,16],[8,15,8,16],[7,15,7,16],[6,15,6,16],[9,15,9,16],[11,15,11,16],[5,4,5,8],[6,4,6,8],[7,4,7,8],[8,4,8,8],[6,10,6,11],[7,10,7,11],[3,4,3,10],[3,12,3,13]]}
[null,null,null,null,null,null,null,null,null,null,4306]
[]
[]
[null,null,null,"Collège de la cité scolaire :",null,null,null,null,null,null,null,"Numéro UAI collège (ex RNE) :"]
[null,null,null,"LP de la cité scolaire :",null,null,null,null,null,null,null,"Numéro UAI LP (ex RNE) :",null,null,null,"Absence de programmation de la natation :"]
[null,null,null,"Type établissement :",null,null,null,null,null,null,"Chef d'établissement :",null,null,null,null,null,null,"sixième","cinquième","quatrième","troisième"]
[null,null,null,"Statut :",null,null,null,null,null,null,"Adjoint :",null,null,null,null,"Nombre d'élèves :"]
[null,null,null,"Département :",null,null,null,null,null,null,"Adjoint 2 :",null,null,null,null,"Nombre d'élèves ayant obtenu l'attestation du savoir-nager :"]
[null,null,null,"Bassin :",null,null,null,null,null,null,"Adjoint 3 :",null,null,null,null,"Pourcentage de possession de l'attestation du savoir-nager :"]
[null,null,null,"Commune :"]
[null,null,null,"UAI (ex RNE) :",null,null,null,null,null,null,"Coordonnateur EPS 1 :",null,null,null,null,"Nombre d'élèves ayant choisi pour l'oral du brevet 1 EPI où l'EPS y figure :"]
[null,null,null,"Adresse  :",null,null,null,null,null,null,"Coordonnateur EPS 2 :",null,null,null,null,"Pourcentage : "]
[null,null,null,"Code postal :",null,null,null,null,null,null,"Secrétaire AS 1 :",null,null,null,null,"Nombre d'élèves ayant choisi pour l'oral du brevet 1 PARCOURS EDUCATIF où l'EPS y figure :"]
[null,null,null,"Numéro de téléphone :",null,null,null,null,null,null,"Trésorier AS  1 :",null,null,null,null,"Pourcentage : "]
[null,null,null,"Numéro de Fax :",null,null,null,null,null,null,"Correspondant FPC :"]
[null,null,null,"Mail :",null,null,null,null,null,null,"Responsable certification :"]
[null,null,null,"Présence d'une UF2S (voie Pro) :",null,null,null,null,null,null,"Secrétaire AS 2 :"]
[null,null,null,"Email contact enseignant :",null,null,null,null,null,null,"Trésorier AS  2 :"]
[null,null,null,"NOM, Prénom","Grade","Echelon","Date\naffectation\nétablissem.","Date\nRDV Carrière\n ou Visite","Forfait\nUNSS","Coordi-\nnation","District\nUNSS","Type d'affectation dans l'établissement : ","Heures\nenseign\nEPS","Réduction\nde service","Jury d'examens aux\népreuves ponctuelles","APSA en tant que jury aux\népreuves ponctuelles","Remplacement de l'enseignant(e)"]

{"sheet":"ListeClasses","index":5,"n_rows":4,"n_cols":5,"rows_kept":4,"cut":false,"hidden":false,"merged":[]}
[]
[]
[]
[null,null,null,"Divisions ou\nGroupes","Niveau ou\nType de groupe\n(étiquette)"]

{"sheet":"ListeColleges","index":6,"n_rows":121,"n_cols":49,"rows_kept":121,"cut":false,"hidden":true,"merged":[[17,2,17,12],[17,38,17,48],[17,26,17,32],[17,14,17,24]]}
[]
[]
[]
[]
[]
[]
[]
[]
[]
[]
[]
[]
[]
[]
[]
[null,null,"Lien vers l'annuaire des établissements"]
[null,null,{"$f":"\"Public : \"&COUNTIFS(H20:H150,\"Public\",C20:C150,\"<>\"\"\")&\" Privé : \"&COUNTIFS(H20:H150,\"Privé\",C20:C150,\"<>\"\"\")&\" Total : \"&COUNTA(C20:C150)","v":"Public : 66 Privé : 13 Total : 79"},null,null,null,null,null,null,null,null,null,null,null,{"$f":"\"Public : \"&COUNTIFS(T20:T150,\"Public\",O20:O150,\"<>\"\"\")&\" Privé : \"&COUNTIFS(T20:T150,\"Privé\",O20:O150,\"<>\"\"\")&\" Total : \"&COUNTA(O20:O150)","v":"Public : 22 Privé : 5 Total : 27"},null,null,null,null,null,null,null,null,null,null,null,{"$f":"\"Public : \"&COUNTIFS(AF20:AF150,\"Public\",AA20:AA150,\"<>\"\"\")&\" Privé : \"&COUNTIFS(AF20:AF150,\"Privé\",AA20:AA150,\"<>\"\"\")&\" Total : \"&COUNTA(AA20:AA150)","v":"Public : 90 Privé : 12 Total : 102"},null,null,null,null,null,null,null,null,null,null,null,{"$f":"\"Public : \"&COUNTIFS(AR20:AR150,\"Public\",AM20:AM150,\"<>\"\"\")&\" Privé : \"&COUNTIFS(AR20:AR150,\"Privé\",AM20:AM150,\"<>\"\"\")&\" Total : \"&COUNTA(AM20:AM150)","v":"Public : 38 Privé : 9 Total : 47"}]
[null,null,"Meurthe et Moselle",null,null,null,null,null,null,null,null,null,null,null,"Meuse",null,null,null,null,null,null,null,null,null,null,null,"Moselle",null,null,null,null,null,null,null,null,null,null,null,"Vosges"]
[null,null,"NOM Complet","NOM Etablissement","RNE","COMMUNE","TYPE","PU/Pr","Mail :","Téléphone :","Fax :","Bassin :","Adresse :",null,"NOM Complet","NOM Etablissement","RNE","COMMUNE","TYPE","PU/Pr","Mail :","Téléphone :","Fax :","Bassin :","Adresse :",null,"NOM Complet","NOM Etablissement","RNE","COMMUNE","TYPE","PU/Pr","Mail :","Téléphone :","Fax :","Bassin :","Adresse :",null,"NOM Complet","NOM Etablissement","RNE","COMMUNE","TYPE","PU/Pr","Mail :","Téléphone :","Fax :","Bassin :","Adresse :"]
[null,null,{"$f":"CONCATENATE(F20,\"_\",G20,\" \",H20,\" \",D20)","v":"AUDUN LE ROMAN_CLG Public GASTON RAMON"},"GASTON RAMON","0541470E","AUDUN LE ROMAN","CLG","Public",{"$f":"CONCATENATE(\"ce.\" & LEFT(E20,7) & \"@ac-nancy-metz.fr\")","v":"ce.0541470@ac-nancy-metz.fr"},null,null,"Briey-Jarny-Longwy",null,null,{"$f":"CONCATENATE(R20,\"_\",S20,\" \",T20,\" \",P20)","v":"ANCEMONT_CLG Public LOUIS DE BROGLIE"},"LOUIS DE BROGLIE","0550859K","ANCEMONT","CLG","Public",{"$f":"CONCATENATE(\"ce.\" & LEFT(Q20,7) & \"@ac-nancy-metz.fr\")","v":"ce.0550859@ac-nancy-metz.fr"},null,null,"Nord meusien",null,null,{"$f":"CONCATENATE(AD20,\"_\",AE20,\" \",AF20,\" \",AB20)","v":"ALBESTROFF_CLG Public COLLEGE DE L'ALBE"},"COLLEGE DE L'ALBE","0572691R","ALBESTROFF","CLG","Public",{"$f":"CONCATENATE(\"ce.\" & LEFT(AC20,7) & \"@ac-nancy-metz.fr\")","v":"ce.0572691@ac-nancy-metz.fr"},null,null,"Dieuze-Sarrebourg-Phalsbourg",null,null,{"$f":"CONCATENATE(AP20,\"_\",AQ20,\" \",AR20,\" \",AN20)","v":"BAINS LES BAINS_CLG Public JULIE VICTOIRE DAUBIE"},"JULIE VICTOIRE DAUBIE","0880002Z","BAINS LES BAINS","CLG","Public",{"$f":"CONCATENATE(\"ce.\" & LEFT(AO20,7) & \"@ac-nancy-metz.fr\")","v":"ce.0880002@ac-nancy-metz.fr"},null,null,"Vosges ouest"]
[null,null,{"$f":"CONCATENATE(F21,\"_\",G21,\" \",H21,\" \",D21)","v":"BACCARAT_CLG Public BACCARAT"},"BACCARAT","0540001H","BACCARAT","CLG","Public",{"$f":"CONCATENATE(\"ce.\" & LEFT(E21,7) & \"@ac-nancy-metz.fr\")","v":"ce.0540001@ac-nancy-metz.fr"},null,null,"Lunéville",null,null,{"$f":"CONCATENATE(R21,\"_\",S21,\" \",T21,\" \",P21)","v":"ANCERVILLE_CLG Public EMILIE CARLES"},"EMILIE CARLES","0550848Y","ANCERVILLE","CLG","Public","ce.0550848@ac-nancy-metz.fr",null,null,"Sud meusien",null,null,{"$f":"CONCATENATE(AD21,\"_\",AE21,\" \",AF21,\" \",AB21)","v":"ALGRANGE_CLG Public EVARISTE GALOIS"},"EVARISTE GALOIS","0572169Y","ALGRANGE","CLG","Public","ce.0572169@ac-nancy-metz.fr",null,null,"Fameck-Rombas",null,null,{"$f":"CONCATENATE(AP21,\"_\",AQ21,\" \",AR21,\" \",AN21)","v":"BRUYERES_CLG Public CHARLEMAGNE"},"CHARLEMAGNE","0880005C","BRUYERES","CLG","Public","ce.0880005@ac-nancy-metz.fr",null,null,"Vosges est"]
[null,null,"BAYON_CLG Public DE L'EURON","DE L'EURON","0541852V","BAYON","CLG","Public",{"$f":"CONCATENATE(\"ce.\" & LEFT(E22,7) & \"@ac-nancy-metz.fr\")","v":"ce.0541852@ac-nancy-metz.fr"},null,null,"Lunéville",null,null,"BAR LE DUC_CLG Public ANDRE THEURIET","ANDRE THEURIET","0550703R","BAR LE DUC","CLG","Public","ce.0550703@ac-nancy-metz.fr",null,null,"Sud meusien",null,null,"AMNEVILLE_CLG Public LA SOURCE","LA SOURCE","0572689N","AMNEVILLE","CLG","Public","ce.0572689@ac-nancy-metz.fr",null,null,"Fameck-Rombas",null,null,"CHARMES_CLG Public MAURICE BARRES","MAURICE BARRES","0881145S","CHARMES","CLG","Public","ce.0881145@ac-nancy-metz.fr",null,null,"Vosges ouest"]
[null,null,"BENAMENIL_CLG Public RENE GAILLARD","RENE GAILLARD","0540004L","BENAMENIL","CLG","Public",{"$f":"CONCATENATE(\"ce.\" & LEFT(E23,7) & \"@ac-nancy-metz.fr\")","v":"ce.0540004@ac-nancy-metz.fr"},null,null,"Lunéville",null,null,"BAR LE DUC_CLG Public JACQUES PREVERT","JACQUES PREVERT","0550701N","BAR LE DUC","CLG","Public","ce.0550701@ac-nancy-metz.fr",null,null,"Sud meusien",null,null,"ARS SUR MOSELLE_CLG Public PILATRE DE ROZIER","PILATRE DE ROZIER","0572015F","ARS SUR MOSELLE","CLG","Public","ce.0572015@ac-nancy-metz.fr",null,null,"Metz sud",null,null,"CHATEL SUR MOSELLE_CLG Public LOUIS PERGAUD","LOUIS PERGAUD","0880418B","CHATEL SUR MOSELLE","CLG","Public","ce.0880418@ac-nancy-metz.fr",null,null,"Vosges ouest"]
[null,null,"BLAINVILLE SUR L EAU_CLG Public LANGEVIN WALLON","LANGEVIN WALLON","0540005M","BLAINVILLE SUR L EAU","CLG","Public",{"$f":"CONCATENATE(\"ce.\" & LEFT(E24,7) & \"@ac-nancy-metz.fr\")","v":"ce.0540005@ac-nancy-metz.fr"},null,null,"Lunéville",null,null,"BAR LE DUC_CLG Public RAYMOND POINCARE","RAYMOND POINCARE","0550890U","BAR LE DUC","CLG","Public","ce.0550890@ac-nancy-metz.fr",null,null,"Sud meusien",null,null,"AUDUN LE TICHE_CLG Public EMILE ZOLA","EMILE ZOLA","0572170Z","AUDUN LE TICHE","CLG","Public","ce.0572170@ac-nancy-metz.fr",null,null,"Thionville",null,null,"CHATENOIS_CLG Public JEAN ROSTAND","JEAN ROSTAND","0880011J","CHATENOIS","CLG","Public","ce.0880011@ac-nancy-metz.fr",null,null,"Vosges ouest"]
[null,null,"BLENOD LES PONT A MOUSSON_CLG Public VINCENT VAN GOGH","VINCENT VAN GOGH","0541576V","BLENOD LES PONT A MOUSSON","CLG","Public",{"$f":"CONCATENATE(\"ce.\" & LEFT(E25,7) & \"@ac-nancy-metz.fr\")","v":"ce.0541576@ac-nancy-metz.fr"},null,null,"Toul-Pont-à-Mousson",null,null,"BOULIGNY_CLG Public PIERRE ET MARIE CURIE","PIERRE ET MARIE CURIE","0550006H","BOULIGNY","CLG","Public","ce.0550006@ac-nancy-metz.fr",null,null,"Nord meusien",null,null,"AUMETZ_CLG Public LIONEL TERRAY","LIONEL TERRAY","0572583Y","AUMETZ","CLG","Public","ce.0572583@ac-nancy-metz.fr",null,null,"Thionville",null,null,"CONTREXEVILLE_CLG Public LYAUTEY","LYAUTEY","0881102V","CONTREXEVILLE","CLG","Public","ce.0881102@ac-nancy-metz.fr",null,null,"Vosges ouest"]
[null,null,"BRIEY_CLG Public JEAN MAUMUS","JEAN MAUMUS","0540115G","BRIEY","CLG","Public","ce.0540115@ac-nancy-metz.fr",null,null,"Briey-Jarny-Longwy",null,null,"CLERMONT EN ARGONNE_CLG Public DE L'ARGONNE","DE L'ARGONNE","0550007J","CLERMONT EN ARGONNE","CLG","Public","ce.0550007@ac-nancy-metz.fr",null,null,"Nord meusien",null,null,"BEHREN LES FORBACH_CLG Public ROBERT SCHUMAN","ROBERT SCHUMAN","0573268T","BEHREN LES FORBACH","CLG","Public","ce.0573268@ac-nancy-metz.fr",null,null,"Creutzwald-Saint-Avold-Forbach",null,null,"CORCIEUX_CLG Public PAUL-EMILE VICTOR","PAUL-EMILE VICTOR","0880014M","CORCIEUX","CLG","Public","ce.0880014@ac-nancy-metz.fr",null,null,"Vosges est"]
[null,null,"BRIEY_CLG Public JULES FERRY","JULES FERRY","0540008R","BRIEY","CLG","Public","ce.0540008@ac-nancy-metz.fr",null,null,"Briey-Jarny-Longwy",null,null,"COMMERCY_CLG Public LES TILLEULS","LES TILLEULS","0550840P","COMMERCY","CLG","Public","ce.0550840@ac-nancy-metz.fr",null,null,"Sud meusien",null,null,"BITCHE_CLG Public JEAN JACQUES KIEFFER","JEAN JACQUES KIEFFER","0573361U","BITCHE","CLG","Public","ce.0573361@ac-nancy-metz.fr",null,null,"Sarrebourg-Sarreguemines-Bitche",null,null,"CORNIMONT_CLG Public HUBERT CURIEN","HUBERT CURIEN","0881397R","CORNIMONT","CLG","Public","ce.0881397@ac-nancy-metz.fr",null,null,"Vosges est"]
[null,null,"CHAMPIGNEULLES_CLG Public JULIEN FRANCK","JULIEN FRANCK","0541466A","CHAMPIGNEULLES","CLG","Public","ce.0541466@ac-nancy-metz.fr",null,null,"Nancy 2",null,null,"DAMVILLERS_CLG Public JULES BASTIEN LEPAGE","JULES BASTIEN LEPAGE","0550009L","DAMVILLERS","CLG","Public","ce.0550009@ac-nancy-metz.fr",null,null,"Nord meusien",null,null,"BOULAY_CLG Public VICTOR DEMANGE","VICTOR DEMANGE","0570010B","BOULAY","CLG","Public","ce.0570010@ac-nancy-metz.fr",null,null,"Creutzwald-Saint-Avold-Forbach",null,null,"DOMPAIRE_CLG Public MICHEL DE MONTAIGNE","MICHEL DE MONTAIGNE","0880017R","DOMPAIRE","CLG","Public","ce.0880017@ac-nancy-metz.fr",null,null,"Vosges ouest"]
[null,null,"CIREY SUR VEZOUZE_CLG Public DE LA HAUTE VEZOUZE","DE LA HAUTE VEZOUZE","0540011U","CIREY SUR VEZOUZE","CLG","Public","ce.0540011@ac-nancy-metz.fr",null,null,"Lunéville",null,null,"ETAIN_CLG Public LOUISE MICHEL","LOUISE MICHEL","0550011N","ETAIN","CLG","Public","ce.0550011@ac-nancy-metz.fr",null,null,"Nord meusien",null,null,"BOUZONVILLE_CLG Public ADALBERT","ADALBERT","0570012D","BOUZONVILLE","CLG","Public","ce.0570012@ac-nancy-metz.fr",null,null,"Creutzwald-Saint-Avold-Forbach",null,null,"ELOYES_CLG Public RENE CASSIN","RENE CASSIN","0881371M","ELOYES","CLG","Public","ce.0881371@ac-nancy-metz.fr",null,null,"Vosges est"]
[null,null,"COLOMBEY LES BELLES_CLG Public JACQUES GRUBER","JACQUES GRUBER","0540012V","COLOMBEY LES BELLES","CLG","Public","ce.0540012@ac-nancy-metz.fr",null,null,"Toul-Pont-à-Mousson",null,null,"FRESNES EN WOEVRE_CLG Public LOUIS PERGAUD","LOUIS PERGAUD","0550012P","FRESNES EN WOEVRE","CLG","Public","ce.0550012@ac-nancy-metz.fr",null,null,"Nord meusien",null,null,"CATTENOM_CLG Public CHARLES PEGUY","CHARLES PEGUY","0571994H","CATTENOM","CLG","Public","ce.0571994@ac-nancy-metz.fr",null,null,"Thionville",null,null,"EPINAL_CLG Public GEORGES CLEMENCEAU","GEORGES CLEMENCEAU","0881146T","EPINAL","CLG","Public","ce.0881146@ac-nancy-metz.fr",null,null,"Vosges ouest"]
[null,null,"CUSTINES_CLG Public LOUIS MARIN","LOUIS MARIN","0540078S","CUSTINES","CLG","Public","ce.0540078@ac-nancy-metz.fr",null,null,"Nancy 2",null,null,"GONDRECOURT LE CHATEAU_CLG Public VAL D'ORNOIS","VAL D'ORNOIS","0550013R","GONDRECOURT LE CHATEAU","CLG","Public","ce.0550013@ac-nancy-metz.fr",null,null,"Sud meusien",null,null,"CHATEAU SALINS_CLG Public DE LA PASSEPIERRE","DE LA PASSEPIERRE","0570327W","CHATEAU SALINS","CLG","Public","ce.0570327@ac-nancy-metz.fr",null,null,"Dieuze-Sarrebourg-Phalsbourg",null,null,"EPINAL_CLG Public JULES FERRY","JULES FERRY","0880150K","EPINAL","CLG","Public","ce.0880150@ac-nancy-metz.fr",null,null,"Vosges ouest"]
[null,null,"DIEULOUARD_CLG Public JOLIOT CURIE","JOLIOT CURIE","0540013W","DIEULOUARD","CLG","Public","ce.0540013@ac-nancy-metz.fr",null,null,"Toul-Pont-à-Mousson",null,null,"LIGNY EN BARROIS_CLG Public ROBERT AUBRY","ROBERT AUBRY","0550014S","LIGNY EN BARROIS","CLG","Public","ce.0550014@ac-nancy-metz.fr",null,null,"Sud meusien",null,null,"COCHEREN_CLG Public LE HERAPEL","LE HERAPEL","0572490X","COCHEREN","CLG","Public","ce.0572490@ac-nancy-metz.fr",null,null,"Creutzwald-Saint-Avold-Forbach",null,null,"EPINAL_CLG Public SAINT EXUPERY","SAINT EXUPERY","0880149J","EPINAL","CLG","Public","ce.0880149@ac-nancy-metz.fr",null,null,"Vosges ouest"]
[null,null,"DOMBASLE SUR MEURTHE_CLG Public EMBANIE","EMBANIE","0541325X","DOMBASLE SUR MEURTHE","CLG","Public","ce.0541325@ac-nancy-metz.fr",null,null,"Nancy 1",null,null,"MONTMEDY_CLG Public JEAN D'ALLAMONT","JEAN D'ALLAMONT","0550016U","MONTMEDY","CLG","Public","ce.0550016@ac-nancy-metz.fr",null,null,"Nord meusien",null,null,"CREUTZWALD_CLG Public JACQUES-YVES COUSTEAU","JACQUES-YVES COUSTEAU","0572690P","CREUTZWALD","CLG","Public","ce.0572690@ac-nancy-metz.fr",null,null,"Creutzwald-Saint-Avold-Forbach",null,null,"FRAIZE_CLG Public DE LA HAUTE MEURTHE","DE LA HAUTE MEURTHE","0881410E","FRAIZE","CLG","Public","ce.0881410@ac-nancy-metz.fr",null,null,"Vosges est"]
[null,null,"DOMBASLE SUR MEURTHE_CLG Public JULIENNE FARENC","JULIENNE FARENC","0540014X","DOMBASLE SUR MEURTHE","CLG","Public","ce.0540014@ac-nancy-metz.fr",null,null,"Nancy 1",null,null,"REVIGNY SUR ORNAIN_CLG Public JEAN MOULIN","JEAN MOULIN","0550018W","REVIGNY SUR ORNAIN","CLG","Public","ce.0550018@ac-nancy-metz.fr",null,null,"Sud meusien",null,null,"DELME_CLG Public ANDRE MALRAUX","ANDRE MALRAUX","0570020M","DELME","CLG","Public","ce.0570020@ac-nancy-metz.fr",null,null,"Metz est",null,null,"GERARDMER_CLG Public LA HAIE GRISELLE","LA HAIE GRISELLE","0881446U","GERARDMER","CLG","Public","ce.0881446@ac-nancy-metz.fr",null,null,"Vosges est"]
[null,null,"DOMMARTEMONT_CLG Public RENE NICKLES","RENE NICKLES","0541706L","DOMMARTEMONT","CLG","Public","ce.0541706@ac-nancy-metz.fr",null,null,"Nancy 2",null,null,"ST MIHIEL_CLG Public LES AVRILS","LES AVRILS","0550804A","ST MIHIEL","CLG","Public","ce.0550804@ac-nancy-metz.fr",null,null,"Sud meusien",null,null,"DIEUZE_CLG Public CHARLES HERMITE","CHARLES HERMITE","0572814Z","DIEUZE","CLG","Public","ce.0572814@ac-nancy-metz.fr",null,null,"Dieuze-Sarrebourg-Phalsbourg",null,null,"GOLBEY_CLG Public LOUIS ARMAND","LOUIS ARMAND","0881097P","GOLBEY","CLG","Public","ce.0881097@ac-nancy-metz.fr",null,null,"Vosges ouest"]
[null,null,"EINVILLE AU JARD_CLG Public CHARLES-MAXIMILIEN DUVIVIER","CHARLES-MAXIMILIEN DUVIVIER","0540017A","EINVILLE AU JARD","CLG","Public","ce.0540017@ac-nancy-metz.fr",null,null,"Lunéville",null,null,"STENAY_CLG Public ALFRED KASTLER","ALFRED KASTLER","0550020Y","STENAY","CLG","Public","ce.0550020@ac-nancy-metz.fr",null,null,"Nord meusien",null,null,"FALCK_CLG Public LA GRANDE SAULE","LA GRANDE SAULE","0572358D","FALCK","CLG","Public","ce.0572358@ac-nancy-metz.fr",null,null,"Creutzwald-Saint-Avold-Forbach",null,null,"LAMARCHE_CLG Public GUILLAUME DE LAMARCHE","GUILLAUME DE LAMARCHE","0880034J","LAMARCHE","CLG","Public","ce.0880034@ac-nancy-metz.fr",null,null,"Vosges ouest"]
[null,null,"ESSEY LES NANCY_CLG Public EMILE GALLE","EMILE GALLE","0541211Y","ESSEY LES NANCY","CLG","Public","ce.0541211@ac-nancy-metz.fr",null,null,"Nancy 2",null,null,"THIERVILLE SUR MEUSE_CLG Public SAINT EXUPERY","SAINT EXUPERY","0550759B","THIERVILLE SUR MEUSE","CLG","Public","ce.0550759@ac-nancy-metz.fr",null,null,"Nord meusien",null,null,"FAMECK_CLG Public CHARLES DE GAULLE","CHARLES DE GAULLE","0573269U","FAMECK","CLG","Public","ce.0573269@ac-nancy-metz.fr",null,null,"Fameck-Rombas",null,null,"LE THILLOT_CLG Public JULES FERRY","JULES FERRY","0880065T","LE THILLOT","CLG","Public","ce.0880065@ac-nancy-metz.fr",null,null,"Vosges est"]
[null,null,"FOUG_CLG Public LOUIS PERGAUD","LOUIS PERGAUD","0540019C","FOUG","CLG","Public","ce.0540019@ac-nancy-metz.fr",null,null,"Toul-Pont-à-Mousson",null,null,"VAUBECOURT_CLG Public EMILIE DU CHATELET","EMILIE DU CHATELET","0550022A","VAUBECOURT","CLG","Public","ce.0550022@ac-nancy-metz.fr",null,null,"Sud meusien",null,null,"FAREBERSVILLER_CLG Public GEORGES HOLDERITH","GEORGES HOLDERITH","0572023P","FAREBERSVILLER","CLG","Public","ce.0572023@ac-nancy-metz.fr",null,null,"Creutzwald-Saint-Avold-Forbach",null,null,"LE THOLY_CLG Public GUILLAUME APOLLINAIRE","GUILLAUME APOLLINAIRE","0881148V","LE THOLY","CLG","Public","ce.0881148@ac-nancy-metz.fr",null,null,"Vosges est"]
[null,null,"FROUARD_CLG Public JEAN LURCAT","JEAN LURCAT","0541326Y","FROUARD","CLG","Public","ce.0541326@ac-nancy-metz.fr",null,null,"Nancy 2",null,null,"VAUCOULEURS_CLG Public LES CUVELLES","LES CUVELLES","0550023B","VAUCOULEURS","CLG","Public","ce.0550023@ac-nancy-metz.fr",null,null,"Sud meusien",null,null,"FAULQUEMONT_CLG Public LOUIS PASTEUR","LOUIS PASTEUR","0572176F","FAULQUEMONT","CLG","Public","ce.0572176@ac-nancy-metz.fr",null,null,"Creutzwald-Saint-Avold-Forbach",null,null,"LE VAL D AJOL_CLG Public FLEUROT D'HERIVAL","FLEUROT D'HERIVAL","0880068W","LE VAL D AJOL","CLG","Public","ce.0880068@ac-nancy-metz.fr",null,null,"Vosges est"]
[null,null,"GERBEVILLER_CLG Public EUGENE FRANCOIS","EUGENE FRANCOIS","0540022F","GERBEVILLER","CLG","Public","ce.0540022@ac-nancy-metz.fr",null,null,"Lunéville",null,null,"VERDUN_CLG Public BUVIGNIER","BUVIGNIER","0550024C","VERDUN","CLG","Public","ce.0550024@ac-nancy-metz.fr",null,null,"Nord meusien",null,null,"FAULQUEMONT_CLG Public PAUL VERLAINE","PAUL VERLAINE","0570026U","FAULQUEMONT","CLG","Public","ce.0570026@ac-nancy-metz.fr",null,null,"Creutzwald-Saint-Avold-Forbach",null,null,"LIFFOL LE GRAND_CLG Public CHARLES EDOUARD FIXARY","CHARLES EDOUARD FIXARY","0881103W","LIFFOL LE GRAND","CLG","Public","ce.0881103@ac-nancy-metz.fr",null,null,"Vosges ouest"]
[null,null,"HEILLECOURT_CLG Public MONTAIGU","MONTAIGU","0542468P","HEILLECOURT","CLG","Public","ce.0542468@ac-nancy-metz.fr",null,null,"Nancy 2",null,null,"VERDUN_CLG Public MAURICE BARRES","MAURICE BARRES","0550758A","VERDUN","CLG","Public","ce.0550758@ac-nancy-metz.fr",null,null,"Nord meusien",null,null,"FLORANGE_CLG Public LOUIS PASTEUR","LOUIS PASTEUR","0570317K","FLORANGE","CLG","Public","ce.0570317@ac-nancy-metz.fr",null,null,"Fameck-Rombas",null,null,"MIRECOURT_CLG Public GUY DOLMAIRE","GUY DOLMAIRE","0880035K","MIRECOURT","CLG","Public","ce.0880035@ac-nancy-metz.fr",null,null,"Vosges ouest"]
[null,null,"JARNY_CLG Public ALFRED MEZIERES","ALFRED MEZIERES","0541331D","JARNY","CLG","Public","ce.0541331@ac-nancy-metz.fr",null,null,"Briey-Jarny-Longwy",null,null,"BAR LE DUC_CLG Privé COLLEGE PRIVE LA CROIX","COLLEGE PRIVE LA CROIX","0550046B","BAR LE DUC","CLG","Privé","ce.0550046@ac-nancy-metz.fr",null,null,"Sud meusien",null,null,"FOLSCHVILLER_CLG Public ALEXANDRE DREUX","ALEXANDRE DREUX","0572187T","FOLSCHVILLER","CLG","Public","ce.0572187@ac-nancy-metz.fr",null,null,"Creutzwald-Saint-Avold-Forbach",null,null,"MONTHUREUX SUR SAONE_CLG Public DU PERVIS","DU PERVIS","0881386D","MONTHUREUX SUR SAONE","CLG","Public","ce.0881386@ac-nancy-metz.fr",null,null,"Vosges ouest"]
[null,null,"JARNY_CLG Public LOUIS ARAGON","LOUIS ARAGON","0540025J","JARNY","CLG","Public","ce.0540025@ac-nancy-metz.fr",null,null,"Briey-Jarny-Longwy",null,null,"COMMERCY_CLG Privé SAINTE JEANNE D'ARC","SAINTE JEANNE D'ARC","0550920B","COMMERCY","CLG","Privé","ce.0550920@ac-nancy-metz.fr",null,null,"Sud meusien",null,null,"FONTOY_CLG Public MARIE CURIE","MARIE CURIE","0572009Z","FONTOY","CLG","Public","ce.0572009@ac-nancy-metz.fr",null,null,"Fameck-Rombas",null,null,"NEUFCHATEAU_CLG Public PIERRE ET MARIE CURIE","PIERRE ET MARIE CURIE","0880041S","NEUFCHATEAU","CLG","Public","ce.0880041@ac-nancy-metz.fr",null,null,"Vosges ouest"]
[null,null,"JARVILLE LA MALGRANGE_CLG Public ALBERT CAMUS","ALBERT CAMUS","0541817G","JARVILLE LA MALGRANGE","CLG","Public","ce.0541817@ac-nancy-metz.fr",null,null,"Nancy 2",null,null,"LIGNY EN BARROIS_CLG Privé BIENHEUREUX P DE LUXEMBOURG","BIENHEUREUX P DE LUXEMBOURG","0550052H","LIGNY EN BARROIS","CLG","Privé","ce.0550052@ac-nancy-metz.fr",null,null,"Sud meusien",null,null,"FORBACH_CLG Public JEAN MOULIN","JEAN MOULIN","0572813Y","FORBACH","CLG","Public","ce.0572813@ac-nancy-metz.fr",null,null,"Creutzwald-Saint-Avold-Forbach",null,null,"PROVENCHERES SUR FAVE_CLG Public SPITZEMBERG","SPITZEMBERG","0880044V","PROVENCHERES SUR FAVE","CLG","Public","ce.0880044@ac-nancy-metz.fr",null,null,"Vosges est"]
[null,null,"JOEUF_CLG Public MAURICE BARRES","MAURICE BARRES","0541471F","JOEUF","CLG","Public","ce.0541471@ac-nancy-metz.fr",null,null,"Briey-Jarny-Longwy",null,null,"VERDUN_CLG Privé SAINT JEAN DE GLORIEUX","SAINT JEAN DE GLORIEUX","0550050F","VERDUN","CLG","Privé","ce.0550050@ac-nancy-metz.fr",null,null,"Nord meusien",null,null,"FORBACH_CLG Public PIERRE ADT","PIERRE ADT","0572180K","FORBACH","CLG","Public","ce.0572180@ac-nancy-metz.fr",null,null,"Creutzwald-Saint-Avold-Forbach",null,null,"RAMBERVILLERS_CLG Public ALPHONSE CYTERE","ALPHONSE CYTERE","0880045W","RAMBERVILLERS","CLG","Public","ce.0880045@ac-nancy-metz.fr",null,null,"Vosges est"]
[null,null,"LAXOU_CLG Public LA FONTAINE","LA FONTAINE","0541469D","LAXOU","CLG","Public","ce.0541469@ac-nancy-metz.fr",null,null,"Nancy 1",null,null,"VERDUN_CLG Privé SAINTE ANNE","SAINTE ANNE","0550055L","VERDUN","CLG","Privé","ce.0550055@ac-nancy-metz.fr",null,null,"Nord meusien",null,null,"FREYMING MERLEBACH_CLG Public CLAUDIE HAIGNERÉ","CLAUDIE HAIGNERÉ","0570326V","FREYMING MERLEBACH","CLG","Public","ce.0570326@ac-nancy-metz.fr",null,null,"Creutzwald-Saint-Avold-Forbach",null,null,"RAON L ETAPE_CLG Public LOUIS PASTEUR","LOUIS PASTEUR","0881120P","RAON L ETAPE","CLG","Public","ce.0881120@ac-nancy-metz.fr",null,null,"Vosges est"]
[null,null,"LAXOU_CLG Public VICTOR PROUVE","VICTOR PROUVE","0540047H","LAXOU","CLG","Public","ce.0540047@ac-nancy-metz.fr",null,null,"Nancy 1",null,null,null,null,null,null,null,null,null,null,null,null,null,null,"GROSBLIEDERSTROFF_CLG Public VAL DE SARRE","VAL DE SARRE","0572363J","GROSBLIEDERSTROFF","CLG","Public","ce.0572363@ac-nancy-metz.fr",null,null,"Sarrebourg-Sarreguemines-Bitche",null,null,"REMIREMONT_CLG Public CHARLET","CHARLET","0880154P","REMIREMONT","CLG","Public","ce.0880154@ac-nancy-metz.fr",null,null,"Vosges est"]
[null,null,"LEXY_CLG Public EMILE GALLE","EMILE GALLE","0541579Y","LEXY","CLG","Public","ce.0541579@ac-nancy-metz.fr",null,null,"Briey-Jarny-Longwy",null,null,null,null,null,null,null,null,null,null,null,null,null,null,"GUENANGE_CLG Public RENE CASSIN","RENE CASSIN","0573244S","GUENANGE","CLG","Public","ce.0573244@ac-nancy-metz.fr",null,null,"Thionville",null,null,"REMIREMONT_CLG Public LE TERTRE","LE TERTRE","0880155R","REMIREMONT","CLG","Public","ce.0880155@ac-nancy-metz.fr",null,null,"Vosges est"]
[null,null,"LIVERDUN_CLG Public GRANDVILLE","GRANDVILLE","0541284C","LIVERDUN","CLG","Public","ce.0541284@ac-nancy-metz.fr",null,null,"Nancy 2",null,null,null,null,null,null,null,null,null,null,null,null,null,null,"HAGONDANGE_CLG Public PAUL LANGEVIN","PAUL LANGEVIN","0572172B","HAGONDANGE","CLG","Public","ce.0572172@ac-nancy-metz.fr",null,null,"Fameck-Rombas",null,null,"RUPT SUR MOSELLE_CLG Public JEAN MONTEMONT","JEAN MONTEMONT","0880054F","RUPT SUR MOSELLE","CLG","Public","ce.0880054@ac-nancy-metz.fr",null,null,"Vosges est"]
[null,null,"LONGLAVILLE_CLG Public LEODILE BERA","LEODILE BERA","0541578X","LONGLAVILLE","CLG","Public","ce.0541578@ac-nancy-metz.fr",null,null,"Briey-Jarny-Longwy",null,null,null,null,null,null,null,null,null,null,null,null,null,null,"HAM SOUS VARSBERG_CLG Public BERGPFAD","BERGPFAD","0572359E","HAM SOUS VARSBERG","CLG","Public","ce.0572359@ac-nancy-metz.fr",null,null,"Creutzwald-Saint-Avold-Forbach",null,null,"SENONES_CLG Public ANDRE MALRAUX","ANDRE MALRAUX","0881101U","SENONES","CLG","Public","ce.0881101@ac-nancy-metz.fr",null,null,"Vosges est"]
[null,null,"LONGUYON_CLG Public PAUL VERLAINE","PAUL VERLAINE","0542349K","LONGUYON","CLG","Public","ce.0542349@ac-nancy-metz.fr",null,null,"Briey-Jarny-Longwy",null,null,null,null,null,null,null,null,null,null,null,null,null,null,"HARTZVILLER_CLG Public DE LA VALLEE DE LA BIEVRE","DE LA VALLEE DE LA BIEVRE","0570038G","HARTZVILLER","CLG","Public","ce.0570038@ac-nancy-metz.fr",null,null,"Dieuze-Sarrebourg-Phalsbourg",null,null,"ST DIE DES VOSGES_CLG Public JULES FERRY","JULES FERRY","0881447V","ST DIE DES VOSGES","CLG","Public","ce.0881447@ac-nancy-metz.fr",null,null,"Vosges est"]
[null,null,"LONGWY_CLG Public ALBERT LEBRUN","ALBERT LEBRUN","0541334G","LONGWY","CLG","Public","ce.0541334@ac-nancy-metz.fr",null,null,"Briey-Jarny-Longwy",null,null,null,null,null,null,null,null,null,null,null,null,null,null,"HAYANGE_CLG Public HURLEVENT","HURLEVENT","0572480L","HAYANGE","CLG","Public",{"$f":"CONCATENATE(\"ce.\" & LEFT(AC52,7) & \"@ac-nancy-metz.fr\")","v":"ce.0572480@ac-nancy-metz.fr"},null,null,"Fameck-Rombas",null,null,"ST DIE DES VOSGES_CLG Public JOSEPH-JULIEN SOUHAIT","JOSEPH-JULIEN SOUHAIT","0881099S","ST DIE DES VOSGES","CLG","Public","ce.0881099@ac-nancy-metz.fr",null,null,"Vosges est"]
[null,null,"LONGWY_CLG Public VAUBAN","VAUBAN","0541288G","LONGWY","CLG","Public","ce.0541288@ac-nancy-metz.fr",null,null,"Briey-Jarny-Longwy",null,null,null,null,null,null,null,null,null,null,null,null,null,null,"HAYANGE_CLG Public JACQUES MONOD","JACQUES MONOD","0572171A","HAYANGE","CLG","Public","ce.0572171@ac-nancy-metz.fr",null,null,"Fameck-Rombas",null,null,"ST DIE DES VOSGES_CLG Public VAUTRIN LUD","VAUTRIN LUD","0880151L","ST DIE DES VOSGES","CLG","Public","ce.0880151@ac-nancy-metz.fr",null,null,"Vosges est"]
[null,null,"LUDRES_CLG Public JACQUES MONOD","JACQUES MONOD","0542189L","LUDRES","CLG","Public","ce.0542189@ac-nancy-metz.fr",null,null,"Nancy 1",null,null,null,null,null,null,null,null,null,null,null,null,null,null,"HETTANGE GRANDE_CLG Public JEAN MARIE PELT","JEAN MARIE PELT","0572025S","HETTANGE GRANDE","CLG","Public","ce.0572025@ac-nancy-metz.fr",null,null,"Thionville",null,null,"THAON LES VOSGES_CLG Public ELSA TRIOLET","ELSA TRIOLET","0881147U","THAON LES VOSGES","CLG","Public","ce.0881147@ac-nancy-metz.fr",null,null,"Vosges ouest"]
[null,null,"LUNEVILLE_CLG Public CHARLES GUERIN","CHARLES GUERIN","0541329B","LUNEVILLE","CLG","Public","ce.0541329@ac-nancy-metz.fr",null,null,"Lunéville",null,null,null,null,null,null,null,null,null,null,null,null,null,null,"HOMBOURG HAUT_CLG Public ROBERT SCHUMAN","ROBERT SCHUMAN","0572491Y","HOMBOURG HAUT","CLG","Public","ce.0572491@ac-nancy-metz.fr",null,null,"Creutzwald-Saint-Avold-Forbach",null,null,"VAGNEY_CLG Public DU BAN DE VAGNEY","DU BAN DE VAGNEY","0881372N","VAGNEY","CLG","Public","ce.0881372@ac-nancy-metz.fr",null,null,"Vosges est"]
[null,null,"LUNEVILLE_CLG Public ERNEST BICHAT","ERNEST BICHAT","0541328A","LUNEVILLE","CLG","Public","ce.0541328@ac-nancy-metz.fr",null,null,"Lunéville",null,null,null,null,null,null,null,null,null,null,null,null,null,null,"KEDANGE SUR CANNER_CLG Public DE LA CANNER","DE LA CANNER","0570315H","KEDANGE SUR CANNER","CLG","Public","ce.0570315@ac-nancy-metz.fr",null,null,"Thionville",null,null,"VITTEL_CLG Public JULES VERNE","JULES VERNE","0880156S","VITTEL","CLG","Public","ce.0880156@ac-nancy-metz.fr",null,null,"Vosges ouest"]
[null,null,"MALZEVILLE_CLG Public PAUL VERLAINE","PAUL VERLAINE","0541474J","MALZEVILLE","CLG","Public","ce.0541474@ac-nancy-metz.fr",null,null,"Nancy 2",null,null,null,null,null,null,null,null,null,null,null,null,null,null,"L HOPITAL_CLG Public FRANCOIS RABELAIS","FRANCOIS RABELAIS","0572487U","L HOPITAL","CLG","Public","ce.0572487@ac-nancy-metz.fr",null,null,"Creutzwald-Saint-Avold-Forbach",null,null,"XERTIGNY_CLG Public CAMILLE CLAUDEL","CAMILLE CLAUDEL","0881369K","XERTIGNY","CLG","Public","ce.0881369@ac-nancy-metz.fr",null,null,"Vosges ouest"]
[null,null,"MONT ST MARTIN_CLG Public ANATOLE FRANCE","ANATOLE FRANCE","0540088C","MONT ST MARTIN","CLG","Public","ce.0540088@ac-nancy-metz.fr",null,null,"Briey-Jarny-Longwy",null,null,null,null,null,null,null,null,null,null,null,null,null,null,"LE BAN ST MARTIN_CLG Public JEAN BAUCHEZ","JEAN BAUCHEZ","0570128E","LE BAN ST MARTIN","CLG","Public","ce.0570128@ac-nancy-metz.fr",null,null,"Metz ouest",null,null,"BRUYERES_CLG Privé JEANNE D'ARC","JEANNE D'ARC","0880106M","BRUYERES","CLG","Privé","ce.0880106@ac-nancy-metz.fr",null,null,"Vosges est"]
[null,null,"NANCY_CLG Public ALFRED MEZIERES","ALFRED MEZIERES","0541568L","NANCY","CLG","Public","ce.0541568@ac-nancy-metz.fr",null,null,"Nancy 2",null,null,null,null,null,null,null,null,null,null,null,null,null,null,"LEMBERG_CLG Public LA PARAISON","LA PARAISON","0572020L","LEMBERG","CLG","Public","ce.0572020@ac-nancy-metz.fr",null,null,"Sarrebourg-Sarreguemines-Bitche",null,null,"EPINAL_CLG Privé NOTRE DAME - SAINT JOSEPH","NOTRE DAME - SAINT JOSEPH","0881496Y","EPINAL","CLG","Privé","ce.0881496@ac-nancy-metz.fr",null,null,"Vosges ouest"]
[null,null,"NANCY_CLG Public FREDERIC CHOPIN","FREDERIC CHOPIN","0541778P","NANCY","CLG","Public",{"$f":"CONCATENATE(\"ce.\" & LEFT(E60,7) & \"@ac-nancy-metz.fr\")","v":"ce.0541778@ac-nancy-metz.fr"},null,null,"Nancy 1",null,null,null,null,null,null,null,null,null,null,null,null,null,null,"LONGEVILLE LES ST AVOLD_CLG Public LE CASTEL","LE CASTEL","0572360F","LONGEVILLE LES ST AVOLD","CLG","Public","ce.0572360@ac-nancy-metz.fr",null,null,"Creutzwald-Saint-Avold-Forbach",null,null,"LA BRESSE_CLG Privé SAINT LAURENT","SAINT LAURENT","0880105L","LA BRESSE","CLG","Privé","ce.0880105@ac-nancy-metz.fr",null,null,"Vosges est"]
[null,null,"NANCY_CLG Public GEORGES DE LA TOUR","GEORGES DE LA TOUR","0540110B","NANCY","CLG","Public","ce.0540110@ac-nancy-metz.fr",null,null,"Nancy 1",null,null,null,null,null,null,null,null,null,null,null,null,null,null,"LORQUIN_CLG Public DES DEUX SARRES","DES DEUX SARRES","0570328X","LORQUIN","CLG","Public","ce.0570328@ac-nancy-metz.fr",null,null,"Dieuze-Sarrebourg-Phalsbourg",null,null,"MARTIGNY LES BAINS_CLG Privé SAINT CLEMENT","SAINT CLEMENT","0880108P","MARTIGNY LES BAINS","CLG","Privé","ce.0880108@ac-nancy-metz.fr",null,null,"Vosges ouest"]
[null,null,"NANCY_CLG Public GUYNEMER","GUYNEMER","0541819J","NANCY","CLG","Public","ce.0541819@ac-nancy-metz.fr",null,null,"Nancy 2",null,null,null,null,null,null,null,null,null,null,null,null,null,null,"MAIZIERES LES METZ_CLG Public PAUL VERLAINE","PAUL VERLAINE","0572164T","MAIZIERES LES METZ","CLG","Public","ce.0572164@ac-nancy-metz.fr",null,null,"Metz ouest",null,null,"NEUFCHATEAU_CLG Privé JEANNE D'ARC","JEANNE D'ARC","0880112U","NEUFCHATEAU","CLG","Privé","ce.0880112@ac-nancy-metz.fr",null,null,"Vosges ouest"]
[null,null,"NANCY_CLG Public JEAN LAMOUR","JEAN LAMOUR","0541327Z","NANCY","CLG","Public","ce.0541327@ac-nancy-metz.fr",null,null,"Nancy 1",null,null,null,null,null,null,null,null,null,null,null,null,null,null,"MARANGE SILVANGE_CLG Public LES GAUDINETTES","LES GAUDINETTES","0572586B","MARANGE SILVANGE","CLG","Public","ce.0572586@ac-nancy-metz.fr",null,null,"Fameck-Rombas",null,null,"RAMBERVILLERS_CLG Privé SAINTE JEANNE D'ARC","SAINTE JEANNE D'ARC","0880114W","RAMBERVILLERS","CLG","Privé","ce.0880114@ac-nancy-metz.fr",null,null,"Vosges est"]
[null,null,"NANCY_CLG Public LA CRAFFE","LA CRAFFE","0540106X","NANCY","CLG","Public","ce.0540106@ac-nancy-metz.fr",null,null,"Nancy 2",null,null,null,null,null,null,null,null,null,null,null,null,null,null,"MARLY_CLG Public JEAN MERMOZ","JEAN MERMOZ","0572082D","MARLY","CLG","Public","ce.0572082@ac-nancy-metz.fr",null,null,"Metz sud",null,null,"REMIREMONT_CLG Privé SAINT JOSEPH","SAINT JOSEPH","0880096B","REMIREMONT","CLG","Privé","ce.0880096@ac-nancy-metz.fr",null,null,"Vosges est"]
[null,null,"NANCY_CLG Public LOUIS ARMAND","LOUIS ARMAND","0541501N","NANCY","CLG","Public","ce.0541501@ac-nancy-metz.fr",null,null,"Nancy 1",null,null,null,null,null,null,null,null,null,null,null,null,null,null,"MARLY_CLG Public LA LOUVIERE","LA LOUVIERE","0572754J","MARLY","CLG","Public","ce.0572754@ac-nancy-metz.fr",null,null,"Metz sud",null,null,"ST DIE DES VOSGES_CLG Privé NOTRE DAME DE LA PROVIDENCE","NOTRE DAME DE LA PROVIDENCE","0880100F","ST DIE DES VOSGES","CLG","Privé","ce.0880100@ac-nancy-metz.fr",null,null,"Vosges est"]
[null,null,"NEUVES MAISONS_CLG Public JACQUES CALLOT","JACQUES CALLOT","0541573S","NEUVES MAISONS","CLG","Public","ce.0541573@ac-nancy-metz.fr",null,null,"Nancy 1",null,null,null,null,null,null,null,null,null,null,null,null,null,null,"METZ_CLG Public ARSENAL","ARSENAL","0572640K","METZ","CLG","Public","ce.0572640@ac-nancy-metz.fr",null,null,"Metz ouest",null,null,"ST DIE DES VOSGES_CLG Privé SAINTE MARIE","SAINTE MARIE","0880098D","ST DIE DES VOSGES","CLG","Privé","ce.0880098@ac-nancy-metz.fr",null,null,"Vosges est"]
[null,null,"NEUVES MAISONS_CLG Public JULES FERRY","JULES FERRY","0540052N","NEUVES MAISONS","CLG","Public","ce.0540052@ac-nancy-metz.fr",null,null,"Nancy 1",null,null,null,null,null,null,null,null,null,null,null,null,null,null,"METZ_CLG Public BARBOT","BARBOT","0570055A","METZ","CLG","Public","ce.0570055@ac-nancy-metz.fr",null,null,"Metz sud"]
[null,null,"NOMENY_CLG Public VAL DE SEILLE","VAL DE SEILLE","0540054R","NOMENY","CLG","Public","ce.0540054@ac-nancy-metz.fr",null,null,"Toul-Pont-à-Mousson",null,null,null,null,null,null,null,null,null,null,null,null,null,null,"METZ_CLG Public FRANCOIS RABELAIS","FRANCOIS RABELAIS","0572168X","METZ","CLG","Public","ce.0572168@ac-nancy-metz.fr",null,null,"Metz sud"]
[null,null,"PAGNY SUR MOSELLE_CLG Public LA PLANTE GRIBE","LA PLANTE GRIBE","0541567K","PAGNY SUR MOSELLE","CLG","Public","ce.0541567@ac-nancy-metz.fr",null,null,"Toul-Pont-à-Mousson",null,null,null,null,null,null,null,null,null,null,null,null,null,null,"METZ_CLG Public GEORGES DE LA TOUR","GEORGES DE LA TOUR","0572809U","METZ","CLG","Public","ce.0572809@ac-nancy-metz.fr",null,null,"Metz sud"]
[null,null,"PIENNES_CLG Public PAUL LANGEVIN","PAUL LANGEVIN","0541332E","PIENNES","CLG","Public","ce.0541332@ac-nancy-metz.fr",null,null,"Briey-Jarny-Longwy",null,null,null,null,null,null,null,null,null,null,null,null,null,null,"METZ_CLG Public JEAN ROSTAND","JEAN ROSTAND","0572088K","METZ","CLG","Public","ce.0572088@ac-nancy-metz.fr",null,null,"Metz ouest"]
[null,null,"PONT A MOUSSON_CLG Public JACQUES MARQUETTE","JACQUES MARQUETTE","0540112D","PONT A MOUSSON","CLG","Public","ce.0540112@ac-nancy-metz.fr",null,null,"Toul-Pont-à-Mousson",null,null,null,null,null,null,null,null,null,null,null,null,null,null,"METZ_CLG Public JULES LAGNEAU","JULES LAGNEAU","0570069R","METZ","CLG","Public","ce.0570069@ac-nancy-metz.fr",null,null,"Metz est"]
[null,null,"PULNOY_CLG Public EDMOND DE GONCOURT","EDMOND DE GONCOURT","0541956H","PULNOY","CLG","Public","ce.0541956@ac-nancy-metz.fr",null,null,"Nancy 2",null,null,null,null,null,null,null,null,null,null,null,null,null,null,"METZ_CLG Public LES HAUTS DE BLEMONT","LES HAUTS DE BLEMONT","0570127D","METZ","CLG","Public","ce.0570127@ac-nancy-metz.fr",null,null,"Metz est"]
[null,null,"REHON_CLG Public PIERRE BROSSOLETTE","PIERRE BROSSOLETTE","0541336J","REHON","CLG","Public","ce.0541336@ac-nancy-metz.fr",null,null,"Briey-Jarny-Longwy",null,null,null,null,null,null,null,null,null,null,null,null,null,null,"METZ_CLG Public PAUL VALERY","PAUL VALERY","0572166V","METZ","CLG","Public","ce.0572166@ac-nancy-metz.fr",null,null,"Metz est"]
[null,null,"ST NICOLAS DE PORT_CLG Public ST EXUPERY","ST EXUPERY","0541572R","ST NICOLAS DE PORT","CLG","Public","ce.0541572@ac-nancy-metz.fr",null,null,"Nancy 1",null,null,null,null,null,null,null,null,null,null,null,null,null,null,"METZ_CLG Public PAUL VERLAINE","PAUL VERLAINE","0572348T","METZ","CLG","Public","ce.0572348@ac-nancy-metz.fr",null,null,"Metz sud"]
[null,null,"THIAUCOURT REGNIEVILLE_CLG Public FERDINAND BUISSON","FERDINAND BUISSON","0540064B","THIAUCOURT REGNIEVILLE","CLG","Public","ce.0540064@ac-nancy-metz.fr",null,null,"Toul-Pont-à-Mousson",null,null,null,null,null,null,null,null,null,null,null,null,null,null,"METZ_CLG Public PHILIPPE DE VIGNEULLES","PHILIPPE DE VIGNEULLES","0572350V","METZ","CLG","Public","ce.0572350@ac-nancy-metz.fr",null,null,"Metz est"]
[null,null,"TOMBLAINE_CLG Public JEAN MOULIN","JEAN MOULIN","0541569M","TOMBLAINE","CLG","Public","ce.0541569@ac-nancy-metz.fr",null,null,"Nancy 2",null,null,null,null,null,null,null,null,null,null,null,null,null,null,"METZ_CLG Public TAISON","TAISON","0572352X","METZ","CLG","Public","ce.0572352@ac-nancy-metz.fr",null,null,"Metz ouest"]
[null,null,"TOUL_CLG Public AMIRAL DE RIGNY   ","AMIRAL DE RIGNY   ","0541330C","TOUL","CLG","Public","ce.0541330@ac-nancy-metz.fr",null,null,"Toul-Pont-à-Mousson",null,null,null,null,null,null,null,null,null,null,null,null,null,null,"MORHANGE_CLG Public L'ARBORETUM","L'ARBORETUM","0570073V","MORHANGE","CLG","Public","ce.0570073@ac-nancy-metz.fr",null,null,"Dieuze-Sarrebourg-Phalsbourg"]
[null,null,"TOUL_CLG Public CROIX DE METZ","CROIX DE METZ","0541565H","TOUL","CLG","Public","ce.0541565@ac-nancy-metz.fr",null,null,"Toul-Pont-à-Mousson",null,null,null,null,null,null,null,null,null,null,null,null,null,null,"MOULINS LES METZ_CLG Public ALBERT CAMUS","ALBERT CAMUS","0572186S","MOULINS LES METZ","CLG","Public","ce.0572186@ac-nancy-metz.fr",null,null,"Metz ouest"]
[null,null,"TOUL_CLG Public VALCOURT","VALCOURT","0541210X","TOUL","CLG","Public","ce.0541210@ac-nancy-metz.fr",null,null,"Toul-Pont-à-Mousson",null,null,null,null,null,null,null,null,null,null,null,null,null,null,"MOULINS LES METZ_CLG Public LOUIS ARMAND","LOUIS ARMAND","0572477H","MOULINS LES METZ","CLG","Public","ce.0572477@ac-nancy-metz.fr",null,null,"Metz sud"]
[null,null,"TUCQUEGNIEUX_CLG Public JOLIOT CURIE","JOLIOT CURIE","0541333F","TUCQUEGNIEUX","CLG","Public","ce.0541333@ac-nancy-metz.fr",null,null,"Briey-Jarny-Longwy",null,null,null,null,null,null,null,null,null,null,null,null,null,null,"MOUSSEY_CLG Public LES ETANGS","LES ETANGS","0570074W","MOUSSEY","CLG","Public","ce.0570074@ac-nancy-metz.fr",null,null,"Dieuze-Sarrebourg-Phalsbourg"]
[null,null,"VANDOEUVRE LES NANCY_CLG Public SIMONE DE BEAUVOIR","SIMONE DE BEAUVOIR","0541515D","VANDOEUVRE LES NANCY","CLG","Public",{"$f":"CONCATENATE(\"ce.\" & LEFT(E81,7) & \"@ac-nancy-metz.fr\")","v":"ce.0541515@ac-nancy-metz.fr"},null,null,"Nancy 1",null,null,null,null,null,null,null,null,null,null,null,null,null,null,"MOYEUVRE GRANDE_CLG Public JEAN BURGER","JEAN BURGER","0572017H","MOYEUVRE GRANDE","CLG","Public","ce.0572017@ac-nancy-metz.fr",null,null,"Fameck-Rombas"]
[null,null,"VANDOEUVRE LES NANCY_CLG Public JACQUES CALLOT","JACQUES CALLOT","0540111C","VANDOEUVRE LES NANCY","CLG","Public","ce.0540111@ac-nancy-metz.fr",null,null,"Nancy 1",null,null,null,null,null,null,null,null,null,null,null,null,null,null,"PETITE ROSSELLE_CLG Public LOUIS ARMAND","LOUIS ARMAND","0572493A","PETITE ROSSELLE","CLG","Public","ce.0572493@ac-nancy-metz.fr",null,null,"Creutzwald-Saint-Avold-Forbach"]
[null,null,"VEZELISE_CLG Public ROBERT GEANT","ROBERT GEANT","0540071J","VEZELISE","CLG","Public","ce.0540071@ac-nancy-metz.fr",null,null,"Nancy 1",null,null,null,null,null,null,null,null,null,null,null,null,null,null,"PHALSBOURG_CLG Public ERCKMANN-CHATRIAN","ERCKMANN-CHATRIAN","0572815A","PHALSBOURG","CLG","Public","ce.0572815@ac-nancy-metz.fr",null,null,"Dieuze-Sarrebourg-Phalsbourg"]
[null,null,"VILLERS LES NANCY_CLG Public GEORGE CHEPFER","GEORGE CHEPFER","0541776M","VILLERS LES NANCY","CLG","Public","ce.0541776@ac-nancy-metz.fr",null,null,"Nancy 1",null,null,null,null,null,null,null,null,null,null,null,null,null,null,"PUTTELANGE AUX LACS_CLG Public JEAN BAPTISTE EBLE","JEAN BAPTISTE EBLE","0572183N","PUTTELANGE AUX LACS","CLG","Public",{"$f":"CONCATENATE(\"ce.\" & LEFT(AC84,7) & \"@ac-nancy-metz.fr\")","v":"ce.0572183@ac-nancy-metz.fr"},null,null,"Sarrebourg-Sarreguemines-Bitche"]
[null,null,{"$f":"CONCATENATE(F85,\"_\",G85,\" \",H85,\" \",D85)","v":"VILLERUPT_CLG Public THÉODORE MONOD"},"THÉODORE MONOD","0542418K","VILLERUPT","CLG","Public","ce.0542418@ac-nancy-metz.fr",null,null,"Briey-Jarny-Longwy",null,null,null,null,null,null,null,null,null,null,null,null,null,null,{"$f":"CONCATENATE(AD85,\"_\",AE85,\" \",AF85,\" \",AB85)","v":"REMILLY_CLG Public LUCIEN POUGUE"},"LUCIEN POUGUE","0572013D","REMILLY","CLG","Public","ce.0572013@ac-nancy-metz.fr",null,null,"Metz est"]
[null,null,"ART SUR MEURTHE_CLG Privé LTPP SAINT MICHEL","LTPP SAINT MICHEL","0542449U","ART SUR MEURTHE","CLG","Privé","ce.0542449@ac-nancy-metz.fr",null,null,"Nancy Pont-à-Mousson",null,null,null,null,null,null,null,null,null,null,null,null,null,null,"ROHRBACH LES BITCHE_CLG Public JEAN SEITLINGER","JEAN SEITLINGER","0572496D","ROHRBACH LES BITCHE","CLG","Public","ce.0572496@ac-nancy-metz.fr",null,null,"Sarrebourg-Sarreguemines-Bitche"]
[null,null,"BRIEY_CLG Privé L'ASSOMPTION","L'ASSOMPTION","0541985P","BRIEY","CLG","Privé","ce.0541985@ac-nancy-metz.fr",null,null,"Briey-Jarny-Longwy",null,null,null,null,null,null,null,null,null,null,null,null,null,null,"ROMBAS_CLG Public JULIE DAUBIE","JULIE DAUBIE","0572585A","ROMBAS","CLG","Public","ce.0572585@ac-nancy-metz.fr",null,null,"Fameck-Rombas"]
[null,null,"JARVILLE LA MALGRANGE_CLG Privé LA MALGRANGE","LA MALGRANGE","0541306B","JARVILLE LA MALGRANGE","CLG","Privé","ce.0541306@ac-nancy-metz.fr",null,null,"Nancy Pont-à-Mousson",null,null,null,null,null,null,null,null,null,null,null,null,null,null,"SARRALBE_CLG Public ROBERT DOISNEAU","ROBERT DOISNEAU","0570093S","SARRALBE","CLG","Public","ce.0570093@ac-nancy-metz.fr",null,null,"Sarrebourg-Sarreguemines-Bitche"]
[null,null,"LONGUYON_CLG Privé SAINTE CHRETIENNE","SAINTE CHRETIENNE","0541452K","LONGUYON","CLG","Privé","ce.0541452@ac-nancy-metz.fr",null,null,"Briey-Jarny-Longwy",null,null,null,null,null,null,null,null,null,null,null,null,null,null,"SARREBOURG_CLG Public MANGIN","MANGIN","0572816B","SARREBOURG","CLG","Public","ce.0572816@ac-nancy-metz.fr",null,null,"Dieuze-Sarrebourg-Phalsbourg"]
[null,null,"LONGWY_CLG Privé DES RECOLLETS","DES RECOLLETS","0541989U","LONGWY","CLG","Privé","ce.0541989@ac-nancy-metz.fr",null,null,"Briey-Jarny-Longwy",null,null,null,null,null,null,null,null,null,null,null,null,null,null,"SARREBOURG_CLG Public PIERRE MESSMER","PIERRE MESSMER","0570097W","SARREBOURG","CLG","Public","ce.0570097@ac-nancy-metz.fr",null,null,"Dieuze-Sarrebourg-Phalsbourg"]
[null,null,"LUNEVILLE_CLG Privé SAINT PIERRE FOURIER","SAINT PIERRE FOURIER","0541990V","LUNEVILLE","CLG","Privé","ce.0541990@ac-nancy-metz.fr",null,null,"Lunéville",null,null,null,null,null,null,null,null,null,null,null,null,null,null,"SARREGUEMINES_CLG Public DU HIMMELSBERG","DU HIMMELSBERG","0572021M","SARREGUEMINES","CLG","Public","ce.0572021@ac-nancy-metz.fr",null,null,"Sarrebourg-Sarreguemines-Bitche"]
[null,null,"NANCY_CLG Privé CHARLES DE FOUCAULD","CHARLES DE FOUCAULD","0542409A","NANCY","CLG","Privé","ce.0542409@ac-nancy-metz.fr",null,null,"Nancy",null,null,null,null,null,null,null,null,null,null,null,null,null,null,"SARREGUEMINES_CLG Public FULRAD","FULRAD","0572184P","SARREGUEMINES","CLG","Public","ce.0572184@ac-nancy-metz.fr",null,null,"Sarrebourg-Sarreguemines-Bitche"]
[null,null,"NANCY_CLG Privé DU SACRE CŒUR","DU SACRE CŒUR","0541340N","NANCY","CLG","Privé",{"$f":"CONCATENATE(\"ce.\" & LEFT(E93,7) & \"@ac-nancy-metz.fr\")","v":"ce.0541340@ac-nancy-metz.fr"},null,null,"Nancy",null,null,null,null,null,null,null,null,null,null,null,null,null,null,"SARREGUEMINES_CLG Public JEAN JAURES","JEAN JAURES","0572587C","SARREGUEMINES","CLG","Public","ce.0572587@ac-nancy-metz.fr",null,null,"Sarrebourg-Sarreguemines-Bitche"]
[null,null,"NANCY_CLG Privé NOTRE DAME SAINT SIGISBERT","NOTRE DAME SAINT SIGISBERT","0541995A","NANCY","CLG","Privé","ce.0541995@ac-nancy-metz.fr",null,null,"Nancy",null,null,null,null,null,null,null,null,null,null,null,null,null,null,"SIERCK LES BAINS_CLG Public GENERAL DE GAULLE","GENERAL DE GAULLE","0572026T","SIERCK LES BAINS","CLG","Public","ce.0572026@ac-nancy-metz.fr",null,null,"Thionville"]
[null,null,"NANCY_CLG Privé SAINT DOMINIQUE","SAINT DOMINIQUE","0541994Z","NANCY","CLG","Privé","ce.0541994@ac-nancy-metz.fr",null,null,"Nancy",null,null,null,null,null,null,null,null,null,null,null,null,null,null,"ST AVOLD_CLG Public JEAN DE LA FONTAINE","JEAN DE LA FONTAINE","0570143W","ST AVOLD","CLG","Public","ce.0570143@ac-nancy-metz.fr",null,null,"Creutzwald-Saint-Avold-Forbach"]
[null,null,"NANCY_CLG Privé SAINT LEON IX","SAINT LEON IX","0541339M","NANCY","CLG","Privé","ce.0541339@ac-nancy-metz.fr",null,null,"Nancy",null,null,null,null,null,null,null,null,null,null,null,null,null,null,"ST AVOLD_CLG Public LA CARRIERE","LA CARRIERE","0572488V","ST AVOLD","CLG","Public","ce.0572488@ac-nancy-metz.fr",null,null,"Creutzwald-Saint-Avold-Forbach"]
[null,null,"PONT A MOUSSON_CLG Privé NOTRE DAME","NOTRE DAME","0541440X","PONT A MOUSSON","CLG","Privé","ce.0541440@ac-nancy-metz.fr",null,null,"Toul-Pont-à-Mousson",null,null,null,null,null,null,null,null,null,null,null,null,null,null,"STE MARIE AUX CHENES_CLG Public GABRIEL PIERNE","GABRIEL PIERNE","0570091P","STE MARIE AUX CHENES","CLG","Public","ce.0570091@ac-nancy-metz.fr",null,null,"Metz ouest"]
[null,null,"TOUL_CLG Privé JEAN-BAPTISTE VATELOT","JEAN-BAPTISTE VATELOT","0541999E","TOUL","CLG","Privé","ce.0541999@ac-nancy-metz.fr",null,null,"Toul-Pont-à-Mousson",null,null,null,null,null,null,null,null,null,null,null,null,null,null,"STIRING WENDEL_CLG Public NICOLAS UNTERSTELLER","NICOLAS UNTERSTELLER","0570104D","STIRING WENDEL","CLG","Public","ce.0570104@ac-nancy-metz.fr",null,null,"Creutzwald-Saint-Avold-Forbach"]
[null,null,null,null,null,null,null,null,null,null,null,null,null,null,null,null,null,null,null,null,null,null,null,null,null,null,"TALANGE_CLG Public LE BREUIL","LE BREUIL","0572174D","TALANGE","CLG","Public","ce.0572174@ac-nancy-metz.fr",null,null,"Fameck-Rombas"]
[null,null,null,null,null,null,null,null,null,null,null,null,null,null,null,null,null,null,null,null,null,null,null,null,null,null,"THIONVILLE_CLG Public CHARLEMAGNE","CHARLEMAGNE","0572811W","THIONVILLE","CLG","Public","ce.0572811@ac-nancy-metz.fr",null,null,"Thionville"]
[null,null,null,null,null,null,null,null,null,null,null,null,null,null,null,null,null,null,null,null,null,null,null,null,null,null,"THIONVILLE_CLG Public HELENE BOUCHER","HELENE BOUCHER","0572812X","THIONVILLE","CLG","Public","ce.0572812@ac-nancy-metz.fr",null,null,"Thionville"]
[null,null,null,null,null,null,null,null,null,null,null,null,null,null,null,null,null,null,null,null,null,null,null,null,null,null,"THIONVILLE_CLG Public LA MILLIAIRE","LA MILLIAIRE","0572355A","THIONVILLE","CLG","Public","ce.0572355@ac-nancy-metz.fr",null,null,"Thionville"]
[null,null,null,null,null,null,null,null,null,null,null,null,null,null,null,null,null,null,null,null,null,null,null,null,null,null,"UCKANGE_CLG Public JEAN MOULIN","JEAN MOULIN","0570318L","UCKANGE","CLG","Public","ce.0570318@ac-nancy-metz.fr",null,null,"Fameck-Rombas"]
[null,null,null,null,null,null,null,null,null,null,null,null,null,null,null,null,null,null,null,null,null,null,null,null,null,null,"VERNY_CLG Public NELSON MANDELA","NELSON MANDELA","0573754W","VERNY","CLG","Public","ce.0573754@ac-nancy-metz.fr",null,null,"Metz sud"]
[null,null,null,null,null,null,null,null,null,null,null,null,null,null,null,null,null,null,null,null,null,null,null,null,null,null,"VIGY_CLG Public CHARLES PEGUY","CHARLES PEGUY","0572354Z","VIGY","CLG","Public","ce.0572354@ac-nancy-metz.fr",null,null,"Metz est"]
[null,null,null,null,null,null,null,null,null,null,null,null,null,null,null,null,null,null,null,null,null,null,null,null,null,null,"VITRY SUR ORNE_CLG Public DU JUSTEMONT","DU JUSTEMONT","0572019K","VITRY SUR ORNE","CLG","Public","ce.0572019@ac-nancy-metz.fr",null,null,"Fameck-Rombas"]
[null,null,null,null,null,null,null,null,null,null,null,null,null,null,null,null,null,null,null,null,null,null,null,null,null,null,"WOIPPY_CLG Public JULES FERRY","JULES FERRY","0572579U","WOIPPY","CLG","Public","ce.0572579@ac-nancy-metz.fr",null,null,"Metz ouest"]
[null,null,null,null,null,null,null,null,null,null,null,null,null,null,null,null,null,null,null,null,null,null,null,null,null,null,"WOIPPY_CLG Public PIERRE MENDES-FRANCE","PIERRE MENDES-FRANCE","0572582X","WOIPPY","CLG","Public","ce.0572582@ac-nancy-metz.fr",null,null,"Metz ouest"]
[null,null,null,null,null,null,null,null,null,null,null,null,null,null,null,null,null,null,null,null,null,null,null,null,null,null,"YUTZ_CLG Public JEAN MERMOZ","JEAN MERMOZ","0570115R","YUTZ","CLG","Public","ce.0570115@ac-nancy-metz.fr",null,null,"Thionville"]
[null,null,null,null,null,null,null,null,null,null,null,null,null,null,null,null,null,null,null,null,null,null,null,null,null,null,"FORBACH_CLG Privé ANTOINE GAPP","ANTOINE GAPP","0572922S","FORBACH","CLG","Privé","ce.0572922@ac-nancy-metz.fr",null,null,"Bassin Houiller"]
[null,null,null,null,null,null,null,null,null,null,null,null,null,null,null,null,null,null,null,null,null,null,null,null,null,null,"METZ_CLG Privé DE LA SALLE","DE LA SALLE","0572925V","METZ","CLG","Privé","ce.0572925@ac-nancy-metz.fr",null,null,"Metz"]
[null,null,null,null,null,null,null,null,null,null,null,null,null,null,null,null,null,null,null,null,null,null,null,null,null,null,"METZ_CLG Privé ST ETIENNE","ST ETIENNE","0572923T","METZ","CLG","Privé","ce.0572923@ac-nancy-metz.fr",null,null,"Metz"]
[null,null,null,null,null,null,null,null,null,null,null,null,null,null,null,null,null,null,null,null,null,null,null,null,null,null,"METZ_CLG Privé ASSOCIATION RABBI GUERSHON","ASSOCIATION RABBI GUERSHON","0573688Z","METZ","CLG","Privé","ce.0573688@ac-nancy-metz.fr",null,null,"Metz"]
[null,null,null,null,null,null,null,null,null,null,null,null,null,null,null,null,null,null,null,null,null,null,null,null,null,null,"MONTIGNY LES METZ_CLG Privé JEAN XXIII","JEAN XXIII","0572927X","MONTIGNY LES METZ","CLG","Privé","ce.0572927@ac-nancy-metz.fr",null,null,"Metz"]
[null,null,null,null,null,null,null,null,null,null,null,null,null,null,null,null,null,null,null,null,null,null,null,null,null,null,"PELTRE_CLG Privé NOTRE DAME","NOTRE DAME","0572928Y","PELTRE","CLG","Privé","ce.0572928@ac-nancy-metz.fr",null,null,"Metz"]
[null,null,null,null,null,null,null,null,null,null,null,null,null,null,null,null,null,null,null,null,null,null,null,null,null,null,"PHALSBOURG_CLG Privé SAINT ANTOINE","SAINT ANTOINE","0572929Z","PHALSBOURG","CLG","Privé",{"$f":"CONCATENATE(\"ce.\" & LEFT(AC116,7) & \"@ac-nancy-metz.fr\")","v":"ce.0572929@ac-nancy-metz.fr"},null,null,"Dieuze-Sarrebourg-Phalsbourg"]
[null,null,null,null,null,null,null,null,null,null,null,null,null,null,null,null,null,null,null,null,null,null,null,null,null,null,"SARREBOURG_CLG Privé SAINTE MARIE","SAINTE MARIE","0570213X","SARREBOURG","CLG","Privé","ce.0570213@ac-nancy-metz.fr",null,null,"Dieuze-Sarrebourg-Phalsbourg"]
[null,null,null,null,null,null,null,null,null,null,null,null,null,null,null,null,null,null,null,null,null,null,null,null,null,null,"SARREGUEMINES_CLG Privé SAINTE CHRETIENNE","SAINTE CHRETIENNE","0572930A","SARREGUEMINES","CLG","Privé","ce.0572930@ac-nancy-metz.fr",null,null,"Sarrebourg-Sarreguemines-Bitche"]
[null,null,null,null,null,null,null,null,null,null,null,null,null,null,null,null,null,null,null,null,null,null,null,null,null,null,"ST AVOLD_CLG Privé SAINTE CHRETIENNE","SAINTE CHRETIENNE","0570223H","ST AVOLD","CLG","Privé","ce.0570223@ac-nancy-metz.fr",null,null,"Creutzwald-Saint-Avold-Forbach"]
[null,null,null,null,null,null,null,null,null,null,null,null,null,null,null,null,null,null,null,null,null,null,null,null,null,null,"THIONVILLE_CLG Privé NOTRE DAME DE LA PROVIDENCE","NOTRE DAME DE LA PROVIDENCE","0572932C","THIONVILLE","CLG","Privé","ce.0572932@ac-nancy-metz.fr",null,null,"Thionville"]
[null,null,null,null,null,null,null,null,null,null,null,null,null,null,null,null,null,null,null,null,null,null,null,null,null,null,"THIONVILLE_CLG Privé SAINT PIERRE CHANEL","SAINT PIERRE CHANEL","0572931B","THIONVILLE","CLG","Privé","ce.0572931@ac-nancy-metz.fr",null,null,"Thionville"]

{"sheet":"ListeLycees","index":7,"n_rows":120,"n_cols":97,"rows_kept":120,"cut":false,"hidden":true,"merged":[[119,26,119,36],[119,38,119,48],[17,50,17,60],[17,62,17,72],[17,74,17,84],[17,86,17,96],[17,2,17,12],[17,14,17,24],[17,26,17,36],[17,38,17,48]]}
[]
[null,null,{"$f":"COLUMN()","v":3},null,{"$f":"COLUMN()","v":5},null,null,null,null,null,null,null,null,null,null,null,{"$f":"COLUMN()","v":17},null,null,null,null,null,null,null,null,null,null,null,{"$f":"COLUMN()","v":29},null,null,null,null,null,null,null,null,null,null,null,{"$f":"COLUMN()","v":41},null,null,null,null,null,null,null,null,null,{"$f":"COLUMN()","v":51},null,null,null,null,null,null,null,null,null,null,null,null,null,null,null,null,null,null,null,null,null,null,null,null,null,null,null,null,null,null,null,null,null,null,null,null,null,null,null,null,null,null,null,null,null,{"$f":"COLUMN()","v":97}]
[]
[]
[]
[]
[]
[]
[]
[]
[]
[]
[]
[]
[]
[null,null,"Lien vers l'annuaire des établissements"]
[null,null,{"$f":"\"Public : \"&COUNTIFS(H20:H145,\"Public\",C20:C145,\"<>\"\"\")&\" Privé : \"&COUNTIFS(H20:H145,\"Privé\",C20:C145,\"<>\"\"\")&\" Total : \"&COUNTA(C20:C145)","v":"Public : 28 Privé : 19 Total : 47"},null,null,null,null,null,null,null,null,null,null,null,{"$f":"\"Public : \"&COUNTIFS(T20:T145,\"Public\",O20:O145,\"<>\"\"\")&\" Privé : \"&COUNTIFS(T20:T145,\"Privé\",O20:O145,\"<>\"\"\")&\" Total : \"&COUNTA(O20:O145)","v":"Public : 8 Privé : 5 Total : 13"},null,null,null,null,null,null,null,null,null,null,null,{"$f":"\"Public : \"&COUNTIFS(AF20:AF145,\"Public\",AA20:AA145,\"<>\"\"\")&\" Privé : \"&COUNTIFS(AF20:AF145,\"Privé\",AA20:AA145,\"<>\"\"\")&\" Total : \"&COUNTA(AA20:AA145)","v":"Public : 37 Privé : 22 Total : 60"},null,null,null,null,null,null,null,null,null,null,null,{"$f":"\"Public : \"&COUNTIFS(AR20:AR145,\"Public\",AM20:AM145,\"<>\"\"\")&\" Privé : \"&COUNTIFS(AR20:AR145,\"Privé\",AM20:AM145,\"<>\"\"\")&\" Total : \"&COUNTA(AM20:AM145)","v":"Public : 19 Privé : 9 Total : 29"},null,null,null,null,null,null,null,null,null,null,null,{"$f":"\"Public : \"&COUNTIFS(BD20:BD145,\"Public\",AY20:AY145,\"<>\"\"\")&\" Privé : \"&COUNTIFS(BD20:BD145,\"Privé\",AY20:AY145,\"<>\"\"\")&\" Total : \"&COUNTA(AY20:AY145)","v":"Public : 2 Privé : 0 Total : 2"},null,null,null,null,null,null,null,null,null,null,null,{"$f":"\"Public : \"&COUNTIFS(BP20:BP145,\"Public\",BK20:BK145,\"<>\"\"\")&\" Privé : \"&COUNTIFS(BP20:BP145,\"Privé\",BK20:BK145,\"<>\"\"\")&\" Total : \"&COUNTA(BK20:BK145)","v":"Public : 0 Privé : 0 Total : 0"},null,null,null,null,null,null,null,null,null,null,null,{"$f":"\"Public : \"&COUNTIFS(CB20:CB145,\"Public\",BW20:BW145,\"<>\"\"\")&\" Privé : \"&COUNTIFS(CB20:CB145,\"Privé\",BW20:BW145,\"<>\"\"\")&\" Total : \"&COUNTA(BW20:BW145)","v":"Public : 0 Privé : 0 Total : 0"},null,null,null,null,null,null,null,null,null,null,null,{"$f":"\"Public : \"&COUNTIFS(CN20:CN145,\"Public\",CI20:CI145,\"<>\"\"\")&\" Privé : \"&COUNTIFS(CN20:CN145,\"Privé\",CI20:CI145,\"<>\"\"\")&\" Total : \"&COUNTA(CI20:CI145)","v":"Public : 1 Privé : 0 Total : 1"}]
[null,null,"Meurthe et Moselle",null,null,null,null,null,null,null,null,null,null,null,"Meuse",null,null,null,null,null,null,null,null,null,null,null,"Moselle",null,null,null,null,null,null,null,null,null,null,null,"Vosges",null,null,null,null,null,null,null,null,null,null,null,"Meurthe et Moselle",null,null,null,null,null,null,null,null,null,null,null,"Meuse",null,null,null,null,null,null,null,null,null,null,null,"Moselle",null,null,null,null,null,null,null,null,null,null,null,"Vosges"]
[null,"Ens Spe","NOM Complet","NOM Etablissement","RNE","COMMUNE","TYPE","PU/Pr","Mail :","Téléphone :","Fax :","Bassin :","Adresse :","Ens Spe","NOM Complet","NOM Etablissement","RNE","COMMUNE","TYPE","PU/Pr","Mail :","Téléphone :","Fax :","Bassin :","Adresse :","Ens Spe","NOM Complet","NOM Etablissement","RNE","COMMUNE","TYPE","PU/Pr","Mail :","Téléphone :","Fax :","Bassin :","Adresse :","Ens Spe","NOM Complet","NOM Etablissement","RNE","COMMUNE","TYPE","PU/Pr","Mail :","Téléphone :","Fax :","Bassin :","Adresse :",null,"NOM Complet","NOM Etablissement","RNE","COMMUNE","TYPE","PU/Pr","Mail :","Téléphone :","Fax :","Bassin :","Adresse :",null,"NOM Complet","NOM Etablissement","RNE","COMMUNE","TYPE","PU/Pr","Mail :","Téléphone :","Fax :","Bassin :","Adresse :",null,"NOM Complet","NOM Etablissement","RNE","COMMUNE","TYPE","PU/Pr","Mail :","Téléphone :","Fax :","Bassin :","Adresse :",null,"NOM Complet","NOM Etablissement","RNE","COMMUNE","TYPE","PU/Pr","Mail :","Téléphone :","Fax :","Bassin :","Adresse :"]
[null,null,{"$f":"CONCATENATE(F20,\"_\",G20,\" \",H20,\" \",D20)","v":"BRIEY_LYCÉE Public LOUIS BERTRAND"},"LOUIS BERTRAND","0541286E","BRIEY","LYCÉE","Public",{"$f":"CONCATENATE(\"ce.\" & LEFT(E20,7) & \"@ac-nancy-metz.fr\")","v":"ce.0541286@ac-nancy-metz.fr"},null,null,"Briey-Jarny-Longwy",null,null,{"$f":"CONCATENATE(R20,\"_\",S20,\" \",T20,\" \",P20)","v":"BAR LE DUC_LP Public EMILE ZOLA"},"EMILE ZOLA","0550003E","BAR LE DUC","LP","Public",{"$f":"CONCATENATE(\"ce.\" & LEFT(Q20,7) & \"@ac-nancy-metz.fr\")","v":"ce.0550003@ac-nancy-metz.fr"},null,null,"Sud meusien",null,null,{"$f":"CONCATENATE(AD20,\"_\",AE20,\" \",AF20,\" \",AB20)","v":"BEHREN LES FORBACH_LP Public HURLEVENT"},"HURLEVENT","0573080N","BEHREN LES FORBACH","LP","Public",{"$f":"CONCATENATE(\"ce.\" & LEFT(AC20,7) & \"@ac-nancy-metz.fr\")","v":"ce.0573080@ac-nancy-metz.fr"},null,null,"Creutzwald-Saint-Avold-Forbach",null,null,{"$f":"CONCATENATE(AP20,\"_\",AQ20,\" \",AR20,\" \",AN20)","v":"BRUYERES_LYCÉE Public JEAN LURCAT"},"JEAN LURCAT","0880004B","BRUYERES","LYCÉE","Public",{"$f":"CONCATENATE(\"ce.\" & LEFT(AO20,7) & \"@ac-nancy-metz.fr\")","v":"ce.0880004@ac-nancy-metz.fr"},null,null,"Vosges est",null,null,{"$f":"CONCATENATE(BB20,\"_\",BC20,\" \",BD20,\" \",AZ20)","v":"FLAVIGNY SUR MOSELLE_EREA Public FRANCOIS RICHARD JOUBERT"},"FRANCOIS RICHARD JOUBERT","0541268K","FLAVIGNY SUR MOSELLE","EREA","Public",{"$f":"CONCATENATE(\"ce.\" & LEFT(BA20,7) & \"@ac-nancy-metz.fr\")","v":"ce.0541268@ac-nancy-metz.fr"},null,null,"Nancy 1",null,null,null,null,null,null,null,null,null,null,null,null,null,null,null,null,null,null,null,null,null,null,null,null,null,null,{"$f":"CONCATENATE(CL20,\"_\",CM20,\" \",CN20,\" \",CJ20)","v":"EPINAL_EREA Public FRANCOIS GEORGIN"},"FRANCOIS GEORGIN","0881119N","EPINAL","EREA","Public",{"$f":"CONCATENATE(\"ce.\" & LEFT(CK20,7) & \"@ac-nancy-metz.fr\")","v":"ce.0881119@ac-nancy-metz.fr"},null,null,"Vosges ouest"]
[null,null,{"$f":"CONCATENATE(F21,\"_\",G21,\" \",H21,\" \",D21)","v":"DOMBASLE SUR MEURTHE_LP Public ENTRE MEURTHE ET SÂNON"},"ENTRE MEURTHE ET SÂNON","0540015Y","DOMBASLE SUR MEURTHE","LP","Public","ce.0540015@ac-nancy-metz.fr",null,null,"Nancy 1",null,null,{"$f":"CONCATENATE(R21,\"_\",S21,\" \",T21,\" \",P21)","v":"BAR LE DUC_LP Public LIGIER RICHIER"},"LIGIER RICHIER","0550004F","BAR LE DUC","LP","Public","ce.0550004@ac-nancy-metz.fr",null,null,"Sud meusien",null,null,{"$f":"CONCATENATE(AD21,\"_\",AE21,\" \",AF21,\" \",AB21)","v":"BITCHE_LYCÉE Public LOUIS CASIMIR TEYSSIER"},"LOUIS CASIMIR TEYSSIER","0573326F","BITCHE","LYCÉE","Public","ce.0573326@ac-nancy-metz.fr",null,null,"Sarrebourg-Sarreguemines-Bitche",null,null,{"$f":"CONCATENATE(AP21,\"_\",AQ21,\" \",AR21,\" \",AN21)","v":"CONTREXEVILLE_LP Public PIERRE MENDES FRANCE"},"PIERRE MENDES FRANCE","0880013L","CONTREXEVILLE","LP","Public",{"$f":"CONCATENATE(\"ce.\" & LEFT(AO21,7) & \"@ac-nancy-metz.fr\")","v":"ce.0880013@ac-nancy-metz.fr"},null,null,"Vosges ouest",null,null,{"$f":"CONCATENATE(BB21,\"_\",BC21,\" \",BD21,\" \",AZ21)","v":"VAL DE BRIEY_EREA Public HUBERT MARTIN"},"HUBERT MARTIN","0541338L","VAL DE BRIEY","EREA","Public",{"$f":"CONCATENATE(\"ce.\" & LEFT(BA21,7) & \"@ac-nancy-metz.fr\")","v":"ce.0541338@ac-nancy-metz.fr"},null,null,"Briey-Jarny-Longwy"]
[null,null,"JARNY_LYCÉE Public JEAN ZAY","JEAN ZAY","0540076P","JARNY","LYCÉE","Public","ce.0540076@ac-nancy-metz.fr",null,null,"Briey-Jarny-Longwy",null,null,"BAR LE DUC_LYCÉE Public RAYMOND POINCARE","RAYMOND POINCARE","0550002D","BAR LE DUC","LYCÉE","Public","ce.0550002@ac-nancy-metz.fr",null,null,"Sud meusien",null,null,"CREUTZWALD_LYCÉE Public FELIX MAYER","FELIX MAYER","0572022N","CREUTZWALD","LYCÉE","Public","ce.0572022@ac-nancy-metz.fr",null,null,"Creutzwald-Saint-Avold-Forbach",null,"x","EPINAL_LYCÉE Public PIERRE MENDES FRANCE","PIERRE MENDES FRANCE","0880021V","EPINAL","LYCÉE","Public","ce.0880021@ac-nancy-metz.fr",null,null,"Vosges ouest"]
[null,null,"LANDRES_LP Public JEAN MORETTE","JEAN MORETTE","0540086A","LANDRES","LP","Public","ce.0540086@ac-nancy-metz.fr",null,null,"Briey-Jarny-Longwy",null,null,"COMMERCY_LYCÉE Public HENRI VOGT","HENRI VOGT","0550008K","COMMERCY","LYCÉE","Public","ce.0550008@ac-nancy-metz.fr",null,null,"Sud meusien",null,null,"DIEUZE_LYCÉE Public CHARLES HERMITE","CHARLES HERMITE","0570021N","DIEUZE","LYCÉE","Public","ce.0570021@ac-nancy-metz.fr",null,null,"Dieuze-Sarrebourg-Phalsbourg",null,null,"EPINAL_LYCÉE Public CLAUDE GELLEE","CLAUDE GELLEE","0880020U","EPINAL","LYCÉE","Public","ce.0880020@ac-nancy-metz.fr",null,null,"Vosges ouest"]
[null,null,"LAXOU_LYCÉE Public BAT. ET DE L'ENERGIE E.HERE","BAT. ET DE L'ENERGIE E.HERE","0542262R","LAXOU","LYCÉE","Public","ce.0542262@ac-nancy-metz.fr",null,null,"Nancy 1",null,null,"STENAY_LYCÉE Public ALFRED KASTLER","ALFRED KASTLER","0550072E","STENAY","LYCÉE","Public","ce.0550072@ac-nancy-metz.fr",null,null,"Nord meusien",null,null,"FAMECK_LYCÉE Public ANTOINE DE SAINT-EXUPERY","ANTOINE DE SAINT-EXUPERY","0570023R","FAMECK","LYCÉE","Public","ce.0570023@ac-nancy-metz.fr",null,null,"Fameck-Rombas",null,null,"EPINAL_LP Public ISABELLE VIVIANI","ISABELLE VIVIANI","0880023X","EPINAL","LP","Public","ce.0880023@ac-nancy-metz.fr",null,null,"Vosges ouest"]
[null,null,"LONGLAVILLE_LP Public JEAN MARC REISER","JEAN MARC REISER","0541605B","LONGLAVILLE","LP","Public","ce.0541605@ac-nancy-metz.fr",null,null,"Briey-Jarny-Longwy",null,null,"VERDUN_LP Public ALAIN-FOURNIER","ALAIN-FOURNIER","0550026E","VERDUN","LP","Public","ce.0550026@ac-nancy-metz.fr",null,null,"Nord meusien",null,null,"FAMECK_LP Public JEAN MACE","JEAN MACE","0572075W","FAMECK","LP","Public","ce.0572075@ac-nancy-metz.fr",null,null,"Fameck-Rombas",null,null,"EPINAL_LYCÉE Public LOUIS LAPICQUE","LOUIS LAPICQUE","0880019T","EPINAL","LYCÉE","Public","ce.0880019@ac-nancy-metz.fr",null,null,"Vosges ouest"]
[null,null,"LONGWY_LYCÉE Public ALFRED MEZIERES","ALFRED MEZIERES","0540030P","LONGWY","LYCÉE","Public","ce.0540030@ac-nancy-metz.fr",null,null,"Briey-Jarny-Longwy",null,null,"VERDUN_LP Public EUGENE FREYSSINET","EUGENE FREYSSINET","0550891V","VERDUN","LP","Public","ce.0550891@ac-nancy-metz.fr",null,null,"Nord meusien",null,null,"FORBACH_LYCÉE Public BLAISE PASCAL","BLAISE PASCAL","0570030Y","FORBACH","LYCÉE","Public","ce.0570030@ac-nancy-metz.fr",null,null,"Creutzwald-Saint-Avold-Forbach",null,null,"GERARDMER_LYCÉE Public HOTELIER J-B SIMEON CHARDIN","HOTELIER J-B SIMEON CHARDIN","0881664F","GERARDMER","LYCÉE","Public","ce.0881664@ac-nancy-metz.fr",null,null,"Vosges est"]
[null,null,"LONGWY_LP Public DARCHE","DARCHE","0540032S","LONGWY","LP","Public","ce.0540032@ac-nancy-metz.fr",null,null,"Briey-Jarny-Longwy",null,null,"VERDUN_LYCÉE Public JEAN-AUGUSTE MARGUERITTE","JEAN-AUGUSTE MARGUERITTE","0550025D","VERDUN","LYCÉE","Public","ce.0550025@ac-nancy-metz.fr",null,null,"Nord meusien",null,null,"FORBACH_LYCÉE Public JEAN MOULIN","JEAN MOULIN","0570029X","FORBACH","LYCÉE","Public","ce.0570029@ac-nancy-metz.fr",null,null,"Creutzwald-Saint-Avold-Forbach",null,"x","GERARDMER_LYCÉE Public LA HAIE GRISELLE","LA HAIE GRISELLE","0880030E","GERARDMER","LYCÉE","Public","ce.0880030@ac-nancy-metz.fr",null,null,"Vosges est"]
[null,null,"LUNEVILLE_LYCÉE Public ERNEST BICHAT","ERNEST BICHAT","0540034U","LUNEVILLE","LYCÉE","Public","ce.0540034@ac-nancy-metz.fr",null,null,"Lunéville",null,null,"BAR LE DUC_LYCÉE Privé SAINT LOUIS","SAINT LOUIS","0550047C","BAR LE DUC","LYCÉE","Privé","ce.0550047@ac-nancy-metz.fr",null,null,"Sud meusien",null,null,"FREYMING MERLEBACH_LYCÉE Public ERNEST CUVELETTE","ERNEST CUVELETTE","0573491K","FREYMING MERLEBACH","LYCÉE","Public","ce.0573491@ac-nancy-metz.fr",null,null,"Creutzwald-Saint-Avold-Forbach",null,null,"GERARDMER_LP Public PIERRE GILLES DE GENNES","PIERRE GILLES DE GENNES","0880031F","GERARDMER","LP","Public","ce.0880031@ac-nancy-metz.fr",null,null,"Vosges est"]
[null,null,"LUNEVILLE_LYCÉE Public JACQUES-MARIE BOUTET DE MONVEL","JACQUES-MARIE BOUTET DE MONVEL","0542293Z","LUNEVILLE","LYCÉE","Public","ce.0542293@ac-nancy-metz.fr",null,null,"Lunéville",null,null,"COMMERCY_LP Privé SAINTE JEANNE D'ARC","SAINTE JEANNE D'ARC","0551032Y","COMMERCY","LP","Privé",{"$f":"CONCATENATE(\"ce.\" & LEFT(Q29,7) & \"@ac-nancy-metz.fr\")","v":"ce.0551032@ac-nancy-metz.fr"},null,null,"Sud meusien",null,null,"FREYMING MERLEBACH_LP Public PIERRE ET MARIE CURIE","PIERRE ET MARIE CURIE","0570051W","FREYMING MERLEBACH","LP","Public","ce.0570051@ac-nancy-metz.fr",null,null,"Creutzwald-Saint-Avold-Forbach",null,null,"LA VOGE-LES-BAINS_LP Public LE CHESNOIS","LE CHESNOIS","0880001Y","LA VOGE-LES-BAINS","LP","Public","ce.0880001@ac-nancy-metz.fr",null,null,"Vosges ouest"]
[null,null,"LUNEVILLE_LP Public PAUL LAPIE","PAUL LAPIE","0540037X","LUNEVILLE","LP","Public","ce.0540037@ac-nancy-metz.fr",null,null,"Lunéville",null,null,"LIGNY EN BARROIS_LP Privé NOTRE DAME DES VERTUS","NOTRE DAME DES VERTUS","0550700M","LIGNY EN BARROIS","LP","Privé",{"$f":"CONCATENATE(\"ce.\" & LEFT(Q30,7) & \"@ac-nancy-metz.fr\")","v":"ce.0550700@ac-nancy-metz.fr"},null,null,"Sud meusien",null,null,"HAYANGE_LP Public MARYSE BASTIE","MARYSE BASTIE","0570077Z","HAYANGE","LP","Public","ce.0570077@ac-nancy-metz.fr",null,null,"Fameck-Rombas",null,null,"MIRECOURT_LYCÉE Public JEAN-BAPTISTE VUILLAUME","JEAN-BAPTISTE VUILLAUME","0880036L","MIRECOURT","LYCÉE","Public","ce.0880036@ac-nancy-metz.fr",null,null,"Vosges ouest"]
[null,null,"NANCY_LYCÉE Public FREDERIC CHOPIN","FREDERIC CHOPIN","0540040A","NANCY","LYCÉE","Public","ce.0540040@ac-nancy-metz.fr",null,null,"Nancy 1",null,"x","VERDUN_LYCÉE Privé SAINTE ANNE","SAINTE ANNE","0550049E","VERDUN","LYCÉE","Privé",{"$f":"CONCATENATE(\"ce.\" & LEFT(Q31,7) & \"@ac-nancy-metz.fr\")","v":"ce.0550049@ac-nancy-metz.fr"},null,null,"Nord meusien",null,null,"MARLY_LP Public ANDRE CITROEN","ANDRE CITROEN","0573211F","MARLY","LP","Public","ce.0573211@ac-nancy-metz.fr",null,null,"Metz sud",null,null,"NEUFCHATEAU_LYCÉE Public PIERRE ET MARIE CURIE","PIERRE ET MARIE CURIE","0880040R","NEUFCHATEAU","LYCÉE","Public","ce.0880040@ac-nancy-metz.fr",null,null,"Vosges ouest"]
[null,"x","NANCY_LYCÉE Public GEORGES DE LA TOUR","GEORGES DE LA TOUR","0540041B","NANCY","LYCÉE","Public","ce.0540041@ac-nancy-metz.fr",null,null,"Nancy 1",null,null,"VERDUN_LP Privé SAINTE ANNE","SAINTE ANNE","0550983V","VERDUN","LP","Privé",{"$f":"CONCATENATE(\"ce.\" & LEFT(Q32,7) & \"@ac-nancy-metz.fr\")","v":"ce.0550983@ac-nancy-metz.fr"},null,null,"Nord meusien",null,null,"METZ_LP Public ALAIN FOURNIER","ALAIN FOURNIER","0570061G","METZ","LP","Public","ce.0570061@ac-nancy-metz.fr",null,null,"Metz est",null,null,"RAON L ETAPE_LP Public LOUIS GEISLER","LOUIS GEISLER","0881370L","RAON L ETAPE","LP","Public","ce.0881370@ac-nancy-metz.fr",null,null,"Vosges est"]
[null,null,"NANCY_LYCÉE Public HENRI LORITZ","HENRI LORITZ","0540042C","NANCY","LYCÉE","Public","ce.0540042@ac-nancy-metz.fr",null,null,"Nancy 2",null,null,null,null,null,null,null,null,null,null,null,null,null,null,"METZ_LYCÉE Public DE LA COMMUNICATION","DE LA COMMUNICATION","0573281G","METZ","LYCÉE","Public","ce.0573281@ac-nancy-metz.fr",null,null,"Metz est",null,null,"REMIREMONT_LP Public CAMILLE CLAUDEL","CAMILLE CLAUDEL","0881140L","REMIREMONT","LP","Public","ce.0881140@ac-nancy-metz.fr",null,null,"Vosges est"]
[null,null,"NANCY_LYCÉE Public HENRI POINCARE","HENRI POINCARE","0540038Y","NANCY","LYCÉE","Public","ce.0540038@ac-nancy-metz.fr",null,null,"Nancy 2",null,null,null,null,null,null,null,null,null,null,null,null,null,null,"METZ_LYCÉE Public FABERT","FABERT","0570054Z","METZ","LYCÉE","Public","ce.0570054@ac-nancy-metz.fr",null,null,"Metz ouest",null,null,"REMIREMONT_LYCÉE Public FILIERE BOIS ANDRE MALRAUX","FILIERE BOIS ANDRE MALRAUX","0880153N","REMIREMONT","LYCÉE","Public","ce.0880153@ac-nancy-metz.fr",null,null,"Vosges est"]
[null,null,"NANCY_LP Public JEAN PROUVE","JEAN PROUVE","0540081V","NANCY","LP","Public","ce.0540081@ac-nancy-metz.fr",null,null,"Nancy 1",null,null,null,null,null,null,null,null,null,null,null,null,null,null,"METZ_LYCÉE Public GEORGES DE LA TOUR","GEORGES DE LA TOUR","0572757M","METZ","LYCÉE","Public","ce.0572757@ac-nancy-metz.fr",null,null,"Metz sud",null,null,"ST DIE DES VOSGES_LYCÉE Public GEORGES BAUMONT","GEORGES BAUMONT","0880152M","ST DIE DES VOSGES","LYCÉE","Public","ce.0880152@ac-nancy-metz.fr",null,null,"Vosges est"]
[null,null,"NANCY_LYCÉE Public JEANNE D'ARC","JEANNE D'ARC","0540039Z","NANCY","LYCÉE","Public","ce.0540039@ac-nancy-metz.fr",null,null,"Nancy 2",null,null,null,null,null,null,null,null,null,null,null,null,null,null,"METZ_LYCÉE Public HOTELIER RAYMOND MONDON","HOTELIER RAYMOND MONDON","0573320Z","METZ","LYCÉE","Public","ce.0573320@ac-nancy-metz.fr",null,null,"Metz est",null,null,"ST DIE DES VOSGES_LP Public JACQUES AUGUSTIN","JACQUES AUGUSTIN","0880057J","ST DIE DES VOSGES","LP","Public","ce.0880057@ac-nancy-metz.fr",null,null,"Vosges est"]
[null,null,"NANCY_LP Public PAUL LOUIS CYFFLE","PAUL LOUIS CYFFLE","0540082W","NANCY","LP","Public","ce.0540082@ac-nancy-metz.fr",null,null,"Nancy 2",null,null,null,null,null,null,null,null,null,null,null,null,null,"x","METZ_LYCÉE Public LOUIS DE CORMONTAIGNE","LOUIS DE CORMONTAIGNE","0573227Y","METZ","LYCÉE","Public","ce.0573227@ac-nancy-metz.fr",null,null,"Metz ouest",null,null,"ST DIE DES VOSGES_LYCÉE Public JULES FERRY","JULES FERRY","0880055G","ST DIE DES VOSGES","LYCÉE","Public","ce.0880055@ac-nancy-metz.fr",null,null,"Vosges est"]
[null,null,"POMPEY_LP Public BERTRAND SCHWARTZ","BERTRAND SCHWARTZ","0540085Z","POMPEY","LP","Public","ce.0540085@ac-nancy-metz.fr",null,null,"Nancy 2",null,null,null,null,null,null,null,null,null,null,null,null,null,null,"METZ_LYCÉE Public LOUIS VINCENT","LOUIS VINCENT","0570058D","METZ","LYCÉE","Public","ce.0570058@ac-nancy-metz.fr",null,null,"Metz sud",null,null,"THAON LES VOSGES_LP Public EMILE GALLE","EMILE GALLE","0880064S","THAON LES VOSGES","LP","Public","ce.0880064@ac-nancy-metz.fr",null,null,"Vosges ouest"]
[null,null,"PONT A MOUSSON_LYCÉE Public JACQUES MARQUETTE","JACQUES MARQUETTE","0540058V","PONT A MOUSSON","LYCÉE","Public","ce.0540058@ac-nancy-metz.fr",null,null,"Toul-Pont-à-Mousson",null,null,null,null,null,null,null,null,null,null,null,null,null,null,"METZ_LP Public RENE CASSIN","RENE CASSIN","0570124A","METZ","LP","Public","ce.0570124@ac-nancy-metz.fr",null,null,"Metz ouest",null,null,"BRUYERES_LP Privé JEANNE D'ARC","JEANNE D'ARC","0880133S","BRUYERES","LP","Privé","ce.0880133@ac-nancy-metz.fr",null,null,"Vosges est"]
[null,null,"PONT A MOUSSON_LYCÉE Public JEAN HANZELET","JEAN HANZELET","0541270M","PONT A MOUSSON","LYCÉE","Public","ce.0541270@ac-nancy-metz.fr",null,null,"Toul-Pont-à-Mousson",null,null,null,null,null,null,null,null,null,null,null,null,null,null,"METZ_LYCÉE Public ROBERT SCHUMAN","ROBERT SCHUMAN","0570057C","METZ","LYCÉE","Public","ce.0570057@ac-nancy-metz.fr",null,null,"Metz est",null,null,"EPINAL_LYCÉE Privé NOTRE DAME - SAINT JOSEPH","NOTRE DAME - SAINT JOSEPH","0880101G","EPINAL","LYCÉE","Privé",{"$f":"CONCATENATE(\"ce.\" & LEFT(AO40,7) & \"@ac-nancy-metz.fr\")","v":"ce.0880101@ac-nancy-metz.fr"},null,null,"Vosges ouest"]
[null,null,"PONT ST VINCENT_LP Public LA TOURNELLE","LA TOURNELLE","0540060X","PONT ST VINCENT","LP","Public","ce.0540060@ac-nancy-metz.fr",null,null,"Nancy 1",null,null,null,null,null,null,null,null,null,null,null,null,null,null,"MONTIGNY LES METZ_LP Public METIERS DU BATIMENT ET T.P","METIERS DU BATIMENT ET T.P","0570144X","MONTIGNY LES METZ","LP","Public","ce.0570144@ac-nancy-metz.fr",null,null,"Metz sud",null,null,"EPINAL_LP Privé NOTRE DAME - SAINT JOSEPH","NOTRE DAME - SAINT JOSEPH","0881530K","EPINAL","LP","Privé","ce.0881530@ac-nancy-metz.fr",null,null,"Vosges ouest"]
[null,null,"TOMBLAINE_LYCÉE Public ARTHUR VAROQUAUX","ARTHUR VAROQUAUX","0540044E","TOMBLAINE","LYCÉE","Public","ce.0540044@ac-nancy-metz.fr",null,null,"Nancy 2",null,null,null,null,null,null,null,null,null,null,null,null,null,null,"PHALSBOURG_LYCÉE Public ERCKMANN CHATRIAN","ERCKMANN CHATRIAN","0570081D","PHALSBOURG","LYCÉE","Public","ce.0570081@ac-nancy-metz.fr",null,null,"Dieuze-Sarrebourg-Phalsbourg",null,null,"NEUFCHATEAU_LP Privé JEANNE D'ARC","JEANNE D'ARC","0881651S","NEUFCHATEAU","LP","Privé","ce.0881651@ac-nancy-metz.fr",null,null,"Vosges ouest"]
[null,null,"TOMBLAINE_LP Public MARIE MARVINGT","MARIE MARVINGT","0540061Y","TOMBLAINE","LP","Public","ce.0540061@ac-nancy-metz.fr",null,null,"Nancy 2",null,null,null,null,null,null,null,null,null,null,null,null,null,null,"ROMBAS_LYCÉE Public JULIE DAUBIE","JULIE DAUBIE","0570146Z","ROMBAS","LYCÉE","Public","ce.0570146@ac-nancy-metz.fr",null,null,"Fameck-Rombas",null,null,"REMIREMONT_LYCÉE Privé JEANNE D'ARC","JEANNE D'ARC","0880097C","REMIREMONT","LYCÉE","Privé","ce.0880097@ac-nancy-metz.fr",null,null,"Vosges est"]
[null,null,"TOUL_LYCÉE Public LOUIS MAJORELLE","LOUIS MAJORELLE","0540066D","TOUL","LYCÉE","Public","ce.0540066@ac-nancy-metz.fr",null,null,"Toul-Pont-à-Mousson",null,null,null,null,null,null,null,null,null,null,null,null,null,null,"SARREBOURG_LP Public DOMINIQUE LABROISE","DOMINIQUE LABROISE","0570095U","SARREBOURG","LP","Public","ce.0570095@ac-nancy-metz.fr",null,null,"Sarrebourg-Sarreguemines-Bitche",null,null,"REMIREMONT_LP Privé JEANNE D'ARC","JEANNE D'ARC","0881498A","REMIREMONT","LP","Privé","ce.0881498@ac-nancy-metz.fr",null,null,"Vosges est"]
[null,null,"TOUL_LP Public REGIONAL DU TOULOIS","REGIONAL DU TOULOIS","0540067E","TOUL","LP","Public","ce.0540067@ac-nancy-metz.fr",null,null,"Toul-Pont-à-Mousson",null,null,null,null,null,null,null,null,null,null,null,null,null,null,"SARREBOURG_LYCÉE Public MANGIN","MANGIN","0570094T","SARREBOURG","LYCÉE","Public","ce.0570094@ac-nancy-metz.fr",null,null,"Dieuze-Sarrebourg-Phalsbourg",null,null,"ROVILLE AUX CHENES_LP Privé HORTICULTURE ET PAYSAGE","HORTICULTURE ET PAYSAGE","0881623L","ROVILLE AUX CHENES","LP","Privé","ce.0881623@ac-nancy-metz.fr",null,null,"Vosges est"]
[null,null,"VANDOEUVRE LES NANCY_LYCÉE Public JACQUES CALLOT","JACQUES CALLOT","0540070H","VANDOEUVRE LES NANCY","LYCÉE","Public","ce.0540070@ac-nancy-metz.fr",null,null,"Nancy 1",null,null,null,null,null,null,null,null,null,null,null,null,null,null,"SARREGUEMINES_LYCÉE Public HENRI NOMINE","HENRI NOMINE","0570099Y","SARREGUEMINES","LYCÉE","Public","ce.0570099@ac-nancy-metz.fr",null,null,"Sarrebourg-Sarreguemines-Bitche",null,null,"ST DIE DES VOSGES_LYCÉE Privé BEAU JARDIN","BEAU JARDIN","0880099E","ST DIE DES VOSGES","LYCÉE","Privé","ce.0880099@ac-nancy-metz.fr",null,null,"Vosges est"]
[null,null,"VILLERS LES NANCY_LYCÉE Public STANISLAS","STANISLAS","0542208G","VILLERS LES NANCY","LYCÉE","Public","ce.0542208@ac-nancy-metz.fr",null,null,"Nancy 1",null,null,null,null,null,null,null,null,null,null,null,null,null,null,"SARREGUEMINES_LYCÉE Public JEAN DE PANGE","JEAN DE PANGE","0570098X","SARREGUEMINES","LYCÉE","Public","ce.0570098@ac-nancy-metz.fr",null,null,"Sarrebourg-Sarreguemines-Bitche",null,null,"ST DIE DES VOSGES_LP Privé NOTRE DAME DE LA PROVIDENCE","NOTRE DAME DE LA PROVIDENCE","0880120C","ST DIE DES VOSGES","LP","Privé","ce.0880120@ac-nancy-metz.fr",null,null,"Vosges est"]
[null,null,"ART SUR MEURTHE_LYCÉE Privé SAINT MICHEL","SAINT MICHEL","0542295B","ART SUR MEURTHE","LYCÉE","Privé","ce.0542295@ac-nancy-metz.fr",null,null,"Nancy",null,null,null,null,null,null,null,null,null,null,null,null,null,null,"SARREGUEMINES_LP Public SIMON LAZARD","SIMON LAZARD","0570100Z","SARREGUEMINES","LP","Public","ce.0570100@ac-nancy-metz.fr",null,null,"Sarrebourg-Sarreguemines-Bitche"]
[null,null,"ART SUR MEURTHE_LP Privé SAINT MICHEL","SAINT MICHEL","0541344T","ART SUR MEURTHE","LP","Privé","ce.0541344@ac-nancy-metz.fr",null,null,"Nancy",null,null,null,null,null,null,null,null,null,null,null,null,null,null,"SCHOENECK_LYCÉE Public CONDORCET","CONDORCET","0573231C","SCHOENECK","LYCÉE","Public","ce.0573231@ac-nancy-metz.fr",null,null,"Creutzwald-Saint-Avold-Forbach"]
[null,null,"BRIEY_LYCÉE Privé L'ASSOMPTION","L'ASSOMPTION","0541305A","BRIEY","LYCÉE","Privé","ce.0541305@ac-nancy-metz.fr",null,null,"Briey-Jarny-Longwy",null,null,null,null,null,null,null,null,null,null,null,null,null,null,"ST AVOLD_LYCÉE Public ET DES TECHNO INNOV. C. JULLY","ET DES TECHNO INNOV. C. JULLY","0570087K","ST AVOLD","LYCÉE","Public","ce.0570087@ac-nancy-metz.fr",null,null,"Creutzwald-Saint-Avold-Forbach"]
[null,null,"JARVILLE LA MALGRANGE_LYCÉE Privé LA MALGRANGE","LA MALGRANGE","0541986R","JARVILLE LA MALGRANGE","LYCÉE","Privé","ce.0541986@ac-nancy-metz.fr",null,null,"Nancy",null,null,null,null,null,null,null,null,null,null,null,null,null,null,"ST AVOLD_LYCÉE Public JEAN-VICTOR PONCELET","JEAN-VICTOR PONCELET","0570085H","ST AVOLD","LYCÉE","Public","ce.0570085@ac-nancy-metz.fr",null,null,"Creutzwald-Saint-Avold-Forbach"]
[null,null,"LONGWY_LYCÉE Privé DES RECOLLETS","DES RECOLLETS","0541309E","LONGWY","LYCÉE","Privé",{"$f":"CONCATENATE(\"ce.\" & LEFT(E52,7) & \"@ac-nancy-metz.fr\")","v":"ce.0541309@ac-nancy-metz.fr"},null,null,"Briey-Jarny-Longwy",null,null,null,null,null,null,null,null,null,null,null,null,null,null,"TALANGE_LYCÉE Public GUSTAVE EIFFEL","GUSTAVE EIFFEL","0572590F","TALANGE","LYCÉE","Public","ce.0572590@ac-nancy-metz.fr",null,null,"Fameck-Rombas"]
[null,null,"LUNEVILLE_LYCÉE Privé SAINT PIERRE FOURIER","SAINT PIERRE FOURIER","0541312H","LUNEVILLE","LYCÉE","Privé","ce.0541312@ac-nancy-metz.fr",null,null,"Lunéville",null,null,null,null,null,null,null,null,null,null,null,null,null,null,"THIONVILLE_LYCÉE Public CHARLEMAGNE","CHARLEMAGNE","0570106F","THIONVILLE","LYCÉE","Public","ce.0570106@ac-nancy-metz.fr",null,null,"Thionville"]
[null,null,"MONT ST MARTIN_LP Privé NOTRE DAME","NOTRE DAME","0541357G","MONT ST MARTIN","LP","Privé","ce.0541357@ac-nancy-metz.fr",null,null,"Briey-Jarny-Longwy",null,null,null,null,null,null,null,null,null,null,null,null,null,null,"THIONVILLE_LYCÉE Public HELENE BOUCHER","HELENE BOUCHER","0570107G","THIONVILLE","LYCÉE","Public","ce.0570107@ac-nancy-metz.fr",null,null,"Thionville"]
[null,null,"NANCY_LYCÉE Privé CHARLES DE FOUCAULD","CHARLES DE FOUCAULD","0542408Z","NANCY","LYCÉE","Privé","ce.0542408@ac-nancy-metz.fr",null,null,"Nancy",null,null,null,null,null,null,null,null,null,null,null,null,null,null,"THIONVILLE_LYCÉE Public ROSA PARKS","ROSA PARKS","0572027U","THIONVILLE","LYCÉE","Public","ce.0572027@ac-nancy-metz.fr",null,null,"Thionville"]
[null,null,"NANCY_LP Privé CHARLES DE FOUCAULD","CHARLES DE FOUCAULD","0541998D","NANCY","LP","Privé","ce.0541998@ac-nancy-metz.fr",null,null,"Nancy",null,null,null,null,null,null,null,null,null,null,null,null,null,null,"THIONVILLE_LYCÉE Public LA BRIQUERIE","LA BRIQUERIE","0570108H","THIONVILLE","LYCÉE","Public","ce.0570108@ac-nancy-metz.fr",null,null,"Thionville"]
[null,null,"NANCY_LYCÉE Privé CLAUDE DAUNOT","CLAUDE DAUNOT","0542448T","NANCY","LYCÉE","Privé","ce.0542448@ac-nancy-metz.fr",null,null,"Nancy",null,null,null,null,null,null,null,null,null,null,null,null,null,null,"ALGRANGE_LP Privé SAINT VINCENT DE PAUL","SAINT VINCENT DE PAUL","0570241C","ALGRANGE","LP","Privé","ce.0570241@ac-nancy-metz.fr",null,null,"Fameck-Rombas"]
[null,null,"NANCY_LP Privé CLAUDE DAUNOT","CLAUDE DAUNOT","0541370W","NANCY","LP","Privé","ce.0541370@ac-nancy-metz.fr",null,null,"Nancy",null,null,null,null,null,null,null,null,null,null,null,null,null,null,"ALGRANGE_LYCÉE Privé SAINT VINCENT DE PAUL","SAINT VINCENT DE PAUL","0573366Z","ALGRANGE","LYCÉE","Privé","ce.0573366@ac-nancy-metz.fr",null,null,"Fameck-Rombas"]
[null,null,"NANCY_LP Privé MARIE IMMACULEE","MARIE IMMACULEE","0541364P","NANCY","LP","Privé",{"$f":"CONCATENATE(\"ce.\" & LEFT(E59,7) & \"@ac-nancy-metz.fr\")","v":"ce.0541364@ac-nancy-metz.fr"},null,null,"Nancy",null,null,null,null,null,null,null,null,null,null,null,null,null,null,"BOULAY_LP Privé INTERENTREPRISE","INTERENTREPRISE","0570225K","BOULAY","LP","Privé","ce.0570225@ac-nancy-metz.fr",null,null,"Creutzwald-Saint-Avold-Forbach"]
[null,null,"NANCY_LYCÉE Privé NOTRE DAME SAINT SIGISBERT","NOTRE DAME SAINT SIGISBERT","0541318P","NANCY","LYCÉE","Privé","ce.0541318@ac-nancy-metz.fr",null,null,"Nancy",null,null,null,null,null,null,null,null,null,null,null,null,null,null,"BOUZONVILLE_LP Privé ANTOINE GAPP","ANTOINE GAPP","0570248K","BOUZONVILLE","LP","Privé","ce.0570248@ac-nancy-metz.fr",null,null,"Creutzwald-Saint-Avold-Forbach"]
[null,null,"NANCY_LYCÉE Privé PIERRE DE COUBERTIN","PIERRE DE COUBERTIN","0542161F","NANCY","LYCÉE","Privé","ce.0542161@ac-nancy-metz.fr",null,null,"Nancy",null,null,null,null,null,null,null,null,null,null,null,null,null,null,"DIEUZE_LP Privé LA PROVIDENCE","LA PROVIDENCE","0570279U","DIEUZE","LP","Privé","ce.0570279@ac-nancy-metz.fr",null,null,"Dieuze-Sarrebourg-Phalsbourg"]
[null,null,"NANCY_LP Privé PIERRE DE COUBERTIN","PIERRE DE COUBERTIN","0541363N","NANCY","LP","Privé","ce.0541363@ac-nancy-metz.fr",null,null,"Nancy",null,null,null,null,null,null,null,null,null,null,null,null,null,null,"FORBACH_LYCÉE Privé ANTOINE GAPP","ANTOINE GAPP","0572340J","FORBACH","LYCÉE","Privé","ce.0572340@ac-nancy-metz.fr",null,null,"Creutzwald-Saint-Avold-Forbach"]
[null,null,"NANCY_LYCÉE Privé SAINT DOMINIQUE","SAINT DOMINIQUE","0541319R","NANCY","LYCÉE","Privé","ce.0541319@ac-nancy-metz.fr",null,null,"Nancy",null,null,null,null,null,null,null,null,null,null,null,null,null,null,"METZ_LP Privé DE LA SALLE","DE LA SALLE","0573270V","METZ","LP","Privé","ce.0573270@ac-nancy-metz.fr",null,null,"Metz sud"]
[null,null,"NANCY_LYCÉE Privé SAINT LEON IX","SAINT LEON IX","0541313J","NANCY","LYCÉE","Privé","ce.0541313@ac-nancy-metz.fr",null,null,"Nancy",null,null,null,null,null,null,null,null,null,null,null,null,null,null,"METZ_LYCÉE Privé DE LA SALLE","DE LA SALLE","0570311D","METZ","LYCÉE","Privé","ce.0570311@ac-nancy-metz.fr",null,null,"Metz sud"]
[null,null,"TOUL_LYCÉE Privé JEAN-BAPTISTE VATELOT","JEAN-BAPTISTE VATELOT","0541320S","TOUL","LYCÉE","Privé","ce.0541320@ac-nancy-metz.fr",null,null,"Toul-Pont-à-Mousson",null,null,null,null,null,null,null,null,null,null,null,null,null,null,"METZ_LYCÉE Privé ENSEMBLE SCOLAIRE ST ETIENNE","ENSEMBLE SCOLAIRE ST ETIENNE","0573770N","METZ","LYCÉE","Privé","ce.0573770@ac-nancy-metz.fr",null,null,"METZ"]
[null,null,"TOUL_LP Privé JEAN-BAPTISTE VATELOT","JEAN-BAPTISTE VATELOT","0541377D","TOUL","LP","Privé","ce.0541377@ac-nancy-metz.fr",null,null,"Toul-Pont-à-Mousson",null,null,null,null,null,null,null,null,null,null,null,null,null,null,"METZ_LP Privé SAINT ETIENNE","SAINT ETIENNE","0570283Y","METZ","LP","Privé",{"$f":"CONCATENATE(\"ce.\" & LEFT(AC66,7) & \"@ac-nancy-metz.fr\")","v":"ce.0570283@ac-nancy-metz.fr"},null,null,"METZ"]
[null,null,null,null,null,null,null,null,null,null,null,null,null,null,null,null,null,null,null,null,null,null,null,null,null,null,"MONTIGNY LES METZ_LYCÉE Privé JEAN XXIII","JEAN XXIII","0572341K","MONTIGNY LES METZ","LYCÉE","Privé","ce.0572341@ac-nancy-metz.fr",null,null,"METZ"]
[null,null,null,null,null,null,null,null,null,null,null,null,null,null,null,null,null,null,null,null,null,null,null,null,null,null,"OTTANGE_LP Privé SAINT ANDRE","SAINT ANDRE","0572101Z","OTTANGE","LP","Privé","ce.0572101@ac-nancy-metz.fr",null,null,"THIONVILLE HAYANGE ROMBAS"]
[null,null,null,null,null,null,null,null,null,null,null,null,null,null,null,null,null,null,null,null,null,null,null,null,null,null,"OTTANGE_LEGT Privé SAINT ANDRE","SAINT ANDRE","0573519R","OTTANGE","LEGT","Privé","ce.0573519@ac-nancy-metz.fr",null,null,"THIONVILLE HAYANGE ROMBAS"]
[null,null,null,null,null,null,null,null,null,null,null,null,null,null,null,null,null,null,null,null,null,null,null,null,null,null,"PELTRE_LYCÉE Privé NOTRE DAME","NOTRE DAME","0570210U","PELTRE","LYCÉE","Privé","ce.0570210@ac-nancy-metz.fr",null,null,"Metz est"]
[null,null,null,null,null,null,null,null,null,null,null,null,null,null,null,null,null,null,null,null,null,null,null,null,null,null,"PHALSBOURG_LYCÉE Privé SAINT ANTOINE","SAINT ANTOINE","0570211V","PHALSBOURG","LYCÉE","Privé","ce.0570211@ac-nancy-metz.fr",null,null,"Dieuze-Sarrebourg-Phalsbourg"]
[null,null,null,null,null,null,null,null,null,null,null,null,null,null,null,null,null,null,null,null,null,null,null,null,null,null,"SARREBOURG_LP Privé SAINTE MARIE","SAINTE MARIE","0570294K","SARREBOURG","LP","Privé","ce.0570294@ac-nancy-metz.fr",null,null,"Sarrebourg-Sarreguemines-Bitche"]
[null,null,null,null,null,null,null,null,null,null,null,null,null,null,null,null,null,null,null,null,null,null,null,null,null,null,"SARREGUEMINES_LYCÉE Privé SAINTE CHRETIENNE","SAINTE CHRETIENNE","0570214Y","SARREGUEMINES","LYCÉE","Privé","ce.0570214@ac-nancy-metz.fr",null,null,"Sarrebourg-Sarreguemines-Bitche"]
[null,null,null,null,null,null,null,null,null,null,null,null,null,null,null,null,null,null,null,null,null,null,null,null,null,null,"ST AVOLD_LP Privé SAINTE CHRETIENNE","SAINTE CHRETIENNE","0570268G","ST AVOLD","LP","Privé","ce.0570268@ac-nancy-metz.fr",null,null,"Creutzwald-Saint-Avold-Forbach"]
[null,null,null,null,null,null,null,null,null,null,null,null,null,null,null,null,null,null,null,null,null,null,null,null,null,null,"ST AVOLD_LYCÉE Privé SAINTE CHRETIENNE","SAINTE CHRETIENNE","0573172N","ST AVOLD","LYCÉE","Privé","ce.0573172@ac-nancy-metz.fr",null,null,"Creutzwald-Saint-Avold-Forbach"]
[null,null,null,null,null,null,null,null,null,null,null,null,null,null,null,null,null,null,null,null,null,null,null,null,null,null,"THIONVILLE_LP Privé NOTRE DAME DE LA PROVIDENCE","NOTRE DAME DE LA PROVIDENCE","0572951Y","THIONVILLE","LP","Privé","ce.0572951@ac-nancy-metz.fr",null,null,"Thionville"]
[null,null,null,null,null,null,null,null,null,null,null,null,null,null,null,null,null,null,null,null,null,null,null,null,null,null,"THIONVILLE_LYCÉE Privé NOTRE DAME DE LA PROVIDENCE","NOTRE DAME DE LA PROVIDENCE","0570313F","THIONVILLE","LYCÉE","Privé","ce.0570313@ac-nancy-metz.fr",null,null,"Thionville"]
[null,null,null,null,null,null,null,null,null,null,null,null,null,null,null,null,null,null,null,null,null,null,null,null,null,null,"THIONVILLE_LYCÉE Privé SAINT PIERRE CHANEL","SAINT PIERRE CHANEL","0570216A","THIONVILLE","LYCÉE","Privé","ce.0570216@ac-nancy-metz.fr",null,null,"Thionville"]
[]
[]
[]
[]
[]
[]
[]
[]
[]
[]
[]
[]
[]
[]
[]
[]
[]
[]
[]
[]
[]
[]
[]
[]
[]
[]
[]
[]
[]
[]
[]
[]
[]
[]
[]
[]
[]
[]
[]
[]
[]
[null,null,null,null,null,null,null,null,null,null,null,null,null,null,null,null,null,null,null,null,null,null,null,null,null,null,"Moselle",null,null,null,null,null,null,null,null,null,null,null,"Vosges"]

{"sheet":"ModServices","index":8,"n_rows":164,"n_cols":9,"rows_kept":164,"cut":false,"hidden":true,"merged":[[71,3,96,3],[99,3,124,3],[15,3,40,3],[37,4,38,4],[37,5,38,5],[37,6,38,6],[39,4,40,4],[39,5,40,5],[39,6,40,6],[65,4,66,4],[65,5,66,5],[65,6,66,6],[43,3,68,3],[43,5,44,5],[43,6,44,6],[115,5,116,5],[93,6,94,6],[95,4,96,4],[95,5,96,5],[95,6,96,6],[51,6,52,6],[101,5,102,5],[101,6,102,6],[103,5,104,5],[135,6,136,6],[139,5,140,5],[139,6,140,6],[141,5,142,5],[141,6,142,6],[143,5,144,5],[143,6,144,6],[25,5,26,5],[25,6,26,6],[53,5,54,5],[53,6,54,6],[81,5,82,5],[81,6,82,6],[109,5,110,5],[109,6,110,6],[115,6,116,6],[117,5,118,5],[117,6,118,6],[119,5,120,5],[119,6,120,6],[105,6,106,6],[133,6,134,6],[105,5,106,5],[93,5,94,5],[129,4,130,4],[131,4,132,4],[121,4,122,4],[121,5,122,5],[121,6,122,6],[123,4,124,4],[123,5,124,5],[123,6,124,6],[107,5,108,5],[107,6,108,6],[111,5,112,5],[111,6,112,6],[113,5,114,5],[113,6,114,6],[127,5,128,5],[127,6,128,6],[109,4,110,4],[13,3,13,7],[7,5,7,7],[8,6,8,7],[9,6,9,7],[10,6,10,7],[11,6,11,7],[91,5,92,5],[91,6,92,6],[99,5,100,5],[99,6,100,6],[45,5,46,5],[45,6,46,6],[79,6,80,6],[83,5,84,5],[55,5,56,5],[55,6,56,6],[57,5,58,5],[57,6,58,6],[59,5,60,5],[59,6,60,6],[51,5,52,5],[61,5,62,5],[61,6,62,6],[63,5,64,5],[103,6,104,6],[12,3,12,7],[155,3,164,3],[155,5,156,5],[155,6,156,6],[157,5,158,5],[157,6,158,6],[159,5,160,5],[163,4,164,4],[151,4,152,4],[161,5,162,5],[161,6,162,6],[127,3,152,3],[135,5,136,5],[137,5,138,5],[137,6,138,6],[159,6,160,6],[149,4,150,4],[149,5,150,5],[149,6,150,6],[129,5,130,5],[129,6,130,6],[131,5,132,5],[131,6,132,6],[137,4,138,4],[133,5,134,5],[47,5,48,5],[47,6,48,6],[49,5,50,5],[49,6,50,6],[163,5,164,5],[163,6,164,6],[145,5,146,5],[145,6,146,6],[147,5,148,5],[147,6,148,6],[151,5,152,5],[151,6,152,6],[85,5,86,5],[85,6,86,6],[87,5,88,5],[87,6,88,6],[89,5,90,5],[89,6,90,6],[75,6,76,6],[77,5,78,5],[77,6,78,6],[79,5,80,5],[63,6,64,6],[67,5,68,5],[67,6,68,6],[71,5,72,5],[71,6,72,6],[73,5,74,5],[83,6,84,6],[73,6,74,6],[75,5,76,5],[14,5,14,6],[15,5,16,5],[17,5,18,5],[19,5,20,5],[21,5,22,5],[23,5,24,5],[15,6,16,6],[17,6,18,6],[19,6,20,6],[21,6,22,6],[23,6,24,6],[27,6,28,6],[29,6,30,6],[31,6,32,6],[33,6,34,6],[35,6,36,6],[27,5,28,5],[29,5,30,5],[31,5,32,5],[33,5,34,5],[35,5,36,5],[15,4,16,4],[17,4,18,4],[19,4,20,4],[21,4,22,4],[23,4,24,4],[27,4,28,4],[29,4,30,4],[31,4,32,4],[33,4,34,4],[25,4,26,4],[43,4,44,4],[115,4,116,4],[71,4,72,4],[73,4,74,4],[75,4,76,4],[77,4,78,4],[79,4,80,4],[83,4,84,4],[85,4,86,4],[87,4,88,4],[89,4,90,4],[57,4,58,4],[59,4,60,4],[61,4,62,4],[63,4,64,4],[67,4,68,4],[53,4,54,4],[81,4,82,4],[93,4,94,4],[45,4,46,4],[47,4,48,4],[49,4,50,4],[51,4,52,4],[55,4,56,4],[5,7,6,7],[117,4,118,4],[119,4,120,4],[127,4,128,4],[159,4,160,4],[161,4,162,4],[133,4,134,4],[135,4,136,4],[139,4,140,4],[141,4,142,4],[143,4,144,4],[145,4,146,4],[147,4,148,4],[155,4,156,4],[157,4,158,4],[91,4,92,4],[99,4,100,4],[101,4,102,4],[103,4,104,4],[105,4,106,4],[107,4,108,4],[111,4,112,4],[113,4,114,4],[35,4,36,4]]}
[null,null,null,null,null,"NON"]
[]
[]
[]
[]
[null,null,null,null,null,null,null,null,"Enseignant"]
[]
[null,null,null,null,null,"Heures d'enseignements EPS : "]
[null,null,null,null,null,null,"Heures effectuées : "]
[null,null,null,null,null,null,"Service UNSS :"]
[null,null,null,null,null,null,"Coordination :"]
[null,null,null,null,null,null,"District UNSS : "]
[null,null,null,"Jury d'examens aux épreuves  ponctuelles :"]
[null,null,null,"APSA en tant que jury aux épreuves ponctuelles :"]
[null,null,null,"Jours","Sem.","Début du\ncours à :",null,"Semaines"]
[null,null,null,"Lundi",null,"M1"]
[]
[null,null,null,null,null,"M2"]
[]
[null,null,null,null,null,"M3"]
[]
[null,null,null,null,null,"M4"]
[]
[null,null,null,null,null,"M5"]
[]
[null,null,null,null,null,"x"]
[]
[null,null,null,null,null,"S1"]
[]
[null,null,null,null,null,"S2"]
[]
[null,null,null,null,null,"S3"]
[]
[null,null,null,null,null,"S4"]
[]
[null,null,null,null,null,"S5"]
[]
[null,null,null,null,null,"S6"]
[]
[null,null,null,null,null,"S7"]
[]
[]
[]
[null,null,null,"Mardi",null,"M1"]
[]
[null,null,null,null,null,"M2"]
[]
[null,null,null,null,null,"M3"]
[]
[null,null,null,null,null,"M4"]
[]
[null,null,null,null,null,"M5"]
[]
[null,null,null,null,null,"x"]
[]
[null,null,null,null,null,"S1"]
[]
[null,null,null,null,null,"S2"]
[]
[null,null,null,null,null,"S3"]
[]
[null,null,null,null,null,"S4"]
[]
[null,null,null,null,null,"S5"]
[]
[null,null,null,null,null,"S6"]
[]
[null,null,null,null,null,"S7"]
[]
[]
[]
[null,null,null,"Mercredi",null,"M1"]
[]
[null,null,null,null,null,"M2"]
[]
[null,null,null,null,null,"M3"]
[]
[null,null,null,null,null,"M4"]
[]
[null,null,null,null,null,"M5"]
[]
[null,null,null,null,null,"x"]
[]
[null,null,null,null,null,"S1"]
[]
[null,null,null,null,null,"S2"]
[]
[null,null,null,null,null,"S3"]
[]
[null,null,null,null,null,"S4"]
[]
[null,null,null,null,null,"S5"]
[]
[null,null,null,null,null,"S6"]
[]
[null,null,null,null,null,"S7"]
[]
[]
[]
[null,null,null,"Jeudi",null,"M1"]
[]
[null,null,null,null,null,"M2"]
[]
[null,null,null,null,null,"M3"]
[]
[null,null,null,null,null,"M4"]
[]
[null,null,null,null,null,"M5"]
[]
[null,null,null,null,null,"x"]
[]
[null,null,null,null,null,"S1"]
[]
[null,null,null,null,null,"S2"]
[]
[null,null,null,null,null,"S3"]
[]
[null,null,null,null,null,"S4"]
[]
[null,null,null,null,null,"S5"]
[]
[null,null,null,null,null,"S6"]
[]
[null,null,null,null,null,"S7"]
[]
[]
[]
[null,null,null,"Vendredi",null,"M1"]
[]
[null,null,null,null,null,"M2"]
[]
[null,null,null,null,null,"M3"]
[]
[null,null,null,null,null,"M4"]
[]
[null,null,null,null,null,"M5"]
[]
[null,null,null,null,null,"x"]
[]
[null,null,null,null,null,"S1"]
[]
[null,null,null,null,null,"S2"]
[]
[null,null,null,null,null,"S3"]
[]
[null,null,null,null,null,"S4"]
[]
[null,null,null,null,null,"S5"]
[]
[null,null,null,null,null,"S6"]
[]
[null,null,null,null,null,"S7"]
[]
[]
[]
[null,null,null,"Samedi",null,"M1"]
[]
[null,null,null,null,null,"M2"]
[]
[null,null,null,null,null,"M3"]
[]
[null,null,null,null,null,"M4"]
[]
[null,null,null,null,null,"M5"]

{"sheet":"ModPlanning","index":9,"n_rows":29,"n_cols":9,"rows_kept":29,"cut":false,"hidden":true,"merged":[[8,3,9,3],[12,3,13,3],[16,3,17,3],[20,3,21,3],[28,3,29,3],[24,3,25,3]]}
[null,null,null,null,null,"NON","Cycle"]
[]
[]
[]
[]
[]
[null,null,null,null,null,null,null,null,"Date : "]
[null,null,null,"Jours","Enseignants","Classes","Début du\ncours à","Fin du\ncours à","Semaines"]
[null,null,null,"Lundi"]
[]
[]
[]
[null,null,null,"Mardi"]
[]
[]
[]
[null,null,null,"Mercredi"]
[]
[]
[]
[null,null,null,"Jeudi"]
[]
[]
[]
[null,null,null,"Vendredi"]
[]
[]
[]
[null,null,null,"Samedi"]